Workbook

Sheet Blank (hidden)
B2: If a box does not appear within 10 seconds, you likely have macros turned off.
B3: Please see the instruction on our website next to this excel file for help.
B4: If you have excel 2007, allow macros in the tan strip across the top of your screen.

Sheet Summary
A1: Office of the State Actuary
A2: 2018-03-28
A3: Alternative Measurement Method for GASB 45
B4: Inputs: | D4: 20-38 | E4: 39-48 | F4: 49-56 | G4: 57+ | I4: Sensitivities:
C5: Number Active | D5: 0 | E5: 0 | F5: 0 | G5: 0 | I5: Medical Inflation | K5: +or- 0.5%
C6: Active Age | D6: 0 | E6: 0 | F6: 0 | G6: 0 | I6: Amortization Period | K6: 25 Years
C7: Percent Male | D7: 0 | E7: 0 | F7: 0 | G7: 0 | I7: Active Member Growth | K7: 0
C8: Active Service | D8: 0 | E8: 0 | F8: 0 | G8: 0
D9: 20-65 | E9: 66-70 | F9: 71-77 | G9: 78+ | I9: Employer:
C10: Number Inactive | D10: 0 | E10: 0 | F10: 0 | G10: 0 | I10: Annual Budget | K10: 1000000
C11: Inactive Age | D11: 0 | E11: 0 | F11: 0 | G11: 0 | I11: Annual Budget Growth | K11: 0.05
C12: Percent Male | D12: 0 | E12: 0 | F12: 0 | G12: 0 | I12: BOY NOO | K12: 250000
A14: Excise Tax Inflation Trend: | D14: ON
A16: Key Results: | G16: This version of the OPEB Tool is NOT intended for GASB 74/75.
B17: Actuarial Accrued Liability (AAL) | E17: =SUM('Working Tab'!H8:J8,'Working Tab'!K15:M15) -> 346360.3204
B18: Annual Required Contribution (ARC) | E18: =IF(SUM($D$5:$G$5,$D$10:$G$10)<100,D52,"") -> 140101.6294
B19: Annual OPEB Cost | E19: =IF(SUM($D$5:$G$5,$D$10:$G$10)<100,D58,"") -> 135644.1046
B20: Net OPEB Obligation (NOO)* | E20: =IF(SUM($D$5:$G$5,$D$10:$G$10)<100,D64,"") -> 385644.1046
B21: *Estimated
A24: Disclosures: (You must include wording such as this in your financial statements, see GASB 45 paragraph 34)
B25: We used the alternative measurement method permitted under GASB Statement No. 45. A single retirement age of 62.4 was assumed for all active members to determine the AAL and normal cost. Retirement, disablement, termination, and mortality rates were assumed to follow the PERS 2 rates used in the June 30, 2015, actuarial valuation report issued by the Office of the State Actuary (OSA). Healthcare costs and trends were determined by Milliman and used by OSA in the state-wide PEBB study performed in 2015. The results were based on grouped data with four active groupings and four inactive groupings. The actuarial cost method used to determine the AAL was the Projected Unit Credit. The AAL and NOO are amortized on an open basis as a level dollar over 30 years. These assumptions are individually and collectively reasonable for the purposes of this valuation.
A35: Further Breakdown of Key Results
D36: PVFB | E36: AAL
B37: Active:
C38: Implicit Subsidy | D38: =IF(SUM($D$5:$G$5,$D$10:$G$10)<100,SUM('Working Tab'!B8),"") -> 239442.8512 | E38: =IF(SUM($D$5:$G$5,$D$10:$G$10)<100,SUM('Working Tab'!H8),"") -> 19710.10228
C39: Explicit Subsidy | D39: =IF(SUM($D$5:$G$5,$D$10:$G$10)<100,SUM('Working Tab'!C8),"") -> 3968221.904 | E39: =IF(SUM($D$5:$G$5,$D$10:$G$10)<100,SUM('Working Tab'!I8),"") -> 326650.2181
C41: Total Active | D41: =SUM(D38:D40) -> 4207664.756 | E41: =SUM(E38:E40) -> 346360.3204
B42: Inactive (Retiree):
C43: Implicit Subsidy | D43: =IF(SUM($D$5:$G$5,$D$10:$G$10)<100,SUM('Working Tab'!E15),"") -> 0 | E43: =IF(SUM($D$5:$G$5,$D$10:$G$10)<100,SUM('Working Tab'!K15),"") -> 0
C44: Explicit Subsidy | D44: =IF(SUM($D$5:$G$5,$D$10:$G$10)<100,SUM('Working Tab'!F15),"") -> 0 | E44: =IF(SUM($D$5:$G$5,$D$10:$G$10)<100,SUM('Working Tab'!L15),"") -> 0
C46: Total Inactive | D46: =SUM(D43:D45) -> 0 | E46: =SUM(E43:E45) -> 0
B47: Total | D47: =SUM(D41,D46) -> 4207664.756 | E47: =SUM(E41,E46) -> 346360.3204
C48: Implicit | D48: =D38+D43 -> 239442.8512 | E48: =E38+E43 -> 19710.10228
B49: ARC | C49: Explicit | D49: =D39+D44 -> 3968221.904 | E49: =E39+E44 -> 326650.2181
C50: Normal Cost | D50: =IF(SUM($D$5:$G$5,$D$10:$G$10)<100,SUM('Working Tab'!N8),"") -> 120071.5777
C51: UAAL Amortization | D51: =IF(SUM($D$5:$G$5,$D$10:$G$10)<100,SUM('Working Tab'!O8),"") -> 20030.05166
B52: ARC | D52: =SUM(D50:D51) -> 140101.6294
B54: Annual OPEB Cost
C55: ARC | D55: =D52 -> 140101.6294
C56: NOO Interest | D56: =IF(SUM($D$5:$G$5,$D$10:$G$10)<100,SUM('Working Tab'!G48),"") -> 10000
C57: NOO Amortization | D57: =IF(SUM($D$5:$G$5,$D$10:$G$10)<100,-SUM('Working Tab'!H48),"") -> -14457.52478
B58: Annual OPEB Cost | D58: =SUM(D55:D57) -> 135644.1046
B60: NOO
C61: Starting NOO | D61: =IF(SUM($D$5:$G$5,$D$10:$G$10)<100,SUM('Working Tab'!I48),"") -> 250000
C62: Annual OPEB Cost | D62: =D58 -> 135644.1046
C63: Contributions | D63: =IF(SUM($D$5:$G$5,$D$10:$G$10)<100,SUM('Working Tab'!S8),"") -> 0
B64: NOO | D64: =D61+D62-D63 -> 385644.1046
B65: *Estimated (Please see comment in Key Results, above)
B103: Closed Group Contribution Projections:
B105: The graph below shows what the contributions (year by year subsidy amounts) are projected to look like over the remaining lifetimes of your current members. Please press the "Chart Medical Inflation" button to see how these contributions compare to those with different projected medical inflation.
B140: The graph below shows what the contributions (year by year subsidy amounts) are projected to look like over the remaining lifetimes of your current members relative to your annual budget.
B177: Open Group Contribution Projections:
B179: The graph below shows what the contributions (year by year subsidy amounts) are projected to look like over the remaining lifetimes of your current members and new entrants. The blue line is more in line with how your actual contributions should look as long as new members get to join PEBB. The assumed new entrant age is 36 and the number of new entrants is consistent with the active member growth assumption you entered.
B214: The graph below shows what the contributions (year by year subsidy amounts) are projected to look like over the remaining lifetimes of your current members and new entrants relative to your annual budget.

Sheet Active (hidden)
A1: Actives | B1: 0 | D1: Insured | G1: UMP | J1: Implicit | K1: Insured | L1: Explicit | O1: Implicit | P1: UMP | Q1: Explicit | U1: Insured | Y1: UMP | AB1: Average | AF1: 0 | BC1: Retires at age XX, implicit subsidy | BN1: Retires at age XX, explicit subsidy | CE1: 0.01 | CF1: Retire | CG1: Retire | CI1: Retire | CK1: Ret Age | CL1: MS @ | CM1: Implicit | CN1: Explicit | CO1: Normal | CP1: Implicit | CQ1: Explicit | CR1: Total
A2: Year | D2: Gross | E2: Prem | G2: Gross | H2: Prem | J2: Trend | K2: Rel Trend | L2: Trend | M2: Rel Trend | O2: Trend | P2: Rel Trend | Q2: Trend | R2: Rel Trend | T2: Gross | U2: Prem | V2: Net | X2: Gross | Y2: Prem | Z2: Net | AB2: Net | AD2: Retire - M | AE2: Retire - F | AF2: Retire | AG2: Term - M | AH2: Term - F | AI2: Term | AJ2: Dis - M | AK2: Dis - F | AL2: Disab | AM2: Death - M | AN2: Death - F | AO2: Death | AP2: Decrement | AQ2: Survive | AR2: Interest | AT2: Mort - M | AU2: Mort - F | AV2: Mortality | AW2: Survive | AX2: Interest | AY2: Pay Timing | BA2: Age | BB2: Net | BC2: Imp 55 | BD2: Imp 56 | BE2: Imp 57 | BF2: Imp 58 | BG2: Imp 59 | BH2: Imp 60 | BI2: Imp 61 | BJ2: Imp 62 | BK2: Imp 63 | BL2: Imp 64 | BN2: Exp 55 | BO2: Exp 56 | BP2: Exp 57 | BQ2: Exp 58 | BR2: Exp 59 | BS2: Exp 60 | BT2: Exp 61 | BU2: Exp 62 | BV2: Exp 63 | BW2: Exp 64 | BX2: Exp 65 | BY2: Exp 66 | BZ2: Exp 67 | CA2: Exp 68 | CB2: Exp 69 | CC2: Exp 70 | CE2: MS | CF2: Prob | CG2: Age | CH2: Survive | CI2: Weighted | CK2: Prob | CL2: Retire | CM2: NC | CN2: NC | CO2: Cost | CP2: PUC | CQ2: PUC | CR2: PUC
A3: 2015 | B3: 20 | D3: =VLOOKUP(B3,Lookups!A:B,2) -> 2497.59371 | E3: =VLOOKUP(B3,Lookups!A:C,3) -> 7044.48 | G3: =VLOOKUP(B3,Lookups!A:D,4) -> 2039.208584 | H3: =VLOOKUP(B3,Lookups!A:E,5) -> 6841.56 | J3: =VLOOKUP(A3,Trends!A1:Q93,IF(ExFlg=0,2,10),FALSE)+Sens -> 1.071 | K3: 1 | L3: =VLOOKUP(A3,Trends!A1:Q93,IF(ExFlg=0,4,12),FALSE)+Sens -> 1.084 | M3: 1 | O3: =VLOOKUP(A3,Trends!A1:Q93,IF(ExFlg=0,6,14),FALSE)+Sens -> 1.045 | P3: 1 | Q3: =VLOOKUP(A3,Trends!A1:Q93,IF(ExFlg=0,8,16),FALSE)+Sens -> 1.085 | R3: 1 | T3: =IF(B3<65,D3*K3,D3*M3) -> 2497.59371 | U3: =IF(ExFlg=0,E3*Trends!T3,E3*Trends!X3) -> 7044.48 | V3: =T3-U3 -> -4546.88629 | X3: =IF(B3<65,G3*P3,G3*R3) -> 2039.208584 | Y3: =IF(ExFlg=0,H3*Trends!V3,H3*Trends!Z3) -> 6841.56 | Z3: =X3-Y3 -> -4802.351416 | AB3: =(1-PctUMP)*V3+PctUMP*Z3 -> -4802.351416 | AD3: =IF(B3<71,VLOOKUP(B3,Lookups!A:F,6),"") -> 0 | AE3: =IF(B3<71,VLOOKUP(Active!B3,Lookups!A:G,7),"") -> 0 | AF3: =IF(B3<71,PCTMALE*AD3+(1-PCTMALE)*AE3,"") -> 0 | AG3: =IF(B3<70,VLOOKUP(CE3,Lookups!$Q$3:$S$53,2),"") -> 0.262397 | AH3: =IF(B3<70,VLOOKUP(CE3,Lookups!$Q$3:$S$53,3),"") -> 0.262397 | AI3: =IF(B3<55,PCTMALE*AG3+(1-PCTMALE)*AH3,"") -> 0.262397 | AJ3: =IF(B3<70,VLOOKUP(B3,Lookups!A:M,12),"") -> 0 | AK3: =IF(B3<70,VLOOKUP(B3,Lookups!A:M,13),"") -> 0 | AL3: =IF(B3<70,PCTMALE*AJ3+(1-PCTMALE)*AK3,"") -> 0 | AM3: =IF(B3<70,VLOOKUP(B3,Lookups!A:H,8)*(1-VLOOKUP(B3,Lookups!$DY$3:$EA$103,2))^(A3-$A$3),"") -> 0.000316413765 | AN3: =IF(B3<70,VLOOKUP(B3,Lookups!A:I,9)*(1-VLOOKUP(B3,Lookups!$DY$3:$EA$103,3))^(A3-$A$3),"") -> 0.0001816272367 | AO3: =IF(AM3<>"",PCTMALE*AM3+(1-PCTMALE)*AN3,"") -> 0.0001816272367 | AP3: =IF(B3<71,SUM(AF3,AI3,AL3,AO3),"") -> 0.2625786272 | AQ3: 1 | AR3: 1 | AT3: =IF(BA3>=$B$3,VLOOKUP(BA3,Lookups!A:H,8)*(1-VLOOKUP(BA3,Lookups!DY:EA,2))^(BA3-$B$3),"") ->  | AU3: =IF(BA3>=$B$3,VLOOKUP(BA3,Lookups!A:I,9)*(1-VLOOKUP(BA3,Lookups!DY:EA,3))^(BA3-$B$3),"") ->  | AV3: =IFERROR(PCTMALE*AT3+(1-PCTMALE)*AU3,"") ->  | CE3: =MS -> 0.01 | CF3: =VLOOKUP(CG3,Lookups!$A$3:$F$53,6) -> 0.02 | CG3: 55 | CH3: 1 | CI3: =CF3*CG3*CH3 -> 1.1 | CK3: =VLOOKUP(ROUND(CI19,0),B3:AR93,42) -> 0.1371290246 | CL3: =MAX(CE1+CI19-B3,MS) -> 42.45468931 | CM3: =Implicit/RetMS -> 0 | CN3: =Explicit/RetMS -> 0 | CO3: =SUM(CM3:CN3) -> 0 | CP3: =CM3*MS -> 0 | CQ3: =CN3*MS -> 0 | CR3: =CP3+CQ3 -> 0
A4: =1+A3 -> 2016 | B4: 21 | D4: =VLOOKUP(B4,Lookups!A:B,2) -> 2893.763315 | E4: =VLOOKUP(B4,Lookups!A:C,3) -> 7044.48 | G4: =VLOOKUP(B4,Lookups!A:D,4) -> 2362.668893 | H4: =VLOOKUP(B4,Lookups!A:E,5) -> 6841.56 | J4: =VLOOKUP(A4,Trends!A2:Q94,IF(ExFlg=0,2,10),FALSE)+Sens -> 1.063 | K4: =K3*J3 -> 1.071 | L4: =VLOOKUP(A4,Trends!A2:Q94,IF(ExFlg=0,4,12),FALSE)+Sens -> 1.088 | M4: =M3*L3 -> 1.084 | O4: =VLOOKUP(A4,Trends!A2:Q94,IF(ExFlg=0,6,14),FALSE)+Sens -> 1.037 | P4: =P3*O3 -> 1.045 | Q4: =VLOOKUP(A4,Trends!A2:Q94,IF(ExFlg=0,8,16),FALSE)+Sens -> 1.085 | R4: =R3*Q3 -> 1.085 | T4: =IF(B4<65,D4*K4,D4*M4) -> 3099.22051 | U4: =IF(ExFlg=0,E4*Trends!T4,E4*Trends!X4) -> 7833.46176 | V4: -4734.24125 | X4: 2468.988993 | Y4: =IF(ExFlg=0,H4*Trends!V4,H4*Trends!Z4) -> 7806.21996 | Z4: =X4-Y4 -> -5337.230967 | AB4: -5337.230967 | AD4: =IF(B4<71,VLOOKUP(B4,Lookups!A:F,6),"") -> 0 | AE4: =IF(B4<71,VLOOKUP(Active!B4,Lookups!A:G,7),"") -> 0 | AF4: 0 | AG4: =IF(B4<70,VLOOKUP(CE4,Lookups!$Q$3:$S$53,2),"") -> 0.154534 | AH4: =IF(B4<70,VLOOKUP(CE4,Lookups!$Q$3:$S$53,3),"") -> 0.167747 | AI4: 0.167747 | AJ4: =IF(B4<70,VLOOKUP(B4,Lookups!A:M,12),"") -> 0 | AK4: =IF(B4<70,VLOOKUP(B4,Lookups!A:M,13),"") -> 0 | AL4: 0 | AM4: =IF(B4<70,VLOOKUP(B4,Lookups!A:H,8)*(1-VLOOKUP(B4,Lookups!$DY$3:$EA$103,2))^(A4-$A$3),"") -> 0.0003288074341 | AN4: =IF(B4<70,VLOOKUP(B4,Lookups!A:I,9)*(1-VLOOKUP(B4,Lookups!$DY$3:$EA$103,3))^(A4-$A$3),"") -> 0.00018203542 | AO4: 0.00018203542 | AP4: =IF(B4<71,SUM(AF4,AI4,AL4,AO4),"") -> 0.1679290354 | AQ4: =IF(B4<71,AQ3*(1-AP3),"") -> 0.7374213728 | AR4: =IF(B4<71,AR3/(1+IntRt),"") -> 0.9615384615 | AT4: =IF(BA4>=$B$3,VLOOKUP(BA4,Lookups!A:H,8)*(1-VLOOKUP(BA4,Lookups!DY:EA,2))^(BA4-$B$3),"") ->  | AU4: =IF(BA4>=$B$3,VLOOKUP(BA4,Lookups!A:I,9)*(1-VLOOKUP(BA4,Lookups!DY:EA,3))^(BA4-$B$3),"") ->  | CE4: =1+CE3 -> 1.01 | CF4: =VLOOKUP(CG4,Lookups!$A$3:$F$53,6) -> 0.03 | CG4: =1+CG3 -> 56 | CH4: =CH3*(1-CF3) -> 0.98 | CI4: =CF4*CG4*CH4 -> 1.6464 | CO4: =CO3*IntRt -> 0 | CP4: =Inactive!AK98 -> 0 | CQ4: =Inactive!AL98 -> 0 | CR4: =CP4+CQ4 -> 0
A5: 2017 | B5: 22 | D5: =VLOOKUP(B5,Lookups!A:B,2) -> 3355.194159 | E5: =VLOOKUP(B5,Lookups!A:C,3) -> 7044.48 | G5: =VLOOKUP(B5,Lookups!A:D,4) -> 2739.412997 | H5: =VLOOKUP(B5,Lookups!A:E,5) -> 6841.56 | J5: =VLOOKUP(A5,Trends!A3:Q95,IF(ExFlg=0,2,10),FALSE)+Sens -> 1.065 | K5: =K4*J4 -> 1.138473 | L5: =VLOOKUP(A5,Trends!A3:Q95,IF(ExFlg=0,4,12),FALSE)+Sens -> 1.084 | M5: =M4*L4 -> 1.179392 | O5: =VLOOKUP(A5,Trends!A3:Q95,IF(ExFlg=0,6,14),FALSE)+Sens -> 1.046 | P5: =P4*O4 -> 1.083665 | Q5: =VLOOKUP(A5,Trends!A3:Q95,IF(ExFlg=0,8,16),FALSE)+Sens -> 1.085 | R5: =R4*Q4 -> 1.177225 | T5: =IF(B5<65,D5*K5,D5*M5) -> 3819.79796 | U5: =IF(ExFlg=0,E5*Trends!T5,E5*Trends!X5) -> 9180.817183 | V5: -5361.019222 | X5: 2968.605986 | Y5: =IF(ExFlg=0,H5*Trends!V5,H5*Trends!Z5) -> 8852.253435 | Z5: -5883.647449 | AB5: -5883.647449 | AD5: =IF(B5<71,VLOOKUP(B5,Lookups!A:F,6),"") -> 0 | AE5: =IF(B5<71,VLOOKUP(Active!B5,Lookups!A:G,7),"") -> 0 | AF5: 0 | AG5: =IF(B5<70,VLOOKUP(CE5,Lookups!$Q$3:$S$53,2),"") -> 0.100683 | AH5: =IF(B5<70,VLOOKUP(CE5,Lookups!$Q$3:$S$53,3),"") -> 0.117007 | AI5: 0.117007 | AJ5: =IF(B5<70,VLOOKUP(B5,Lookups!A:M,12),"") -> 0 | AK5: =IF(B5<70,VLOOKUP(B5,Lookups!A:M,13),"") -> 0 | AL5: 0 | AM5: =IF(B5<70,VLOOKUP(B5,Lookups!A:H,8)*(1-VLOOKUP(B5,Lookups!$DY$3:$EA$103,2))^(A5-$A$3),"") -> 0.0003392234818 | AN5: =IF(B5<70,VLOOKUP(B5,Lookups!A:I,9)*(1-VLOOKUP(B5,Lookups!$DY$3:$EA$103,3))^(A5-$A$3),"") -> 0.0001824395196 | AO5: 0.0001824395196 | AP5: 0.1171894395 | AQ5: =IF(B5<71,AQ4*(1-AP4),"") -> 0.6135869129 | AR5: 0.924556213 | AT5: =IF(BA5>=$B$3,VLOOKUP(BA5,Lookups!A:H,8)*(1-VLOOKUP(BA5,Lookups!DY:EA,2))^(BA5-$B$3),"") ->  | AU5: =IF(BA5>=$B$3,VLOOKUP(BA5,Lookups!A:I,9)*(1-VLOOKUP(BA5,Lookups!DY:EA,3))^(BA5-$B$3),"") ->  | CE5: =1+CE4 -> 2.01 | CF5: =VLOOKUP(CG5,Lookups!$A$3:$F$53,6) -> 0.04 | CG5: =1+CG4 -> 57 | CH5: =CH4*(1-CF4) -> 0.9506 | CI5: 2.167368 | CO5: =CO3+CO4 -> 0 | CP5: =SUM(CP3:CP4) -> 0 | CQ5: =SUM(CQ3:CQ4) -> 0 | CR5: =CR3+CR4 -> 0
A6: 2018 | B6: 23 | D6: =VLOOKUP(B6,Lookups!A:B,2) -> 3892.979692 | E6: =VLOOKUP(B6,Lookups!A:C,3) -> 7044.48 | G6: =VLOOKUP(B6,Lookups!A:D,4) -> 3178.498356 | H6: =VLOOKUP(B6,Lookups!A:E,5) -> 6841.56 | J6: =VLOOKUP(A6,Trends!A4:Q96,IF(ExFlg=0,2,10),FALSE)+Sens -> 1.055 | K6: 1.212473745 | L6: =VLOOKUP(A6,Trends!A4:Q96,IF(ExFlg=0,4,12),FALSE)+Sens -> 1.054 | M6: 1.278460928 | O6: =VLOOKUP(A6,Trends!A4:Q96,IF(ExFlg=0,6,14),FALSE)+Sens -> 1.055 | P6: 1.13351359 | Q6: =VLOOKUP(A6,Trends!A4:Q96,IF(ExFlg=0,8,16),FALSE)+Sens -> 1.055 | R6: 1.277289125 | T6: =IF(B6<65,D6*K6,D6*M6) -> 4720.135666 | U6: =IF(ExFlg=0,E6*Trends!T6,E6*Trends!X6) -> 9952.005826 | V6: -5231.87016 | X6: 3602.871083 | Y6: =IF(ExFlg=0,H6*Trends!V6,H6*Trends!Z6) -> 9604.694977 | Z6: -6001.823894 | AB6: -6001.823894 | AD6: =IF(B6<71,VLOOKUP(B6,Lookups!A:F,6),"") -> 0 | AE6: =IF(B6<71,VLOOKUP(Active!B6,Lookups!A:G,7),"") -> 0 | AF6: 0 | AG6: =IF(B6<70,VLOOKUP(CE6,Lookups!$Q$3:$S$53,2),"") -> 0.075236 | AH6: =IF(B6<70,VLOOKUP(CE6,Lookups!$Q$3:$S$53,3),"") -> 0.092904 | AI6: 0.092904 | AJ6: =IF(B6<70,VLOOKUP(B6,Lookups!A:M,12),"") -> 1.7e-05 | AK6: =IF(B6<70,VLOOKUP(B6,Lookups!A:M,13),"") -> 0 | AL6: 0 | AM6: =IF(B6<70,VLOOKUP(B6,Lookups!A:H,8)*(1-VLOOKUP(B6,Lookups!$DY$3:$EA$103,2))^(A6-$A$3),"") -> 0.0009942023889 | AN6: =IF(B6<70,VLOOKUP(B6,Lookups!A:I,9)*(1-VLOOKUP(B6,Lookups!$DY$3:$EA$103,3))^(A6-$A$3),"") -> 0.0003953629116 | AO6: 0.0003953629116 | AP6: 0.09329936291 | AQ6: 0.5416810065 | AR6: 0.8889963587 | AT6: =IF(BA6>=$B$3,VLOOKUP(BA6,Lookups!A:H,8)*(1-VLOOKUP(BA6,Lookups!DY:EA,2))^(BA6-$B$3),"") ->  | AU6: =IF(BA6>=$B$3,VLOOKUP(BA6,Lookups!A:I,9)*(1-VLOOKUP(BA6,Lookups!DY:EA,3))^(BA6-$B$3),"") ->  | CE6: 3.01 | CF6: =VLOOKUP(CG6,Lookups!$A$3:$F$53,6) -> 0.05 | CG6: 58 | CH6: 0.912576 | CI6: 2.6464704
A7: 2019 | B7: 24 | D7: =VLOOKUP(B7,Lookups!A:B,2) -> 4520.145861 | E7: =VLOOKUP(B7,Lookups!A:C,3) -> 7044.48 | G7: =VLOOKUP(B7,Lookups!A:D,4) -> 3690.560257 | H7: =VLOOKUP(B7,Lookups!A:E,5) -> 6841.56 | J7: =VLOOKUP(A7,Trends!A5:Q97,IF(ExFlg=0,2,10),FALSE)+Sens -> 1.055 | K7: 1.279159801 | L7: =VLOOKUP(A7,Trends!A5:Q97,IF(ExFlg=0,4,12),FALSE)+Sens -> 1.054 | M7: 1.347497818 | O7: =VLOOKUP(A7,Trends!A5:Q97,IF(ExFlg=0,6,14),FALSE)+Sens -> 1.055 | P7: 1.195856837 | Q7: =VLOOKUP(A7,Trends!A5:Q97,IF(ExFlg=0,8,16),FALSE)+Sens -> 1.055 | R7: 1.347540027 | T7: 5781.98888 | U7: =IF(ExFlg=0,E7*Trends!T7,E7*Trends!X7) -> 10489.41414 | V7: -4707.42526 | X7: 4413.381717 | Y7: =IF(ExFlg=0,H7*Trends!V7,H7*Trends!Z7) -> 10132.9532 | Z7: -5719.571483 | AB7: -5719.571483 | AD7: =IF(B7<71,VLOOKUP(B7,Lookups!A:F,6),"") -> 0 | AE7: =IF(B7<71,VLOOKUP(Active!B7,Lookups!A:G,7),"") -> 0 | AF7: 0 | AG7: =IF(B7<70,VLOOKUP(CE7,Lookups!$Q$3:$S$53,2),"") -> 0.063052 | AH7: =IF(B7<70,VLOOKUP(CE7,Lookups!$Q$3:$S$53,3),"") -> 0.076024 | AI7: 0.076024 | AJ7: =IF(B7<70,VLOOKUP(B7,Lookups!A:M,12),"") -> 3.5e-05 | AK7: =IF(B7<70,VLOOKUP(B7,Lookups!A:M,13),"") -> 0 | AL7: 0 | AM7: =IF(B7<70,VLOOKUP(B7,Lookups!A:H,8)*(1-VLOOKUP(B7,Lookups!$DY$3:$EA$103,2))^(A7-$A$3),"") -> 0.001617769425 | AN7: =IF(B7<70,VLOOKUP(B7,Lookups!A:I,9)*(1-VLOOKUP(B7,Lookups!$DY$3:$EA$103,3))^(A7-$A$3),"") -> 0.0005995489103 | AO7: 0.0005995489103 | AP7: 0.07662354891 | AQ7: 0.4911425137 | AR7: 0.854804191 | AT7: =IF(BA7>=$B$3,VLOOKUP(BA7,Lookups!A:H,8)*(1-VLOOKUP(BA7,Lookups!DY:EA,2))^(BA7-$B$3),"") ->  | AU7: =IF(BA7>=$B$3,VLOOKUP(BA7,Lookups!A:I,9)*(1-VLOOKUP(BA7,Lookups!DY:EA,3))^(BA7-$B$3),"") ->  | CE7: 4.01 | CF7: =VLOOKUP(CG7,Lookups!$A$3:$F$53,6) -> 0.06 | CG7: 59 | CH7: 0.8669472 | CI7: 3.068993088
A8: 2020 | B8: 25 | D8: =VLOOKUP(B8,Lookups!A:B,2) -> 5251.993951 | E8: =VLOOKUP(B8,Lookups!A:C,3) -> 7044.48 | G8: =VLOOKUP(B8,Lookups!A:D,4) -> 4288.091726 | H8: =VLOOKUP(B8,Lookups!A:E,5) -> 6841.56 | J8: =VLOOKUP(A8,Trends!A6:Q98,IF(ExFlg=0,2,10),FALSE)+Sens -> 1.057 | K8: 1.34951359 | L8: =VLOOKUP(A8,Trends!A6:Q98,IF(ExFlg=0,4,12),FALSE)+Sens -> 1.055 | M8: 1.4202627 | O8: =VLOOKUP(A8,Trends!A6:Q98,IF(ExFlg=0,6,14),FALSE)+Sens -> 1.056 | P8: 1.261628964 | Q8: =VLOOKUP(A8,Trends!A6:Q98,IF(ExFlg=0,8,16),FALSE)+Sens -> 1.055 | R8: 1.421654728 | T8: 7087.637212 | U8: =IF(ExFlg=0,E8*Trends!T8,E8*Trends!X8) -> 11055.8425 | V8: -3968.205292 | X8: 5409.98072 | Y8: =IF(ExFlg=0,H8*Trends!V8,H8*Trends!Z8) -> 10690.26563 | Z8: -5280.284907 | AB8: -5280.284907 | AD8: =IF(B8<71,VLOOKUP(B8,Lookups!A:F,6),"") -> 0 | AE8: =IF(B8<71,VLOOKUP(Active!B8,Lookups!A:G,7),"") -> 0 | AF8: 0 | AG8: =IF(B8<70,VLOOKUP(CE8,Lookups!$Q$3:$S$53,2),"") -> 0.054443 | AH8: =IF(B8<70,VLOOKUP(CE8,Lookups!$Q$3:$S$53,3),"") -> 0.066544 | AI8: 0.066544 | AJ8: =IF(B8<70,VLOOKUP(B8,Lookups!A:M,12),"") -> 5.2e-05 | AK8: =IF(B8<70,VLOOKUP(B8,Lookups!A:M,13),"") -> 0 | AL8: 0 | AM8: =IF(B8<70,VLOOKUP(B8,Lookups!A:H,8)*(1-VLOOKUP(B8,Lookups!$DY$3:$EA$103,2))^(A8-$A$3),"") -> 0.002154731389 | AN8: =IF(B8<70,VLOOKUP(B8,Lookups!A:I,9)*(1-VLOOKUP(B8,Lookups!$DY$3:$EA$103,3))^(A8-$A$3),"") -> 0.0007773822781 | AO8: 0.0007773822781 | AP8: 0.06732138228 | AQ8: 0.4535094313 | AR8: 0.8219271068 | AT8: =IF(BA8>=$B$3,VLOOKUP(BA8,Lookups!A:H,8)*(1-VLOOKUP(BA8,Lookups!DY:EA,2))^(BA8-$B$3),"") ->  | AU8: =IF(BA8>=$B$3,VLOOKUP(BA8,Lookups!A:I,9)*(1-VLOOKUP(BA8,Lookups!DY:EA,3))^(BA8-$B$3),"") ->  | CE8: 5.01 | CF8: =VLOOKUP(CG8,Lookups!$A$3:$F$53,6) -> 0.07 | CG8: 60 | CH8: 0.814930368 | CI8: 3.422707546
A9: 2021 | B9: 26 | D9: =VLOOKUP(B9,Lookups!A:B,2) -> 6106.505025 | E9: =VLOOKUP(B9,Lookups!A:C,3) -> 7044.48 | G9: =VLOOKUP(B9,Lookups!A:D,4) -> 4985.773748 | H9: =VLOOKUP(B9,Lookups!A:E,5) -> 6841.56 | J9: =VLOOKUP(A9,Trends!A7:Q99,IF(ExFlg=0,2,10),FALSE)+Sens -> 1.057 | K9: 1.426435865 | L9: =VLOOKUP(A9,Trends!A7:Q99,IF(ExFlg=0,4,12),FALSE)+Sens -> 1.056 | M9: 1.498377149 | O9: =VLOOKUP(A9,Trends!A7:Q99,IF(ExFlg=0,6,14),FALSE)+Sens -> 1.056 | P9: 1.332280185 | Q9: =VLOOKUP(A9,Trends!A7:Q99,IF(ExFlg=0,8,16),FALSE)+Sens -> 1.056 | R9: 1.499845738 | T9: 8710.537775 | U9: =IF(ExFlg=0,E9*Trends!T9,E9*Trends!X9) -> 11663.91384 | V9: -2953.376067 | X9: 6642.447574 | Y9: =IF(ExFlg=0,H9*Trends!V9,H9*Trends!Z9) -> 11278.23024 | Z9: -4635.782662 | AB9: -4635.782662 | AD9: =IF(B9<71,VLOOKUP(B9,Lookups!A:F,6),"") -> 0 | AE9: =IF(B9<71,VLOOKUP(Active!B9,Lookups!A:G,7),"") -> 0 | AF9: 0 | AG9: =IF(B9<70,VLOOKUP(CE9,Lookups!$Q$3:$S$53,2),"") -> 0.044874 | AH9: =IF(B9<70,VLOOKUP(CE9,Lookups!$Q$3:$S$53,3),"") -> 0.057856 | AI9: 0.057856 | AJ9: =IF(B9<70,VLOOKUP(B9,Lookups!A:M,12),"") -> 6.9e-05 | AK9: =IF(B9<70,VLOOKUP(B9,Lookups!A:M,13),"") -> 0 | AL9: 0 | AM9: =IF(B9<70,VLOOKUP(B9,Lookups!A:H,8)*(1-VLOOKUP(B9,Lookups!$DY$3:$EA$103,2))^(A9-$A$3),"") -> 0.002648703456 | AN9: =IF(B9<70,VLOOKUP(B9,Lookups!A:I,9)*(1-VLOOKUP(B9,Lookups!$DY$3:$EA$103,3))^(A9-$A$3),"") -> 0.0009435076917 | AO9: 0.0009435076917 | AP9: 0.05879950769 | AQ9: 0.4229785495 | AR9: 0.7903145257 | AT9: =IF(BA9>=$B$3,VLOOKUP(BA9,Lookups!A:H,8)*(1-VLOOKUP(BA9,Lookups!DY:EA,2))^(BA9-$B$3),"") ->  | AU9: =IF(BA9>=$B$3,VLOOKUP(BA9,Lookups!A:I,9)*(1-VLOOKUP(BA9,Lookups!DY:EA,3))^(BA9-$B$3),"") ->  | CE9: 6.01 | CF9: =VLOOKUP(CG9,Lookups!$A$3:$F$53,6) -> 0.08 | CG9: 61 | CH9: 0.7578852422 | CI9: 3.698479982
A10: 2022 | B10: 27 | D10: =VLOOKUP(B10,Lookups!A:B,2) -> 6109.98884 | E10: =VLOOKUP(B10,Lookups!A:C,3) -> 7044.48 | G10: =VLOOKUP(B10,Lookups!A:D,4) -> 4988.618201 | H10: =VLOOKUP(B10,Lookups!A:E,5) -> 6841.56 | J10: =VLOOKUP(A10,Trends!A8:Q100,IF(ExFlg=0,2,10),FALSE)+Sens -> 1.058 | K10: 1.507742709 | L10: =VLOOKUP(A10,Trends!A8:Q100,IF(ExFlg=0,4,12),FALSE)+Sens -> 1.056 | M10: 1.582286269 | O10: =VLOOKUP(A10,Trends!A8:Q100,IF(ExFlg=0,6,14),FALSE)+Sens -> 1.057 | P10: 1.406887876 | Q10: =VLOOKUP(A10,Trends!A8:Q100,IF(ExFlg=0,8,16),FALSE)+Sens -> 1.056 | R10: 1.5838371 | T10: 9212.291126 | U10: =IF(ExFlg=0,E10*Trends!T10,E10*Trends!X10) -> 12317.09302 | V10: -3104.801891 | X10: 7018.426464 | Y10: =IF(ExFlg=0,H10*Trends!V10,H10*Trends!Z10) -> 11909.81113 | Z10: -4891.384665 | AB10: -4891.384665 | AD10: =IF(B10<71,VLOOKUP(B10,Lookups!A:F,6),"") -> 0 | AE10: =IF(B10<71,VLOOKUP(Active!B10,Lookups!A:G,7),"") -> 0 | AF10: 0 | AG10: =IF(B10<70,VLOOKUP(CE10,Lookups!$Q$3:$S$53,2),"") -> 0.041778 | AH10: =IF(B10<70,VLOOKUP(CE10,Lookups!$Q$3:$S$53,3),"") -> 0.053301 | AI10: 0.053301 | AJ10: =IF(B10<70,VLOOKUP(B10,Lookups!A:M,12),"") -> 8.6e-05 | AK10: =IF(B10<70,VLOOKUP(B10,Lookups!A:M,13),"") -> 0 | AL10: 0 | AM10: =IF(B10<70,VLOOKUP(B10,Lookups!A:H,8)*(1-VLOOKUP(B10,Lookups!$DY$3:$EA$103,2))^(A10-$A$3),"") -> 0.003094253022 | AN10: =IF(B10<70,VLOOKUP(B10,Lookups!A:I,9)*(1-VLOOKUP(B10,Lookups!$DY$3:$EA$103,3))^(A10-$A$3),"") -> 0.001093826134 | AO10: 0.001093826134 | AP10: 0.05439482613 | AQ10: 0.398107619 | AR10: 0.7599178132 | AT10: =IF(BA10>=$B$3,VLOOKUP(BA10,Lookups!A:H,8)*(1-VLOOKUP(BA10,Lookups!DY:EA,2))^(BA10-$B$3),"") ->  | AU10: =IF(BA10>=$B$3,VLOOKUP(BA10,Lookups!A:I,9)*(1-VLOOKUP(BA10,Lookups!DY:EA,3))^(BA10-$B$3),"") ->  | CE10: 7.01 | CF10: =VLOOKUP(CG10,Lookups!$A$3:$F$53,6) -> 0.24 | CG10: 62 | CH10: 0.6972544229 | CI10: 10.37514581
A11: 2023 | B11: 28 | D11: =VLOOKUP(B11,Lookups!A:B,2) -> 6119.86067 | E11: =VLOOKUP(B11,Lookups!A:C,3) -> 7044.48 | G11: =VLOOKUP(B11,Lookups!A:D,4) -> 4996.678272 | H11: =VLOOKUP(B11,Lookups!A:E,5) -> 6841.56 | J11: =VLOOKUP(A11,Trends!A9:Q101,IF(ExFlg=0,2,10),FALSE)+Sens -> 1.058 | K11: 1.595191786 | L11: =VLOOKUP(A11,Trends!A9:Q101,IF(ExFlg=0,4,12),FALSE)+Sens -> 1.056 | M11: 1.6708943 | O11: =VLOOKUP(A11,Trends!A9:Q101,IF(ExFlg=0,6,14),FALSE)+Sens -> 1.057 | P11: 1.487080485 | Q11: =VLOOKUP(A11,Trends!A9:Q101,IF(ExFlg=0,8,16),FALSE)+Sens -> 1.057 | R11: 1.672531977 | T11: 9762.351473 | U11: =IF(ExFlg=0,E11*Trends!T11,E11*Trends!X11) -> 13006.85023 | V11: -3244.498753 | X11: 7430.462747 | Y11: =IF(ExFlg=0,H11*Trends!V11,H11*Trends!Z11) -> 12576.76055 | Z11: -5146.297805 | AB11: -5146.297805 | AD11: =IF(B11<71,VLOOKUP(B11,Lookups!A:F,6),"") -> 0 | AE11: =IF(B11<71,VLOOKUP(Active!B11,Lookups!A:G,7),"") -> 0 | AF11: 0 | AG11: =IF(B11<70,VLOOKUP(CE11,Lookups!$Q$3:$S$53,2),"") -> 0.038895 | AH11: =IF(B11<70,VLOOKUP(CE11,Lookups!$Q$3:$S$53,3),"") -> 0.049105 | AI11: 0.049105 | AJ11: =IF(B11<70,VLOOKUP(B11,Lookups!A:M,12),"") -> 9.6e-05 | AK11: =IF(B11<70,VLOOKUP(B11,Lookups!A:M,13),"") -> 1.9e-05 | AL11: 1.9e-05 | AM11: =IF(B11<70,VLOOKUP(B11,Lookups!A:H,8)*(1-VLOOKUP(B11,Lookups!$DY$3:$EA$103,2))^(A11-$A$3),"") -> 0.00379111115 | AN11: =IF(B11<70,VLOOKUP(B11,Lookups!A:I,9)*(1-VLOOKUP(B11,Lookups!$DY$3:$EA$103,3))^(A11-$A$3),"") -> 0.00132677174 | AO11: 0.00132677174 | AP11: 0.05045077174 | AQ11: 0.3764526243 | AR11: 0.730690205 | AT11: =IF(BA11>=$B$3,VLOOKUP(BA11,Lookups!A:H,8)*(1-VLOOKUP(BA11,Lookups!DY:EA,2))^(BA11-$B$3),"") ->  | AU11: =IF(BA11>=$B$3,VLOOKUP(BA11,Lookups!A:I,9)*(1-VLOOKUP(BA11,Lookups!DY:EA,3))^(BA11-$B$3),"") ->  | CE11: 8.01 | CF11: =VLOOKUP(CG11,Lookups!$A$3:$F$53,6) -> 0.22 | CG11: 63 | CH11: 0.5299133614 | CI11: 7.344599189
A12: 2024 | B12: 29 | D12: =VLOOKUP(B12,Lookups!A:B,2) -> 6136.273592 | E12: =VLOOKUP(B12,Lookups!A:C,3) -> 7044.48 | G12: =VLOOKUP(B12,Lookups!A:D,4) -> 5010.078944 | H12: =VLOOKUP(B12,Lookups!A:E,5) -> 6841.56 | J12: =VLOOKUP(A12,Trends!A10:Q102,IF(ExFlg=0,2,10),FALSE)+Sens -> 1.059 | K12: 1.68771291 | L12: =VLOOKUP(A12,Trends!A10:Q102,IF(ExFlg=0,4,12),FALSE)+Sens -> 1.057 | M12: 1.764464381 | O12: =VLOOKUP(A12,Trends!A10:Q102,IF(ExFlg=0,6,14),FALSE)+Sens -> 1.058 | P12: 1.571844072 | Q12: =VLOOKUP(A12,Trends!A10:Q102,IF(ExFlg=0,8,16),FALSE)+Sens -> 1.057 | R12: 1.7678663 | T12: 10356.26816 | U12: =IF(ExFlg=0,E12*Trends!T12,E12*Trends!X12) -> 13735.23384 | V12: -3378.965681 | X12: 7875.062891 | Y12: =IF(ExFlg=0,H12*Trends!V12,H12*Trends!Z12) -> 13293.6359 | Z12: -5418.573013 | AB12: -5418.573013 | AD12: =IF(B12<71,VLOOKUP(B12,Lookups!A:F,6),"") -> 0 | AE12: =IF(B12<71,VLOOKUP(Active!B12,Lookups!A:G,7),"") -> 0 | AF12: 0 | AG12: =IF(B12<70,VLOOKUP(CE12,Lookups!$Q$3:$S$53,2),"") -> 0.036211 | AH12: =IF(B12<70,VLOOKUP(CE12,Lookups!$Q$3:$S$53,3),"") -> 0.045239 | AI12: 0.045239 | AJ12: =IF(B12<70,VLOOKUP(B12,Lookups!A:M,12),"") -> 0.000106 | AK12: =IF(B12<70,VLOOKUP(B12,Lookups!A:M,13),"") -> 3.7e-05 | AL12: 3.7e-05 | AM12: =IF(B12<70,VLOOKUP(B12,Lookups!A:H,8)*(1-VLOOKUP(B12,Lookups!$DY$3:$EA$103,2))^(A12-$A$3),"") -> 0.00433540764 | AN12: =IF(B12<70,VLOOKUP(B12,Lookups!A:I,9)*(1-VLOOKUP(B12,Lookups!$DY$3:$EA$103,3))^(A12-$A$3),"") -> 0.001510099196 | AO12: 0.001510099196 | AP12: 0.0467860992 | AQ12: 0.3574602989 | AR12: 0.7025867356 | AT12: =IF(BA12>=$B$3,VLOOKUP(BA12,Lookups!A:H,8)*(1-VLOOKUP(BA12,Lookups!DY:EA,2))^(BA12-$B$3),"") -> 0.004896782456 | AU12: =IF(BA12>=$B$3,VLOOKUP(BA12,Lookups!A:I,9)*(1-VLOOKUP(BA12,Lookups!DY:EA,3))^(BA12-$B$3),"") -> 0.002736792288 | AV12: 0.002736792288 | AW12: =IF(AV11="",1,AW11*(1-AV11)) -> 1 | AX12: =IF(AV11="",1,AX11/(1+IntRt)) -> 1 | AY12: =IF(AV12="",1,ROUND((13/24)+(11/24)*(1/(1+IntRt))*(1-AV12),6)) -> 0.981166 | BA12: 55 | BB12: =IF(BA12>=$B$3,VLOOKUP(BA12,$B$3:$AB$93,27),"") -> -4589.753083 | BC12: =IF(BB12<>"",BB12*AX12*AY12*AW12*0.5,"") -> -2251.654837 | BN12: 0 | CE12: 9.01 | CF12: =VLOOKUP(CG12,Lookups!$A$3:$F$53,6) -> 0.56 | CG12: 64 | CH12: 0.4133324219 | CI12: 14.813834
A13: 2025 | B13: 30 | D13: =VLOOKUP(B13,Lookups!A:B,2) -> 6159.390862 | E13: =VLOOKUP(B13,Lookups!A:C,3) -> 7044.48 | G13: =VLOOKUP(B13,Lookups!A:D,4) -> 5028.953512 | H13: =VLOOKUP(B13,Lookups!A:E,5) -> 6841.56 | J13: =VLOOKUP(A13,Trends!A11:Q103,IF(ExFlg=0,2,10),FALSE)+Sens -> 1.059 | K13: 1.787287971 | L13: =VLOOKUP(A13,Trends!A11:Q103,IF(ExFlg=0,4,12),FALSE)+Sens -> 1.057 | M13: 1.865038851 | O13: =VLOOKUP(A13,Trends!A11:Q103,IF(ExFlg=0,6,14),FALSE)+Sens -> 1.058 | P13: 1.663011029 | Q13: =VLOOKUP(A13,Trends!A11:Q103,IF(ExFlg=0,8,16),FALSE)+Sens -> 1.057 | R13: 1.868634679 | T13: 11008.6052 | U13: =IF(ExFlg=0,E13*Trends!T13,E13*Trends!X13) -> 14518.14217 | V13: -3509.53697 | X13: 8363.205152 | Y13: =IF(ExFlg=0,H13*Trends!V13,H13*Trends!Z13) -> 14051.37315 | Z13: -5688.167998 | AB13: -5688.167998 | AD13: =IF(B13<71,VLOOKUP(B13,Lookups!A:F,6),"") -> 0 | AE13: =IF(B13<71,VLOOKUP(Active!B13,Lookups!A:G,7),"") -> 0 | AF13: 0 | AG13: =IF(B13<70,VLOOKUP(CE13,Lookups!$Q$3:$S$53,2),"") -> 0.033712 | AH13: =IF(B13<70,VLOOKUP(CE13,Lookups!$Q$3:$S$53,3),"") -> 0.041677 | AI13: 0.041677 | AJ13: =IF(B13<70,VLOOKUP(B13,Lookups!A:M,12),"") -> 0.000115 | AK13: =IF(B13<70,VLOOKUP(B13,Lookups!A:M,13),"") -> 5.6e-05 | AL13: 5.6e-05 | AM13: =IF(B13<70,VLOOKUP(B13,Lookups!A:H,8)*(1-VLOOKUP(B13,Lookups!$DY$3:$EA$103,2))^(A13-$A$3),"") -> 0.004765440131 | AN13: =IF(B13<70,VLOOKUP(B13,Lookups!A:I,9)*(1-VLOOKUP(B13,Lookups!$DY$3:$EA$103,3))^(A13-$A$3),"") -> 0.00165467593 | AO13: 0.00165467593 | AP13: 0.04338767593 | AQ13: 0.3407361259 | AR13: 0.6755641688 | AT13: =IF(BA13>=$B$3,VLOOKUP(BA13,Lookups!A:H,8)*(1-VLOOKUP(BA13,Lookups!DY:EA,2))^(BA13-$B$3),"") -> 0.005426323194 | AU13: =IF(BA13>=$B$3,VLOOKUP(BA13,Lookups!A:I,9)*(1-VLOOKUP(BA13,Lookups!DY:EA,3))^(BA13-$B$3),"") -> 0.002892041136 | AV13: 0.002892041136 | AW13: 0.9972632077 | AX13: 0.9615384615 | AY13: 0.981097 | BA13: =1+BA12 -> 56 | BB13: =IF(BA13>=$B$3,VLOOKUP(BA13,$B$3:$AB$93,27),"") -> -3662.613645 | BC13: =IF(BB13<>"",BB13*AX13*AY13*AW13,"") -> -3445.716276 | BD13: =IF(BB13<>"",BB13*AW13/$AW$13*AX13/$AX$13*AY13*0.5,"") -> -1796.68963 | BN13: 0 | BO13: 0 | CE13: 10.01 | CF13: =VLOOKUP(CG13,Lookups!$A$3:$F$53,6) -> 0.4 | CG13: 65 | CH13: 0.1818662656 | CI13: 4.728522906
A14: 2026 | B14: 31 | D14: =VLOOKUP(B14,Lookups!A:B,2) -> 6189.386312 | E14: =VLOOKUP(B14,Lookups!A:C,3) -> 7044.48 | G14: =VLOOKUP(B14,Lookups!A:D,4) -> 5053.443903 | H14: =VLOOKUP(B14,Lookups!A:E,5) -> 6841.56 | J14: =VLOOKUP(A14,Trends!A12:Q104,IF(ExFlg=0,2,10),FALSE)+Sens -> 1.06 | K14: 1.892737962 | L14: =VLOOKUP(A14,Trends!A12:Q104,IF(ExFlg=0,4,12),FALSE)+Sens -> 1.057 | M14: 1.971346065 | O14: =VLOOKUP(A14,Trends!A12:Q104,IF(ExFlg=0,6,14),FALSE)+Sens -> 1.059 | P14: 1.759465668 | Q14: =VLOOKUP(A14,Trends!A12:Q104,IF(ExFlg=0,8,16),FALSE)+Sens -> 1.057 | R14: 1.975146856 | T14: 11714.88643 | U14: =IF(ExFlg=0,E14*Trends!T14,E14*Trends!X14) -> 15345.67627 | V14: -3630.789839 | X14: 8891.361053 | Y14: =IF(ExFlg=0,H14*Trends!V14,H14*Trends!Z14) -> 14852.30142 | Z14: -5960.940366 | AB14: -5960.940366 | AD14: =IF(B14<71,VLOOKUP(B14,Lookups!A:F,6),"") -> 0 | AE14: =IF(B14<71,VLOOKUP(Active!B14,Lookups!A:G,7),"") -> 0 | AF14: 0 | AG14: =IF(B14<70,VLOOKUP(CE14,Lookups!$Q$3:$S$53,2),"") -> 0.031386 | AH14: =IF(B14<70,VLOOKUP(CE14,Lookups!$Q$3:$S$53,3),"") -> 0.038396 | AI14: 0.038396 | AJ14: =IF(B14<70,VLOOKUP(B14,Lookups!A:M,12),"") -> 0.000125 | AK14: =IF(B14<70,VLOOKUP(B14,Lookups!A:M,13),"") -> 7.4e-05 | AL14: 7.4e-05 | AM14: =IF(B14<70,VLOOKUP(B14,Lookups!A:H,8)*(1-VLOOKUP(B14,Lookups!$DY$3:$EA$103,2))^(A14-$A$3),"") -> 0.0050605463 | AN14: =IF(B14<70,VLOOKUP(B14,Lookups!A:I,9)*(1-VLOOKUP(B14,Lookups!$DY$3:$EA$103,3))^(A14-$A$3),"") -> 0.001754274288 | AO14: 0.001754274288 | AP14: 0.04022427429 | AQ14: 0.3259523773 | AR14: 0.6495809316 | AT14: =IF(BA14>=$B$3,VLOOKUP(BA14,Lookups!A:H,8)*(1-VLOOKUP(BA14,Lookups!DY:EA,2))^(BA14-$B$3),"") -> 0.005749930517 | AU14: =IF(BA14>=$B$3,VLOOKUP(BA14,Lookups!A:I,9)*(1-VLOOKUP(BA14,Lookups!DY:EA,3))^(BA14-$B$3),"") -> 0.003064868554 | AV14: 0.003064868554 | AW14: 0.9943790815 | AX14: 0.924556213 | AY14: 0.981021 | BA14: =1+BA13 -> 57 | BB14: -1441.22315 | BC14: =IF(BB14<>"",BB14*AX14*AY14*AW14,"") -> -1299.854777 | BD14: =IF(BB14<>"",BB14*AW14/$AW$13*AX14/$AX$13*AY14,"") -> -1355.558851 | BE14: =IF(BB14<>"",BB14*AW14/$AW$14*AX14/$AX$14*AY14*0.5,"") -> -706.9350878 | BN14: 0 | BO14: 0 | BP14: 0 | CE14: 11.01 | CF14: =VLOOKUP(CG14,Lookups!$A$3:$F$53,6) -> 0.24 | CG14: 66 | CH14: 0.1091197594 | CI14: 1.728456988
A15: 2027 | B15: 32 | D15: =VLOOKUP(B15,Lookups!A:B,2) -> 6556.027073 | E15: =VLOOKUP(B15,Lookups!A:C,3) -> 7044.48 | G15: =VLOOKUP(B15,Lookups!A:D,4) -> 5352.794838 | H15: =VLOOKUP(B15,Lookups!A:E,5) -> 6841.56 | J15: =VLOOKUP(A15,Trends!A13:Q105,IF(ExFlg=0,2,10),FALSE)+Sens -> 1.06 | K15: 2.006302239 | L15: =VLOOKUP(A15,Trends!A13:Q105,IF(ExFlg=0,4,12),FALSE)+Sens -> 1.057 | M15: 2.083712791 | O15: =VLOOKUP(A15,Trends!A13:Q105,IF(ExFlg=0,6,14),FALSE)+Sens -> 1.061 | P15: 1.863274143 | Q15: =VLOOKUP(A15,Trends!A13:Q105,IF(ExFlg=0,8,16),FALSE)+Sens -> 1.058 | R15: 2.087730227 | T15: 13153.3718 | U15: =IF(ExFlg=0,E15*Trends!T15,E15*Trends!X15) -> 16220.37982 | V15: -3067.008021 | X15: 9973.724212 | Y15: =IF(ExFlg=0,H15*Trends!V15,H15*Trends!Z15) -> 15698.8826 | Z15: -5725.158388 | AB15: -5725.158388 | AD15: =IF(B15<71,VLOOKUP(B15,Lookups!A:F,6),"") -> 0 | AE15: =IF(B15<71,VLOOKUP(Active!B15,Lookups!A:G,7),"") -> 0 | AF15: 0 | AG15: =IF(B15<70,VLOOKUP(CE15,Lookups!$Q$3:$S$53,2),"") -> 0.02922 | AH15: =IF(B15<70,VLOOKUP(CE15,Lookups!$Q$3:$S$53,3),"") -> 0.035373 | AI15: 0.035373 | AJ15: =IF(B15<70,VLOOKUP(B15,Lookups!A:M,12),"") -> 0.000135 | AK15: =IF(B15<70,VLOOKUP(B15,Lookups!A:M,13),"") -> 9.3e-05 | AL15: 9.3e-05 | AM15: =IF(B15<70,VLOOKUP(B15,Lookups!A:H,8)*(1-VLOOKUP(B15,Lookups!$DY$3:$EA$103,2))^(A15-$A$3),"") -> 0.005107471306 | AN15: =IF(B15<70,VLOOKUP(B15,Lookups!A:I,9)*(1-VLOOKUP(B15,Lookups!$DY$3:$EA$103,3))^(A15-$A$3),"") -> 0.001787067769 | AO15: 0.001787067769 | AP15: 0.03725306777 | AQ15: 0.3128411794 | AR15: 0.6245970496 | AT15: =IF(BA15>=$B$3,VLOOKUP(BA15,Lookups!A:H,8)*(1-VLOOKUP(BA15,Lookups!DY:EA,2))^(BA15-$B$3),"") -> 0.006160527155 | AU15: =IF(BA15>=$B$3,VLOOKUP(BA15,Lookups!A:I,9)*(1-VLOOKUP(BA15,Lookups!DY:EA,3))^(BA15-$B$3),"") -> 0.003295331118 | AV15: 0.003295331118 | AW15: 0.9913314403 | AX15: 0.8889963587 | AY15: 0.98092 | BA15: 58 | BB15: 1181.908736 | BC15: 1021.730586 | BD15: =IF(BB15<>"",BB15*AW15/$AW$13*AX15/$AX$13*AY15,"") -> 1065.515905 | BE15: =IF(BB15<>"",BB15*AW15/$AW$14*AX15/$AX$14*AY15,"") -> 1111.350613 | BF15: =IF(BB15<>"",BB15*AW15/$AW$15*AX15/$AX$15*AY15*0.5,"") -> 579.6789586 | BN15: 0 | BO15: 0 | BP15: 0 | BQ15: 0 | CE15: 12.01 | CF15: =VLOOKUP(CG15,Lookups!$A$3:$F$53,6) -> 0.24 | CG15: 67 | CH15: 0.08293101712 | CI15: 1.333530755
A16: 2028 | B16: 33 | D16: =VLOOKUP(B16,Lookups!A:B,2) -> 6945.349344 | E16: =VLOOKUP(B16,Lookups!A:C,3) -> 7044.48 | G16: =VLOOKUP(B16,Lookups!A:D,4) -> 5670.664531 | H16: =VLOOKUP(B16,Lookups!A:E,5) -> 6841.56 | J16: =VLOOKUP(A16,Trends!A14:Q106,IF(ExFlg=0,2,10),FALSE)+Sens -> 1.063 | K16: 2.126680374 | L16: =VLOOKUP(A16,Trends!A14:Q106,IF(ExFlg=0,4,12),FALSE)+Sens -> 1.057 | M16: 2.20248442 | O16: =VLOOKUP(A16,Trends!A14:Q106,IF(ExFlg=0,6,14),FALSE)+Sens -> 1.061 | P16: 1.976933865 | Q16: =VLOOKUP(A16,Trends!A14:Q106,IF(ExFlg=0,8,16),FALSE)+Sens -> 1.058 | R16: 2.20881858 | T16: 14770.53814 | U16: =IF(ExFlg=0,E16*Trends!T16,E16*Trends!X16) -> 17144.94147 | V16: -2374.403329 | X16: 11210.52875 | Y16: =IF(ExFlg=0,H16*Trends!V16,H16*Trends!Z16) -> 16609.41779 | Z16: -5398.889041 | AB16: -5398.889041 | AD16: =IF(B16<71,VLOOKUP(B16,Lookups!A:F,6),"") -> 0 | AE16: =IF(B16<71,VLOOKUP(Active!B16,Lookups!A:G,7),"") -> 0 | AF16: 0 | AG16: =IF(B16<70,VLOOKUP(CE16,Lookups!$Q$3:$S$53,2),"") -> 0.027204 | AH16: =IF(B16<70,VLOOKUP(CE16,Lookups!$Q$3:$S$53,3),"") -> 0.032588 | AI16: 0.032588 | AJ16: =IF(B16<70,VLOOKUP(B16,Lookups!A:M,12),"") -> 0.000142 | AK16: =IF(B16<70,VLOOKUP(B16,Lookups!A:M,13),"") -> 0.000126 | AL16: 0.000126 | AM16: =IF(B16<70,VLOOKUP(B16,Lookups!A:H,8)*(1-VLOOKUP(B16,Lookups!$DY$3:$EA$103,2))^(A16-$A$3),"") -> 0.005274023645 | AN16: =IF(B16<70,VLOOKUP(B16,Lookups!A:I,9)*(1-VLOOKUP(B16,Lookups!$DY$3:$EA$103,3))^(A16-$A$3),"") -> 0.001856465046 | AO16: 0.001856465046 | AP16: 0.03457046505 | AQ16: 0.3011868858 | AR16: 0.6005740861 | AT16: =IF(BA16>=$B$3,VLOOKUP(BA16,Lookups!A:H,8)*(1-VLOOKUP(BA16,Lookups!DY:EA,2))^(BA16-$B$3),"") -> 0.005922959809 | AU16: =IF(BA16>=$B$3,VLOOKUP(BA16,Lookups!A:I,9)*(1-VLOOKUP(BA16,Lookups!DY:EA,3))^(BA16-$B$3),"") -> 0.003261818999 | AV16: 0.003261818999 | AW16: 0.988064675 | AX16: 0.854804191 | AY16: 0.980934 | BA16: 59 | BB16: 4260.171195 | BC16: 3529.54607 | BD16: 3680.801502 | BE16: =IF(BB16<>"",BB16*AW16/$AW$14*AX16/$AX$14*AY16,"") -> 3839.136503 | BF16: =IF(BB16<>"",BB16*AW16/$AW$15*AX16/$AX$15*AY16,"") -> 4004.97669 | BG16: =IF(BB16<>"",BB16*AW16/$AW$16*AX16/$AX$16*AY16*0.5,"") -> 2089.473386 | BN16: 0 | BO16: 0 | BP16: 0 | BQ16: 0 | BR16: 0 | CE16: 13.01 | CF16: =VLOOKUP(CG16,Lookups!$A$3:$F$53,6) -> 0.24 | CG16: 68 | CH16: 0.06302757301 | CI16: 1.028609992
A17: 2029 | B17: 34 | D17: =VLOOKUP(B17,Lookups!A:B,2) -> 7358.814848 | E17: =VLOOKUP(B17,Lookups!A:C,3) -> 7044.48 | G17: =VLOOKUP(B17,Lookups!A:D,4) -> 6008.246434 | H17: =VLOOKUP(B17,Lookups!A:E,5) -> 6841.56 | J17: =VLOOKUP(A17,Trends!A15:Q107,IF(ExFlg=0,2,10),FALSE)+Sens -> 1.063 | K17: 2.260661237 | L17: =VLOOKUP(A17,Trends!A15:Q107,IF(ExFlg=0,4,12),FALSE)+Sens -> 1.058 | M17: 2.328026032 | O17: =VLOOKUP(A17,Trends!A15:Q107,IF(ExFlg=0,6,14),FALSE)+Sens -> 1.061 | P17: 2.097526831 | Q17: =VLOOKUP(A17,Trends!A15:Q107,IF(ExFlg=0,8,16),FALSE)+Sens -> 1.058 | R17: 2.336930057 | T17: 16635.78748 | U17: =IF(ExFlg=0,E17*Trends!T17,E17*Trends!X17) -> 18122.20313 | V17: -1486.415652 | X17: 12602.4581 | Y17: =IF(ExFlg=0,H17*Trends!V17,H17*Trends!Z17) -> 17572.76402 | Z17: -4970.30592 | AB17: -4970.30592 | AD17: =IF(B17<71,VLOOKUP(B17,Lookups!A:F,6),"") -> 0 | AE17: =IF(B17<71,VLOOKUP(Active!B17,Lookups!A:G,7),"") -> 0 | AF17: 0 | AG17: =IF(B17<70,VLOOKUP(CE17,Lookups!$Q$3:$S$53,2),"") -> 0.025327 | AH17: =IF(B17<70,VLOOKUP(CE17,Lookups!$Q$3:$S$53,3),"") -> 0.030023 | AI17: 0.030023 | AJ17: =IF(B17<70,VLOOKUP(B17,Lookups!A:M,12),"") -> 0.000149 | AK17: =IF(B17<70,VLOOKUP(B17,Lookups!A:M,13),"") -> 0.00016 | AL17: 0.00016 | AM17: =IF(B17<70,VLOOKUP(B17,Lookups!A:H,8)*(1-VLOOKUP(B17,Lookups!$DY$3:$EA$103,2))^(A17-$A$3),"") -> 0.005399586729 | AN17: =IF(B17<70,VLOOKUP(B17,Lookups!A:I,9)*(1-VLOOKUP(B17,Lookups!$DY$3:$EA$103,3))^(A17-$A$3),"") -> 0.001911655146 | AO17: 0.001911655146 | AP17: 0.03209465515 | AQ17: 0.2907747151 | AR17: 0.5774750828 | AT17: =IF(BA17>=$B$3,VLOOKUP(BA17,Lookups!A:H,8)*(1-VLOOKUP(BA17,Lookups!DY:EA,2))^(BA17-$B$3),"") -> 0.006334620695 | AU17: =IF(BA17>=$B$3,VLOOKUP(BA17,Lookups!A:I,9)*(1-VLOOKUP(BA17,Lookups!DY:EA,3))^(BA17-$B$3),"") -> 0.003491639802 | AV17: 0.003491639802 | AW17: 0.9848417868 | AX17: 0.8219271068 | AY17: 0.980833 | BA17: 60 | BB17: 7927.070178 | BC17: 6293.721817 | BD17: 6563.433443 | BE17: 6845.769027 | BF17: 7141.487508 | BG17: =IF(BB17<>"",BB17*AW17/$AW$16*AX17/$AX$16*AY17,"") -> 7451.702837 | BH17: =IF(BB17<>"",BB17*AW17/$AW$17*AX17/$AX$17*AY17*0.5,"") -> 3887.566012 | BN17: 0 | BO17: 0 | BP17: 0 | BQ17: 0 | BR17: 0 | BS17: 0 | CE17: 14.01 | CF17: =VLOOKUP(CG17,Lookups!$A$3:$F$53,6) -> 0.24 | CG17: 69 | CH17: 0.04790095549 | CI17: 0.7932398229
A18: 2030 | B18: 35 | D18: =VLOOKUP(B18,Lookups!A:B,2) -> 7797.98292 | E18: =VLOOKUP(B18,Lookups!A:C,3) -> 7044.48 | G18: =VLOOKUP(B18,Lookups!A:D,4) -> 6366.813695 | H18: =VLOOKUP(B18,Lookups!A:E,5) -> 6841.56 | J18: =VLOOKUP(A18,Trends!A16:Q108,IF(ExFlg=0,2,10),FALSE)+Sens -> 1.063 | K18: 2.403082895 | L18: =VLOOKUP(A18,Trends!A16:Q108,IF(ExFlg=0,4,12),FALSE)+Sens -> 1.058 | M18: 2.463051542 | O18: =VLOOKUP(A18,Trends!A16:Q108,IF(ExFlg=0,6,14),FALSE)+Sens -> 1.062 | P18: 2.225475968 | Q18: =VLOOKUP(A18,Trends!A16:Q108,IF(ExFlg=0,8,16),FALSE)+Sens -> 1.058 | R18: 2.472472001 | T18: 18739.19937 | U18: =IF(ExFlg=0,E18*Trends!T18,E18*Trends!X18) -> 19173.29091 | V18: -434.0915423 | X18: 14169.19087 | Y18: =IF(ExFlg=0,H18*Trends!V18,H18*Trends!Z18) -> 18591.98434 | Z18: -4422.793466 | AB18: -4422.793466 | AD18: =IF(B18<71,VLOOKUP(B18,Lookups!A:F,6),"") -> 0 | AE18: =IF(B18<71,VLOOKUP(Active!B18,Lookups!A:G,7),"") -> 0 | AF18: 0 | AG18: =IF(B18<70,VLOOKUP(CE18,Lookups!$Q$3:$S$53,2),"") -> 0.023579 | AH18: =IF(B18<70,VLOOKUP(CE18,Lookups!$Q$3:$S$53,3),"") -> 0.027659 | AI18: 0.027659 | AJ18: =IF(B18<70,VLOOKUP(B18,Lookups!A:M,12),"") -> 0.000156 | AK18: =IF(B18<70,VLOOKUP(B18,Lookups!A:M,13),"") -> 0.000194 | AL18: 0.000194 | AM18: =IF(B18<70,VLOOKUP(B18,Lookups!A:H,8)*(1-VLOOKUP(B18,Lookups!$DY$3:$EA$103,2))^(A18-$A$3),"") -> 0.005509223087 | AN18: =IF(B18<70,VLOOKUP(B18,Lookups!A:I,9)*(1-VLOOKUP(B18,Lookups!$DY$3:$EA$103,3))^(A18-$A$3),"") -> 0.0019589461 | AO18: 0.0019589461 | AP18: 0.0298119461 | AQ18: 0.2814424009 | AR18: 0.5552645027 | AT18: =IF(BA18>=$B$3,VLOOKUP(BA18,Lookups!A:H,8)*(1-VLOOKUP(BA18,Lookups!DY:EA,2))^(BA18-$B$3),"") -> 0.006001714285 | AU18: =IF(BA18>=$B$3,VLOOKUP(BA18,Lookups!A:I,9)*(1-VLOOKUP(BA18,Lookups!DY:EA,3))^(BA18-$B$3),"") -> 0.00341895017 | AV18: 0.00341895017 | AW18: 0.9814030741 | AX18: 0.7903145257 | AY18: 0.980865 | BA18: 61 | BB18: 12184.99028 | BC18: 9270.044167 | BD18: 9667.303335 | BE18: 10083.15637 | BF18: 10518.72112 | BG18: =IF(BB18<>"",BB18*AW18/$AW$16*AX18/$AX$16*AY18,"") -> 10975.63833 | BH18: =IF(BB18<>"",BB18*AW18/$AW$17*AX18/$AX$17*AY18,"") -> 11452.01827 | BI18: =IF(BB18<>"",BB18*AW18/$AW$18*AX18/$AX$18*AY18*0.5,"") -> 5975.915246 | BN18: 0 | BO18: 0 | BP18: 0 | BQ18: 0 | BR18: 0 | BS18: 0 | BT18: 0 | CE18: 15.01 | CF18: =VLOOKUP(CG18,Lookups!$A$3:$F$53,6) -> 1 | CG18: 70 | CH18: 0.03640472617 | CI18: 2.548330832
A19: 2031 | B19: 36 | D19: =VLOOKUP(B19,Lookups!A:B,2) -> 8264.517216 | E19: =VLOOKUP(B19,Lookups!A:C,3) -> 7044.48 | G19: =VLOOKUP(B19,Lookups!A:D,4) -> 6747.724641 | H19: =VLOOKUP(B19,Lookups!A:E,5) -> 6841.56 | J19: =VLOOKUP(A19,Trends!A17:Q109,IF(ExFlg=0,2,10),FALSE)+Sens -> 1.063 | K19: 2.554477118 | L19: =VLOOKUP(A19,Trends!A17:Q109,IF(ExFlg=0,4,12),FALSE)+Sens -> 1.058 | M19: 2.605908531 | O19: =VLOOKUP(A19,Trends!A17:Q109,IF(ExFlg=0,6,14),FALSE)+Sens -> 1.061 | P19: 2.363455478 | Q19: =VLOOKUP(A19,Trends!A17:Q109,IF(ExFlg=0,8,16),FALSE)+Sens -> 1.058 | R19: 2.615875377 | T19: 21111.52012 | U19: =IF(ExFlg=0,E19*Trends!T19,E19*Trends!X19) -> 20285.34179 | V19: 826.1783306 | X19: 15947.94677 | Y19: =IF(ExFlg=0,H19*Trends!V19,H19*Trends!Z19) -> 19670.31943 | Z19: -3722.372661 | AB19: -3722.372661 | AD19: =IF(B19<71,VLOOKUP(B19,Lookups!A:F,6),"") -> 0 | AE19: =IF(B19<71,VLOOKUP(Active!B19,Lookups!A:G,7),"") -> 0 | AF19: 0 | AG19: =IF(B19<70,VLOOKUP(CE19,Lookups!$Q$3:$S$53,2),"") -> 0.021952 | AH19: =IF(B19<70,VLOOKUP(CE19,Lookups!$Q$3:$S$53,3),"") -> 0.025482 | AI19: 0.025482 | AJ19: =IF(B19<70,VLOOKUP(B19,Lookups!A:M,12),"") -> 0.000164 | AK19: =IF(B19<70,VLOOKUP(B19,Lookups!A:M,13),"") -> 0.000228 | AL19: 0.000228 | AM19: =IF(B19<70,VLOOKUP(B19,Lookups!A:H,8)*(1-VLOOKUP(B19,Lookups!$DY$3:$EA$103,2))^(A19-$A$3),"") -> 0.005615845356 | AN19: =IF(B19<70,VLOOKUP(B19,Lookups!A:I,9)*(1-VLOOKUP(B19,Lookups!$DY$3:$EA$103,3))^(A19-$A$3),"") -> 0.002004384495 | AO19: 0.002004384495 | AP19: 0.02771438449 | AQ19: 0.2730520552 | AR19: 0.5339081757 | AT19: =IF(BA19>=$B$3,VLOOKUP(BA19,Lookups!A:H,8)*(1-VLOOKUP(BA19,Lookups!DY:EA,2))^(BA19-$B$3),"") -> 0.005607496217 | AU19: =IF(BA19>=$B$3,VLOOKUP(BA19,Lookups!A:I,9)*(1-VLOOKUP(BA19,Lookups!DY:EA,3))^(BA19-$B$3),"") -> 0.003342824525 | AV19: 0.003342824525 | AW19: 0.9780477059 | AX19: 0.7599178132 | AY19: 0.980899 | BA19: 62 | BB19: 18039.74373 | BC19: 13151.6826 | BD19: 13715.28579 | BE19: 14305.26865 | BF19: 14923.2171 | BG19: =IF(BB19<>"",BB19*AW19/$AW$16*AX19/$AX$16*AY19,"") -> 15571.45889 | BH19: =IF(BB19<>"",BB19*AW19/$AW$17*AX19/$AX$17*AY19,"") -> 16247.31304 | BI19: =IF(BB19<>"",BB19*AW19/$AW$18*AX19/$AX$18*AY19,"") -> 16956.41125 | BJ19: =IF(BB19<>"",BB19*AW19/$AW$19*AX19/$AX$19*AY19*0.5,"") -> 8847.583294 | BN19: 0 | BO19: 0 | BP19: 0 | BQ19: 0 | BR19: 0 | BS19: 0 | BT19: 0 | BU19: 0 | CE19: 16.01 | CI19: =SUM(CI3:CI18) -> 62.44468931
A20: =1+A19 -> 2032 | B20: 37 | D20: =VLOOKUP(B20,Lookups!A:B,2) -> 8438.62811 | E20: =VLOOKUP(B20,Lookups!A:C,3) -> 7044.48 | G20: =VLOOKUP(B20,Lookups!A:D,4) -> 6889.880852 | H20: =VLOOKUP(B20,Lookups!A:E,5) -> 6841.56 | J20: =VLOOKUP(A20,Trends!A18:Q110,IF(ExFlg=0,2,10),FALSE)+Sens -> 1.063 | K20: 2.715409176 | L20: =VLOOKUP(A20,Trends!A18:Q110,IF(ExFlg=0,4,12),FALSE)+Sens -> 1.058 | M20: 2.757051226 | O20: =VLOOKUP(A20,Trends!A18:Q110,IF(ExFlg=0,6,14),FALSE)+Sens -> 1.062 | P20: 2.507626262 | Q20: =VLOOKUP(A20,Trends!A18:Q110,IF(ExFlg=0,8,16),FALSE)+Sens -> 1.058 | R20: 2.767596149 | T20: 22914.3282 | U20: =IF(ExFlg=0,E20*Trends!T20,E20*Trends!X20) -> 21461.89161 | V20: 1452.436592 | X20: 17277.24617 | Y20: =IF(ExFlg=0,H20*Trends!V20,H20*Trends!Z20) -> 20811.19796 | Z20: -3533.951789 | AB20: -3533.951789 | AD20: =IF(B20<71,VLOOKUP(B20,Lookups!A:F,6),"") -> 0 | AE20: =IF(B20<71,VLOOKUP(Active!B20,Lookups!A:G,7),"") -> 0 | AF20: 0 | AG20: =IF(B20<70,VLOOKUP(CE20,Lookups!$Q$3:$S$53,2),"") -> 0.020437 | AH20: =IF(B20<70,VLOOKUP(CE20,Lookups!$Q$3:$S$53,3),"") -> 0.023475 | AI20: 0.023475 | AJ20: =IF(B20<70,VLOOKUP(B20,Lookups!A:M,12),"") -> 0.000171 | AK20: =IF(B20<70,VLOOKUP(B20,Lookups!A:M,13),"") -> 0.000262 | AL20: 0.000262 | AM20: =IF(B20<70,VLOOKUP(B20,Lookups!A:H,8)*(1-VLOOKUP(B20,Lookups!$DY$3:$EA$103,2))^(A20-$A$3),"") -> 0.005709022241 | AN20: =IF(B20<70,VLOOKUP(B20,Lookups!A:I,9)*(1-VLOOKUP(B20,Lookups!$DY$3:$EA$103,3))^(A20-$A$3),"") -> 0.002045314442 | AO20: 0.002045314442 | AP20: 0.02578231444 | AQ20: 0.2654845855 | AR20: 0.5133732459 | AT20: =IF(BA20>=$B$3,VLOOKUP(BA20,Lookups!A:H,8)*(1-VLOOKUP(BA20,Lookups!DY:EA,2))^(BA20-$B$3),"") -> 0.005811902629 | AU20: =IF(BA20>=$B$3,VLOOKUP(BA20,Lookups!A:I,9)*(1-VLOOKUP(BA20,Lookups!DY:EA,3))^(BA20-$B$3),"") -> 0.003709550596 | AV20: 0.003709550596 | AW20: =IF(AV19="",1,AW19*(1-AV19)) -> 0.974778264 | AX20: 0.730690205 | AY20: 0.980737 | BA20: 63 | BB20: 24956.71057 | BC20: 17433.27675 | BD20: 18180.3637 | BE20: 18962.41834 | BF20: 19781.54291 | BG20: =IF(BB20<>"",BB20*AW20/$AW$16*AX20/$AX$16*AY20,"") -> 20640.82297 | BH20: =IF(BB20<>"",BB20*AW20/$AW$17*AX20/$AX$17*AY20,"") -> 21536.70472 | BI20: =IF(BB20<>"",BB20*AW20/$AW$18*AX20/$AX$18*AY20,"") -> 22476.65329 | BJ20: =IF(BB20<>"",BB20*AW20/$AW$19*AX20/$AX$19*AY20,"") -> 23455.91402 | BK20: =IF(BB20<>"",BB20*AW20/$AW$20*AX20/$AX$20*AY20*0.5,"") -> 12237.98473 | BN20: 0 | BO20: 0 | BP20: 0 | BQ20: 0 | BR20: 0 | BS20: 0 | BT20: 0 | BU20: 0 | BV20: 0 | CE20: 17.01
A21: 2033 | B21: 38 | D21: =VLOOKUP(B21,Lookups!A:B,2) -> 8617.075949 | E21: =VLOOKUP(B21,Lookups!A:C,3) -> 7044.48 | G21: =VLOOKUP(B21,Lookups!A:D,4) -> 7035.578046 | H21: =VLOOKUP(B21,Lookups!A:E,5) -> 6841.56 | J21: =VLOOKUP(A21,Trends!A19:Q111,IF(ExFlg=0,2,10),FALSE)+Sens -> 1.064 | K21: 2.886479954 | L21: =VLOOKUP(A21,Trends!A19:Q111,IF(ExFlg=0,4,12),FALSE)+Sens -> 1.058 | M21: 2.916960197 | O21: =VLOOKUP(A21,Trends!A19:Q111,IF(ExFlg=0,6,14),FALSE)+Sens -> 1.061 | P21: 2.66309909 | Q21: =VLOOKUP(A21,Trends!A19:Q111,IF(ExFlg=0,8,16),FALSE)+Sens -> 1.058 | R21: 2.928116725 | T21: 24873.01699 | U21: =IF(ExFlg=0,E21*Trends!T21,E21*Trends!X21) -> 22706.68132 | V21: 2166.335667 | X21: 18736.44149 | Y21: =IF(ExFlg=0,H21*Trends!V21,H21*Trends!Z21) -> 22018.24744 | Z21: -3281.805943 | AB21: -3281.805943 | AD21: =IF(B21<71,VLOOKUP(B21,Lookups!A:F,6),"") -> 0 | AE21: =IF(B21<71,VLOOKUP(Active!B21,Lookups!A:G,7),"") -> 0 | AF21: 0 | AG21: =IF(B21<70,VLOOKUP(CE21,Lookups!$Q$3:$S$53,2),"") -> 0.019027 | AH21: =IF(B21<70,VLOOKUP(CE21,Lookups!$Q$3:$S$53,3),"") -> 0.021627 | AI21: 0.021627 | AJ21: =IF(B21<70,VLOOKUP(B21,Lookups!A:M,12),"") -> 0.000192 | AK21: =IF(B21<70,VLOOKUP(B21,Lookups!A:M,13),"") -> 0.000266 | AL21: 0.000266 | AM21: =IF(B21<70,VLOOKUP(B21,Lookups!A:H,8)*(1-VLOOKUP(B21,Lookups!$DY$3:$EA$103,2))^(A21-$A$3),"") -> 0.005671801747 | AN21: =IF(B21<70,VLOOKUP(B21,Lookups!A:I,9)*(1-VLOOKUP(B21,Lookups!$DY$3:$EA$103,3))^(A21-$A$3),"") -> 0.002046323011 | AO21: 0.002046323011 | AP21: 0.02393932301 | AQ21: 0.2586397785 | AR21: 0.493628121 | AT21: =IF(BA21>=$B$3,VLOOKUP(BA21,Lookups!A:H,8)*(1-VLOOKUP(BA21,Lookups!DY:EA,2))^(BA21-$B$3),"") -> 0.005477566615 | AU21: =IF(BA21>=$B$3,VLOOKUP(BA21,Lookups!A:I,9)*(1-VLOOKUP(BA21,Lookups!DY:EA,3))^(BA21-$B$3),"") -> 0.003874789247 | AV21: 0.003874789247 | AW21: =IF(AV20="",1,AW20*(1-AV20)) -> 0.9711622747 | AX21: 0.7025867356 | AY21: 0.980664 | BA21: 64 | BB21: 32993.08803 | BC21: 22076.74028 | BD21: 23022.81857 | BE21: 24013.17841 | BF21: 25050.48198 | BG21: =IF(BB21<>"",BB21*AW21/$AW$16*AX21/$AX$16*AY21,"") -> 26138.63672 | BH21: =IF(BB21<>"",BB21*AW21/$AW$17*AX21/$AX$17*AY21,"") -> 27273.14225 | BI21: =IF(BB21<>"",BB21*AW21/$AW$18*AX21/$AX$18*AY21,"") -> 28463.45206 | BJ21: =IF(BB21<>"",BB21*AW21/$AW$19*AX21/$AX$19*AY21,"") -> 29703.54508 | BK21: =IF(BB21<>"",BB21*AW21/$AW$20*AX21/$AX$20*AY21,"") -> 30995.29873 | BL21: =IF(BB21<>"",BB21*AW21/AW21*AX21/AX21*AY21*0.5,"") -> 16177.56684 | BN21: 0 | BO21: 0 | BP21: 0 | BQ21: 0 | BR21: 0 | BS21: 0 | BT21: 0 | BU21: 0 | BV21: 0 | BW21: 0 | CE21: 18.01
A22: 2034 | B22: 39 | D22: =VLOOKUP(B22,Lookups!A:B,2) -> 8799.981601 | E22: =VLOOKUP(B22,Lookups!A:C,3) -> 7044.48 | G22: =VLOOKUP(B22,Lookups!A:D,4) -> 7184.914907 | H22: =VLOOKUP(B22,Lookups!A:E,5) -> 6841.56 | J22: =VLOOKUP(A22,Trends!A20:Q112,IF(ExFlg=0,2,10),FALSE)+Sens -> 1.064 | K22: 3.071214671 | L22: =VLOOKUP(A22,Trends!A20:Q112,IF(ExFlg=0,4,12),FALSE)+Sens -> 1.058 | M22: 3.086143889 | O22: =VLOOKUP(A22,Trends!A20:Q112,IF(ExFlg=0,6,14),FALSE)+Sens -> 1.062 | P22: 2.825548135 | Q22: =VLOOKUP(A22,Trends!A20:Q112,IF(ExFlg=0,8,16),FALSE)+Sens -> 1.058 | R22: 3.097947495 | T22: 27026.6326 | U22: =IF(ExFlg=0,E22*Trends!T22,E22*Trends!X22) -> 24023.66884 | V22: 3002.963759 | X22: 20301.32291 | Y22: =IF(ExFlg=0,H22*Trends!V22,H22*Trends!Z22) -> 23295.30579 | Z22: -2993.982873 | AB22: -2993.982873 | AD22: =IF(B22<71,VLOOKUP(B22,Lookups!A:F,6),"") -> 0 | AE22: =IF(B22<71,VLOOKUP(Active!B22,Lookups!A:G,7),"") -> 0 | AF22: 0 | AG22: =IF(B22<70,VLOOKUP(CE22,Lookups!$Q$3:$S$53,2),"") -> 0.017714 | AH22: =IF(B22<70,VLOOKUP(CE22,Lookups!$Q$3:$S$53,3),"") -> 0.019925 | AI22: 0.019925 | AJ22: =IF(B22<70,VLOOKUP(B22,Lookups!A:M,12),"") -> 0.000213 | AK22: =IF(B22<70,VLOOKUP(B22,Lookups!A:M,13),"") -> 0.000271 | AL22: 0.000271 | AM22: =IF(B22<70,VLOOKUP(B22,Lookups!A:H,8)*(1-VLOOKUP(B22,Lookups!$DY$3:$EA$103,2))^(A22-$A$3),"") -> 0.005646029965 | AN22: =IF(B22<70,VLOOKUP(B22,Lookups!A:I,9)*(1-VLOOKUP(B22,Lookups!$DY$3:$EA$103,3))^(A22-$A$3),"") -> 0.002054378158 | AO22: 0.002054378158 | AP22: 0.02225037816 | AQ22: 0.2524481173 | AR22: 0.474642424 | AT22: =IF(BA22>=$B$3,VLOOKUP(BA22,Lookups!A:H,8)*(1-VLOOKUP(BA22,Lookups!DY:EA,2))^(BA22-$B$3),"") -> 0.005466706715 | AU22: =IF(BA22>=$B$3,VLOOKUP(BA22,Lookups!A:I,9)*(1-VLOOKUP(BA22,Lookups!DY:EA,3))^(BA22-$B$3),"") -> 0.004177087338 | AV22: 0.004177087338 | AW22: 0.9673992256 | AX22: 0.6755641688 | AY22: 0.980531 | BA22: 65 | BB22: 7384.255538 | BN22: =IF(BB22<>"",$BB22*$AW22/$AW$12*$AX22/$AX$12*$AY22,"") -> 4731.95263 | BO22: =IF(BB22<>"",$BB22*$AW22/$AW$13*$AX22/$AX$13*$AY22,"") -> 4934.736083 | BP22: =IF(BB22<>"",$BB22*$AW22/$AW$14*$AX22/$AX$14*$AY22,"") -> 5147.010894 | BQ22: =IF(BB22<>"",$BB22*$AW22/$AW$15*$AX22/$AX$15*$AY22,"") -> 5369.347674 | BR22: =IF(BB22<>"",$BB22*$AW22/$AW$16*$AX22/$AX$16*$AY22,"") -> 5602.583951 | BS22: =IF(BB22<>"",$BB22*$AW22/$AW$17*$AX22/$AX$17*$AY22,"") -> 5845.755104 | BT22: =IF(BB22<>"",$BB22*$AW22/$AW$18*$AX22/$AX$18*$AY22,"") -> 6100.887409 | BU22: =IF(BB22<>"",$BB22*$AW22/$AW$19*$AX22/$AX$19*$AY22,"") -> 6366.690302 | BV22: =IF(BB22<>"",$BB22*$AW22/$AW$20*$AX22/$AX$20*$AY22,"") -> 6643.566191 | BW22: =IF(BB22<>"",$BB22*$AW22/$AW$21*$AX22/$AX$21*$AY22,"") -> 6935.0347 | BX22: =IF(BB22<>"",$BB22*$AW22/$AW$22*$AX22/$AX$22*$AY22*0.5,"") -> 3620.245733 | CE22: 19.01
A23: 2035 | B23: 40 | D23: =VLOOKUP(B23,Lookups!A:B,2) -> 8987.469509 | E23: =VLOOKUP(B23,Lookups!A:C,3) -> 7044.48 | G23: =VLOOKUP(B23,Lookups!A:D,4) -> 7337.99304 | H23: =VLOOKUP(B23,Lookups!A:E,5) -> 6841.56 | J23: =VLOOKUP(A23,Trends!A21:Q113,IF(ExFlg=0,2,10),FALSE)+Sens -> 1.065 | K23: 3.26777241 | L23: =VLOOKUP(A23,Trends!A21:Q113,IF(ExFlg=0,4,12),FALSE)+Sens -> 1.058 | M23: 3.265140234 | O23: =VLOOKUP(A23,Trends!A21:Q113,IF(ExFlg=0,6,14),FALSE)+Sens -> 1.067 | P23: 3.000732119 | Q23: =VLOOKUP(A23,Trends!A21:Q113,IF(ExFlg=0,8,16),FALSE)+Sens -> 1.059 | R23: 3.27762845 | T23: 29369.0049 | U23: =IF(ExFlg=0,E23*Trends!T23,E23*Trends!X23) -> 25417.04163 | V23: 3951.963264 | X23: 22019.35141 | Y23: =IF(ExFlg=0,H23*Trends!V23,H23*Trends!Z23) -> 24646.43352 | Z23: -2627.082118 | AB23: -2627.082118 | AD23: =IF(B23<71,VLOOKUP(B23,Lookups!A:F,6),"") -> 0 | AE23: =IF(B23<71,VLOOKUP(Active!B23,Lookups!A:G,7),"") -> 0 | AF23: 0 | AG23: =IF(B23<70,VLOOKUP(CE23,Lookups!$Q$3:$S$53,2),"") -> 0.015311 | AH23: =IF(B23<70,VLOOKUP(CE23,Lookups!$Q$3:$S$53,3),"") -> 0.018001 | AI23: 0.018001 | AJ23: =IF(B23<70,VLOOKUP(B23,Lookups!A:M,12),"") -> 0.000235 | AK23: =IF(B23<70,VLOOKUP(B23,Lookups!A:M,13),"") -> 0.000275 | AL23: 0.000275 | AM23: =IF(B23<70,VLOOKUP(B23,Lookups!A:H,8)*(1-VLOOKUP(B23,Lookups!$DY$3:$EA$103,2))^(A23-$A$3),"") -> 0.00561805626 | AN23: =IF(B23<70,VLOOKUP(B23,Lookups!A:I,9)*(1-VLOOKUP(B23,Lookups!$DY$3:$EA$103,3))^(A23-$A$3),"") -> 0.002066491953 | AO23: 0.002066491953 | AP23: 0.02034249195 | AQ23: 0.2468310512 | AR23: 0.4563869462 | AT23: =IF(BA23>=$B$3,VLOOKUP(BA23,Lookups!A:H,8)*(1-VLOOKUP(BA23,Lookups!DY:EA,2))^(BA23-$B$3),"") -> 0.0057334161 | AU23: =IF(BA23>=$B$3,VLOOKUP(BA23,Lookups!A:I,9)*(1-VLOOKUP(BA23,Lookups!DY:EA,3))^(BA23-$B$3),"") -> 0.004647441233 | AV23: 0.004647441233 | AW23: 0.9633583145 | AX23: 0.6495809316 | AY23: 0.980324 | BA23: 66 | BB23: 9699.929049 | BN23: 5950.580166 | BO23: =IF(BB23<>"",$BB23*$AW23/$AW$13*$AX23/$AX$13*$AY23,"") -> 6205.586775 | BP23: =IF(BB23<>"",$BB23*$AW23/$AW$14*$AX23/$AX$14*$AY23,"") -> 6472.529066 | BQ23: =IF(BB23<>"",$BB23*$AW23/$AW$15*$AX23/$AX$15*$AY23,"") -> 6752.124603 | BR23: =IF(BB23<>"",$BB23*$AW23/$AW$16*$AX23/$AX$16*$AY23,"") -> 7045.426601 | BS23: =IF(BB23<>"",$BB23*$AW23/$AW$17*$AX23/$AX$17*$AY23,"") -> 7351.222021 | BT23: =IF(BB23<>"",$BB23*$AW23/$AW$18*$AX23/$AX$18*$AY23,"") -> 7672.058968 | BU23: =IF(BB23<>"",$BB23*$AW23/$AW$19*$AX23/$AX$19*$AY23,"") -> 8006.314517 | BV23: =IF(BB23<>"",$BB23*$AW23/$AW$20*$AX23/$AX$20*$AY23,"") -> 8354.494707 | BW23: =IF(BB23<>"",$BB23*$AW23/$AW$21*$AX23/$AX$21*$AY23,"") -> 8721.025581 | BX23: =IF(BB23<>"",$BB23*$AW23/$AW$22*$AX23/$AX$22*$AY23,"") -> 9105.147131 | BY23: =IF(BB23<>"",$BB23*$AW23/$AW$23*$AX23/$AX$23*$AY23*0.5,"") -> 4754.536623 | CE23: 20.01
A24: 2036 | B24: 41 | D24: =VLOOKUP(B24,Lookups!A:B,2) -> 9179.6678 | E24: =VLOOKUP(B24,Lookups!A:C,3) -> 7044.48 | G24: =VLOOKUP(B24,Lookups!A:D,4) -> 7494.917057 | H24: =VLOOKUP(B24,Lookups!A:E,5) -> 6841.56 | J24: =VLOOKUP(A24,Trends!A22:Q114,IF(ExFlg=0,2,10),FALSE)+Sens -> 1.065 | K24: 3.480177617 | L24: =VLOOKUP(A24,Trends!A22:Q114,IF(ExFlg=0,4,12),FALSE)+Sens -> 1.058 | M24: 3.454518368 | O24: =VLOOKUP(A24,Trends!A22:Q114,IF(ExFlg=0,6,14),FALSE)+Sens -> 1.069 | P24: 3.201781171 | Q24: =VLOOKUP(A24,Trends!A22:Q114,IF(ExFlg=0,8,16),FALSE)+Sens -> 1.059 | R24: 3.471008529 | T24: 31946.87441 | U24: =IF(ExFlg=0,E24*Trends!T24,E24*Trends!X24) -> 26891.23005 | V24: 5055.644359 | X24: 23997.08431 | Y24: =IF(ExFlg=0,H24*Trends!V24,H24*Trends!Z24) -> 26100.5731 | Z24: -2103.488788 | AB24: -2103.488788 | AD24: =IF(B24<71,VLOOKUP(B24,Lookups!A:F,6),"") -> 0 | AE24: =IF(B24<71,VLOOKUP(Active!B24,Lookups!A:G,7),"") -> 0 | AF24: 0 | AG24: =IF(B24<70,VLOOKUP(CE24,Lookups!$Q$3:$S$53,2),"") -> 0.013244 | AH24: =IF(B24<70,VLOOKUP(CE24,Lookups!$Q$3:$S$53,3),"") -> 0.015807 | AI24: 0.015807 | AJ24: =IF(B24<70,VLOOKUP(B24,Lookups!A:M,12),"") -> 0.000256 | AK24: =IF(B24<70,VLOOKUP(B24,Lookups!A:M,13),"") -> 0.000279 | AL24: 0.000279 | AM24: =IF(B24<70,VLOOKUP(B24,Lookups!A:H,8)*(1-VLOOKUP(B24,Lookups!$DY$3:$EA$103,2))^(A24-$A$3),"") -> 0.005572523316 | AN24: =IF(B24<70,VLOOKUP(B24,Lookups!A:I,9)*(1-VLOOKUP(B24,Lookups!$DY$3:$EA$103,3))^(A24-$A$3),"") -> 0.002078360845 | AO24: 0.002078360845 | AP24: 0.01816436085 | AQ24: 0.2418098925 | AR24: 0.4388336021 | AT24: =IF(BA24>=$B$3,VLOOKUP(BA24,Lookups!A:H,8)*(1-VLOOKUP(BA24,Lookups!DY:EA,2))^(BA24-$B$3),"") -> 0.006011772919 | AU24: =IF(BA24>=$B$3,VLOOKUP(BA24,Lookups!A:I,9)*(1-VLOOKUP(BA24,Lookups!DY:EA,3))^(BA24-$B$3),"") -> 0.005182070308 | AV24: 0.005182070308 | AW24: 0.9588811634 | AX24: 0.6245970496 | AY24: 0.980088 | BA24: 67 | BB24: 12330.47984 | BN24: 7237.853111 | BO24: 7548.024611 | BP24: 7872.713807 | BQ24: 8212.793492 | BR24: 8569.544719 | BS24: 8941.492036 | BT24: 9331.734774 | BU24: 9738.298924 | BV24: 10161.8 | BW24: 10607.6215 | BX24: =IF(BB24<>"",$BB24*$AW24/$AW$22*$AX24/$AX$22*$AY24,"") -> 11074.83903 | BY24: =IF(BB24<>"",$BB24*$AW24/$AW$23*$AX24/$AX$23*$AY24,"") -> 11566.14539 | BZ24: =IF(BB24<>"",$BB24*$AW24/$AW$24*$AX24/$AX$24*$AY24*0.5,"") -> 6042.477664 | CE24: 21.01
A25: 2037 | B25: 42 | D25: =VLOOKUP(B25,Lookups!A:B,2) -> 8953.572858 | E25: =VLOOKUP(B25,Lookups!A:C,3) -> 7044.48 | G25: =VLOOKUP(B25,Lookups!A:D,4) -> 7310.317469 | H25: =VLOOKUP(B25,Lookups!A:E,5) -> 6841.56 | J25: =VLOOKUP(A25,Trends!A23:Q115,IF(ExFlg=0,2,10),FALSE)+Sens -> 1.063 | K25: 3.706389162 | L25: =VLOOKUP(A25,Trends!A23:Q115,IF(ExFlg=0,4,12),FALSE)+Sens -> 1.057 | M25: 3.654880433 | O25: =VLOOKUP(A25,Trends!A23:Q115,IF(ExFlg=0,6,14),FALSE)+Sens -> 1.067 | P25: 3.422704072 | Q25: =VLOOKUP(A25,Trends!A23:Q115,IF(ExFlg=0,8,16),FALSE)+Sens -> 1.057 | R25: 3.675798032 | T25: 33185.4254 | U25: =IF(ExFlg=0,E25*Trends!T25,E25*Trends!X25) -> 28450.92139 | V25: 4734.504008 | X25: 25021.05337 | Y25: =IF(ExFlg=0,H25*Trends!V25,H25*Trends!Z25) -> 27640.50691 | Z25: -2619.453546 | AB25: -2619.453546 | AD25: =IF(B25<71,VLOOKUP(B25,Lookups!A:F,6),"") -> 0 | AE25: =IF(B25<71,VLOOKUP(Active!B25,Lookups!A:G,7),"") -> 0 | AF25: 0 | AG25: =IF(B25<70,VLOOKUP(CE25,Lookups!$Q$3:$S$53,2),"") -> 0.011457 | AH25: =IF(B25<70,VLOOKUP(CE25,Lookups!$Q$3:$S$53,3),"") -> 0.01388 | AI25: 0.01388 | AJ25: =IF(B25<70,VLOOKUP(B25,Lookups!A:M,12),"") -> 0.000277 | AK25: =IF(B25<70,VLOOKUP(B25,Lookups!A:M,13),"") -> 0.000283 | AL25: 0.000283 | AM25: =IF(B25<70,VLOOKUP(B25,Lookups!A:H,8)*(1-VLOOKUP(B25,Lookups!$DY$3:$EA$103,2))^(A25-$A$3),"") -> 0.005511661845 | AN25: =IF(B25<70,VLOOKUP(B25,Lookups!A:I,9)*(1-VLOOKUP(B25,Lookups!$DY$3:$EA$103,3))^(A25-$A$3),"") -> 0.002091325115 | AO25: 0.002091325115 | AP25: 0.01625432512 | AQ25: 0.2374175704 | AR25: 0.4219553867 | AT25: =IF(BA25>=$B$3,VLOOKUP(BA25,Lookups!A:H,8)*(1-VLOOKUP(BA25,Lookups!DY:EA,2))^(BA25-$B$3),"") -> 0.006203453097 | AU25: =IF(BA25>=$B$3,VLOOKUP(BA25,Lookups!A:I,9)*(1-VLOOKUP(BA25,Lookups!DY:EA,3))^(BA25-$B$3),"") -> 0.005684970504 | AV25: 0.005684970504 | AW25: 0.9539121738 | AX25: 0.6005740861 | AY25: 0.979866 | BA25: 68 | BB25: 15305.80072 | BN25: 8592.068355 | BO25: 8960.273497 | BP25: 9345.712622 | BQ25: 9749.421823 | BR25: 10172.92184 | BS25: 10614.46117 | BT25: 11077.71902 | BU25: 11560.35205 | BV25: 12063.09092 | BW25: 12592.32643 | BX25: 13146.96119 | BY25: =IF(BB25<>"",$BB25*$AW25/$AW$23*$AX25/$AX$23*$AY25,"") -> 13730.19185 | BZ25: =IF(BB25<>"",$BB25*$AW25/$AW$24*$AX25/$AX$24*$AY25,"") -> 14346.07205 | CA25: =IF(BB25<>"",$BB25*$AW25/$AW$25*$AX25/$AX$25*$AY25*0.5,"") -> 7498.816864 | CE25: 22.01
A26: 2038 | B26: 43 | D26: =VLOOKUP(B26,Lookups!A:B,2) -> 8733.270611 | E26: =VLOOKUP(B26,Lookups!A:C,3) -> 7044.48 | G26: =VLOOKUP(B26,Lookups!A:D,4) -> 7130.44744 | H26: =VLOOKUP(B26,Lookups!A:E,5) -> 6841.56 | J26: =VLOOKUP(A26,Trends!A24:Q116,IF(ExFlg=0,2,10),FALSE)+Sens -> 1.062 | K26: 3.939891679 | L26: =VLOOKUP(A26,Trends!A24:Q116,IF(ExFlg=0,4,12),FALSE)+Sens -> 1.057 | M26: 3.863208618 | O26: =VLOOKUP(A26,Trends!A24:Q116,IF(ExFlg=0,6,14),FALSE)+Sens -> 1.066 | P26: 3.652025245 | Q26: =VLOOKUP(A26,Trends!A24:Q116,IF(ExFlg=0,8,16),FALSE)+Sens -> 1.057 | R26: 3.88531852 | T26: 34408.14021 | U26: =IF(ExFlg=0,E26*Trends!T26,E26*Trends!X26) -> 30072.62391 | V26: 4335.516302 | X26: 26040.57406 | Y26: =IF(ExFlg=0,H26*Trends!V26,H26*Trends!Z26) -> 29216.01581 | Z26: -3175.441751 | AB26: -3175.441751 | AD26: =IF(B26<71,VLOOKUP(B26,Lookups!A:F,6),"") -> 0 | AE26: =IF(B26<71,VLOOKUP(Active!B26,Lookups!A:G,7),"") -> 0 | AF26: 0 | AG26: =IF(B26<70,VLOOKUP(CE26,Lookups!$Q$3:$S$53,2),"") -> 0.00991 | AH26: =IF(B26<70,VLOOKUP(CE26,Lookups!$Q$3:$S$53,3),"") -> 0.012188 | AI26: 0.012188 | AJ26: =IF(B26<70,VLOOKUP(B26,Lookups!A:M,12),"") -> 0.000344 | AK26: =IF(B26<70,VLOOKUP(B26,Lookups!A:M,13),"") -> 0.000345 | AL26: 0.000345 | AM26: =IF(B26<70,VLOOKUP(B26,Lookups!A:H,8)*(1-VLOOKUP(B26,Lookups!$DY$3:$EA$103,2))^(A26-$A$3),"") -> 0.006009654553 | AN26: =IF(B26<70,VLOOKUP(B26,Lookups!A:I,9)*(1-VLOOKUP(B26,Lookups!$DY$3:$EA$103,3))^(A26-$A$3),"") -> 0.002281897746 | AO26: 0.002281897746 | AP26: 0.01481489775 | AQ26: 0.233558508 | AR26: 0.4057263333 | AT26: =IF(BA26>=$B$3,VLOOKUP(BA26,Lookups!A:H,8)*(1-VLOOKUP(BA26,Lookups!DY:EA,2))^(BA26-$B$3),"") -> 0.006793093725 | AU26: =IF(BA26>=$B$3,VLOOKUP(BA26,Lookups!A:I,9)*(1-VLOOKUP(BA26,Lookups!DY:EA,3))^(BA26-$B$3),"") -> 0.006208765542 | AV26: 0.006208765542 | AW26: 0.9484892112 | AX26: 0.5774750828 | AY26: 0.979636 | BA26: 69 | BB26: 18657.73783 | BN26: 10011.27446 | BO26: 10440.29836 | BP26: 10889.4029 | BQ26: 11359.79529 | BR26: 11853.24748 | BS26: 12367.71864 | BT26: 12907.49571 | BU26: 13469.84828 | BV26: 14055.62771 | BW26: 14672.28038 | BX26: 15318.52766 | BY26: 15998.09421 | BZ26: =IF(BB26<>"",$BB26*$AW26/$AW$24*$AX26/$AX$24*$AY26,"") -> 16715.70322 | CA26: =IF(BB26<>"",$BB26*$AW26/$AW$25*$AX26/$AX$25*$AY26,"") -> 17474.88745 | CB26: =IF(BB26<>"",$BB26*$AW26/$AW$26*$AX26/$AX$26*$AY26*0.5,"") -> 9138.895827 | CE26: 23.01
A27: 2039 | B27: 44 | D27: =VLOOKUP(B27,Lookups!A:B,2) -> 8518.607211 | E27: =VLOOKUP(B27,Lookups!A:C,3) -> 7044.48 | G27: =VLOOKUP(B27,Lookups!A:D,4) -> 6955.181355 | H27: =VLOOKUP(B27,Lookups!A:E,5) -> 6841.56 | J27: =VLOOKUP(A27,Trends!A25:Q117,IF(ExFlg=0,2,10),FALSE)+Sens -> 1.061 | K27: 4.184164963 | L27: =VLOOKUP(A27,Trends!A25:Q117,IF(ExFlg=0,4,12),FALSE)+Sens -> 1.056 | M27: 4.083411509 | O27: =VLOOKUP(A27,Trends!A25:Q117,IF(ExFlg=0,6,14),FALSE)+Sens -> 1.065 | P27: 3.893058911 | Q27: =VLOOKUP(A27,Trends!A25:Q117,IF(ExFlg=0,8,16),FALSE)+Sens -> 1.056 | R27: 4.106781675 | T27: 35643.25783 | U27: =IF(ExFlg=0,E27*Trends!T27,E27*Trends!X27) -> 31786.76347 | V27: 3856.494352 | X27: 27076.93075 | Y27: =IF(ExFlg=0,H27*Trends!V27,H27*Trends!Z27) -> 30881.32871 | Z27: -3804.397957 | AB27: -3804.397957 | AD27: =IF(B27<71,VLOOKUP(B27,Lookups!A:F,6),"") -> 0 | AE27: =IF(B27<71,VLOOKUP(Active!B27,Lookups!A:G,7),"") -> 0 | AF27: 0 | AG27: =IF(B27<70,VLOOKUP(CE27,Lookups!$Q$3:$S$53,2),"") -> 0.008573 | AH27: =IF(B27<70,VLOOKUP(CE27,Lookups!$Q$3:$S$53,3),"") -> 0.010702 | AI27: 0.010702 | AJ27: =IF(B27<70,VLOOKUP(B27,Lookups!A:M,12),"") -> 0.00041 | AK27: =IF(B27<70,VLOOKUP(B27,Lookups!A:M,13),"") -> 0.000406 | AL27: 0.000406 | AM27: =IF(B27<70,VLOOKUP(B27,Lookups!A:H,8)*(1-VLOOKUP(B27,Lookups!$DY$3:$EA$103,2))^(A27-$A$3),"") -> 0.006382671418 | AN27: =IF(B27<70,VLOOKUP(B27,Lookups!A:I,9)*(1-VLOOKUP(B27,Lookups!$DY$3:$EA$103,3))^(A27-$A$3),"") -> 0.002433875547 | AO27: 0.002433875547 | AP27: 0.01354187555 | AQ27: 0.2300983626 | AR27: 0.3901214743 | AT27: =IF(BA27>=$B$3,VLOOKUP(BA27,Lookups!A:H,8)*(1-VLOOKUP(BA27,Lookups!DY:EA,2))^(BA27-$B$3),"") -> 0.007414195586 | AU27: =IF(BA27>=$B$3,VLOOKUP(BA27,Lookups!A:I,9)*(1-VLOOKUP(BA27,Lookups!DY:EA,3))^(BA27-$B$3),"") -> 0.006779851907 | AV27: 0.006779851907 | AW27: 0.942600264 | AX27: 0.5552645027 | AY27: 0.979384 | BA27: 70 | BB27: 22420.14488 | BN27: 11492.61576 | BO27: 11985.12118 | BP27: 12500.67851 | BQ27: 13040.6736 | BR27: 13607.14057 | BS27: 14197.73664 | BT27: 14817.38307 | BU27: 15462.94544 | BV27: 16135.40107 | BW27: 16843.29818 | BX27: 17585.16893 | BY27: 18365.2891 | BZ27: 19189.08079 | CA27: =IF(BB27<>"",$BB27*$AW27/$AW$25*$AX27/$AX$25*$AY27,"") -> 20060.59946 | CB27: =IF(BB27<>"",$BB27*$AW27/$AW$26*$AX27/$AX$26*$AY27,"") -> 20982.30724 | CC27: =IF(BB27<>"",$BB27*$AW27/$AW$27*$AX27/$AX$27*$AY27*0.5,"") -> 10978.96559 | CE27: 24.01
A28: 2040 | B28: 45 | D28: =VLOOKUP(B28,Lookups!A:B,2) -> 8309.433018 | E28: =VLOOKUP(B28,Lookups!A:C,3) -> 7044.48 | G28: =VLOOKUP(B28,Lookups!A:D,4) -> 6784.397041 | H28: =VLOOKUP(B28,Lookups!A:E,5) -> 6841.56 | J28: =VLOOKUP(A28,Trends!A26:Q118,IF(ExFlg=0,2,10),FALSE)+Sens -> 1.061 | K28: 4.439399026 | L28: =VLOOKUP(A28,Trends!A26:Q118,IF(ExFlg=0,4,12),FALSE)+Sens -> 1.056 | M28: 4.312082553 | O28: =VLOOKUP(A28,Trends!A26:Q118,IF(ExFlg=0,6,14),FALSE)+Sens -> 1.065 | P28: 4.14610774 | Q28: =VLOOKUP(A28,Trends!A26:Q118,IF(ExFlg=0,8,16),FALSE)+Sens -> 1.06 | R28: 4.336761449 | T28: 36888.88884 | U28: =IF(ExFlg=0,E28*Trends!T28,E28*Trends!X28) -> 33566.82223 | V28: 3322.066617 | X28: 28128.84108 | Y28: =IF(ExFlg=0,H28*Trends!V28,H28*Trends!Z28) -> 32610.68312 | Z28: -4481.842035 | AB28: -4481.842035 | AD28: =IF(B28<71,VLOOKUP(B28,Lookups!A:F,6),"") -> 0 | AE28: =IF(B28<71,VLOOKUP(Active!B28,Lookups!A:G,7),"") -> 0 | AF28: 0 | AG28: =IF(B28<70,VLOOKUP(CE28,Lookups!$Q$3:$S$53,2),"") -> 0.007415 | AH28: =IF(B28<70,VLOOKUP(CE28,Lookups!$Q$3:$S$53,3),"") -> 0.009397 | AI28: 0.009397 | AJ28: =IF(B28<70,VLOOKUP(B28,Lookups!A:M,12),"") -> 0.000476 | AK28: =IF(B28<70,VLOOKUP(B28,Lookups!A:M,13),"") -> 0.000467 | AL28: 0.000467 | AM28: =IF(B28<70,VLOOKUP(B28,Lookups!A:H,8)*(1-VLOOKUP(B28,Lookups!$DY$3:$EA$103,2))^(A28-$A$3),"") -> 0.006666613828 | AN28: =IF(B28<70,VLOOKUP(B28,Lookups!A:I,9)*(1-VLOOKUP(B28,Lookups!$DY$3:$EA$103,3))^(A28-$A$3),"") -> 0.002558455776 | AO28: 0.002558455776 | AP28: 0.01242245578 | AQ28: 0.2269823992 | AR28: 0.3751168023 | AT28: =IF(BA28>=$B$3,VLOOKUP(BA28,Lookups!A:H,8)*(1-VLOOKUP(BA28,Lookups!DY:EA,2))^(BA28-$B$3),"") -> 0.008189578466 | AU28: =IF(BA28>=$B$3,VLOOKUP(BA28,Lookups!A:I,9)*(1-VLOOKUP(BA28,Lookups!DY:EA,3))^(BA28-$B$3),"") -> 0.007546849344 | AV28: 0.007546849344 | AW28: 0.9362095738 | AX28: 0.5339081757 | AY28: 0.979046 | BA28: 71 | BB28: 26628.93186 | BN28: 13031.56255 | BO28: 13590.01811 | BP28: 14174.6124 | BQ28: 14786.91685 | BR28: 15429.23797 | BS28: 16098.91925 | BT28: 16801.54095 | BU28: 17533.54892 | BV28: 18296.05136 | BW28: 19098.74116 | BX28: 19939.95393 | BY28: 20824.538 | BZ28: 21758.64153 | CA28: 22746.86303 | CB28: =IF(BB28<>"",$BB28*$AW28/$AW$26*$AX28/$AX$26*$AY28,"") -> 23791.99434 | CC28: =IF(BB28<>"",$BB28*$AW28/$AW$27*$AX28/$AX$27*$AY28,"") -> 24898.26158 | CE28: 25.01
A29: 2041 | B29: 46 | D29: =VLOOKUP(B29,Lookups!A:B,2) -> 8105.60249 | E29: =VLOOKUP(B29,Lookups!A:C,3) -> 7044.48 | G29: =VLOOKUP(B29,Lookups!A:D,4) -> 6617.975665 | H29: =VLOOKUP(B29,Lookups!A:E,5) -> 6841.56 | J29: =VLOOKUP(A29,Trends!A27:Q119,IF(ExFlg=0,2,10),FALSE)+Sens -> 1.063 | K29: 4.710202366 | L29: =VLOOKUP(A29,Trends!A27:Q119,IF(ExFlg=0,4,12),FALSE)+Sens -> 1.056 | M29: 4.553559176 | O29: =VLOOKUP(A29,Trends!A27:Q119,IF(ExFlg=0,6,14),FALSE)+Sens -> 1.064 | P29: 4.415604743 | Q29: =VLOOKUP(A29,Trends!A27:Q119,IF(ExFlg=0,8,16),FALSE)+Sens -> 1.06 | R29: 4.596967136 | T29: 38179.02803 | U29: =IF(ExFlg=0,E29*Trends!T29,E29*Trends!X29) -> 35446.56427 | V29: 2732.463758 | X29: 29222.36474 | Y29: =IF(ExFlg=0,H29*Trends!V29,H29*Trends!Z29) -> 34567.3241 | Z29: -5344.959367 | AB29: -5344.959367 | AD29: =IF(B29<71,VLOOKUP(B29,Lookups!A:F,6),"") -> 0 | AE29: =IF(B29<71,VLOOKUP(Active!B29,Lookups!A:G,7),"") -> 0 | AF29: 0 | AG29: =IF(B29<70,VLOOKUP(CE29,Lookups!$Q$3:$S$53,2),"") -> 0.006415 | AH29: =IF(B29<70,VLOOKUP(CE29,Lookups!$Q$3:$S$53,3),"") -> 0.008252 | AI29: 0.008252 | AJ29: =IF(B29<70,VLOOKUP(B29,Lookups!A:M,12),"") -> 0.000542 | AK29: =IF(B29<70,VLOOKUP(B29,Lookups!A:M,13),"") -> 0.000528 | AL29: 0.000528 | AM29: =IF(B29<70,VLOOKUP(B29,Lookups!A:H,8)*(1-VLOOKUP(B29,Lookups!$DY$3:$EA$103,2))^(A29-$A$3),"") -> 0.007226228943 | AN29: =IF(B29<70,VLOOKUP(B29,Lookups!A:I,9)*(1-VLOOKUP(B29,Lookups!$DY$3:$EA$103,3))^(A29-$A$3),"") -> 0.002856149561 | AO29: 0.002856149561 | AP29: 0.01163614956 | AQ29: 0.2241627204 | AR29: 0.3606892329 | AT29: =IF(BA29>=$B$3,VLOOKUP(BA29,Lookups!A:H,8)*(1-VLOOKUP(BA29,Lookups!DY:EA,2))^(BA29-$B$3),"") -> 0.008925500935 | AU29: =IF(BA29>=$B$3,VLOOKUP(BA29,Lookups!A:I,9)*(1-VLOOKUP(BA29,Lookups!DY:EA,3))^(BA29-$B$3),"") -> 0.008274421156 | AV29: 0.008274421156 | AW29: 0.9291441412 | AX29: 0.5133732459 | AY29: 0.978725 | BA29: 72 | BB29: 30359.75147 | BN29: 14173.43833 | BO29: 14780.82792 | BP29: 15416.64662 | BQ29: 16082.60355 | BR29: 16781.20732 | BS29: 17509.56866 | BT29: 18273.75678 | BU29: 19069.90611 | BV29: 19899.22197 | BW29: 20772.24654 | BX29: 21687.16962 | BY29: 22649.26436 | BZ29: 23665.21764 | CA29: 24740.03092 | CB29: 25876.74067 | CC29: =IF(BB29<>"",$BB29*$AW29/$AW$27*$AX29/$AX$27*$AY29,"") -> 27079.94331 | CE29: 26.01
A30: 2042 | B30: 47 | D30: =VLOOKUP(B30,Lookups!A:B,2) -> 8050.457276 | E30: =VLOOKUP(B30,Lookups!A:C,3) -> 7044.48 | G30: =VLOOKUP(B30,Lookups!A:D,4) -> 6572.951296 | H30: =VLOOKUP(B30,Lookups!A:E,5) -> 6841.56 | J30: =VLOOKUP(A30,Trends!A28:Q120,IF(ExFlg=0,2,10),FALSE)+Sens -> 1.063 | K30: 5.006945116 | L30: =VLOOKUP(A30,Trends!A28:Q120,IF(ExFlg=0,4,12),FALSE)+Sens -> 1.055 | M30: 4.80855849 | O30: =VLOOKUP(A30,Trends!A28:Q120,IF(ExFlg=0,6,14),FALSE)+Sens -> 1.064 | P30: 4.698203447 | Q30: =VLOOKUP(A30,Trends!A28:Q120,IF(ExFlg=0,8,16),FALSE)+Sens -> 1.06 | R30: 4.872785164 | T30: 40308.19773 | U30: =IF(ExFlg=0,E30*Trends!T30,E30*Trends!X30) -> 37431.57187 | V30: 2876.625863 | X30: 30881.06243 | Y30: =IF(ExFlg=0,H30*Trends!V30,H30*Trends!Z30) -> 36641.36355 | Z30: -5760.301117 | AB30: -5760.301117 | AD30: =IF(B30<71,VLOOKUP(B30,Lookups!A:F,6),"") -> 0 | AE30: =IF(B30<71,VLOOKUP(Active!B30,Lookups!A:G,7),"") -> 0 | AF30: 0 | AG30: =IF(B30<70,VLOOKUP(CE30,Lookups!$Q$3:$S$53,2),"") -> 0.005549 | AH30: =IF(B30<70,VLOOKUP(CE30,Lookups!$Q$3:$S$53,3),"") -> 0.007246 | AI30: 0.007246 | AJ30: =IF(B30<70,VLOOKUP(B30,Lookups!A:M,12),"") -> 0.000609 | AK30: =IF(B30<70,VLOOKUP(B30,Lookups!A:M,13),"") -> 0.000589 | AL30: 0.000589 | AM30: =IF(B30<70,VLOOKUP(B30,Lookups!A:H,8)*(1-VLOOKUP(B30,Lookups!$DY$3:$EA$103,2))^(A30-$A$3),"") -> 0.007770157996 | AN30: =IF(B30<70,VLOOKUP(B30,Lookups!A:I,9)*(1-VLOOKUP(B30,Lookups!$DY$3:$EA$103,3))^(A30-$A$3),"") -> 0.003166262895 | AO30: 0.003166262895 | AP30: 0.0110012629 | AQ30: 0.2215543294 | AR30: 0.3468165701 | AT30: =IF(BA30>=$B$3,VLOOKUP(BA30,Lookups!A:H,8)*(1-VLOOKUP(BA30,Lookups!DY:EA,2))^(BA30-$B$3),"") -> 0.009761666347 | AU30: =IF(BA30>=$B$3,VLOOKUP(BA30,Lookups!A:I,9)*(1-VLOOKUP(BA30,Lookups!DY:EA,3))^(BA30-$B$3),"") -> 0.009093009432 | AV30: 0.009093009432 | AW30: 0.9214560113 | AX30: 0.493628121 | AY30: 0.978364 | BA30: 73 | BB30: 34447.43602 | BN30: 15329.63683 | BO30: 15986.57424 | BP30: 16674.25985 | BQ30: 17394.54223 | BR30: 18150.13463 | BS30: 18937.91205 | BT30: 19764.43884 | BU30: 20625.53406 | BV30: 21522.50137 | BW30: 22466.74295 | BX30: 23456.30089 | BY30: 24496.87852 | BZ30: 25595.70821 | CA30: 26758.19941 | CB30: 27987.63628 | CC30: 29288.9902 | CE30: 27.01
A31: 2043 | B31: 48 | D31: =VLOOKUP(B31,Lookups!A:B,2) -> 7995.939371 | E31: =VLOOKUP(B31,Lookups!A:C,3) -> 7044.48 | G31: =VLOOKUP(B31,Lookups!A:D,4) -> 6528.439106 | H31: =VLOOKUP(B31,Lookups!A:E,5) -> 6841.56 | J31: =VLOOKUP(A31,Trends!A29:Q121,IF(ExFlg=0,2,10),FALSE)+Sens -> 1.063 | K31: 5.322382658 | L31: =VLOOKUP(A31,Trends!A29:Q121,IF(ExFlg=0,4,12),FALSE)+Sens -> 1.055 | M31: 5.073029207 | O31: =VLOOKUP(A31,Trends!A29:Q121,IF(ExFlg=0,6,14),FALSE)+Sens -> 1.063 | P31: 4.998888467 | Q31: =VLOOKUP(A31,Trends!A29:Q121,IF(ExFlg=0,8,16),FALSE)+Sens -> 1.059 | R31: 5.165152274 | T31: 42557.44904 | U31: =IF(ExFlg=0,E31*Trends!T31,E31*Trends!X31) -> 39490.30832 | V31: 3067.140718 | X31: 32634.93896 | Y31: =IF(ExFlg=0,H31*Trends!V31,H31*Trends!Z31) -> 38839.84536 | Z31: -6204.906407 | AB31: -6204.906407 | AD31: =IF(B31<71,VLOOKUP(B31,Lookups!A:F,6),"") -> 0 | AE31: =IF(B31<71,VLOOKUP(Active!B31,Lookups!A:G,7),"") -> 0 | AF31: 0 | AG31: =IF(B31<70,VLOOKUP(CE31,Lookups!$Q$3:$S$53,2),"") -> 0.0048 | AH31: =IF(B31<70,VLOOKUP(CE31,Lookups!$Q$3:$S$53,3),"") -> 0.006363 | AI31: 0.006363 | AJ31: =IF(B31<70,VLOOKUP(B31,Lookups!A:M,12),"") -> 0.000713 | AK31: =IF(B31<70,VLOOKUP(B31,Lookups!A:M,13),"") -> 0.000727 | AL31: 0.000727 | AM31: =IF(B31<70,VLOOKUP(B31,Lookups!A:H,8)*(1-VLOOKUP(B31,Lookups!$DY$3:$EA$103,2))^(A31-$A$3),"") -> 0.008675784919 | AN31: =IF(B31<70,VLOOKUP(B31,Lookups!A:I,9)*(1-VLOOKUP(B31,Lookups!$DY$3:$EA$103,3))^(A31-$A$3),"") -> 0.00361469511 | AO31: 0.00361469511 | AP31: 0.01070469511 | AQ31: 0.219116952 | AR31: 0.3334774713 | AT31: =IF(BA31>=$B$3,VLOOKUP(BA31,Lookups!A:H,8)*(1-VLOOKUP(BA31,Lookups!DY:EA,2))^(BA31-$B$3),"") -> 0.01070995707 | AU31: =IF(BA31>=$B$3,VLOOKUP(BA31,Lookups!A:I,9)*(1-VLOOKUP(BA31,Lookups!DY:EA,3))^(BA31-$B$3),"") -> 0.009985968039 | AV31: 0.009985968039 | AW31: 0.9130772031 | AX31: 0.474642424 | AY31: 0.977971 | BA31: 74 | BB31: 38915.55048 | BN31: 16493.89434 | BO31: 17200.72492 | BP31: 17940.63898 | BQ31: 18715.62548 | BR31: 19528.60371 | BS31: 20376.21137 | BT31: 21265.51133 | BU31: 22192.00515 | BV31: 23157.09546 | BW31: 24173.05043 | BX31: 25237.76346 | BY31: 26357.37104 | BZ31: 27539.65481 | CA31: 28790.43506 | CB31: 30113.24537 | CC31: 31513.43472 | CE31: 28.01
A32: 2044 | B32: 49 | D32: =VLOOKUP(B32,Lookups!A:B,2) -> 7942.041332 | E32: =VLOOKUP(B32,Lookups!A:C,3) -> 7044.48 | G32: =VLOOKUP(B32,Lookups!A:D,4) -> 6484.433017 | H32: =VLOOKUP(B32,Lookups!A:E,5) -> 6841.56 | J32: =VLOOKUP(A32,Trends!A30:Q122,IF(ExFlg=0,2,10),FALSE)+Sens -> 1.062 | K32: 5.657692765 | L32: =VLOOKUP(A32,Trends!A30:Q122,IF(ExFlg=0,4,12),FALSE)+Sens -> 1.055 | M32: 5.352045814 | O32: =VLOOKUP(A32,Trends!A30:Q122,IF(ExFlg=0,6,14),FALSE)+Sens -> 1.063 | P32: 5.313818441 | Q32: =VLOOKUP(A32,Trends!A30:Q122,IF(ExFlg=0,8,16),FALSE)+Sens -> 1.059 | R32: 5.469896258 | T32: 44933.62979 | U32: =IF(ExFlg=0,E32*Trends!T32,E32*Trends!X32) -> 41662.27528 | V32: 3271.354503 | X32: 34457.09974 | Y32: =IF(ExFlg=0,H32*Trends!V32,H32*Trends!Z32) -> 41131.39624 | Z32: -6674.296496 | AB32: -6674.296496 | AD32: =IF(B32<71,VLOOKUP(B32,Lookups!A:F,6),"") -> 0 | AE32: =IF(B32<71,VLOOKUP(Active!B32,Lookups!A:G,7),"") -> 0 | AF32: 0 | AG32: =IF(B32<70,VLOOKUP(CE32,Lookups!$Q$3:$S$53,2),"") -> 0.004152 | AH32: =IF(B32<70,VLOOKUP(CE32,Lookups!$Q$3:$S$53,3),"") -> 0.005587 | AI32: 0.005587 | AJ32: =IF(B32<70,VLOOKUP(B32,Lookups!A:M,12),"") -> 0.000817 | AK32: =IF(B32<70,VLOOKUP(B32,Lookups!A:M,13),"") -> 0.000865 | AL32: 0.000865 | AM32: =IF(B32<70,VLOOKUP(B32,Lookups!A:H,8)*(1-VLOOKUP(B32,Lookups!$DY$3:$EA$103,2))^(A32-$A$3),"") -> 0.009508542463 | AN32: =IF(B32<70,VLOOKUP(B32,Lookups!A:I,9)*(1-VLOOKUP(B32,Lookups!$DY$3:$EA$103,3))^(A32-$A$3),"") -> 0.004063006663 | AO32: 0.004063006663 | AP32: 0.01051500666 | AQ32: 0.2167713719 | AR32: 0.3206514147 | AT32: =IF(BA32>=$B$3,VLOOKUP(BA32,Lookups!A:H,8)*(1-VLOOKUP(BA32,Lookups!DY:EA,2))^(BA32-$B$3),"") -> 0.01176889893 | AU32: =IF(BA32>=$B$3,VLOOKUP(BA32,Lookups!A:I,9)*(1-VLOOKUP(BA32,Lookups!DY:EA,3))^(BA32-$B$3),"") -> 0.0109347889 | AV32: 0.0109347889 | AW32: 0.9039592433 | AX32: 0.4563869462 | AY32: 0.977553 | BA32: 75 | BB32: 43788.38974 | BN32: 17659.6199 | BO32: 18416.40657 | BP32: 19208.61494 | BQ32: 20038.37452 | BR32: 20908.81096 | BS32: 21816.3243 | BT32: 22768.47659 | BU32: 23760.45145 | BV32: 24793.75067 | BW32: 25881.50946 | BX32: 27021.47235 | BY32: 28220.20953 | BZ32: 29486.0526 | CA32: 30825.23323 | CB32: 32241.53474 | CC32: 33740.68412 | CE32: 29.01
A33: 2045 | B33: 50 | D33: =VLOOKUP(B33,Lookups!A:B,2) -> 7888.755802 | E33: =VLOOKUP(B33,Lookups!A:C,3) -> 7044.48 | G33: =VLOOKUP(B33,Lookups!A:D,4) -> 6440.927023 | H33: =VLOOKUP(B33,Lookups!A:E,5) -> 6841.56 | J33: =VLOOKUP(A33,Trends!A31:Q123,IF(ExFlg=0,2,10),FALSE)+Sens -> 1.062 | K33: 6.008469717 | L33: =VLOOKUP(A33,Trends!A31:Q123,IF(ExFlg=0,4,12),FALSE)+Sens -> 1.055 | M33: 5.646408333 | O33: =VLOOKUP(A33,Trends!A31:Q123,IF(ExFlg=0,6,14),FALSE)+Sens -> 1.062 | P33: 5.648589003 | Q33: =VLOOKUP(A33,Trends!A31:Q123,IF(ExFlg=0,8,16),FALSE)+Sens -> 1.059 | R33: 5.792620137 | T33: 47399.35034 | U33: =IF(ExFlg=0,E33*Trends!T33,E33*Trends!X33) -> 43953.70042 | V33: 3445.649916 | X33: =IF(B33<65,G33*P33,G33*R33) -> 36382.14955 | Y33: =IF(ExFlg=0,H33*Trends!V33,H33*Trends!Z33) -> 43558.14862 | Z33: -7175.99907 | AB33: -7175.99907 | AD33: =IF(B33<71,VLOOKUP(B33,Lookups!A:F,6),"") -> 0 | AE33: =IF(B33<71,VLOOKUP(Active!B33,Lookups!A:G,7),"") -> 0 | AF33: 0 | AG33: =IF(B33<70,VLOOKUP(CE33,Lookups!$Q$3:$S$53,2),"") -> 0.003591 | AH33: =IF(B33<70,VLOOKUP(CE33,Lookups!$Q$3:$S$53,3),"") -> 0.004906 | AI33: 0.004906 | AJ33: =IF(B33<70,VLOOKUP(B33,Lookups!A:M,12),"") -> 0.000922 | AK33: =IF(B33<70,VLOOKUP(B33,Lookups!A:M,13),"") -> 0.001003 | AL33: 0.001003 | AM33: =IF(B33<70,VLOOKUP(B33,Lookups!A:H,8)*(1-VLOOKUP(B33,Lookups!$DY$3:$EA$103,2))^(A33-$A$3),"") -> 0.01028060994 | AN33: =IF(B33<70,VLOOKUP(B33,Lookups!A:I,9)*(1-VLOOKUP(B33,Lookups!$DY$3:$EA$103,3))^(A33-$A$3),"") -> 0.004513767515 | AO33: 0.004513767515 | AP33: 0.01042276752 | AQ33: 0.2144920194 | AR33: 0.308318668 | AT33: =IF(BA33>=$B$3,VLOOKUP(BA33,Lookups!A:H,8)*(1-VLOOKUP(BA33,Lookups!DY:EA,2))^(BA33-$B$3),"") -> 0.01293762697 | AU33: =IF(BA33>=$B$3,VLOOKUP(BA33,Lookups!A:I,9)*(1-VLOOKUP(BA33,Lookups!DY:EA,3))^(BA33-$B$3),"") -> 0.01192729903 | AV33: 0.01192729903 | AW33: 0.8940746398 | AX33: 0.4388336021 | AY33: 0.977115 | BA33: 76 | BB33: 49137.6375 | BN33: 18837.94843 | BO33: 19645.23128 | BP33: 20490.29932 | BQ33: 21375.42416 | BR33: 22303.93999 | BS33: 23272.00667 | BT33: 24287.6908 | BU33: 25345.85465 | BV33: 26448.10019 | BW33: 27608.4391 | BX33: 28824.46539 | BY33: 30103.18765 | BZ33: 31453.49342 | CA33: 32882.03015 | CB33: 34392.8336 | CC33: 35992.01291 | CE33: 30.01
A34: 2046 | B34: 51 | D34: =VLOOKUP(B34,Lookups!A:B,2) -> 7836.075512 | E34: =VLOOKUP(B34,Lookups!A:C,3) -> 7044.48 | G34: =VLOOKUP(B34,Lookups!A:D,4) -> 6397.915189 | H34: =VLOOKUP(B34,Lookups!A:E,5) -> 6841.56 | J34: =VLOOKUP(A34,Trends!A32:Q124,IF(ExFlg=0,2,10),FALSE)+Sens -> 1.062 | K34: 6.380994839 | L34: =VLOOKUP(A34,Trends!A32:Q124,IF(ExFlg=0,4,12),FALSE)+Sens -> 1.055 | M34: 5.956960792 | O34: =VLOOKUP(A34,Trends!A32:Q124,IF(ExFlg=0,6,14),FALSE)+Sens -> 1.062 | P34: 5.998801521 | Q34: =VLOOKUP(A34,Trends!A32:Q124,IF(ExFlg=0,8,16),FALSE)+Sens -> 1.058 | R34: 6.134384726 | T34: 50001.9574 | U34: =IF(ExFlg=0,E34*Trends!T34,E34*Trends!X34) -> 46371.15395 | V34: 3630.803458 | X34: =IF(B34<65,G34*P34,G34*R34) -> 38379.82337 | Y34: =IF(ExFlg=0,H34*Trends!V34,H34*Trends!Z34) -> 46128.07939 | Z34: -7748.256022 | AB34: -7748.256022 | AD34: =IF(B34<71,VLOOKUP(B34,Lookups!A:F,6),"") -> 0 | AE34: =IF(B34<71,VLOOKUP(Active!B34,Lookups!A:G,7),"") -> 0 | AF34: 0 | AG34: =IF(B34<70,VLOOKUP(CE34,Lookups!$Q$3:$S$53,2),"") -> 0.003591 | AH34: =IF(B34<70,VLOOKUP(CE34,Lookups!$Q$3:$S$53,3),"") -> 0.004906 | AI34: 0.004906 | AJ34: =IF(B34<70,VLOOKUP(B34,Lookups!A:M,12),"") -> 0.001026 | AK34: =IF(B34<70,VLOOKUP(B34,Lookups!A:M,13),"") -> 0.001141 | AL34: 0.001141 | AM34: =IF(B34<70,VLOOKUP(B34,Lookups!A:H,8)*(1-VLOOKUP(B34,Lookups!$DY$3:$EA$103,2))^(A34-$A$3),"") -> 0.01099497102 | AN34: =IF(B34<70,VLOOKUP(B34,Lookups!A:I,9)*(1-VLOOKUP(B34,Lookups!$DY$3:$EA$103,3))^(A34-$A$3),"") -> 0.004966412059 | AO34: 0.004966412059 | AP34: 0.01101341206 | AQ34: 0.212256419 | AR34: 0.2964602577 | AT34: =IF(BA34>=$B$3,VLOOKUP(BA34,Lookups!A:H,8)*(1-VLOOKUP(BA34,Lookups!DY:EA,2))^(BA34-$B$3),"") -> 0.01420371332 | AU34: =IF(BA34>=$B$3,VLOOKUP(BA34,Lookups!A:I,9)*(1-VLOOKUP(BA34,Lookups!DY:EA,3))^(BA34-$B$3),"") -> 0.01298330082 | AV34: 0.01298330082 | AW34: 0.8834107442 | AX34: 0.4219553867 | AY34: 0.97665 | BA34: 77 | BB34: 53797.54863 | BN34: 19585.31918 | BO34: 20424.62992 | BP34: 21303.22492 | BQ34: 22223.46591 | BR34: 23188.81939 | BS34: 24195.29283 | BT34: 25251.27289 | BU34: 26351.41799 | BV34: 27497.39368 | BW34: 28703.7675 | BX34: 29968.03803 | BY34: 31297.49191 | BZ34: 32701.36928 | CA34: 34186.58132 | CB34: 35757.3239 | CC34: 37419.94855 | CE34: 31.01
A35: 2047 | B35: 52 | D35: =VLOOKUP(B35,Lookups!A:B,2) -> 8009.417467 | E35: =VLOOKUP(B35,Lookups!A:C,3) -> 7044.48 | G35: =VLOOKUP(B35,Lookups!A:D,4) -> 6539.443585 | H35: =VLOOKUP(B35,Lookups!A:E,5) -> 6841.56 | J35: =VLOOKUP(A35,Trends!A33:Q125,IF(ExFlg=0,2,10),FALSE)+Sens -> 1.061 | K35: 6.776616519 | L35: =VLOOKUP(A35,Trends!A33:Q125,IF(ExFlg=0,4,12),FALSE)+Sens -> 1.055 | M35: 6.284593635 | O35: =VLOOKUP(A35,Trends!A33:Q125,IF(ExFlg=0,6,14),FALSE)+Sens -> 1.062 | P35: 6.370727215 | Q35: =VLOOKUP(A35,Trends!A33:Q125,IF(ExFlg=0,8,16),FALSE)+Sens -> 1.058 | R35: 6.49017904 | T35: 54276.75072 | U35: =IF(ExFlg=0,E35*Trends!T35,E35*Trends!X35) -> 48921.56741 | V35: 5355.183306 | X35: 41661.01122 | Y35: =IF(ExFlg=0,H35*Trends!V35,H35*Trends!Z35) -> 48803.50799 | Z35: -7142.496775 | AB35: =(1-PctUMP)*V35+PctUMP*Z35 -> -7142.496775 | AD35: =IF(B35<71,VLOOKUP(B35,Lookups!A:F,6),"") -> 0 | AE35: =IF(B35<71,VLOOKUP(Active!B35,Lookups!A:G,7),"") -> 0 | AF35: =IF(B35<71,PCTMALE*AD35+(1-PCTMALE)*AE35,"") -> 0 | AG35: =IF(B35<70,VLOOKUP(CE35,Lookups!$Q$3:$S$53,2),"") -> 0.003591 | AH35: =IF(B35<70,VLOOKUP(CE35,Lookups!$Q$3:$S$53,3),"") -> 0.004906 | AI35: =IF(B35<55,PCTMALE*AG35+(1-PCTMALE)*AH35,"") -> 0.004906 | AJ35: =IF(B35<70,VLOOKUP(B35,Lookups!A:M,12),"") -> 0.001131 | AK35: =IF(B35<70,VLOOKUP(B35,Lookups!A:M,13),"") -> 0.001278 | AL35: =IF(B35<70,PCTMALE*AJ35+(1-PCTMALE)*AK35,"") -> 0.001278 | AM35: =IF(B35<70,VLOOKUP(B35,Lookups!A:H,8)*(1-VLOOKUP(B35,Lookups!$DY$3:$EA$103,2))^(A35-$A$3),"") -> 0.01146616855 | AN35: =IF(B35<70,VLOOKUP(B35,Lookups!A:I,9)*(1-VLOOKUP(B35,Lookups!$DY$3:$EA$103,3))^(A35-$A$3),"") -> 0.005330631783 | AO35: =IF(AM35<>"",PCTMALE*AM35+(1-PCTMALE)*AN35,"") -> 0.005330631783 | AP35: 0.01151463178 | AQ35: 0.2099187516 | AR35: 0.2850579401 | AT35: =IF(BA35>=$B$3,VLOOKUP(BA35,Lookups!A:H,8)*(1-VLOOKUP(BA35,Lookups!DY:EA,2))^(BA35-$B$3),"") -> 0.01556228002 | AU35: =IF(BA35>=$B$3,VLOOKUP(BA35,Lookups!A:I,9)*(1-VLOOKUP(BA35,Lookups!DY:EA,3))^(BA35-$B$3),"") -> 0.01412781531 | AV35: =IFERROR(PCTMALE*AT35+(1-PCTMALE)*AU35,"") -> 0.01412781531 | AW35: 0.8719411568 | AX35: 0.4057263333 | AY35: 0.976146 | BA35: 78 | BB35: 58841.76321 | BN35: 20319.86557 | BO35: 21190.65462 | BP35: 22102.20128 | BQ35: 23056.95587 | BR35: 24058.51487 | BS35: 25102.73605 | BT35: 26198.32059 | BU35: 27339.72658 | BV35: 28528.68202 | BW35: 29780.30083 | BX35: 31091.98776 | BY35: 32471.30274 | BZ35: 33927.83246 | CA35: 35468.7473 | CB35: 37098.40051 | CC35: 38823.3818 | CE35: 32.01
A36: 2048 | B36: 53 | D36: =VLOOKUP(B36,Lookups!A:B,2) -> 8187.164567 | E36: =VLOOKUP(B36,Lookups!A:C,3) -> 7044.48 | G36: =VLOOKUP(B36,Lookups!A:D,4) -> 6684.568646 | H36: =VLOOKUP(B36,Lookups!A:E,5) -> 6841.56 | J36: =VLOOKUP(A36,Trends!A34:Q126,IF(ExFlg=0,2,10),FALSE)+Sens -> 1.061 | K36: 7.189990127 | L36: =VLOOKUP(A36,Trends!A34:Q126,IF(ExFlg=0,4,12),FALSE)+Sens -> 1.055 | M36: 6.630246285 | O36: =VLOOKUP(A36,Trends!A34:Q126,IF(ExFlg=0,6,14),FALSE)+Sens -> 1.061 | P36: 6.765712302 | Q36: =VLOOKUP(A36,Trends!A34:Q126,IF(ExFlg=0,8,16),FALSE)+Sens -> 1.058 | R36: 6.866609424 | T36: 58865.6324 | U36: =IF(ExFlg=0,E36*Trends!T36,E36*Trends!X36) -> 51612.25362 | V36: 7253.378781 | X36: 45225.86832 | Y36: =IF(ExFlg=0,H36*Trends!V36,H36*Trends!Z36) -> 51634.11145 | Z36: -6408.24313 | AB36: -6408.24313 | AD36: =IF(B36<71,VLOOKUP(B36,Lookups!A:F,6),"") -> 0 | AE36: =IF(B36<71,VLOOKUP(Active!B36,Lookups!A:G,7),"") -> 0 | AF36: 0 | AG36: =IF(B36<70,VLOOKUP(CE36,Lookups!$Q$3:$S$53,2),"") -> 0.003591 | AH36: =IF(B36<70,VLOOKUP(CE36,Lookups!$Q$3:$S$53,3),"") -> 0.004906 | AI36: 0.004906 | AJ36: =IF(B36<70,VLOOKUP(B36,Lookups!A:M,12),"") -> 0.001631 | AK36: =IF(B36<70,VLOOKUP(B36,Lookups!A:M,13),"") -> 0.00178 | AL36: 0.00178 | AM36: =IF(B36<70,VLOOKUP(B36,Lookups!A:H,8)*(1-VLOOKUP(B36,Lookups!$DY$3:$EA$103,2))^(A36-$A$3),"") -> 0.01360910347 | AN36: =IF(B36<70,VLOOKUP(B36,Lookups!A:I,9)*(1-VLOOKUP(B36,Lookups!$DY$3:$EA$103,3))^(A36-$A$3),"") -> 0.006405654259 | AO36: 0.006405654259 | AP36: 0.01309165426 | AQ36: 0.2075016145 | AR36: =IF(B36<71,AR35/(1+IntRt),"") -> 0.2740941731 | AT36: =IF(BA36>=$B$3,VLOOKUP(BA36,Lookups!A:H,8)*(1-VLOOKUP(BA36,Lookups!DY:EA,2))^(BA36-$B$3),"") -> 0.01703375753 | AU36: =IF(BA36>=$B$3,VLOOKUP(BA36,Lookups!A:I,9)*(1-VLOOKUP(BA36,Lookups!DY:EA,3))^(BA36-$B$3),"") -> 0.01538664694 | AV36: 0.01538664694 | AW36: 0.8596225332 | AX36: 0.3901214743 | AY36: 0.975591 | BA36: 79 | BB36: 64299.86572 | BN36: 21037.08197 | BO36: 21938.60666 | BP36: 22882.32755 | BQ36: 23870.78146 | BR36: 24907.69181 | BS36: 25988.77015 | BT36: 27123.02479 | BU36: 28304.7182 | BV36: 29535.63939 | BW36: 30831.43574 | BX36: 32189.42039 | BY36: 33617.4201 | BZ36: 35125.35995 | CA36: 36720.66341 | CB36: 38407.83737 | CC36: 40193.70415 | CE36: 33.01
A37: 2049 | B37: 54 | D37: =VLOOKUP(B37,Lookups!A:B,2) -> 8369.440107 | E37: =VLOOKUP(B37,Lookups!A:C,3) -> 7044.48 | G37: =VLOOKUP(B37,Lookups!A:D,4) -> 6833.391041 | H37: =VLOOKUP(B37,Lookups!A:E,5) -> 6841.56 | J37: =VLOOKUP(A37,Trends!A35:Q127,IF(ExFlg=0,2,10),FALSE)+Sens -> 1.061 | K37: 7.628579525 | L37: =VLOOKUP(A37,Trends!A35:Q127,IF(ExFlg=0,4,12),FALSE)+Sens -> 1.055 | M37: 6.994909831 | O37: =VLOOKUP(A37,Trends!A35:Q127,IF(ExFlg=0,6,14),FALSE)+Sens -> 1.061 | P37: 7.178420753 | Q37: =VLOOKUP(A37,Trends!A35:Q127,IF(ExFlg=0,8,16),FALSE)+Sens -> 1.058 | R37: 7.264872771 | T37: 63846.93943 | U37: =IF(ExFlg=0,E37*Trends!T37,E37*Trends!X37) -> 54450.92757 | V37: 9396.011861 | X37: 49052.95606 | Y37: =IF(ExFlg=0,H37*Trends!V37,H37*Trends!Z37) -> 54628.88992 | Z37: -5575.933861 | AB37: -5575.933861 | AD37: =IF(B37<71,VLOOKUP(B37,Lookups!A:F,6),"") -> 0 | AE37: =IF(B37<71,VLOOKUP(Active!B37,Lookups!A:G,7),"") -> 0 | AF37: 0 | AG37: =IF(B37<70,VLOOKUP(CE37,Lookups!$Q$3:$S$53,2),"") -> 0.003591 | AH37: =IF(B37<70,VLOOKUP(CE37,Lookups!$Q$3:$S$53,3),"") -> 0.004906 | AI37: 0.004906 | AJ37: =IF(B37<70,VLOOKUP(B37,Lookups!A:M,12),"") -> 0.00213 | AK37: =IF(B37<70,VLOOKUP(B37,Lookups!A:M,13),"") -> 0.002281 | AL37: 0.002281 | AM37: =IF(B37<70,VLOOKUP(B37,Lookups!A:H,8)*(1-VLOOKUP(B37,Lookups!$DY$3:$EA$103,2))^(A37-$A$3),"") -> 0.01533599886 | AN37: =IF(B37<70,VLOOKUP(B37,Lookups!A:I,9)*(1-VLOOKUP(B37,Lookups!$DY$3:$EA$103,3))^(A37-$A$3),"") -> 0.007005949705 | AO37: 0.007005949705 | AP37: 0.01419294971 | AQ37: 0.2047850751 | AR37: 0.2635520896 | AT37: =IF(BA37>=$B$3,VLOOKUP(BA37,Lookups!A:H,8)*(1-VLOOKUP(BA37,Lookups!DY:EA,2))^(BA37-$B$3),"") -> 0.0186465429 | AU37: =IF(BA37>=$B$3,VLOOKUP(BA37,Lookups!A:I,9)*(1-VLOOKUP(BA37,Lookups!DY:EA,3))^(BA37-$B$3),"") -> 0.01678346881 | AV37: 0.01678346881 | AW37: 0.8463958248 | AX37: 0.3751168023 | AY37: 0.974975 | BA37: 80 | BB37: 70136.8324 | BN37: 21710.99151 | BO37: 22641.39597 | BP37: 23615.34837 | BQ37: 24635.46677 | BR37: 25705.59389 | BS37: 26821.30388 | BT37: 27991.89365 | BU37: 29211.44186 | BV37: 30481.79482 | BW37: 31819.10118 | BX37: 33220.588 | BY37: 34694.33278 | BZ37: 36250.57853 | CA37: 37896.98652 | CB37: 39638.20802 | CC37: 41481.28391 | CE37: 34.01
A38: 2050 | B38: 55 | D38: =VLOOKUP(B38,Lookups!A:B,2) -> 8556.371031 | E38: =VLOOKUP(B38,Lookups!A:C,3) -> 7044.48 | G38: =VLOOKUP(B38,Lookups!A:D,4) -> 6986.014414 | H38: =VLOOKUP(B38,Lookups!A:E,5) -> 6841.56 | J38: =VLOOKUP(A38,Trends!A36:Q128,IF(ExFlg=0,2,10),FALSE)+Sens -> 1.06 | K38: 8.093922876 | L38: =VLOOKUP(A38,Trends!A36:Q128,IF(ExFlg=0,4,12),FALSE)+Sens -> 1.055 | M38: 7.379629872 | O38: =VLOOKUP(A38,Trends!A36:Q128,IF(ExFlg=0,6,14),FALSE)+Sens -> 1.061 | P38: 7.616304419 | Q38: =VLOOKUP(A38,Trends!A36:Q128,IF(ExFlg=0,8,16),FALSE)+Sens -> 1.062 | R38: 7.686235391 | T38: 69254.60722 | U38: =IF(ExFlg=0,E38*Trends!T38,E38*Trends!X38) -> 57445.72859 | V38: 11808.87864 | X38: 53207.61245 | Y38: =IF(ExFlg=0,H38*Trends!V38,H38*Trends!Z38) -> 57797.36553 | Z38: -4589.753083 | AB38: -4589.753083 | AD38: =IF(B38<71,VLOOKUP(B38,Lookups!A:F,6),"") -> 0.02 | AE38: =IF(B38<71,VLOOKUP(Active!B38,Lookups!A:G,7),"") -> 0.02 | AF38: 0.02 | AG38: =IF(B38<70,VLOOKUP(CE38,Lookups!$Q$3:$S$53,2),"") -> 0.003591 | AH38: =IF(B38<70,VLOOKUP(CE38,Lookups!$Q$3:$S$53,3),"") -> 0.004906 | AJ38: =IF(B38<70,VLOOKUP(B38,Lookups!A:M,12),"") -> 0.00263 | AK38: =IF(B38<70,VLOOKUP(B38,Lookups!A:M,13),"") -> 0.002782 | AL38: 0.002782 | AM38: =IF(B38<70,VLOOKUP(B38,Lookups!A:H,8)*(1-VLOOKUP(B38,Lookups!$DY$3:$EA$103,2))^(A38-$A$3),"") -> 0.004896782456 | AN38: =IF(B38<70,VLOOKUP(B38,Lookups!A:I,9)*(1-VLOOKUP(B38,Lookups!$DY$3:$EA$103,3))^(A38-$A$3),"") -> 0.002736792288 | AO38: 0.002736792288 | AP38: 0.02551879229 | AQ38: 0.2018785708 | AR38: 0.2534154707 | AT38: =IF(BA38>=$B$3,VLOOKUP(BA38,Lookups!A:H,8)*(1-VLOOKUP(BA38,Lookups!DY:EA,2))^(BA38-$B$3),"") -> 0.02040908493 | AU38: =IF(BA38>=$B$3,VLOOKUP(BA38,Lookups!A:I,9)*(1-VLOOKUP(BA38,Lookups!DY:EA,3))^(BA38-$B$3),"") -> 0.01832912495 | AV38: 0.01832912495 | AW38: 0.8321903668 | AX38: 0.3606892329 | AY38: 0.974294 | BA38: 81 | BB38: 76441.50185 | BN38: 22355.022 | BO38: 23313.02579 | BP38: 24315.86931 | BQ38: 25366.2483 | BR38: 26468.11945 | BS38: 27616.92564 | BT38: 28822.23955 | BU38: 30077.96419 | BV38: 31386.00065 | BW38: 32762.9766 | BX38: 34206.03684 | BY38: 35723.49849 | BZ38: 37325.9084 | CA38: 39021.1551 | CB38: 40814.02785 | CC38: 42711.77637 | CE38: 35.01
A39: 2051 | B39: 56 | D39: =VLOOKUP(B39,Lookups!A:B,2) -> 8748.088042 | E39: =VLOOKUP(B39,Lookups!A:C,3) -> 7044.48 | G39: =VLOOKUP(B39,Lookups!A:D,4) -> 7142.545481 | H39: =VLOOKUP(B39,Lookups!A:E,5) -> 6841.56 | J39: =VLOOKUP(A39,Trends!A37:Q129,IF(ExFlg=0,2,10),FALSE)+Sens -> 1.06 | K39: 8.579558248 | L39: =VLOOKUP(A39,Trends!A37:Q129,IF(ExFlg=0,4,12),FALSE)+Sens -> 1.055 | M39: 7.785509515 | O39: =VLOOKUP(A39,Trends!A37:Q129,IF(ExFlg=0,6,14),FALSE)+Sens -> 1.06 | P39: 8.080898988 | Q39: =VLOOKUP(A39,Trends!A37:Q129,IF(ExFlg=0,8,16),FALSE)+Sens -> 1.063 | R39: 8.162781985 | T39: 75054.73092 | U39: =IF(ExFlg=0,E39*Trends!T39,E39*Trends!X39) -> 60605.24366 | V39: 14449.48726 | X39: 57718.18855 | Y39: =IF(ExFlg=0,H39*Trends!V39,H39*Trends!Z39) -> 61380.8022 | Z39: -3662.613645 | AB39: -3662.613645 | AD39: =IF(B39<71,VLOOKUP(B39,Lookups!A:F,6),"") -> 0.03 | AE39: =IF(B39<71,VLOOKUP(Active!B39,Lookups!A:G,7),"") -> 0.02 | AF39: 0.02 | AG39: =IF(B39<70,VLOOKUP(CE39,Lookups!$Q$3:$S$53,2),"") -> 0.003591 | AH39: =IF(B39<70,VLOOKUP(CE39,Lookups!$Q$3:$S$53,3),"") -> 0.004906 | AJ39: =IF(B39<70,VLOOKUP(B39,Lookups!A:M,12),"") -> 0.003386 | AK39: =IF(B39<70,VLOOKUP(B39,Lookups!A:M,13),"") -> 0.003283 | AL39: 0.003283 | AM39: =IF(B39<70,VLOOKUP(B39,Lookups!A:H,8)*(1-VLOOKUP(B39,Lookups!$DY$3:$EA$103,2))^(A39-$A$3),"") -> 0.005426323194 | AN39: =IF(B39<70,VLOOKUP(B39,Lookups!A:I,9)*(1-VLOOKUP(B39,Lookups!$DY$3:$EA$103,3))^(A39-$A$3),"") -> 0.002892041136 | AO39: 0.002892041136 | AP39: 0.02617504114 | AQ39: 0.1967268735 | AR39: 0.2436687219 | AT39: =IF(BA39>=$B$3,VLOOKUP(BA39,Lookups!A:H,8)*(1-VLOOKUP(BA39,Lookups!DY:EA,2))^(BA39-$B$3),"") -> 0.02249932458 | AU39: =IF(BA39>=$B$3,VLOOKUP(BA39,Lookups!A:I,9)*(1-VLOOKUP(BA39,Lookups!DY:EA,3))^(BA39-$B$3),"") -> 0.02004367858 | AV39: 0.02004367858 | AW39: 0.8169370456 | AX39: 0.3468165701 | AY39: 0.973538 | BA39: 82 | BB39: 81182.71177 | BN39: 22392.61903 | BO39: 23352.23401 | BP39: 24356.76413 | BQ39: 25408.90966 | BR39: 26512.63396 | BS39: 27663.37223 | BT39: 28870.71325 | BU39: 30128.54979 | BV39: 31438.78613 | BW39: 32818.07789 | BX39: 34263.5651 | BY39: 35783.57884 | BZ39: 37388.6837 | CA39: 39086.7815 | CB39: 40882.66953 | CC39: 42783.60971 | CE39: 36.01
A40: 2052 | B40: 57 | D40: =VLOOKUP(B40,Lookups!A:B,2) -> 9123.468634 | E40: =VLOOKUP(B40,Lookups!A:C,3) -> 7044.48 | G40: =VLOOKUP(B40,Lookups!A:D,4) -> 7449.032225 | H40: =VLOOKUP(B40,Lookups!A:E,5) -> 6841.56 | J40: =VLOOKUP(A40,Trends!A38:Q130,IF(ExFlg=0,2,10),FALSE)+Sens -> 1.06 | K40: 9.094331743 | L40: =VLOOKUP(A40,Trends!A38:Q130,IF(ExFlg=0,4,12),FALSE)+Sens -> 1.057 | M40: 8.213712538 | O40: =VLOOKUP(A40,Trends!A38:Q130,IF(ExFlg=0,6,14),FALSE)+Sens -> 1.06 | P40: 8.565752928 | Q40: =VLOOKUP(A40,Trends!A38:Q130,IF(ExFlg=0,8,16),FALSE)+Sens -> 1.063 | R40: 8.677037251 | T40: 82971.8504 | U40: =IF(ExFlg=0,E40*Trends!T40,E40*Trends!X40) -> 63938.53206 | V40: 19033.31834 | X40: 63806.56959 | Y40: =IF(ExFlg=0,H40*Trends!V40,H40*Trends!Z40) -> 65247.79274 | Z40: -1441.22315 | AB40: -1441.22315 | AD40: =IF(B40<71,VLOOKUP(B40,Lookups!A:F,6),"") -> 0.04 | AE40: =IF(B40<71,VLOOKUP(Active!B40,Lookups!A:G,7),"") -> 0.02 | AF40: 0.02 | AG40: =IF(B40<70,VLOOKUP(CE40,Lookups!$Q$3:$S$53,2),"") -> 0.003591 | AH40: =IF(B40<70,VLOOKUP(CE40,Lookups!$Q$3:$S$53,3),"") -> 0.004906 | AJ40: =IF(B40<70,VLOOKUP(B40,Lookups!A:M,12),"") -> 0.00418 | AK40: =IF(B40<70,VLOOKUP(B40,Lookups!A:M,13),"") -> 0.003783 | AL40: 0.003783 | AM40: =IF(B40<70,VLOOKUP(B40,Lookups!A:H,8)*(1-VLOOKUP(B40,Lookups!$DY$3:$EA$103,2))^(A40-$A$3),"") -> 0.005749930517 | AN40: =IF(B40<70,VLOOKUP(B40,Lookups!A:I,9)*(1-VLOOKUP(B40,Lookups!$DY$3:$EA$103,3))^(A40-$A$3),"") -> 0.003064868554 | AO40: 0.003064868554 | AP40: 0.02684786855 | AQ40: 0.1915775395 | AR40: 0.2342968479 | AT40: =IF(BA40>=$B$3,VLOOKUP(BA40,Lookups!A:H,8)*(1-VLOOKUP(BA40,Lookups!DY:EA,2))^(BA40-$B$3),"") -> 0.02475975387 | AU40: =IF(BA40>=$B$3,VLOOKUP(BA40,Lookups!A:I,9)*(1-VLOOKUP(BA40,Lookups!DY:EA,3))^(BA40-$B$3),"") -> 0.0219535009 | AV40: 0.0219535009 | AW40: 0.8005626221 | AX40: 0.3334774713 | AY40: 0.972697 | BA40: 83 | BB40: 86211.76748 | BN40: 22387.51729 | BO40: 23346.91363 | BP40: 24351.21489 | BQ40: 25403.12071 | BR40: 26506.59354 | BS40: 27657.06964 | BT40: 28864.13559 | BU40: 30121.68556 | BV40: 31431.62338 | BW40: 32810.6009 | BX40: 34255.75878 | BY40: 35775.42621 | BZ40: 37380.16538 | CA40: 39077.8763 | CB40: 40873.35517 | CC40: 42773.86226 | CE40: 37.01
A41: 2053 | B41: 58 | D41: =VLOOKUP(B41,Lookups!A:B,2) -> 9515.379195 | E41: =VLOOKUP(B41,Lookups!A:C,3) -> 7044.48 | G41: =VLOOKUP(B41,Lookups!A:D,4) -> 7769.015182 | H41: =VLOOKUP(B41,Lookups!A:E,5) -> 6841.56 | J41: =VLOOKUP(A41,Trends!A39:Q131,IF(ExFlg=0,2,10),FALSE)+Sens -> 1.06 | K41: 9.639991648 | L41: =VLOOKUP(A41,Trends!A39:Q131,IF(ExFlg=0,4,12),FALSE)+Sens -> 1.059 | M41: 8.681894153 | O41: =VLOOKUP(A41,Trends!A39:Q131,IF(ExFlg=0,6,14),FALSE)+Sens -> 1.06 | P41: 9.079698103 | Q41: =VLOOKUP(A41,Trends!A39:Q131,IF(ExFlg=0,8,16),FALSE)+Sens -> 1.063 | R41: 9.223690597 | T41: 91728.17596 | U41: =IF(ExFlg=0,E41*Trends!T41,E41*Trends!X41) -> 67583.02839 | V41: 24145.14758 | X41: 70540.31241 | Y41: =IF(ExFlg=0,H41*Trends!V41,H41*Trends!Z41) -> 69358.40368 | Z41: 1181.908736 | AB41: 1181.908736 | AD41: =IF(B41<71,VLOOKUP(B41,Lookups!A:F,6),"") -> 0.05 | AE41: =IF(B41<71,VLOOKUP(Active!B41,Lookups!A:G,7),"") -> 0.02 | AF41: 0.02 | AG41: =IF(B41<70,VLOOKUP(CE41,Lookups!$Q$3:$S$53,2),"") -> 0.003591 | AH41: =IF(B41<70,VLOOKUP(CE41,Lookups!$Q$3:$S$53,3),"") -> 0.004906 | AJ41: =IF(B41<70,VLOOKUP(B41,Lookups!A:M,12),"") -> 0.00516 | AK41: =IF(B41<70,VLOOKUP(B41,Lookups!A:M,13),"") -> 0.005084 | AL41: 0.005084 | AM41: =IF(B41<70,VLOOKUP(B41,Lookups!A:H,8)*(1-VLOOKUP(B41,Lookups!$DY$3:$EA$103,2))^(A41-$A$3),"") -> 0.006160527155 | AN41: =IF(B41<70,VLOOKUP(B41,Lookups!A:I,9)*(1-VLOOKUP(B41,Lookups!$DY$3:$EA$103,3))^(A41-$A$3),"") -> 0.003295331118 | AO41: 0.003295331118 | AP41: 0.02837933112 | AQ41: 0.1864340909 | AR41: 0.2252854307 | AT41: =IF(BA41>=$B$3,VLOOKUP(BA41,Lookups!A:H,8)*(1-VLOOKUP(BA41,Lookups!DY:EA,2))^(BA41-$B$3),"") -> 0.02718577968 | AU41: =IF(BA41>=$B$3,VLOOKUP(BA41,Lookups!A:I,9)*(1-VLOOKUP(BA41,Lookups!DY:EA,3))^(BA41-$B$3),"") -> 0.02408354036 | AV41: 0.02408354036 | AW41: 0.7829874698 | AX41: 0.3206514147 | AY41: 0.971758 | BA41: 84 | BB41: 91545.86733 | BN41: 22334.9426 | BO41: 23292.08591 | BP41: 24294.02867 | BQ41: 25343.46421 | BR41: 26444.34565 | BS41: 27592.11998 | BT41: 28796.35126 | BU41: 30050.94801 | BV41: 31357.80958 | BW41: 32733.54872 | BX41: 34175.3128 | BY41: 35691.41146 | BZ41: 37292.38207 | CA41: 38986.1061 | CB41: 40777.36848 | CC41: 42673.41243 | CE41: 38.01
A42: 2054 | B42: 59 | D42: =VLOOKUP(B42,Lookups!A:B,2) -> 9924.565395 | E42: =VLOOKUP(B42,Lookups!A:C,3) -> 7044.48 | G42: =VLOOKUP(B42,Lookups!A:D,4) -> 8103.103169 | H42: =VLOOKUP(B42,Lookups!A:E,5) -> 6841.56 | J42: =VLOOKUP(A42,Trends!A40:Q132,IF(ExFlg=0,2,10),FALSE)+Sens -> 1.06 | K42: 10.21839115 | L42: =VLOOKUP(A42,Trends!A40:Q132,IF(ExFlg=0,4,12),FALSE)+Sens -> 1.058 | M42: 9.194125908 | O42: =VLOOKUP(A42,Trends!A40:Q132,IF(ExFlg=0,6,14),FALSE)+Sens -> 1.06 | P42: 9.62447999 | Q42: =VLOOKUP(A42,Trends!A40:Q132,IF(ExFlg=0,8,16),FALSE)+Sens -> 1.062 | R42: 9.804783105 | T42: 101413.0912 | U42: =IF(ExFlg=0,E42*Trends!T42,E42*Trends!X42) -> 71570.42706 | V42: 29842.6641 | X42: 77988.15431 | Y42: =IF(ExFlg=0,H42*Trends!V42,H42*Trends!Z42) -> 73727.98311 | Z42: 4260.171195 | AB42: 4260.171195 | AD42: =IF(B42<71,VLOOKUP(B42,Lookups!A:F,6),"") -> 0.06 | AE42: =IF(B42<71,VLOOKUP(Active!B42,Lookups!A:G,7),"") -> 0.04 | AF42: 0.04 | AG42: =IF(B42<70,VLOOKUP(CE42,Lookups!$Q$3:$S$53,2),"") -> 0.003591 | AH42: =IF(B42<70,VLOOKUP(CE42,Lookups!$Q$3:$S$53,3),"") -> 0.004906 | AJ42: =IF(B42<70,VLOOKUP(B42,Lookups!A:M,12),"") -> 0.00637 | AK42: =IF(B42<70,VLOOKUP(B42,Lookups!A:M,13),"") -> 0.006384 | AL42: 0.006384 | AM42: =IF(B42<70,VLOOKUP(B42,Lookups!A:H,8)*(1-VLOOKUP(B42,Lookups!$DY$3:$EA$103,2))^(A42-$A$3),"") -> 0.005922959809 | AN42: =IF(B42<70,VLOOKUP(B42,Lookups!A:I,9)*(1-VLOOKUP(B42,Lookups!$DY$3:$EA$103,3))^(A42-$A$3),"") -> 0.003261818999 | AO42: 0.003261818999 | AP42: 0.049645819 | AQ42: 0.1811432161 | AR42: 0.2166206064 | AT42: =IF(BA42>=$B$3,VLOOKUP(BA42,Lookups!A:H,8)*(1-VLOOKUP(BA42,Lookups!DY:EA,2))^(BA42-$B$3),"") -> 0.02978088413 | AU42: =IF(BA42>=$B$3,VLOOKUP(BA42,Lookups!A:I,9)*(1-VLOOKUP(BA42,Lookups!DY:EA,3))^(BA42-$B$3),"") -> 0.02646345774 | AV42: 0.02646345774 | AW42: 0.7641303595 | AX42: 0.308318668 | AY42: 0.970709 | BA42: 85 | BB42: 97203.22464 | BN42: 22229.87418 | BO42: 23182.51488 | BP42: 24179.74429 | BQ42: 25224.24305 | BR42: 26319.94571 | BS42: 27462.32065 | BT42: 28660.88697 | BU42: 29909.58182 | BV42: 31210.29564 | BW42: 32579.563 | BX42: 34014.54471 | BY42: 35523.51131 | BZ42: 37116.95061 | CA42: 38802.70699 | CB42: 40585.54288 | CC42: 42472.66743 | CE42: 39.01
A43: 2055 | B43: 60 | D43: =VLOOKUP(B43,Lookups!A:B,2) -> 10351.80727 | E43: =VLOOKUP(B43,Lookups!A:C,3) -> 7044.48 | G43: =VLOOKUP(B43,Lookups!A:D,4) -> 8451.93306 | H43: =VLOOKUP(B43,Lookups!A:E,5) -> 6841.56 | J43: =VLOOKUP(A43,Trends!A41:Q133,IF(ExFlg=0,2,10),FALSE)+Sens -> 1.06 | K43: 10.83149462 | L43: =VLOOKUP(A43,Trends!A41:Q133,IF(ExFlg=0,4,12),FALSE)+Sens -> 1.058 | M43: 9.72738521 | O43: =VLOOKUP(A43,Trends!A41:Q133,IF(ExFlg=0,6,14),FALSE)+Sens -> 1.06 | P43: 10.20194879 | Q43: =VLOOKUP(A43,Trends!A41:Q133,IF(ExFlg=0,8,16),FALSE)+Sens -> 1.062 | R43: 10.41267966 | T43: 112125.5447 | U43: =IF(ExFlg=0,E43*Trends!T43,E43*Trends!X43) -> 75721.51183 | V43: 36404.03284 | X43: 86226.18824 | Y43: =IF(ExFlg=0,H43*Trends!V43,H43*Trends!Z43) -> 78299.11806 | Z43: 7927.070178 | AB43: 7927.070178 | AD43: =IF(B43<71,VLOOKUP(B43,Lookups!A:F,6),"") -> 0.07 | AE43: =IF(B43<71,VLOOKUP(Active!B43,Lookups!A:G,7),"") -> 0.06 | AF43: 0.06 | AG43: =IF(B43<70,VLOOKUP(CE43,Lookups!$Q$3:$S$53,2),"") -> 0.003591 | AH43: =IF(B43<70,VLOOKUP(CE43,Lookups!$Q$3:$S$53,3),"") -> 0.004906 | AJ43: =IF(B43<70,VLOOKUP(B43,Lookups!A:M,12),"") -> 0.007863 | AK43: =IF(B43<70,VLOOKUP(B43,Lookups!A:M,13),"") -> 0.007681 | AL43: 0.007681 | AM43: =IF(B43<70,VLOOKUP(B43,Lookups!A:H,8)*(1-VLOOKUP(B43,Lookups!$DY$3:$EA$103,2))^(A43-$A$3),"") -> 0.006334620695 | AN43: =IF(B43<70,VLOOKUP(B43,Lookups!A:I,9)*(1-VLOOKUP(B43,Lookups!$DY$3:$EA$103,3))^(A43-$A$3),"") -> 0.003491639802 | AO43: 0.003491639802 | AP43: 0.0711726398 | AQ43: 0.1721502128 | AR43: 0.2082890447 | AT43: =IF(BA43>=$B$3,VLOOKUP(BA43,Lookups!A:H,8)*(1-VLOOKUP(BA43,Lookups!DY:EA,2))^(BA43-$B$3),"") -> 0.03256160878 | AU43: =IF(BA43>=$B$3,VLOOKUP(BA43,Lookups!A:I,9)*(1-VLOOKUP(BA43,Lookups!DY:EA,3))^(BA43-$B$3),"") -> 0.02912805617 | AV43: 0.02912805617 | AW43: 0.743908828 | AX43: 0.2964602577 | AY43: 0.969535 | BA43: 86 | BB43: 103203.127 | BN43: 22066.96176 | BO43: 23012.62099 | BP43: 24002.54217 | BQ43: 25039.38628 | BR43: 26127.05904 | BS43: 27261.06206 | BT43: 28450.84464 | BU43: 29690.38838 | BV43: 30981.56987 | BW43: 32340.80251 | BX43: 33765.26791 | BY43: 35263.17599 | BZ43: 36844.93771 | CA43: 38518.33996 | CB43: 40288.11028 | CC43: 42161.40497 | CE43: 40.01
A44: 2056 | B44: 61 | D44: =VLOOKUP(B44,Lookups!A:B,2) -> 10797.92082 | E44: =VLOOKUP(B44,Lookups!A:C,3) -> 7044.48 | G44: =VLOOKUP(B44,Lookups!A:D,4) -> 8816.171102 | H44: =VLOOKUP(B44,Lookups!A:E,5) -> 6841.56 | J44: =VLOOKUP(A44,Trends!A42:Q134,IF(ExFlg=0,2,10),FALSE)+Sens -> 1.059 | K44: 11.48138429 | L44: =VLOOKUP(A44,Trends!A42:Q134,IF(ExFlg=0,4,12),FALSE)+Sens -> 1.058 | M44: 10.29157355 | O44: =VLOOKUP(A44,Trends!A42:Q134,IF(ExFlg=0,6,14),FALSE)+Sens -> 1.059 | P44: 10.81406572 | Q44: =VLOOKUP(A44,Trends!A42:Q134,IF(ExFlg=0,8,16),FALSE)+Sens -> 1.062 | R44: 11.0582658 | T44: 123975.0785 | U44: =IF(ExFlg=0,E44*Trends!T44,E44*Trends!X44) -> 80113.35952 | V44: 43861.71901 | X44: 95338.65366 | Y44: =IF(ExFlg=0,H44*Trends!V44,H44*Trends!Z44) -> 83153.66338 | Z44: 12184.99028 | AB44: 12184.99028 | AD44: =IF(B44<71,VLOOKUP(B44,Lookups!A:F,6),"") -> 0.08 | AE44: =IF(B44<71,VLOOKUP(Active!B44,Lookups!A:G,7),"") -> 0.13 | AF44: 0.13 | AG44: =IF(B44<70,VLOOKUP(CE44,Lookups!$Q$3:$S$53,2),"") -> 0.003591 | AH44: =IF(B44<70,VLOOKUP(CE44,Lookups!$Q$3:$S$53,3),"") -> 0.004906 | AJ44: =IF(B44<70,VLOOKUP(B44,Lookups!A:M,12),"") -> 0.009707 | AK44: =IF(B44<70,VLOOKUP(B44,Lookups!A:M,13),"") -> 0.008977 | AL44: 0.008977 | AM44: =IF(B44<70,VLOOKUP(B44,Lookups!A:H,8)*(1-VLOOKUP(B44,Lookups!$DY$3:$EA$103,2))^(A44-$A$3),"") -> 0.006001714285 | AN44: =IF(B44<70,VLOOKUP(B44,Lookups!A:I,9)*(1-VLOOKUP(B44,Lookups!$DY$3:$EA$103,3))^(A44-$A$3),"") -> 0.00341895017 | AO44: 0.00341895017 | AP44: 0.1423959502 | AQ44: 0.1598978277 | AR44: 0.2002779276 | AT44: =IF(BA44>=$B$3,VLOOKUP(BA44,Lookups!A:H,8)*(1-VLOOKUP(BA44,Lookups!DY:EA,2))^(BA44-$B$3),"") -> 0.03864513084 | AU44: =IF(BA44>=$B$3,VLOOKUP(BA44,Lookups!A:I,9)*(1-VLOOKUP(BA44,Lookups!DY:EA,3))^(BA44-$B$3),"") -> 0.03209685975 | AV44: 0.03209685975 | AW44: 0.7222402099 | AX44: =IF(AV43="",1,AX43/(1+IntRt)) -> 0.2850579401 | AY44: =IF(AV44="",1,ROUND((13/24)+(11/24)*(1/(1+IntRt))*(1-AV44),6)) -> 0.968227 | BA44: 87 | BB44: 109565.9991 | BN44: 21840.76261 | BO44: 22776.72829 | BP44: 23756.5022 | BQ44: 24782.71806 | BR44: 25859.24155 | BS44: 26981.62037 | BT44: 28159.20699 | BU44: 29386.0447 | BV44: 30663.99082 | BW44: 32009.29054 | BX44: 33419.15434 | BY44: 34901.708 | BZ44: 36467.25575 | CA44: 38123.50466 | CB44: 39875.1338 | CC44: 41729.22614 | CE44: 41.01
A45: 2057 | B45: 62 | D45: =VLOOKUP(B45,Lookups!A:B,2) -> 11373.87117 | E45: =VLOOKUP(B45,Lookups!A:C,3) -> 7044.48 | G45: =VLOOKUP(B45,Lookups!A:D,4) -> 9286.416916 | H45: =VLOOKUP(B45,Lookups!A:E,5) -> 6841.56 | J45: =VLOOKUP(A45,Trends!A43:Q135,IF(ExFlg=0,2,10),FALSE)+Sens -> 1.059 | K45: 12.15878597 | L45: =VLOOKUP(A45,Trends!A43:Q135,IF(ExFlg=0,4,12),FALSE)+Sens -> 1.058 | M45: 10.88848482 | O45: =VLOOKUP(A45,Trends!A43:Q135,IF(ExFlg=0,6,14),FALSE)+Sens -> 1.059 | P45: 11.45209559 | Q45: =VLOOKUP(A45,Trends!A43:Q135,IF(ExFlg=0,8,16),FALSE)+Sens -> 1.061 | R45: 11.74387828 | T45: 138292.4652 | U45: =IF(ExFlg=0,E45*Trends!T45,E45*Trends!X45) -> 84759.93437 | V45: 53532.53084 | X45: 106348.9342 | Y45: =IF(ExFlg=0,H45*Trends!V45,H45*Trends!Z45) -> 88309.19051 | Z45: 18039.74373 | AB45: 18039.74373 | AD45: =IF(B45<71,VLOOKUP(B45,Lookups!A:F,6),"") -> 0.24 | AE45: =IF(B45<71,VLOOKUP(Active!B45,Lookups!A:G,7),"") -> 0.2 | AF45: 0.2 | AG45: =IF(B45<70,VLOOKUP(CE45,Lookups!$Q$3:$S$53,2),"") -> 0.003591 | AH45: =IF(B45<70,VLOOKUP(CE45,Lookups!$Q$3:$S$53,3),"") -> 0.004906 | AJ45: =IF(B45<70,VLOOKUP(B45,Lookups!A:M,12),"") -> 0.011983 | AK45: =IF(B45<70,VLOOKUP(B45,Lookups!A:M,13),"") -> 0.010271 | AL45: 0.010271 | AM45: =IF(B45<70,VLOOKUP(B45,Lookups!A:H,8)*(1-VLOOKUP(B45,Lookups!$DY$3:$EA$103,2))^(A45-$A$3),"") -> 0.005607496217 | AN45: =IF(B45<70,VLOOKUP(B45,Lookups!A:I,9)*(1-VLOOKUP(B45,Lookups!$DY$3:$EA$103,3))^(A45-$A$3),"") -> 0.003342824525 | AO45: 0.003342824525 | AP45: 0.2136138245 | AQ45: 0.1371290246 | AR45: 0.1925749303 | AT45: =IF(BA45>=$B$3,VLOOKUP(BA45,Lookups!A:H,8)*(1-VLOOKUP(BA45,Lookups!DY:EA,2))^(BA45-$B$3),"") -> 0.04591978774 | AU45: =IF(BA45>=$B$3,VLOOKUP(BA45,Lookups!A:I,9)*(1-VLOOKUP(BA45,Lookups!DY:EA,3))^(BA45-$B$3),"") -> 0.03536873432 | AV45: 0.03536873432 | AW45: 0.6990585671 | AX45: 0.2740941731 | AY45: 0.966785 | BA45: 88 | BB45: 116313.4689 | BN45: 21546.32852 | BO45: 22469.6765 | BP45: 23436.24214 | BQ45: 24448.62364 | BR45: 25510.63457 | BS45: 26617.88267 | BT45: 27779.59432 | BU45: 28989.89309 | BV45: 30250.6113 | BW45: 31577.7751 | BX45: 32968.63261 | BY45: 34431.20004 | BZ45: 35975.64273 | CA45: 37609.56384 | CB45: 39337.57938 | CC45: 41166.6768 | CE45: 42.01
A46: 2058 | B46: 63 | D46: =VLOOKUP(B46,Lookups!A:B,2) -> 11982.76529 | E46: =VLOOKUP(B46,Lookups!A:C,3) -> 7044.48 | G46: =VLOOKUP(B46,Lookups!A:D,4) -> 9783.560308 | H46: =VLOOKUP(B46,Lookups!A:E,5) -> 6841.56 | J46: =VLOOKUP(A46,Trends!A44:Q136,IF(ExFlg=0,2,10),FALSE)+Sens -> 1.059 | K46: 12.87615434 | L46: =VLOOKUP(A46,Trends!A44:Q136,IF(ExFlg=0,4,12),FALSE)+Sens -> 1.058 | M46: 11.52001694 | O46: =VLOOKUP(A46,Trends!A44:Q136,IF(ExFlg=0,6,14),FALSE)+Sens -> 1.059 | P46: 12.12776923 | Q46: =VLOOKUP(A46,Trends!A44:Q136,IF(ExFlg=0,8,16),FALSE)+Sens -> 1.061 | R46: 12.46025485 | T46: 154291.9353 | U46: =IF(ExFlg=0,E46*Trends!T46,E46*Trends!X46) -> 89676.01056 | V46: 64615.92475 | X46: 118652.7617 | Y46: =IF(ExFlg=0,H46*Trends!V46,H46*Trends!Z46) -> 93696.05113 | Z46: 24956.71057 | AB46: 24956.71057 | AD46: =IF(B46<71,VLOOKUP(B46,Lookups!A:F,6),"") -> 0.22 | AE46: =IF(B46<71,VLOOKUP(Active!B46,Lookups!A:G,7),"") -> 0.18 | AF46: 0.18 | AG46: =IF(B46<70,VLOOKUP(CE46,Lookups!$Q$3:$S$53,2),"") -> 0.003591 | AH46: =IF(B46<70,VLOOKUP(CE46,Lookups!$Q$3:$S$53,3),"") -> 0.004906 | AJ46: =IF(B46<70,VLOOKUP(B46,Lookups!A:M,12),"") -> 0.010244 | AK46: =IF(B46<70,VLOOKUP(B46,Lookups!A:M,13),"") -> 0.009153 | AL46: 0.009153 | AM46: =IF(B46<70,VLOOKUP(B46,Lookups!A:H,8)*(1-VLOOKUP(B46,Lookups!$DY$3:$EA$103,2))^(A46-$A$3),"") -> 0.005811902629 | AN46: =IF(B46<70,VLOOKUP(B46,Lookups!A:I,9)*(1-VLOOKUP(B46,Lookups!$DY$3:$EA$103,3))^(A46-$A$3),"") -> 0.003709550596 | AO46: 0.003709550596 | AP46: 0.1928625506 | AQ46: 0.1078363692 | AR46: 0.1851682023 | AT46: =IF(BA46>=$B$3,VLOOKUP(BA46,Lookups!A:H,8)*(1-VLOOKUP(BA46,Lookups!DY:EA,2))^(BA46-$B$3),"") -> 0.05462349428 | AU46: =IF(BA46>=$B$3,VLOOKUP(BA46,Lookups!A:I,9)*(1-VLOOKUP(BA46,Lookups!DY:EA,3))^(BA46-$B$3),"") -> 0.03892200549 | AV46: 0.03892200549 | AW46: 0.6743337504 | AX46: 0.2635520896 | AY46: 0.965219 | BA46: 89 | BB46: 122129.1423 | BN46: 20950.12073 | BO46: 21847.91877 | BP46: 22787.7386 | BQ46: 23772.10653 | BR46: 24804.73059 | BS46: 25881.34006 | BT46: 27010.90602 | BU46: 28187.71465 | BV46: 29413.54756 | BW46: 30703.98746 | BX46: 32056.35859 | BY46: 33478.45537 | BZ46: 34980.16183 | CA46: 36568.87076 | CB46: 38249.07043 | CC46: 40027.55495 | CE46: 43.01
A47: 2059 | B47: 64 | D47: =VLOOKUP(B47,Lookups!A:B,2) -> 12626.59669 | E47: =VLOOKUP(B47,Lookups!A:C,3) -> 7044.48 | G47: =VLOOKUP(B47,Lookups!A:D,4) -> 10309.22892 | H47: =VLOOKUP(B47,Lookups!A:E,5) -> 6841.56 | J47: =VLOOKUP(A47,Trends!A45:Q137,IF(ExFlg=0,2,10),FALSE)+Sens -> 1.059 | K47: 13.63584744 | L47: =VLOOKUP(A47,Trends!A45:Q137,IF(ExFlg=0,4,12),FALSE)+Sens -> 1.058 | M47: 12.18817792 | O47: =VLOOKUP(A47,Trends!A45:Q137,IF(ExFlg=0,6,14),FALSE)+Sens -> 1.059 | P47: 12.84330762 | Q47: =VLOOKUP(A47,Trends!A45:Q137,IF(ExFlg=0,8,16),FALSE)+Sens -> 1.061 | R47: 13.2203304 | T47: 172174.3462 | U47: =IF(ExFlg=0,E47*Trends!T47,E47*Trends!X47) -> 94877.21918 | V47: 77297.12701 | X47: 132404.5983 | Y47: =IF(ExFlg=0,H47*Trends!V47,H47*Trends!Z47) -> 99411.51025 | Z47: 32993.08803 | AB47: 32993.08803 | AD47: =IF(B47<71,VLOOKUP(B47,Lookups!A:F,6),"") -> 0.56 | AE47: =IF(B47<71,VLOOKUP(Active!B47,Lookups!A:G,7),"") -> 0.56 | AF47: 0.56 | AG47: =IF(B47<70,VLOOKUP(CE47,Lookups!$Q$3:$S$53,2),"") -> 0.003591 | AH47: =IF(B47<70,VLOOKUP(CE47,Lookups!$Q$3:$S$53,3),"") -> 0.004906 | AJ47: =IF(B47<70,VLOOKUP(B47,Lookups!A:M,12),"") -> 0.008313 | AK47: =IF(B47<70,VLOOKUP(B47,Lookups!A:M,13),"") -> 0.006937 | AL47: 0.006937 | AM47: =IF(B47<70,VLOOKUP(B47,Lookups!A:H,8)*(1-VLOOKUP(B47,Lookups!$DY$3:$EA$103,2))^(A47-$A$3),"") -> 0.005477566615 | AN47: =IF(B47<70,VLOOKUP(B47,Lookups!A:I,9)*(1-VLOOKUP(B47,Lookups!$DY$3:$EA$103,3))^(A47-$A$3),"") -> 0.003874789247 | AO47: 0.003874789247 | AP47: 0.5708117892 | AQ47: 0.08703877197 | AR47: 0.1780463483 | AT47: =IF(BA47>=$B$3,VLOOKUP(BA47,Lookups!A:H,8)*(1-VLOOKUP(BA47,Lookups!DY:EA,2))^(BA47-$B$3),"") -> 0.06499654976 | AU47: =IF(BA47>=$B$3,VLOOKUP(BA47,Lookups!A:I,9)*(1-VLOOKUP(BA47,Lookups!DY:EA,3))^(BA47-$B$3),"") -> 0.04653646731 | AV47: 0.04653646731 | AW47: 0.6480873285 | AX47: 0.2534154707 | AY47: 0.961863 | BA47: 90 | BB47: 128235.5995 | BN47: 20257.62279 | BO47: 21125.74448 | BP47: 22034.49893 | BQ47: 22986.32897 | BR47: 23984.82005 | BS47: 25025.84262 | BT47: 26118.07122 | BU47: 27255.98091 | BV47: 28441.2944 | BW47: 29689.07932 | BX47: 30996.74836 | BY47: 32371.83829 | BZ47: 33823.90644 | CA47: 35360.10123 | CB47: 36984.76256 | CC47: 38704.45998 | CE47: 44.01
A48: 2060 | B48: 65 | D48: =VLOOKUP(B48,Lookups!A:B,2) -> 2963.8875 | E48: =VLOOKUP(B48,Lookups!A:C,3) -> 1715.34 | G48: =VLOOKUP(B48,Lookups!A:D,4) -> 3539.395 | H48: =VLOOKUP(B48,Lookups!A:E,5) -> 2741.28 | J48: =VLOOKUP(A48,Trends!A46:Q138,IF(ExFlg=0,2,10),FALSE)+Sens -> 1.059 | K48: 14.44036244 | L48: =VLOOKUP(A48,Trends!A46:Q138,IF(ExFlg=0,4,12),FALSE)+Sens -> 1.058 | M48: 12.89509224 | O48: =VLOOKUP(A48,Trends!A46:Q138,IF(ExFlg=0,6,14),FALSE)+Sens -> 1.059 | P48: 13.60106277 | Q48: =VLOOKUP(A48,Trends!A46:Q138,IF(ExFlg=0,8,16),FALSE)+Sens -> 1.061 | R48: 14.02677055 | T48: 38219.6027 | U48: =IF(ExFlg=0,E48*Trends!T48,E48*Trends!X48) -> 24442.68379 | V48: 13776.91891 | X48: 49646.28155 | Y48: =IF(ExFlg=0,H48*Trends!V48,H48*Trends!Z48) -> 42262.02601 | Z48: 7384.255538 | AB48: 7384.255538 | AD48: =IF(B48<71,VLOOKUP(B48,Lookups!A:F,6),"") -> 0.4 | AE48: =IF(B48<71,VLOOKUP(Active!B48,Lookups!A:G,7),"") -> 0.4 | AF48: 0.4 | AG48: =IF(B48<70,VLOOKUP(CE48,Lookups!$Q$3:$S$53,2),"") -> 0.003591 | AH48: =IF(B48<70,VLOOKUP(CE48,Lookups!$Q$3:$S$53,3),"") -> 0.004906 | AJ48: =IF(B48<70,VLOOKUP(B48,Lookups!A:M,12),"") -> 0.006146 | AK48: =IF(B48<70,VLOOKUP(B48,Lookups!A:M,13),"") -> 0.005257 | AL48: 0.005257 | AM48: =IF(B48<70,VLOOKUP(B48,Lookups!A:H,8)*(1-VLOOKUP(B48,Lookups!$DY$3:$EA$103,2))^(A48-$A$3),"") -> 0.005466706715 | AN48: =IF(B48<70,VLOOKUP(B48,Lookups!A:I,9)*(1-VLOOKUP(B48,Lookups!$DY$3:$EA$103,3))^(A48-$A$3),"") -> 0.004177087338 | AO48: 0.004177087338 | AP48: 0.4094340873 | AQ48: 0.03735601481 | AR48: 0.1711984118 | AT48: =IF(BA48>=$B$3,VLOOKUP(BA48,Lookups!A:H,8)*(1-VLOOKUP(BA48,Lookups!DY:EA,2))^(BA48-$B$3),"") -> 0.07727606702 | AU48: =IF(BA48>=$B$3,VLOOKUP(BA48,Lookups!A:I,9)*(1-VLOOKUP(BA48,Lookups!DY:EA,3))^(BA48-$B$3),"") -> 0.05548213304 | AV48: 0.05548213304 | AW48: 0.6179276337 | AX48: 0.2436687219 | AY48: 0.957921 | BA48: 91 | BB48: 134647.3794 | BN48: 19420.70548 | BO48: 20252.96185 | BP48: 21124.1723 | BQ48: 22036.67871 | BR48: 22993.91843 | BS48: 23991.93251 | BT48: 25039.03711 | BU48: 26129.93554 | BV48: 27266.27935 | BW48: 28462.51366 | BX48: 29716.15806 | BY48: 31034.43794 | BZ48: 32426.51578 | CA48: 33899.24468 | CB48: 35456.78525 | CC48: 37105.43561 | CE48: 45.01
A49: 2061 | B49: 66 | D49: =VLOOKUP(B49,Lookups!A:B,2) -> 3068.840044 | E49: =VLOOKUP(B49,Lookups!A:C,3) -> 1715.34 | G49: =VLOOKUP(B49,Lookups!A:D,4) -> 3664.726497 | H49: =VLOOKUP(B49,Lookups!A:E,5) -> 2741.28 | J49: =VLOOKUP(A49,Trends!A47:Q139,IF(ExFlg=0,2,10),FALSE)+Sens -> 1.058 | K49: 15.29234383 | L49: =VLOOKUP(A49,Trends!A47:Q139,IF(ExFlg=0,4,12),FALSE)+Sens -> 1.057 | M49: 13.64300759 | O49: =VLOOKUP(A49,Trends!A47:Q139,IF(ExFlg=0,6,14),FALSE)+Sens -> 1.059 | P49: 14.40352547 | Q49: =VLOOKUP(A49,Trends!A47:Q139,IF(ExFlg=0,8,16),FALSE)+Sens -> 1.06 | R49: 14.88240355 | T49: 41868.20801 | U49: =IF(ExFlg=0,E49*Trends!T49,E49*Trends!X49) -> 25860.35945 | V49: 16007.84856 | X49: 54539.93865 | Y49: =IF(ExFlg=0,H49*Trends!V49,H49*Trends!Z49) -> 44840.0096 | Z49: 9699.929049 | AB49: 9699.929049 | AD49: =IF(B49<71,VLOOKUP(B49,Lookups!A:F,6),"") -> 0.24 | AE49: =IF(B49<71,VLOOKUP(Active!B49,Lookups!A:G,7),"") -> 0.24 | AF49: 0.24 | AG49: =IF(B49<70,VLOOKUP(CE49,Lookups!$Q$3:$S$53,2),"") -> 0.003591 | AH49: =IF(B49<70,VLOOKUP(CE49,Lookups!$Q$3:$S$53,3),"") -> 0.004906 | AJ49: =IF(B49<70,VLOOKUP(B49,Lookups!A:M,12),"") -> 0.004544 | AK49: =IF(B49<70,VLOOKUP(B49,Lookups!A:M,13),"") -> 0.003985 | AL49: 0.003985 | AM49: =IF(B49<70,VLOOKUP(B49,Lookups!A:H,8)*(1-VLOOKUP(B49,Lookups!$DY$3:$EA$103,2))^(A49-$A$3),"") -> 0.0057334161 | AN49: =IF(B49<70,VLOOKUP(B49,Lookups!A:I,9)*(1-VLOOKUP(B49,Lookups!$DY$3:$EA$103,3))^(A49-$A$3),"") -> 0.004647441233 | AO49: 0.004647441233 | AP49: 0.2486324412 | AQ49: 0.02206118898 | AR49: 0.1646138575 | AT49: =IF(BA49>=$B$3,VLOOKUP(BA49,Lookups!A:H,8)*(1-VLOOKUP(BA49,Lookups!DY:EA,2))^(BA49-$B$3),"") -> 0.09097792678 | AU49: =IF(BA49>=$B$3,VLOOKUP(BA49,Lookups!A:I,9)*(1-VLOOKUP(BA49,Lookups!DY:EA,3))^(BA49-$B$3),"") -> 0.06585492306 | AV49: 0.06585492306 | AW49: 0.5836436905 | AX49: 0.2342968479 | AY49: 0.953349 | BA49: 92 | BB49: 141379.7484 | BN49: 18431.18935 | BO49: 19221.04092 | BP49: 20047.86179 | BQ49: 20913.87454 | BR49: 21822.34136 | BS49: 22769.50502 | BT49: 23763.25796 | BU49: 24798.57337 | BV49: 25877.01863 | BW49: 27012.30288 | BX49: 28202.07208 | BY49: 29453.18349 | BZ49: 30774.33273 | CA49: 32172.02373 | CB49: 33650.2051 | CC49: 35214.85408 | CE49: 46.01
A50: 2062 | B50: 67 | D50: =VLOOKUP(B50,Lookups!A:B,2) -> 3177.583076 | E50: =VLOOKUP(B50,Lookups!A:C,3) -> 1715.34 | G50: =VLOOKUP(B50,Lookups!A:D,4) -> 3794.584494 | H50: =VLOOKUP(B50,Lookups!A:E,5) -> 2741.28 | J50: =VLOOKUP(A50,Trends!A48:Q140,IF(ExFlg=0,2,10),FALSE)+Sens -> 1.057 | K50: 16.17929977 | L50: =VLOOKUP(A50,Trends!A48:Q140,IF(ExFlg=0,4,12),FALSE)+Sens -> 1.057 | M50: 14.42065902 | O50: =VLOOKUP(A50,Trends!A48:Q140,IF(ExFlg=0,6,14),FALSE)+Sens -> 1.057 | P50: 15.25333347 | Q50: =VLOOKUP(A50,Trends!A48:Q140,IF(ExFlg=0,8,16),FALSE)+Sens -> 1.059 | R50: 15.77534777 | T50: 45822.84205 | U50: =IF(ExFlg=0,E50*Trends!T50,E50*Trends!X50) -> 27334.39994 | V50: 18488.44212 | X50: 59860.89002 | Y50: =IF(ExFlg=0,H50*Trends!V50,H50*Trends!Z50) -> 47530.41018 | Z50: 12330.47984 | AB50: 12330.47984 | AD50: =IF(B50<71,VLOOKUP(B50,Lookups!A:F,6),"") -> 0.24 | AE50: =IF(B50<71,VLOOKUP(Active!B50,Lookups!A:G,7),"") -> 0.24 | AF50: 0.24 | AG50: =IF(B50<70,VLOOKUP(CE50,Lookups!$Q$3:$S$53,2),"") -> 0.003591 | AH50: =IF(B50<70,VLOOKUP(CE50,Lookups!$Q$3:$S$53,3),"") -> 0.004906 | AJ50: =IF(B50<70,VLOOKUP(B50,Lookups!A:M,12),"") -> 0.00336 | AK50: =IF(B50<70,VLOOKUP(B50,Lookups!A:M,13),"") -> 0.00302 | AL50: 0.00302 | AM50: =IF(B50<70,VLOOKUP(B50,Lookups!A:H,8)*(1-VLOOKUP(B50,Lookups!$DY$3:$EA$103,2))^(A50-$A$3),"") -> 0.006011772919 | AN50: =IF(B50<70,VLOOKUP(B50,Lookups!A:I,9)*(1-VLOOKUP(B50,Lookups!$DY$3:$EA$103,3))^(A50-$A$3),"") -> 0.005182070308 | AO50: 0.005182070308 | AP50: 0.2482020703 | AQ50: 0.01657606171 | AR50: 0.1582825553 | AT50: =IF(BA50>=$B$3,VLOOKUP(BA50,Lookups!A:H,8)*(1-VLOOKUP(BA50,Lookups!DY:EA,2))^(BA50-$B$3),"") -> 0.10683059 | AU50: =IF(BA50>=$B$3,VLOOKUP(BA50,Lookups!A:I,9)*(1-VLOOKUP(BA50,Lookups!DY:EA,3))^(BA50-$B$3),"") -> 0.0777379282 | AV50: 0.0777379282 | AW50: 0.5452078802 | AX50: 0.2252854307 | AY50: 0.948112 | BA50: 93 | BB50: 148448.7358 | BN50: 17287.46755 | BO50: 18028.30598 | BP50: 18803.81964 | BQ50: 19616.09317 | BR50: 20468.18635 | BS50: 21356.57508 | BT50: 22288.66207 | BU50: 23259.73241 | BV50: 24271.25626 | BW50: 25336.09203 | BX50: 26452.03176 | BY50: 27625.50718 | BZ50: 28864.67435 | CA50: 30175.63358 | CB50: 31562.08846 | CC50: 33029.64532 | CE50: 47.01
A51: 2063 | B51: 68 | D51: =VLOOKUP(B51,Lookups!A:B,2) -> 3290.256079 | E51: =VLOOKUP(B51,Lookups!A:C,3) -> 1715.34 | G51: =VLOOKUP(B51,Lookups!A:D,4) -> 3929.135554 | H51: =VLOOKUP(B51,Lookups!A:E,5) -> 2741.28 | J51: =VLOOKUP(A51,Trends!A49:Q141,IF(ExFlg=0,2,10),FALSE)+Sens -> 1.056 | K51: 17.10151986 | L51: =VLOOKUP(A51,Trends!A49:Q141,IF(ExFlg=0,4,12),FALSE)+Sens -> 1.057 | M51: 15.24263659 | O51: =VLOOKUP(A51,Trends!A49:Q141,IF(ExFlg=0,6,14),FALSE)+Sens -> 1.056 | P51: 16.12277348 | Q51: =VLOOKUP(A51,Trends!A49:Q141,IF(ExFlg=0,8,16),FALSE)+Sens -> 1.058 | R51: 16.70609329 | T51: 50152.17769 | U51: =IF(ExFlg=0,E51*Trends!T51,E51*Trends!X51) -> 28892.46074 | V51: 21259.71695 | X51: 65640.5051 | Y51: =IF(ExFlg=0,H51*Trends!V51,H51*Trends!Z51) -> 50334.70438 | Z51: 15305.80072 | AB51: 15305.80072 | AD51: =IF(B51<71,VLOOKUP(B51,Lookups!A:F,6),"") -> 0.24 | AE51: =IF(B51<71,VLOOKUP(Active!B51,Lookups!A:G,7),"") -> 0.24 | AF51: 0.24 | AG51: =IF(B51<70,VLOOKUP(CE51,Lookups!$Q$3:$S$53,2),"") -> 0.003591 | AH51: =IF(B51<70,VLOOKUP(CE51,Lookups!$Q$3:$S$53,3),"") -> 0.004906 | AJ51: =IF(B51<70,VLOOKUP(B51,Lookups!A:M,12),"") -> 0.002484 | AK51: =IF(B51<70,VLOOKUP(B51,Lookups!A:M,13),"") -> 0.002289 | AL51: 0.002289 | AM51: =IF(B51<70,VLOOKUP(B51,Lookups!A:H,8)*(1-VLOOKUP(B51,Lookups!$DY$3:$EA$103,2))^(A51-$A$3),"") -> 0.006203453097 | AN51: =IF(B51<70,VLOOKUP(B51,Lookups!A:I,9)*(1-VLOOKUP(B51,Lookups!$DY$3:$EA$103,3))^(A51-$A$3),"") -> 0.005684970504 | AO51: 0.005684970504 | AP51: 0.2479739705 | AQ51: 0.01246184887 | AR51: 0.1521947647 | AT51: =IF(BA51>=$B$3,VLOOKUP(BA51,Lookups!A:H,8)*(1-VLOOKUP(BA51,Lookups!DY:EA,2))^(BA51-$B$3),"") -> 0.1250464036 | AU51: =IF(BA51>=$B$3,VLOOKUP(BA51,Lookups!A:I,9)*(1-VLOOKUP(BA51,Lookups!DY:EA,3))^(BA51-$B$3),"") -> 0.09120881319 | AV51: 0.09120881319 | AW51: 0.5028245491 | AX51: 0.2166206064 | AY51: 0.942176 | BA51: 94 | BB51: 155871.1726 | BN51: 15996.09888 | BO51: 16681.5969 | BP51: 17399.17992 | BQ51: 18150.77686 | BR51: 18939.21894 | BS51: 19761.2453 | BT51: 20623.70566 | BU51: 21522.23735 | BV51: 22458.20066 | BW51: 23443.49352 | BX51: 24476.07288 | BY51: 25561.89004 | BZ51: 26708.49179 | CA51: 27921.52276 | CB51: 29204.40987 | CC51: 30562.34068 | CE51: 48.01
A52: 2064 | B52: 69 | D52: =VLOOKUP(B52,Lookups!A:B,2) -> 3407.003756 | E52: =VLOOKUP(B52,Lookups!A:C,3) -> 1715.34 | G52: =VLOOKUP(B52,Lookups!A:D,4) -> 4068.552479 | H52: =VLOOKUP(B52,Lookups!A:E,5) -> 2741.28 | J52: =VLOOKUP(A52,Trends!A50:Q142,IF(ExFlg=0,2,10),FALSE)+Sens -> 1.055 | K52: 18.05920497 | L52: =VLOOKUP(A52,Trends!A50:Q142,IF(ExFlg=0,4,12),FALSE)+Sens -> 1.056 | M52: 16.11146687 | O52: =VLOOKUP(A52,Trends!A50:Q142,IF(ExFlg=0,6,14),FALSE)+Sens -> 1.055 | P52: 17.0256488 | Q52: =VLOOKUP(A52,Trends!A50:Q142,IF(ExFlg=0,8,16),FALSE)+Sens -> 1.057 | R52: 17.6750467 | T52: 54891.82814 | U52: =IF(ExFlg=0,E52*Trends!T52,E52*Trends!X52) -> 30539.331 | V52: 24352.49714 | X52: 71911.85506 | Y52: =IF(ExFlg=0,H52*Trends!V52,H52*Trends!Z52) -> 53254.11723 | Z52: 18657.73783 | AB52: 18657.73783 | AD52: =IF(B52<71,VLOOKUP(B52,Lookups!A:F,6),"") -> 0.24 | AE52: =IF(B52<71,VLOOKUP(Active!B52,Lookups!A:G,7),"") -> 0.24 | AF52: 0.24 | AG52: =IF(B52<70,VLOOKUP(CE52,Lookups!$Q$3:$S$53,2),"") -> 0.003591 | AH52: =IF(B52<70,VLOOKUP(CE52,Lookups!$Q$3:$S$53,3),"") -> 0.004906 | AJ52: =IF(B52<70,VLOOKUP(B52,Lookups!A:M,12),"") -> 0.001837 | AK52: =IF(B52<70,VLOOKUP(B52,Lookups!A:M,13),"") -> 0.001735 | AL52: 0.001735 | AM52: =IF(B52<70,VLOOKUP(B52,Lookups!A:H,8)*(1-VLOOKUP(B52,Lookups!$DY$3:$EA$103,2))^(A52-$A$3),"") -> 0.006793093725 | AN52: =IF(B52<70,VLOOKUP(B52,Lookups!A:I,9)*(1-VLOOKUP(B52,Lookups!$DY$3:$EA$103,3))^(A52-$A$3),"") -> 0.006208765542 | AO52: 0.006208765542 | AP52: 0.2479437655 | AQ52: 0.009371634728 | AR52: 0.1463411199 | AT52: =IF(BA52>=$B$3,VLOOKUP(BA52,Lookups!A:H,8)*(1-VLOOKUP(BA52,Lookups!DY:EA,2))^(BA52-$B$3),"") -> 0.1458534826 | AU52: =IF(BA52>=$B$3,VLOOKUP(BA52,Lookups!A:I,9)*(1-VLOOKUP(BA52,Lookups!DY:EA,3))^(BA52-$B$3),"") -> 0.1063526734 | AV52: 0.1063526734 | AW52: 0.4569625188 | AX52: 0.2082890447 | AY52: 0.935502 | BA52: 95 | BB52: 163664.7312 | BN52: 14572.92835 | BO52: 15197.43771 | BP52: 15851.17748 | BQ52: 16535.90495 | BR52: 17254.19945 | BS52: 18003.09025 | BT52: 18788.81765 | BU52: 19607.4071 | BV52: 20460.0979 | BW52: 21357.72939 | BX52: 22298.44033 | BY52: 23287.6525 | BZ52: 24332.24126 | CA52: 25437.34904 | CB52: 26606.09788 | CC52: 27843.21379 | CE52: 49.01
A53: 2065 | B53: 70 | D53: =VLOOKUP(B53,Lookups!A:B,2) -> 3527.976229 | E53: =VLOOKUP(B53,Lookups!A:C,3) -> 1715.34 | G53: =VLOOKUP(B53,Lookups!A:D,4) -> 4213.014542 | H53: =VLOOKUP(B53,Lookups!A:E,5) -> 2741.28 | J53: =VLOOKUP(A53,Trends!A51:Q143,IF(ExFlg=0,2,10),FALSE)+Sens -> 1.054 | K53: 19.05246124 | L53: =VLOOKUP(A53,Trends!A51:Q143,IF(ExFlg=0,4,12),FALSE)+Sens -> 1.057 | M53: 17.01370902 | O53: =VLOOKUP(A53,Trends!A51:Q143,IF(ExFlg=0,6,14),FALSE)+Sens -> 1.055 | P53: 17.96205948 | Q53: =VLOOKUP(A53,Trends!A51:Q143,IF(ExFlg=0,8,16),FALSE)+Sens -> 1.056 | R53: 18.68252436 | T53: 60023.96097 | U53: =IF(ExFlg=0,E53*Trends!T53,E53*Trends!X53) -> 32249.53353 | V53: 27774.42744 | X53: 78709.74679 | Y53: =IF(ExFlg=0,H53*Trends!V53,H53*Trends!Z53) -> 56289.60191 | Z53: 22420.14488 | AB53: 22420.14488 | AD53: =IF(B53<71,VLOOKUP(B53,Lookups!A:F,6),"") -> 1 | AE53: =IF(B53<71,VLOOKUP(Active!B53,Lookups!A:G,7),"") -> 1 | AF53: 1 | AG53: =IF(B53<70,VLOOKUP(CE53,Lookups!$Q$3:$S$53,2),"") ->  | AH53: =IF(B53<70,VLOOKUP(CE53,Lookups!$Q$3:$S$53,3),"") ->  | AJ53: =IF(B53<70,VLOOKUP(B53,Lookups!A:M,12),"") ->  | AK53: =IF(B53<70,VLOOKUP(B53,Lookups!A:M,13),"") ->  | AM53: =IF(B53<70,VLOOKUP(B53,Lookups!A:H,8)*(1-VLOOKUP(B53,Lookups!$DY$3:$EA$103,2))^(A53-$A$3),"") ->  | AN53: =IF(B53<70,VLOOKUP(B53,Lookups!A:I,9)*(1-VLOOKUP(B53,Lookups!$DY$3:$EA$103,3))^(A53-$A$3),"") ->  | AP53: 1 | AQ53: 0.007047996325 | AR53: 0.1407126153 | AT53: =IF(BA53>=$B$3,VLOOKUP(BA53,Lookups!A:H,8)*(1-VLOOKUP(BA53,Lookups!DY:EA,2))^(BA53-$B$3),"") -> 0.1695155419 | AU53: =IF(BA53>=$B$3,VLOOKUP(BA53,Lookups!A:I,9)*(1-VLOOKUP(BA53,Lookups!DY:EA,3))^(BA53-$B$3),"") -> 0.1232650763 | AV53: 0.1232650763 | AW53: 0.4083633332 | AX53: 0.2002779276 | AY53: 0.928048 | BA53: 96 | BB53: 171847.9678 | BN53: 13043.5158 | BO53: 13602.48361 | BP53: 14187.61411 | BQ53: 14800.48021 | BR53: 15443.3905 | BS53: 16113.68605 | BT53: 16816.95223 | BU53: 17549.63163 | BV53: 18312.83349 | BW53: 19116.25956 | BX53: 19958.24393 | BY53: 20843.63939 | BZ53: 21778.59973 | CA53: 22767.72768 | CB53: 23813.81764 | CC53: 24921.09961 | CE53: 50.01
A54: 2066 | B54: 71 | D54: =VLOOKUP(B54,Lookups!A:B,2) -> 3653.329246 | E54: =VLOOKUP(B54,Lookups!A:C,3) -> 1715.34 | G54: =VLOOKUP(B54,Lookups!A:D,4) -> 4362.707731 | H54: =VLOOKUP(B54,Lookups!A:E,5) -> 2741.28 | J54: =VLOOKUP(A54,Trends!A52:Q144,IF(ExFlg=0,2,10),FALSE)+Sens -> 1.054 | K54: 20.08129415 | L54: =VLOOKUP(A54,Trends!A52:Q144,IF(ExFlg=0,4,12),FALSE)+Sens -> 1.057 | M54: 17.98349043 | O54: =VLOOKUP(A54,Trends!A52:Q144,IF(ExFlg=0,6,14),FALSE)+Sens -> 1.054 | P54: 18.94997275 | Q54: =VLOOKUP(A54,Trends!A52:Q144,IF(ExFlg=0,8,16),FALSE)+Sens -> 1.055 | R54: 19.72874572 | T54: 65699.61153 | U54: =IF(ExFlg=0,E54*Trends!T54,E54*Trends!X54) -> 34087.75695 | V54: 31611.85458 | X54: 86070.75148 | Y54: =IF(ExFlg=0,H54*Trends!V54,H54*Trends!Z54) -> 59441.81962 | Z54: 26628.93186 | AB54: 26628.93186 | AD54: =IF(B54<71,VLOOKUP(B54,Lookups!A:F,6),"") ->  | AE54: =IF(B54<71,VLOOKUP(Active!B54,Lookups!A:G,7),"") ->  | AG54: =IF(B54<70,VLOOKUP(CE54,Lookups!$Q$3:$S$53,2),"") ->  | AH54: =IF(B54<70,VLOOKUP(CE54,Lookups!$Q$3:$S$53,3),"") ->  | AJ54: =IF(B54<70,VLOOKUP(B54,Lookups!A:M,12),"") ->  | AK54: =IF(B54<70,VLOOKUP(B54,Lookups!A:M,13),"") ->  | AM54: =IF(B54<70,VLOOKUP(B54,Lookups!A:H,8)*(1-VLOOKUP(B54,Lookups!$DY$3:$EA$103,2))^(A54-$A$3),"") ->  | AN54: =IF(B54<70,VLOOKUP(B54,Lookups!A:I,9)*(1-VLOOKUP(B54,Lookups!$DY$3:$EA$103,3))^(A54-$A$3),"") ->  | AT54: =IF(BA54>=$B$3,VLOOKUP(BA54,Lookups!A:H,8)*(1-VLOOKUP(BA54,Lookups!DY:EA,2))^(BA54-$B$3),"") -> 0.1963505744 | AU54: =IF(BA54>=$B$3,VLOOKUP(BA54,Lookups!A:I,9)*(1-VLOOKUP(BA54,Lookups!DY:EA,3))^(BA54-$B$3),"") -> 0.1420414738 | AV54: 0.1420414738 | AW54: 0.3580263958 | AX54: 0.1925749303 | AY54: 0.919773 | BA54: 97 | BB54: 180440.3662 | BN54: 11442.71688 | BO54: 11933.08392 | BP54: 12446.40279 | BQ54: 12984.05332 | BR54: 13548.0608 | BS54: 14136.0926 | BT54: 14753.04864 | BU54: 15395.80809 | BV54: 16065.34404 | BW54: 16770.16758 | BX54: 17508.81726 | BY54: 18285.55029 | BZ54: 19105.76523 | CA54: 19973.49992 | CB54: 20891.2058 | CC54: 21862.59375 | CE54: 51.01
A55: 2067 | B55: 72 | D55: =VLOOKUP(B55,Lookups!A:B,2) -> 3744.506065 | E55: =VLOOKUP(B55,Lookups!A:C,3) -> 1715.34 | G55: =VLOOKUP(B55,Lookups!A:D,4) -> 4471.588639 | H55: =VLOOKUP(B55,Lookups!A:E,5) -> 2741.28 | J55: =VLOOKUP(A55,Trends!A53:Q145,IF(ExFlg=0,2,10),FALSE)+Sens -> 1.053 | K55: 21.16568403 | L55: =VLOOKUP(A55,Trends!A53:Q145,IF(ExFlg=0,4,12),FALSE)+Sens -> 1.056 | M55: 19.00854939 | O55: =VLOOKUP(A55,Trends!A53:Q145,IF(ExFlg=0,6,14),FALSE)+Sens -> 1.053 | P55: 19.97327128 | Q55: =VLOOKUP(A55,Trends!A53:Q145,IF(ExFlg=0,8,16),FALSE)+Sens -> 1.054 | R55: 20.81382674 | T55: 71177.62846 | U55: =IF(ExFlg=0,E55*Trends!T55,E55*Trends!X55) -> 36030.75909 | V55: 35146.86937 | X55: 93070.87117 | Y55: =IF(ExFlg=0,H55*Trends!V55,H55*Trends!Z55) -> 62711.1197 | Z55: 30359.75147 | AB55: 30359.75147 | AD55: =IF(B55<71,VLOOKUP(B55,Lookups!A:F,6),"") ->  | AE55: =IF(B55<71,VLOOKUP(Active!B55,Lookups!A:G,7),"") ->  | AG55: =IF(B55<70,VLOOKUP(CE55,Lookups!$Q$3:$S$53,2),"") ->  | AH55: =IF(B55<70,VLOOKUP(CE55,Lookups!$Q$3:$S$53,3),"") ->  | AJ55: =IF(B55<70,VLOOKUP(B55,Lookups!A:M,12),"") ->  | AK55: =IF(B55<70,VLOOKUP(B55,Lookups!A:M,13),"") ->  | AM55: =IF(B55<70,VLOOKUP(B55,Lookups!A:H,8)*(1-VLOOKUP(B55,Lookups!$DY$3:$EA$103,2))^(A55-$A$3),"") ->  | AN55: =IF(B55<70,VLOOKUP(B55,Lookups!A:I,9)*(1-VLOOKUP(B55,Lookups!$DY$3:$EA$103,3))^(A55-$A$3),"") ->  | AT55: =IF(BA55>=$B$3,VLOOKUP(BA55,Lookups!A:H,8)*(1-VLOOKUP(BA55,Lookups!DY:EA,2))^(BA55-$B$3),"") -> 0.2065501065 | AU55: =IF(BA55>=$B$3,VLOOKUP(BA55,Lookups!A:I,9)*(1-VLOOKUP(BA55,Lookups!DY:EA,3))^(BA55-$B$3),"") -> 0.148265961 | AV55: 0.148265961 | AW55: 0.3071717989 | AX55: 0.1851682023 | AY55: 0.91703 | BA55: 98 | BB55: 189462.3845 | BN55: 9882.214894 | BO55: 10305.70807 | BP55: 10749.02301 | BQ55: 11213.35138 | BR55: 11700.44227 | BS55: 12208.28116 | BT55: 12741.09974 | BU55: 13296.20278 | BV55: 13874.43068 | BW55: 14483.13383 | BX55: 15121.05006 | BY55: 15791.85603 | BZ55: 16500.21404 | CA55: 17249.6113 | CB55: 18042.16493 | CC55: 18881.07972 | CE55: 52.01
A56: 2068 | B56: 73 | D56: =VLOOKUP(B56,Lookups!A:B,2) -> 3837.959945 | E56: =VLOOKUP(B56,Lookups!A:C,3) -> 1715.34 | G56: =VLOOKUP(B56,Lookups!A:D,4) -> 4583.188751 | H56: =VLOOKUP(B56,Lookups!A:E,5) -> 2741.28 | J56: =VLOOKUP(A56,Trends!A54:Q146,IF(ExFlg=0,2,10),FALSE)+Sens -> 1.052 | K56: 22.28746528 | L56: =VLOOKUP(A56,Trends!A54:Q146,IF(ExFlg=0,4,12),FALSE)+Sens -> 1.055 | M56: 20.07302815 | O56: =VLOOKUP(A56,Trends!A54:Q146,IF(ExFlg=0,6,14),FALSE)+Sens -> 1.052 | P56: 21.03185466 | Q56: =VLOOKUP(A56,Trends!A54:Q146,IF(ExFlg=0,8,16),FALSE)+Sens -> 1.053 | R56: 21.93777338 | T56: 77039.47802 | U56: =IF(ExFlg=0,E56*Trends!T56,E56*Trends!X56) -> 38048.4816 | V56: 38990.99642 | X56: 100544.9562 | Y56: =IF(ExFlg=0,H56*Trends!V56,H56*Trends!Z56) -> 66097.52016 | Z56: 34447.43602 | AB56: 34447.43602 | AD56: =IF(B56<71,VLOOKUP(B56,Lookups!A:F,6),"") ->  | AE56: =IF(B56<71,VLOOKUP(Active!B56,Lookups!A:G,7),"") ->  | AG56: =IF(B56<70,VLOOKUP(CE56,Lookups!$Q$3:$S$53,2),"") ->  | AH56: =IF(B56<70,VLOOKUP(CE56,Lookups!$Q$3:$S$53,3),"") ->  | AJ56: =IF(B56<70,VLOOKUP(B56,Lookups!A:M,12),"") ->  | AK56: =IF(B56<70,VLOOKUP(B56,Lookups!A:M,13),"") ->  | AM56: =IF(B56<70,VLOOKUP(B56,Lookups!A:H,8)*(1-VLOOKUP(B56,Lookups!$DY$3:$EA$103,2))^(A56-$A$3),"") ->  | AN56: =IF(B56<70,VLOOKUP(B56,Lookups!A:I,9)*(1-VLOOKUP(B56,Lookups!$DY$3:$EA$103,3))^(A56-$A$3),"") ->  | AT56: =IF(BA56>=$B$3,VLOOKUP(BA56,Lookups!A:H,8)*(1-VLOOKUP(BA56,Lookups!DY:EA,2))^(BA56-$B$3),"") -> 0.2377186977 | AU56: =IF(BA56>=$B$3,VLOOKUP(BA56,Lookups!A:I,9)*(1-VLOOKUP(BA56,Lookups!DY:EA,3))^(BA56-$B$3),"") -> 0.1688457487 | AV56: 0.1688457487 | AW56: 0.2616286769 | AX56: 0.1780463483 | AY56: 0.907961 | BA56: 99 | BB56: 198935.5037 | BN56: 8413.910892 | BO56: 8774.48126 | BP56: 9151.928263 | BQ56: 9547.266511 | BR56: 9961.985211 | BS56: 10394.36917 | BT56: 10848.02132 | BU56: 11320.6469 | BV56: 11812.96143 | BW56: 12331.22319 | BX56: 12874.35754 | BY56: 13445.49484 | BZ56: 14048.6047 | CA56: 14686.65618 | CB56: 15361.45182 | CC56: 16075.72027 | CE56: 53.01
A57: =1+A56 -> 2069 | B57: =1+B56 -> 74 | D57: =VLOOKUP(B57,Lookups!A:B,2) -> 3933.747791 | E57: =VLOOKUP(B57,Lookups!A:C,3) -> 1715.34 | G57: =VLOOKUP(B57,Lookups!A:D,4) -> 4697.576023 | H57: =VLOOKUP(B57,Lookups!A:E,5) -> 2741.28 | J57: =VLOOKUP(A57,Trends!A55:Q147,IF(ExFlg=0,2,10),FALSE)+Sens -> 1.051 | K57: 23.44641348 | L57: =VLOOKUP(A57,Trends!A55:Q147,IF(ExFlg=0,4,12),FALSE)+Sens -> 1.054 | M57: 21.1770447 | O57: =VLOOKUP(A57,Trends!A55:Q147,IF(ExFlg=0,6,14),FALSE)+Sens -> 1.051 | P57: 22.1255111 | Q57: =VLOOKUP(A57,Trends!A55:Q147,IF(ExFlg=0,8,16),FALSE)+Sens -> 1.052 | R57: 23.10047537 | T57: 83305.15281 | U57: =IF(ExFlg=0,E57*Trends!T57,E57*Trends!X57) -> 40141.14809 | V57: 43164.00472 | X57: 108516.2392 | Y57: =IF(ExFlg=0,H57*Trends!V57,H57*Trends!Z57) -> 69600.68873 | Z57: 38915.55048 | AB57: 38915.55048 | AD57: =IF(B57<71,VLOOKUP(B57,Lookups!A:F,6),"") ->  | AE57: =IF(B57<71,VLOOKUP(Active!B57,Lookups!A:G,7),"") ->  | AG57: =IF(B57<70,VLOOKUP(CE57,Lookups!$Q$3:$S$53,2),"") ->  | AH57: =IF(B57<70,VLOOKUP(CE57,Lookups!$Q$3:$S$53,3),"") ->  | AJ57: =IF(B57<70,VLOOKUP(B57,Lookups!A:M,12),"") ->  | AK57: =IF(B57<70,VLOOKUP(B57,Lookups!A:M,13),"") ->  | AM57: =IF(B57<70,VLOOKUP(B57,Lookups!A:H,8)*(1-VLOOKUP(B57,Lookups!$DY$3:$EA$103,2))^(A57-$A$3),"") ->  | AN57: =IF(B57<70,VLOOKUP(B57,Lookups!A:I,9)*(1-VLOOKUP(B57,Lookups!$DY$3:$EA$103,3))^(A57-$A$3),"") ->  | AT57: =IF(BA57>=$B$3,VLOOKUP(BA57,Lookups!A:H,8)*(1-VLOOKUP(BA57,Lookups!DY:EA,2))^(BA57-$B$3),"") -> 0.2482140239 | AU57: =IF(BA57>=$B$3,VLOOKUP(BA57,Lookups!A:I,9)*(1-VLOOKUP(BA57,Lookups!DY:EA,3))^(BA57-$B$3),"") -> 0.1739318014 | AV57: 0.1739318014 | AW57: 0.2174537871 | AX57: 0.1711984118 | AY57: 0.905719 | BA57: 100 | BB57: 208683.3434 | BN57: 7036.358713 | BO57: 7337.895357 | BP57: 7653.545539 | BQ57: 7984.157755 | BR57: 8330.977394 | BS57: 8692.57008 | BT57: 9071.948861 | BU57: 9467.194682 | BV57: 9878.905919 | BW57: 10312.31621 | BX57: 10766.52689 | BY57: 11244.15578 | BZ57: 11748.52258 | CA57: 12282.11024 | CB57: 12846.42621 | CC57: 13443.75236 | CE57: 54.01
A58: 2070 | B58: 75 | D58: =VLOOKUP(B58,Lookups!A:B,2) -> 4031.927932 | E58: =VLOOKUP(B58,Lookups!A:C,3) -> 1715.34 | G58: =VLOOKUP(B58,Lookups!A:D,4) -> 4814.82011 | H58: =VLOOKUP(B58,Lookups!A:E,5) -> 2741.28 | J58: =VLOOKUP(A58,Trends!A56:Q148,IF(ExFlg=0,2,10),FALSE)+Sens -> 1.05 | K58: 24.64218057 | L58: =VLOOKUP(A58,Trends!A56:Q148,IF(ExFlg=0,4,12),FALSE)+Sens -> 1.053 | M58: 22.32060511 | O58: =VLOOKUP(A58,Trends!A56:Q148,IF(ExFlg=0,6,14),FALSE)+Sens -> 1.05 | P58: 23.25391217 | Q58: =VLOOKUP(A58,Trends!A56:Q148,IF(ExFlg=0,8,16),FALSE)+Sens -> 1.052 | R58: 24.30170009 | T58: 89995.07122 | U58: =IF(ExFlg=0,E58*Trends!T58,E58*Trends!X58) -> 42308.77008 | V58: 47686.30114 | X58: 117008.3143 | Y58: =IF(ExFlg=0,H58*Trends!V58,H58*Trends!Z58) -> 73219.92455 | Z58: 43788.38974 | AB58: 43788.38974 | AD58: =IF(B58<71,VLOOKUP(B58,Lookups!A:F,6),"") ->  | AE58: =IF(B58<71,VLOOKUP(Active!B58,Lookups!A:G,7),"") ->  | AG58: =IF(B58<70,VLOOKUP(CE58,Lookups!$Q$3:$S$53,2),"") ->  | AH58: =IF(B58<70,VLOOKUP(CE58,Lookups!$Q$3:$S$53,3),"") ->  | AJ58: =IF(B58<70,VLOOKUP(B58,Lookups!A:M,12),"") ->  | AK58: =IF(B58<70,VLOOKUP(B58,Lookups!A:M,13),"") ->  | AM58: =IF(B58<70,VLOOKUP(B58,Lookups!A:H,8)*(1-VLOOKUP(B58,Lookups!$DY$3:$EA$103,2))^(A58-$A$3),"") ->  | AN58: =IF(B58<70,VLOOKUP(B58,Lookups!A:I,9)*(1-VLOOKUP(B58,Lookups!$DY$3:$EA$103,3))^(A58-$A$3),"") ->  | AT58: =IF(BA58>=$B$3,VLOOKUP(BA58,Lookups!A:H,8)*(1-VLOOKUP(BA58,Lookups!DY:EA,2))^(BA58-$B$3),"") -> 0.2843097678 | AU58: =IF(BA58>=$B$3,VLOOKUP(BA58,Lookups!A:I,9)*(1-VLOOKUP(BA58,Lookups!DY:EA,3))^(BA58-$B$3),"") -> 0.1959454708 | AV58: 0.1959454708 | AW58: 0.1796316582 | AX58: 0.1646138575 | AY58: 0.896018 | BA58: 101 | BB58: 218908.8272 | BN58: 5800.017176 | BO58: 6048.571547 | BP58: 6308.759601 | BQ58: 6581.280746 | BR58: 6867.161547 | BS58: 7165.219658 | BT58: 7477.938713 | BU58: 7803.736849 | BV58: 8143.107302 | BW58: 8500.364125 | BX58: 8874.76654 | BY58: 9268.47242 | BZ58: 9684.218151 | CA58: 10124.05042 | CB58: 10589.21179 | CC58: 11081.58322 | CE58: 55.01
A59: 2071 | B59: 76 | D59: =VLOOKUP(B59,Lookups!A:B,2) -> 4132.560157 | E59: =VLOOKUP(B59,Lookups!A:C,3) -> 1715.34 | G59: =VLOOKUP(B59,Lookups!A:D,4) -> 4934.992408 | H59: =VLOOKUP(B59,Lookups!A:E,5) -> 2741.28 | J59: =VLOOKUP(A59,Trends!A57:Q149,IF(ExFlg=0,2,10),FALSE)+Sens -> 1.05 | K59: 25.8742896 | L59: =VLOOKUP(A59,Trends!A57:Q149,IF(ExFlg=0,4,12),FALSE)+Sens -> 1.052 | M59: 23.50359718 | O59: =VLOOKUP(A59,Trends!A57:Q149,IF(ExFlg=0,6,14),FALSE)+Sens -> 1.05 | P59: 24.41660778 | Q59: =VLOOKUP(A59,Trends!A57:Q149,IF(ExFlg=0,8,16),FALSE)+Sens -> 1.051 | R59: 25.56538849 | T59: 97130.02927 | U59: =IF(ExFlg=0,E59*Trends!T59,E59*Trends!X59) -> 44551.1349 | V59: 52578.89437 | X59: 126164.9981 | Y59: =IF(ExFlg=0,H59*Trends!V59,H59*Trends!Z59) -> 77027.36062 | Z59: 49137.6375 | AB59: 49137.6375 | AD59: =IF(B59<71,VLOOKUP(B59,Lookups!A:F,6),"") ->  | AE59: =IF(B59<71,VLOOKUP(Active!B59,Lookups!A:G,7),"") ->  | AG59: =IF(B59<70,VLOOKUP(CE59,Lookups!$Q$3:$S$53,2),"") ->  | AH59: =IF(B59<70,VLOOKUP(CE59,Lookups!$Q$3:$S$53,3),"") ->  | AJ59: =IF(B59<70,VLOOKUP(B59,Lookups!A:M,12),"") ->  | AK59: =IF(B59<70,VLOOKUP(B59,Lookups!A:M,13),"") ->  | AM59: =IF(B59<70,VLOOKUP(B59,Lookups!A:H,8)*(1-VLOOKUP(B59,Lookups!$DY$3:$EA$103,2))^(A59-$A$3),"") ->  | AN59: =IF(B59<70,VLOOKUP(B59,Lookups!A:I,9)*(1-VLOOKUP(B59,Lookups!$DY$3:$EA$103,3))^(A59-$A$3),"") ->  | AT59: =IF(BA59>=$B$3,VLOOKUP(BA59,Lookups!A:H,8)*(1-VLOOKUP(BA59,Lookups!DY:EA,2))^(BA59-$B$3),"") -> 0.2953294109 | AU59: =IF(BA59>=$B$3,VLOOKUP(BA59,Lookups!A:I,9)*(1-VLOOKUP(BA59,Lookups!DY:EA,3))^(BA59-$B$3),"") -> 0.201620289 | AV59: 0.201620289 | AW59: 0.1444336483 | AX59: 0.1582825553 | AY59: 0.893517 | BA59: 102 | BB59: 229635.3598 | BN59: 4690.75788 | BO59: 4891.77597 | BP59: 5102.202789 | BQ59: 5322.603982 | BR59: 5553.809783 | BS59: 5794.863972 | BT59: 6047.775184 | BU59: 6311.264088 | BV59: 6585.72959 | BW59: 6874.660675 | BX59: 7177.45824 | BY59: 7495.867463 | BZ59: 7832.101393 | CA59: 8187.815283 | CB59: 8564.014061 | CC59: 8962.21894 | CE59: 56.01
A60: 2072 | B60: 77 | D60: =VLOOKUP(B60,Lookups!A:B,2) -> 4199.687803 | E60: =VLOOKUP(B60,Lookups!A:C,3) -> 1715.34 | G60: =VLOOKUP(B60,Lookups!A:D,4) -> 5015.154443 | H60: =VLOOKUP(B60,Lookups!A:E,5) -> 2741.28 | J60: =VLOOKUP(A60,Trends!A58:Q150,IF(ExFlg=0,2,10),FALSE)+Sens -> 1.049 | K60: 27.16800408 | L60: =VLOOKUP(A60,Trends!A58:Q150,IF(ExFlg=0,4,12),FALSE)+Sens -> 1.052 | M60: 24.72578424 | O60: =VLOOKUP(A60,Trends!A58:Q150,IF(ExFlg=0,6,14),FALSE)+Sens -> 1.05 | P60: 25.63743816 | Q60: =VLOOKUP(A60,Trends!A58:Q150,IF(ExFlg=0,8,16),FALSE)+Sens -> 1.051 | R60: 26.86922331 | T60: 103840.5745 | U60: =IF(ExFlg=0,E60*Trends!T60,E60*Trends!X60) -> 46867.79391 | V60: 56972.78057 | X60: 134753.3046 | Y60: =IF(ExFlg=0,H60*Trends!V60,H60*Trends!Z60) -> 80955.75602 | Z60: 53797.54863 | AB60: 53797.54863 | AD60: =IF(B60<71,VLOOKUP(B60,Lookups!A:F,6),"") ->  | AE60: =IF(B60<71,VLOOKUP(Active!B60,Lookups!A:G,7),"") ->  | AG60: =IF(B60<70,VLOOKUP(CE60,Lookups!$Q$3:$S$53,2),"") ->  | AH60: =IF(B60<70,VLOOKUP(CE60,Lookups!$Q$3:$S$53,3),"") ->  | AJ60: =IF(B60<70,VLOOKUP(B60,Lookups!A:M,12),"") ->  | AK60: =IF(B60<70,VLOOKUP(B60,Lookups!A:M,13),"") ->  | AM60: =IF(B60<70,VLOOKUP(B60,Lookups!A:H,8)*(1-VLOOKUP(B60,Lookups!$DY$3:$EA$103,2))^(A60-$A$3),"") ->  | AN60: =IF(B60<70,VLOOKUP(B60,Lookups!A:I,9)*(1-VLOOKUP(B60,Lookups!$DY$3:$EA$103,3))^(A60-$A$3),"") ->  | AT60: =IF(BA60>=$B$3,VLOOKUP(BA60,Lookups!A:H,8)*(1-VLOOKUP(BA60,Lookups!DY:EA,2))^(BA60-$B$3),"") -> 0.3369712748 | AU60: =IF(BA60>=$B$3,VLOOKUP(BA60,Lookups!A:I,9)*(1-VLOOKUP(BA60,Lookups!DY:EA,3))^(BA60-$B$3),"") -> 0.2307290192 | AV60: 0.2307290192 | AW60: 0.1153128944 | AX60: 0.1521947647 | AY60: 0.880688 | BA60: 103 | BB60: 240887.4924 | BN60: 3723.179001 | BO60: 3882.732394 | BP60: 4049.753744 | BQ60: 4224.692019 | BR60: 4408.206199 | BS60: 4599.537305 | BT60: 4800.279645 | BU60: 5009.41778 | BV60: 5227.268332 | BW60: 5456.600602 | BX60: 5696.939064 | BY60: 5949.668913 | BZ60: 6216.546705 | CA60: 6498.886259 | CB60: 6797.485212 | CC60: 7113.550991 | CE60: 57.01
A61: 2073 | B61: 78 | D61: =VLOOKUP(B61,Lookups!A:B,2) -> 4267.90668 | E61: =VLOOKUP(B61,Lookups!A:C,3) -> 1715.34 | G61: =VLOOKUP(B61,Lookups!A:D,4) -> 5096.619597 | H61: =VLOOKUP(B61,Lookups!A:E,5) -> 2741.28 | J61: =VLOOKUP(A61,Trends!A59:Q151,IF(ExFlg=0,2,10),FALSE)+Sens -> 1.049 | K61: 28.49923627 | L61: =VLOOKUP(A61,Trends!A59:Q151,IF(ExFlg=0,4,12),FALSE)+Sens -> 1.052 | M61: 26.01152502 | O61: =VLOOKUP(A61,Trends!A59:Q151,IF(ExFlg=0,6,14),FALSE)+Sens -> 1.05 | P61: 26.91931007 | Q61: =VLOOKUP(A61,Trends!A59:Q151,IF(ExFlg=0,8,16),FALSE)+Sens -> 1.051 | R61: 28.2395537 | T61: 111014.7614 | U61: =IF(ExFlg=0,E61*Trends!T61,E61*Trends!X61) -> 49304.9192 | V61: 61709.84219 | X61: 143926.2628 | Y61: =IF(ExFlg=0,H61*Trends!V61,H61*Trends!Z61) -> 85084.49957 | Z61: 58841.76321 | AB61: 58841.76321 | AD61: =IF(B61<71,VLOOKUP(B61,Lookups!A:F,6),"") ->  | AE61: =IF(B61<71,VLOOKUP(Active!B61,Lookups!A:G,7),"") ->  | AG61: =IF(B61<70,VLOOKUP(CE61,Lookups!$Q$3:$S$53,2),"") ->  | AH61: =IF(B61<70,VLOOKUP(CE61,Lookups!$Q$3:$S$53,3),"") ->  | AJ61: =IF(B61<70,VLOOKUP(B61,Lookups!A:M,12),"") ->  | AK61: =IF(B61<70,VLOOKUP(B61,Lookups!A:M,13),"") ->  | AM61: =IF(B61<70,VLOOKUP(B61,Lookups!A:H,8)*(1-VLOOKUP(B61,Lookups!$DY$3:$EA$103,2))^(A61-$A$3),"") ->  | AN61: =IF(B61<70,VLOOKUP(B61,Lookups!A:I,9)*(1-VLOOKUP(B61,Lookups!$DY$3:$EA$103,3))^(A61-$A$3),"") ->  | AT61: =IF(BA61>=$B$3,VLOOKUP(BA61,Lookups!A:H,8)*(1-VLOOKUP(BA61,Lookups!DY:EA,2))^(BA61-$B$3),"") -> 0.3469185025 | AU61: =IF(BA61>=$B$3,VLOOKUP(BA61,Lookups!A:I,9)*(1-VLOOKUP(BA61,Lookups!DY:EA,3))^(BA61-$B$3),"") -> 0.2409554775 | AV61: 0.2409554775 | AW61: 0.0887068634 | AX61: 0.1463411199 | AY61: 0.876181 | BA61: 104 | BB61: 252690.9795 | BN61: 2874.135029 | BO61: 2997.303427 | BP61: 3126.23677 | BQ61: 3261.28164 | BR61: 3402.946742 | BS61: 3550.646177 | BT61: 3705.610681 | BU61: 3867.056382 | BV61: 4035.227695 | BW61: 4212.262403 | BX61: 4397.793422 | BY61: 4592.890062 | BZ61: 4798.908309 | CA61: 5016.862375 | CB61: 5247.368002 | CC61: 5491.357272 | CE61: 58.01
A62: 2074 | B62: 79 | D62: =VLOOKUP(B62,Lookups!A:B,2) -> 4337.234541 | E62: =VLOOKUP(B62,Lookups!A:C,3) -> 1715.34 | G62: =VLOOKUP(B62,Lookups!A:D,4) -> 5179.40907 | H62: =VLOOKUP(B62,Lookups!A:E,5) -> 2741.28 | J62: =VLOOKUP(A62,Trends!A60:Q152,IF(ExFlg=0,2,10),FALSE)+Sens -> 1.049 | K62: 29.89569885 | L62: =VLOOKUP(A62,Trends!A60:Q152,IF(ExFlg=0,4,12),FALSE)+Sens -> 1.052 | M62: 27.36412432 | O62: =VLOOKUP(A62,Trends!A60:Q152,IF(ExFlg=0,6,14),FALSE)+Sens -> 1.05 | P62: 28.26527558 | Q62: =VLOOKUP(A62,Trends!A60:Q152,IF(ExFlg=0,8,16),FALSE)+Sens -> 1.05 | R62: 29.67977093 | T62: 118684.6252 | U62: =IF(ExFlg=0,E62*Trends!T62,E62*Trends!X62) -> 51868.775 | V62: 66815.85019 | X62: 153723.6748 | Y62: =IF(ExFlg=0,H62*Trends!V62,H62*Trends!Z62) -> 89423.80905 | Z62: 64299.86572 | AB62: 64299.86572 | AD62: =IF(B62<71,VLOOKUP(B62,Lookups!A:F,6),"") ->  | AE62: =IF(B62<71,VLOOKUP(Active!B62,Lookups!A:G,7),"") ->  | AG62: =IF(B62<70,VLOOKUP(CE62,Lookups!$Q$3:$S$53,2),"") ->  | AH62: =IF(B62<70,VLOOKUP(CE62,Lookups!$Q$3:$S$53,3),"") ->  | AJ62: =IF(B62<70,VLOOKUP(B62,Lookups!A:M,12),"") ->  | AK62: =IF(B62<70,VLOOKUP(B62,Lookups!A:M,13),"") ->  | AM62: =IF(B62<70,VLOOKUP(B62,Lookups!A:H,8)*(1-VLOOKUP(B62,Lookups!$DY$3:$EA$103,2))^(A62-$A$3),"") ->  | AN62: =IF(B62<70,VLOOKUP(B62,Lookups!A:I,9)*(1-VLOOKUP(B62,Lookups!$DY$3:$EA$103,3))^(A62-$A$3),"") ->  | AT62: =IF(BA62>=$B$3,VLOOKUP(BA62,Lookups!A:H,8)*(1-VLOOKUP(BA62,Lookups!DY:EA,2))^(BA62-$B$3),"") -> 0.392003 | AU62: =IF(BA62>=$B$3,VLOOKUP(BA62,Lookups!A:I,9)*(1-VLOOKUP(BA62,Lookups!DY:EA,3))^(BA62-$B$3),"") -> 0.279055 | AV62: 0.279055 | AW62: 0.06733245878 | AX62: 0.1407126153 | AY62: 0.859391 | BA62: 105 | BB62: 265072.8375 | BN62: 2158.30858 | BO62: 2250.800898 | BP62: 2347.622354 | BQ62: 2449.033213 | BR62: 2555.415482 | BS62: 2666.329185 | BT62: 2782.698533 | BU62: 2903.934883 | BV62: 3030.221778 | BW62: 3163.164568 | BX62: 3302.487594 | BY62: 3448.993846 | BZ62: 3603.701592 | CA62: 3767.372444 | CB62: 3940.468791 | CC62: 4123.69057 | CE62: 59.01
A63: 2075 | B63: 80 | D63: =VLOOKUP(B63,Lookups!A:B,2) -> 4407.689428 | E63: =VLOOKUP(B63,Lookups!A:C,3) -> 1715.34 | G63: =VLOOKUP(B63,Lookups!A:D,4) -> 5263.544407 | H63: =VLOOKUP(B63,Lookups!A:E,5) -> 2741.28 | J63: =VLOOKUP(A63,Trends!A61:Q153,IF(ExFlg=0,2,10),FALSE)+Sens -> 1.049 | K63: 31.3605881 | L63: =VLOOKUP(A63,Trends!A61:Q153,IF(ExFlg=0,4,12),FALSE)+Sens -> 1.052 | M63: 28.78705878 | O63: =VLOOKUP(A63,Trends!A61:Q153,IF(ExFlg=0,6,14),FALSE)+Sens -> 1.049 | P63: 29.67853935 | Q63: =VLOOKUP(A63,Trends!A61:Q153,IF(ExFlg=0,8,16),FALSE)+Sens -> 1.05 | R63: 31.16375948 | T63: 126884.4147 | U63: =IF(ExFlg=0,E63*Trends!T63,E63*Trends!X63) -> 54565.9513 | V63: 72318.46337 | X63: 164031.8319 | Y63: =IF(ExFlg=0,H63*Trends!V63,H63*Trends!Z63) -> 93894.9995 | Z63: 70136.8324 | AB63: 70136.8324 | AD63: =IF(B63<71,VLOOKUP(B63,Lookups!A:F,6),"") ->  | AE63: =IF(B63<71,VLOOKUP(Active!B63,Lookups!A:G,7),"") ->  | AG63: =IF(B63<70,VLOOKUP(CE63,Lookups!$Q$3:$S$53,2),"") ->  | AH63: =IF(B63<70,VLOOKUP(CE63,Lookups!$Q$3:$S$53,3),"") ->  | AJ63: =IF(B63<70,VLOOKUP(B63,Lookups!A:M,12),"") ->  | AK63: =IF(B63<70,VLOOKUP(B63,Lookups!A:M,13),"") ->  | AM63: =IF(B63<70,VLOOKUP(B63,Lookups!A:H,8)*(1-VLOOKUP(B63,Lookups!$DY$3:$EA$103,2))^(A63-$A$3),"") ->  | AN63: =IF(B63<70,VLOOKUP(B63,Lookups!A:I,9)*(1-VLOOKUP(B63,Lookups!$DY$3:$EA$103,3))^(A63-$A$3),"") ->  | AT63: =IF(BA63>=$B$3,VLOOKUP(BA63,Lookups!A:H,8)*(1-VLOOKUP(BA63,Lookups!DY:EA,2))^(BA63-$B$3),"") -> 0.397886 | AU63: =IF(BA63>=$B$3,VLOOKUP(BA63,Lookups!A:I,9)*(1-VLOOKUP(BA63,Lookups!DY:EA,3))^(BA63-$B$3),"") -> 0.293116 | AV63: 0.293116 | AW63: 0.04854299949 | AX63: 0.1353005917 | AY63: 0.853194 | BA63: 106 | BB63: 278061.4066 | BN63: 1558.169904 | BO63: 1624.943834 | BP63: 1694.843144 | BQ63: 1768.055728 | BR63: 1844.857373 | BS63: 1924.930442 | BT63: 2008.942163 | BU63: 2096.467567 | BV63: 2187.639164 | BW63: 2283.615919 | BX63: 2384.198824 | BY63: 2489.967589 | BZ63: 2601.657342 | CA63: 2719.817923 | CB63: 2844.783149 | CC63: 2977.058332 | CE63: 60.01
A64: 2076 | B64: 81 | D64: =VLOOKUP(B64,Lookups!A:B,2) -> 4479.289676 | E64: =VLOOKUP(B64,Lookups!A:C,3) -> 1715.34 | G64: =VLOOKUP(B64,Lookups!A:D,4) -> 5349.047503 | H64: =VLOOKUP(B64,Lookups!A:E,5) -> 2741.28 | J64: =VLOOKUP(A64,Trends!A62:Q154,IF(ExFlg=0,2,10),FALSE)+Sens -> 1.049 | K64: 32.89725691 | L64: =VLOOKUP(A64,Trends!A62:Q154,IF(ExFlg=0,4,12),FALSE)+Sens -> 1.052 | M64: 30.28398584 | O64: =VLOOKUP(A64,Trends!A62:Q154,IF(ExFlg=0,6,14),FALSE)+Sens -> 1.049 | P64: 31.13278778 | Q64: =VLOOKUP(A64,Trends!A62:Q154,IF(ExFlg=0,8,16),FALSE)+Sens -> 1.05 | R64: 32.72194745 | T64: 135650.7451 | U64: =IF(ExFlg=0,E64*Trends!T64,E64*Trends!X64) -> 57403.38076 | V64: 78247.36435 | X64: 175031.2513 | Y64: =IF(ExFlg=0,H64*Trends!V64,H64*Trends!Z64) -> 98589.74948 | Z64: 76441.50185 | AB64: 76441.50185 | AD64: =IF(B64<71,VLOOKUP(B64,Lookups!A:F,6),"") ->  | AE64: =IF(B64<71,VLOOKUP(Active!B64,Lookups!A:G,7),"") ->  | AG64: =IF(B64<70,VLOOKUP(CE64,Lookups!$Q$3:$S$53,2),"") ->  | AH64: =IF(B64<70,VLOOKUP(CE64,Lookups!$Q$3:$S$53,3),"") ->  | AJ64: =IF(B64<70,VLOOKUP(B64,Lookups!A:M,12),"") ->  | AK64: =IF(B64<70,VLOOKUP(B64,Lookups!A:M,13),"") ->  | AM64: =IF(B64<70,VLOOKUP(B64,Lookups!A:H,8)*(1-VLOOKUP(B64,Lookups!$DY$3:$EA$103,2))^(A64-$A$3),"") ->  | AN64: =IF(B64<70,VLOOKUP(B64,Lookups!A:I,9)*(1-VLOOKUP(B64,Lookups!$DY$3:$EA$103,3))^(A64-$A$3),"") ->  | AT64: =IF(BA64>=$B$3,VLOOKUP(BA64,Lookups!A:H,8)*(1-VLOOKUP(BA64,Lookups!DY:EA,2))^(BA64-$B$3),"") -> 0.4 | AU64: =IF(BA64>=$B$3,VLOOKUP(BA64,Lookups!A:I,9)*(1-VLOOKUP(BA64,Lookups!DY:EA,3))^(BA64-$B$3),"") -> 0.307811 | AV64: 0.307811 | AW64: 0.03431426965 | AX64: 0.1300967228 | AY64: 0.846718 | BA64: 107 | BB64: 291686.4155 | BN64: 1102.544462 | BO64: 1149.792985 | BP64: 1199.252993 | BQ64: 1251.05744 | BR64: 1305.401467 | BS64: 1362.06032 | BT64: 1421.50612 | BU64: 1483.438166 | BV64: 1547.950219 | BW64: 1615.862351 | BX64: 1687.033745 | BY64: 1761.874599 | BZ64: 1840.905081 | CA64: 1924.514252 | CB64: 2012.938317 | CC64: 2106.534831 | CE64: 61.01
A65: 2077 | B65: 82 | D65: =VLOOKUP(B65,Lookups!A:B,2) -> 4501.691505 | E65: =VLOOKUP(B65,Lookups!A:C,3) -> 1715.34 | G65: =VLOOKUP(B65,Lookups!A:D,4) -> 5375.799166 | H65: =VLOOKUP(B65,Lookups!A:E,5) -> 2741.28 | J65: =VLOOKUP(A65,Trends!A63:Q155,IF(ExFlg=0,2,10),FALSE)+Sens -> 1.049 | K65: 34.5092225 | L65: =VLOOKUP(A65,Trends!A63:Q155,IF(ExFlg=0,4,12),FALSE)+Sens -> 1.052 | M65: 31.8587531 | O65: =VLOOKUP(A65,Trends!A63:Q155,IF(ExFlg=0,6,14),FALSE)+Sens -> 1.049 | P65: 32.65829438 | Q65: =VLOOKUP(A65,Trends!A63:Q155,IF(ExFlg=0,8,16),FALSE)+Sens -> 1.05 | R65: 34.35804483 | T65: 143418.2782 | U65: =IF(ExFlg=0,E65*Trends!T65,E65*Trends!X65) -> 60388.35656 | V65: 83029.92165 | X65: 184701.9487 | Y65: =IF(ExFlg=0,H65*Trends!V65,H65*Trends!Z65) -> 103519.237 | Z65: 81182.71177 | AB65: 81182.71177 | AD65: =IF(B65<71,VLOOKUP(B65,Lookups!A:F,6),"") ->  | AE65: =IF(B65<71,VLOOKUP(Active!B65,Lookups!A:G,7),"") ->  | AG65: =IF(B65<70,VLOOKUP(CE65,Lookups!$Q$3:$S$53,2),"") ->  | AH65: =IF(B65<70,VLOOKUP(CE65,Lookups!$Q$3:$S$53,3),"") ->  | AJ65: =IF(B65<70,VLOOKUP(B65,Lookups!A:M,12),"") ->  | AK65: =IF(B65<70,VLOOKUP(B65,Lookups!A:M,13),"") ->  | AM65: =IF(B65<70,VLOOKUP(B65,Lookups!A:H,8)*(1-VLOOKUP(B65,Lookups!$DY$3:$EA$103,2))^(A65-$A$3),"") ->  | AN65: =IF(B65<70,VLOOKUP(B65,Lookups!A:I,9)*(1-VLOOKUP(B65,Lookups!$DY$3:$EA$103,3))^(A65-$A$3),"") ->  | AT65: =IF(BA65>=$B$3,VLOOKUP(BA65,Lookups!A:H,8)*(1-VLOOKUP(BA65,Lookups!DY:EA,2))^(BA65-$B$3),"") -> 0.4 | AU65: =IF(BA65>=$B$3,VLOOKUP(BA65,Lookups!A:I,9)*(1-VLOOKUP(BA65,Lookups!DY:EA,3))^(BA65-$B$3),"") -> 0.322725 | AV65: 0.322725 | AW65: 0.02375196 | AX65: 0.1250930027 | AY65: 0.840145 | BA65: 108 | BB65: 305979.0498 | BN65: 763.7978105 | BO65: 796.5296591 | BP65: 830.7935346 | BQ65: 866.681541 | BR65: 904.3288657 | BS65: 943.5798068 | BT65: 984.7614313 | BU65: 1027.665425 | BV65: 1072.356743 | BW65: 1119.403497 | BX65: 1168.708134 | BY65: 1220.554824 | BZ65: 1275.303916 | CA65: 1333.224939 | CB65: 1394.481522 | CC65: 1459.321368 | CE65: 62.01
A66: 2078 | B66: 83 | D66: =VLOOKUP(B66,Lookups!A:B,2) -> 4524.205415 | E66: =VLOOKUP(B66,Lookups!A:C,3) -> 1715.34 | G66: =VLOOKUP(B66,Lookups!A:D,4) -> 5402.684673 | H66: =VLOOKUP(B66,Lookups!A:E,5) -> 2741.28 | J66: =VLOOKUP(A66,Trends!A64:Q156,IF(ExFlg=0,2,10),FALSE)+Sens -> 1.049 | K66: 36.2001744 | L66: =VLOOKUP(A66,Trends!A64:Q156,IF(ExFlg=0,4,12),FALSE)+Sens -> 1.052 | M66: 33.51540827 | O66: =VLOOKUP(A66,Trends!A64:Q156,IF(ExFlg=0,6,14),FALSE)+Sens -> 1.049 | P66: 34.25855081 | Q66: =VLOOKUP(A66,Trends!A64:Q156,IF(ExFlg=0,8,16),FALSE)+Sens -> 1.05 | R66: 36.07594707 | T66: 151630.5916 | U66: =IF(ExFlg=0,E66*Trends!T66,E66*Trends!X66) -> 63528.5511 | V66: 88102.04047 | X66: 194906.9663 | Y66: =IF(ExFlg=0,H66*Trends!V66,H66*Trends!Z66) -> 108695.1988 | Z66: 86211.76748 | AB66: 86211.76748 | AD66: =IF(B66<71,VLOOKUP(B66,Lookups!A:F,6),"") ->  | AE66: =IF(B66<71,VLOOKUP(Active!B66,Lookups!A:G,7),"") ->  | AG66: =IF(B66<70,VLOOKUP(CE66,Lookups!$Q$3:$S$53,2),"") ->  | AH66: =IF(B66<70,VLOOKUP(CE66,Lookups!$Q$3:$S$53,3),"") ->  | AJ66: =IF(B66<70,VLOOKUP(B66,Lookups!A:M,12),"") ->  | AK66: =IF(B66<70,VLOOKUP(B66,Lookups!A:M,13),"") ->  | AM66: =IF(B66<70,VLOOKUP(B66,Lookups!A:H,8)*(1-VLOOKUP(B66,Lookups!$DY$3:$EA$103,2))^(A66-$A$3),"") ->  | AN66: =IF(B66<70,VLOOKUP(B66,Lookups!A:I,9)*(1-VLOOKUP(B66,Lookups!$DY$3:$EA$103,3))^(A66-$A$3),"") ->  | AT66: =IF(BA66>=$B$3,VLOOKUP(BA66,Lookups!A:H,8)*(1-VLOOKUP(BA66,Lookups!DY:EA,2))^(BA66-$B$3),"") -> 0.4 | AU66: =IF(BA66>=$B$3,VLOOKUP(BA66,Lookups!A:I,9)*(1-VLOOKUP(BA66,Lookups!DY:EA,3))^(BA66-$B$3),"") -> 0.337441 | AV66: 0.337441 | AW66: 0.01608660871 | AX66: 0.1202817333 | AY66: 0.83366 | BA66: 109 | BB66: 320972.0233 | BN66: 517.7502531 | BO66: 539.9379613 | BP66: 563.1641737 | BQ66: 587.4913243 | BR66: 613.0110517 | BS66: 639.6178113 | BT66: 667.5333096 | BU66: 696.6163385 | BV66: 726.9109278 | BW66: 758.80218 | BX66: 792.2239681 | BY66: 827.368919 | BZ66: 864.4813018 | CA66: 903.7438179 | CB66: 945.2673878 | CC66: 989.2199179 | CE66: 63.01
A67: 2079 | B67: 84 | D67: =VLOOKUP(B67,Lookups!A:B,2) -> 4546.831967 | E67: =VLOOKUP(B67,Lookups!A:C,3) -> 1715.34 | G67: =VLOOKUP(B67,Lookups!A:D,4) -> 5429.704693 | H67: =VLOOKUP(B67,Lookups!A:E,5) -> 2741.28 | J67: =VLOOKUP(A67,Trends!A65:Q157,IF(ExFlg=0,2,10),FALSE)+Sens -> 1.049 | K67: 37.97398295 | L67: =VLOOKUP(A67,Trends!A65:Q157,IF(ExFlg=0,4,12),FALSE)+Sens -> 1.052 | M67: 35.25820949 | O67: =VLOOKUP(A67,Trends!A65:Q157,IF(ExFlg=0,6,14),FALSE)+Sens -> 1.049 | P67: 35.9372198 | Q67: =VLOOKUP(A67,Trends!A65:Q157,IF(ExFlg=0,8,16),FALSE)+Sens -> 1.05 | R67: 37.87974442 | T67: 160313.154 | U67: =IF(ExFlg=0,E67*Trends!T67,E67*Trends!X67) -> 66832.03576 | V67: =T67-U67 -> 93481.11828 | X67: 205675.8261 | Y67: =IF(ExFlg=0,H67*Trends!V67,H67*Trends!Z67) -> 114129.9587 | Z67: 91545.86733 | AB67: =(1-PctUMP)*V67+PctUMP*Z67 -> 91545.86733 | AD67: =IF(B67<71,VLOOKUP(B67,Lookups!A:F,6),"") ->  | AE67: =IF(B67<71,VLOOKUP(Active!B67,Lookups!A:G,7),"") ->  | AF67: =IF(B67<71,PCTMALE*AD67+(1-PCTMALE)*AE67,"") ->  | AG67: =IF(B67<70,VLOOKUP(CE67,Lookups!$Q$3:$S$53,2),"") ->  | AH67: =IF(B67<70,VLOOKUP(CE67,Lookups!$Q$3:$S$53,3),"") ->  | AI67: =IF(B67<55,PCTMALE*AG67+(1-PCTMALE)*AH67,"") ->  | AJ67: =IF(B67<70,VLOOKUP(B67,Lookups!A:M,12),"") ->  | AK67: =IF(B67<70,VLOOKUP(B67,Lookups!A:M,13),"") ->  | AL67: =IF(B67<70,PCTMALE*AJ67+(1-PCTMALE)*AK67,"") ->  | AM67: =IF(B67<70,VLOOKUP(B67,Lookups!A:H,8)*(1-VLOOKUP(B67,Lookups!$DY$3:$EA$103,2))^(A67-$A$3),"") ->  | AN67: =IF(B67<70,VLOOKUP(B67,Lookups!A:I,9)*(1-VLOOKUP(B67,Lookups!$DY$3:$EA$103,3))^(A67-$A$3),"") ->  | AO67: =IF(AM67<>"",PCTMALE*AM67+(1-PCTMALE)*AN67,"") ->  | AT67: =IF(BA67>=$B$3,VLOOKUP(BA67,Lookups!A:H,8)*(1-VLOOKUP(BA67,Lookups!DY:EA,2))^(BA67-$B$3),"") -> 0.4 | AU67: =IF(BA67>=$B$3,VLOOKUP(BA67,Lookups!A:I,9)*(1-VLOOKUP(BA67,Lookups!DY:EA,3))^(BA67-$B$3),"") -> 0.351544 | AV67: =IFERROR(PCTMALE*AT67+(1-PCTMALE)*AU67,"") -> 0.351544 | AW67: 0.01065832738 | AX67: 0.1156555128 | AY67: 0.827445 | BA67: 110 | BB67: 336699.6524 | BM67: Totals Per Person | BN67: 343.4291844 | BO67: 358.1465244 | BP67: 373.5527152 | BQ67: 389.6891699 | BR67: 406.6166732 | BS67: 424.2652165 | BT67: 442.7818599 | BU67: 462.0729387 | BV67: 482.1676581 | BW67: 503.3214608 | BX67: 525.4904842 | BY67: 548.8024995 | BZ67: 573.4195331 | CA67: 599.4627726 | CB67: 627.005793 | CC67: 656.1599681 | CD67: Totals Per Person | CE67: 64.01
A68: =1+A67 -> 2080 | B68: =1+B67 -> 85 | D68: =VLOOKUP(B68,Lookups!A:B,2) -> 4569.571725 | E68: =VLOOKUP(B68,Lookups!A:C,3) -> 1715.34 | G68: =VLOOKUP(B68,Lookups!A:D,4) -> 5456.859901 | H68: =VLOOKUP(B68,Lookups!A:E,5) -> 2741.28 | J68: =VLOOKUP(A68,Trends!A66:Q158,IF(ExFlg=0,2,10),FALSE)+Sens -> 1.049 | K68: 39.83470811 | L68: =VLOOKUP(A68,Trends!A66:Q158,IF(ExFlg=0,4,12),FALSE)+Sens -> 1.051 | M68: 37.09163639 | O68: =VLOOKUP(A68,Trends!A66:Q158,IF(ExFlg=0,6,14),FALSE)+Sens -> 1.049 | P68: 37.69814357 | Q68: =VLOOKUP(A68,Trends!A66:Q158,IF(ExFlg=0,8,16),FALSE)+Sens -> 1.05 | R68: 39.77373164 | T68: =IF(B68<65,D68*K68,D68*M68) -> 169492.8929 | U68: =IF(ExFlg=0,E68*Trends!T68,E68*Trends!X68) -> 70307.30162 | V68: 99185.59125 | X68: 217039.6813 | Y68: =IF(ExFlg=0,H68*Trends!V68,H68*Trends!Z68) -> 119836.4567 | Z68: =X68-Y68 -> 97203.22464 | AB68: 97203.22464 | AD68: =IF(B68<71,VLOOKUP(B68,Lookups!A:F,6),"") ->  | AE68: =IF(B68<71,VLOOKUP(Active!B68,Lookups!A:G,7),"") ->  | AG68: =IF(B68<70,VLOOKUP(CE68,Lookups!$Q$3:$S$53,2),"") ->  | AH68: =IF(B68<70,VLOOKUP(CE68,Lookups!$Q$3:$S$53,3),"") ->  | AJ68: =IF(B68<70,VLOOKUP(B68,Lookups!A:M,12),"") ->  | AK68: =IF(B68<70,VLOOKUP(B68,Lookups!A:M,13),"") ->  | AM68: =IF(B68<70,VLOOKUP(B68,Lookups!A:H,8)*(1-VLOOKUP(B68,Lookups!$DY$3:$EA$103,2))^(A68-$A$3),"") ->  | AN68: =IF(B68<70,VLOOKUP(B68,Lookups!A:I,9)*(1-VLOOKUP(B68,Lookups!$DY$3:$EA$103,3))^(A68-$A$3),"") ->  | AP68: =IF(B68<71,SUM(AF68,AI68,AL68,AO68),"") ->  | AR68: =IF(B68<71,AR67/(1+IntRt),"") ->  | AT68: =IF(BA68>=$B$3,VLOOKUP(BA68,Lookups!A:H,8)*(1-VLOOKUP(BA68,Lookups!DY:EA,2))^(BA68-$B$3),"") -> 0.4 | AU68: =IF(BA68>=$B$3,VLOOKUP(BA68,Lookups!A:I,9)*(1-VLOOKUP(BA68,Lookups!DY:EA,3))^(BA68-$B$3),"") -> 0.364617 | AV68: 0.364617 | AW68: =IF(AV67="",1,AW67*(1-AV67)) -> 0.006911456339 | AX68: 0.1112072239 | AY68: 0.821683 | BA68: 111 | BC68: =IF($BB$12<>"",SUM(BC12:BC67)*BC70*BC71*BC72*Part*NonPERS2,"") -> 21.43647909 | BD68: =IF($BB$13<>"",SUM(BD12:BD67)*BD70*BD71*BD72*Part*NonPERS2,"") -> 22.21241351 | BE68: =IF($BB$14<>"",SUM(BE12:BE67)*BE70*BE71*BE72*Part*NonPERS2,"") -> 22.43168629 | BF68: =IF($BB$15<>"",SUM(BF12:BF67)*BF70*BF71*BF72*Part,"") -> 44.77300086 | BG68: =IF($BB$16<>"",SUM(BG12:BG67)*BG70*BG71*BG72*Part,"") -> 84.54358275 | BH68: =IF($BB$17<>"",SUM(BH12:BH67)*BH70*BH71*BH72*Part,"") -> 112.4286669 | BI68: =IF($BB$18<>"",SUM(BI12:BI67)*BI70*BI71*BI72*Part,"") -> 199.9009036 | BJ68: =IF($BB$19<>"",SUM(BJ12:BJ67)*BJ70*BJ71*BJ72*Part,"") -> 212.869532 | BK68: =IF($BB$20<>"",SUM(BK12:BK67)*BK70*BK71*BK72*Part,"") -> 101.0033432 | BL68: =IF($BB$21<>"",SUM(BL12:BL67)*BL70*BL71*BL72*Part,"") -> 91.25578647 | BM68: =SUM(BC68:BL68) -> 912.8553947 | BN68: =IF($BB12<>"",SUM(BN12:BN67)*BN70*BN71*BN72*Part*NonPERS2,"") -> 196.7088973 | BO68: =IF($BB13<>"",SUM(BO12:BO67)*BO70*BO71*BO72*Part*NonPERS2,"") -> 192.2151769 | BP68: =IF($BB14<>"",SUM(BP12:BP67)*BP70*BP71*BP72*Part*NonPERS2,"") -> 187.7268505 | BQ68: =IF($BB15<>"",SUM(BQ12:BQ67)*BQ70*BQ71*BQ72*Part,"") -> 373.9763612 | BR68: =IF($BB16<>"",SUM(BR12:BR67)*BR70*BR71*BR72*Part,"") -> 729.129046 | BS68: =IF($BB17<>"",SUM(BS12:BS67)*BS70*BS71*BS72*Part,"") -> 1042.797673 | BT68: =IF($BB18<>"",SUM(BT12:BT67)*BT70*BT71*BT72*Part,"") -> 2105.941043 | BU68: =IF($BB19<>"",SUM(BU12:BU67)*BU70*BU71*BU72*Part,"") -> 2788.09168 | BV68: =IF($BB20<>"",SUM(BV12:BV67)*BV70*BV71*BV72*Part,"") -> 1979.883481 | BW68: =IF($BB21<>"",SUM(BW12:BW67)*BW70*BW71*BW72*Part,"") -> 4990.185444 | BX68: =IF($BB22<>"",SUM(BX12:BX67)*BX70*BX71*BX72*Part,"") -> 1529.737337 | BY68: =IF($BB23<>"",SUM(BY12:BY67)*BY70*BY71*BY72*Part,"") -> 539.4845904 | BZ68: =IF($BB24<>"",SUM(BZ12:BZ67)*BZ70*BZ71*BZ72*Part,"") -> 402.7373811 | CA68: =IF($BB25<>"",SUM(CA12:CA67)*CA70*CA71*CA72*Part,"") -> 300.2666001 | CB68: =IF($BB26<>"",SUM(CB12:CB67)*CB70*CB71*CB72*Part,"") -> 223.4660487 | CC68: =IF($BB27<>"",SUM(CC12:CC67)*CC70*CC71*CC72*Part,"") -> 691.3782546 | CD68: =SUM(BN68:CC68) -> 18273.72587 | CE68: 65.01
A69: 2081 | B69: 86 | D69: =VLOOKUP(B69,Lookups!A:B,2) -> 4592.425255 | E69: =VLOOKUP(B69,Lookups!A:C,3) -> 1715.34 | G69: =VLOOKUP(B69,Lookups!A:D,4) -> 5484.150972 | H69: =VLOOKUP(B69,Lookups!A:E,5) -> 2741.28 | J69: =VLOOKUP(A69,Trends!A67:Q159,IF(ExFlg=0,2,10),FALSE)+Sens -> 1.049 | K69: =K68*J68 -> 41.78660881 | L69: =VLOOKUP(A69,Trends!A67:Q159,IF(ExFlg=0,4,12),FALSE)+Sens -> 1.051 | M69: =M68*L68 -> 38.98330984 | O69: =VLOOKUP(A69,Trends!A67:Q159,IF(ExFlg=0,6,14),FALSE)+Sens -> 1.049 | P69: =P68*O68 -> 39.5453526 | Q69: =VLOOKUP(A69,Trends!A67:Q159,IF(ExFlg=0,8,16),FALSE)+Sens -> 1.05 | R69: =R68*Q68 -> 41.76241822 | T69: 179027.9366 | U69: =IF(ExFlg=0,E69*Trends!T69,E69*Trends!X69) -> 73892.974 | V69: =T69-U69 -> 105134.9626 | X69: 229031.4065 | Y69: =IF(ExFlg=0,H69*Trends!V69,H69*Trends!Z69) -> 125828.2795 | Z69: 103203.127 | AB69: 103203.127 | AD69: =IF(B69<71,VLOOKUP(B69,Lookups!A:F,6),"") ->  | AE69: =IF(B69<71,VLOOKUP(Active!B69,Lookups!A:G,7),"") ->  | AG69: =IF(B69<70,VLOOKUP(CE69,Lookups!$Q$3:$S$53,2),"") ->  | AH69: =IF(B69<70,VLOOKUP(CE69,Lookups!$Q$3:$S$53,3),"") ->  | AJ69: =IF(B69<70,VLOOKUP(B69,Lookups!A:M,12),"") ->  | AK69: =IF(B69<70,VLOOKUP(B69,Lookups!A:M,13),"") ->  | AM69: =IF(B69<70,VLOOKUP(B69,Lookups!A:H,8)*(1-VLOOKUP(B69,Lookups!$DY$3:$EA$103,2))^(A69-$A$3),"") ->  | AN69: =IF(B69<70,VLOOKUP(B69,Lookups!A:I,9)*(1-VLOOKUP(B69,Lookups!$DY$3:$EA$103,3))^(A69-$A$3),"") ->  | AQ69: =IF(B69<71,AQ68*(1-AP68),"") ->  | AT69: =IF(BA69>=$B$3,VLOOKUP(BA69,Lookups!A:H,8)*(1-VLOOKUP(BA69,Lookups!DY:EA,2))^(BA69-$B$3),"") -> 0.4 | AU69: =IF(BA69>=$B$3,VLOOKUP(BA69,Lookups!A:I,9)*(1-VLOOKUP(BA69,Lookups!DY:EA,3))^(BA69-$B$3),"") -> 0.376246 | AV69: 0.376246 | AW69: 0.004391421863 | AX69: 0.1069300229 | AY69: 0.816558 | BA69: 112 | BM69: =B1 -> 0 | CD69: =BM69 -> 0 | CE69: =1+CE68 -> 66.01
A70: 2082 | B70: 87 | D70: =VLOOKUP(B70,Lookups!A:B,2) -> 4615.393126 | E70: =VLOOKUP(B70,Lookups!A:C,3) -> 1715.34 | G70: =VLOOKUP(B70,Lookups!A:D,4) -> 5511.578588 | H70: =VLOOKUP(B70,Lookups!A:E,5) -> 2741.28 | J70: =VLOOKUP(A70,Trends!A68:Q160,IF(ExFlg=0,2,10),FALSE)+Sens -> 1.049 | K70: 43.83415264 | L70: =VLOOKUP(A70,Trends!A68:Q160,IF(ExFlg=0,4,12),FALSE)+Sens -> 1.051 | M70: 40.97145865 | O70: =VLOOKUP(A70,Trends!A68:Q160,IF(ExFlg=0,6,14),FALSE)+Sens -> 1.049 | P70: 41.48307488 | Q70: =VLOOKUP(A70,Trends!A68:Q160,IF(ExFlg=0,8,16),FALSE)+Sens -> 1.05 | R70: 43.85053914 | T70: =IF(B70<65,D70*K70,D70*M70) -> 189099.3886 | U70: =IF(ExFlg=0,E70*Trends!T70,E70*Trends!X70) -> 77661.51568 | V70: 111437.8729 | X70: 241685.6926 | Y70: =IF(ExFlg=0,H70*Trends!V70,H70*Trends!Z70) -> 132119.6935 | Z70: =X70-Y70 -> 109565.9991 | AB70: 109565.9991 | AD70: =IF(B70<71,VLOOKUP(B70,Lookups!A:F,6),"") ->  | AE70: =IF(B70<71,VLOOKUP(Active!B70,Lookups!A:G,7),"") ->  | AG70: =IF(B70<70,VLOOKUP(CE70,Lookups!$Q$3:$S$53,2),"") ->  | AH70: =IF(B70<70,VLOOKUP(CE70,Lookups!$Q$3:$S$53,3),"") ->  | AJ70: =IF(B70<70,VLOOKUP(B70,Lookups!A:M,12),"") ->  | AK70: =IF(B70<70,VLOOKUP(B70,Lookups!A:M,13),"") ->  | AM70: =IF(B70<70,VLOOKUP(B70,Lookups!A:H,8)*(1-VLOOKUP(B70,Lookups!$DY$3:$EA$103,2))^(A70-$A$3),"") ->  | AN70: =IF(B70<70,VLOOKUP(B70,Lookups!A:I,9)*(1-VLOOKUP(B70,Lookups!$DY$3:$EA$103,3))^(A70-$A$3),"") ->  | AT70: =IF(BA70>=$B$3,VLOOKUP(BA70,Lookups!A:H,8)*(1-VLOOKUP(BA70,Lookups!DY:EA,2))^(BA70-$B$3),"") -> 0.4 | AU70: =IF(BA70>=$B$3,VLOOKUP(BA70,Lookups!A:I,9)*(1-VLOOKUP(BA70,Lookups!DY:EA,3))^(BA70-$B$3),"") -> 0.386015 | AV70: 0.386015 | AW70: 0.002739166953 | AX70: 0.1028173297 | AY70: 0.812253 | BA70: 113 | BB70: Survive | BC70: =IF(55<$B$3,"",VLOOKUP(55,$B$3:$AR$93,42)) -> 0.2018785708 | BD70: =IF(56<$B$3,"",VLOOKUP(56,$B$3:$AR$93,42)) -> 0.1967268735 | BE70: =IF(57<$B$3,"",VLOOKUP(57,$B$3:$AR$93,42)) -> 0.1915775395 | BF70: =IF(58<$B$3,"",VLOOKUP(58,$B$3:$AR$93,42)) -> 0.1864340909 | BG70: =IF(59<$B$3,"",VLOOKUP(59,$B$3:$AR$93,42)) -> 0.1811432161 | BH70: =IF(60<$B$3,"",VLOOKUP(60,$B$3:$AR$93,42)) -> 0.1721502128 | BI70: =IF(61<$B$3,"",VLOOKUP(61,$B$3:$AR$93,42)) -> 0.1598978277 | BJ70: =IF(62<$B$3,"",VLOOKUP(62,$B$3:$AR$93,42)) -> 0.1371290246 | BK70: =IF(63<$B$3,"",VLOOKUP(63,$B$3:$AR$93,42)) -> 0.1078363692 | BL70: =IF(64<$B$3,"",VLOOKUP(64,$B$3:$AR$93,42)) -> 0.08703877197 | BN70: =BC70 -> 0.2018785708 | BO70: =BD70 -> 0.1967268735 | BP70: 0.1915775395 | BQ70: 0.1864340909 | BR70: 0.1811432161 | BS70: 0.1721502128 | BT70: 0.1598978277 | BU70: 0.1371290246 | BV70: 0.1078363692 | BW70: 0.08703877197 | BX70: =VLOOKUP(65,$B$3:$AR$93,42) -> 0.03735601481 | BY70: =VLOOKUP(66,$B$3:$AR$93,42) -> 0.02206118898 | BZ70: =VLOOKUP(67,$B$3:$AR$93,42) -> 0.01657606171 | CA70: =VLOOKUP(68,$B$3:$AR$93,42) -> 0.01246184887 | CB70: =VLOOKUP(69,$B$3:$AR$93,42) -> 0.009371634728 | CC70: =VLOOKUP(70,$B$3:$AR$93,42) -> 0.007047996325 | CE70: 67.01
A71: 2083 | B71: 88 | D71: =VLOOKUP(B71,Lookups!A:B,2) -> 4638.475912 | E71: =VLOOKUP(B71,Lookups!A:C,3) -> 1715.34 | G71: =VLOOKUP(B71,Lookups!A:D,4) -> 5539.14343 | H71: =VLOOKUP(B71,Lookups!A:E,5) -> 2741.28 | J71: =VLOOKUP(A71,Trends!A69:Q161,IF(ExFlg=0,2,10),FALSE)+Sens -> 1.049 | K71: 45.98202612 | L71: =VLOOKUP(A71,Trends!A69:Q161,IF(ExFlg=0,4,12),FALSE)+Sens -> 1.051 | M71: 43.06100304 | O71: =VLOOKUP(A71,Trends!A69:Q161,IF(ExFlg=0,6,14),FALSE)+Sens -> 1.049 | P71: 43.51574555 | Q71: =VLOOKUP(A71,Trends!A69:Q161,IF(ExFlg=0,8,16),FALSE)+Sens -> 1.05 | R71: 46.04306609 | T71: 199737.4253 | U71: =IF(ExFlg=0,E71*Trends!T71,E71*Trends!X71) -> 81622.25298 | V71: 118115.1724 | X71: 255039.1471 | Y71: =IF(ExFlg=0,H71*Trends!V71,H71*Trends!Z71) -> 138725.6782 | Z71: 116313.4689 | AB71: 116313.4689 | AD71: =IF(B71<71,VLOOKUP(B71,Lookups!A:F,6),"") ->  | AE71: =IF(B71<71,VLOOKUP(Active!B71,Lookups!A:G,7),"") ->  | AG71: =IF(B71<70,VLOOKUP(CE71,Lookups!$Q$3:$S$53,2),"") ->  | AH71: =IF(B71<70,VLOOKUP(CE71,Lookups!$Q$3:$S$53,3),"") ->  | AJ71: =IF(B71<70,VLOOKUP(B71,Lookups!A:M,12),"") ->  | AK71: =IF(B71<70,VLOOKUP(B71,Lookups!A:M,13),"") ->  | AM71: =IF(B71<70,VLOOKUP(B71,Lookups!A:H,8)*(1-VLOOKUP(B71,Lookups!$DY$3:$EA$103,2))^(A71-$A$3),"") ->  | AN71: =IF(B71<70,VLOOKUP(B71,Lookups!A:I,9)*(1-VLOOKUP(B71,Lookups!$DY$3:$EA$103,3))^(A71-$A$3),"") ->  | AT71: =IF(BA71>=$B$3,VLOOKUP(BA71,Lookups!A:H,8)*(1-VLOOKUP(BA71,Lookups!DY:EA,2))^(BA71-$B$3),"") -> 0.4 | AU71: =IF(BA71>=$B$3,VLOOKUP(BA71,Lookups!A:I,9)*(1-VLOOKUP(BA71,Lookups!DY:EA,3))^(BA71-$B$3),"") -> 0.393507 | AV71: 0.393507 | AW71: 0.001681807421 | AX71: 0.09886281706 | AY71: 0.808951 | BA71: 114 | BB71: Interest | BC71: =IF(55<$B$3,"",VLOOKUP(55,$B$3:$AR$93,43)) -> 0.2534154707 | BD71: =IF(56<$B$3,"",VLOOKUP(56,$B$3:$AR$93,43)) -> 0.2436687219 | BE71: =IF(57<$B$3,"",VLOOKUP(57,$B$3:$AR$93,43)) -> 0.2342968479 | BF71: =IF(58<$B$3,"",VLOOKUP(58,$B$3:$AR$93,43)) -> 0.2252854307 | BG71: =IF(59<$B$3,"",VLOOKUP(59,$B$3:$AR$93,43)) -> 0.2166206064 | BH71: =IF(60<$B$3,"",VLOOKUP(60,$B$3:$AR$93,43)) -> 0.2082890447 | BI71: =IF(61<$B$3,"",VLOOKUP(61,$B$3:$AR$93,43)) -> 0.2002779276 | BJ71: =IF(62<$B$3,"",VLOOKUP(62,$B$3:$AR$93,43)) -> 0.1925749303 | BK71: =IF(63<$B$3,"",VLOOKUP(63,$B$3:$AR$93,43)) -> 0.1851682023 | BL71: =IF(64<$B$3,"",VLOOKUP(64,$B$3:$AR$93,43)) -> 0.1780463483 | BN71: =BC71 -> 0.2534154707 | BO71: 0.2436687219 | BP71: 0.2342968479 | BQ71: 0.2252854307 | BR71: 0.2166206064 | BS71: 0.2082890447 | BT71: 0.2002779276 | BU71: 0.1925749303 | BV71: 0.1851682023 | BW71: 0.1780463483 | BX71: =VLOOKUP(65,$B$3:$AR$93,43) -> 0.1711984118 | BY71: =VLOOKUP(66,$B$3:$AR$93,43) -> 0.1646138575 | BZ71: =VLOOKUP(67,$B$3:$AR$93,43) -> 0.1582825553 | CA71: =VLOOKUP(68,$B$3:$AR$93,43) -> 0.1521947647 | CB71: =VLOOKUP(69,$B$3:$AR$93,43) -> 0.1463411199 | CC71: =VLOOKUP(70,$B$3:$AR$93,43) -> 0.1407126153 | CE71: 68.01
A72: 2084 | B72: 89 | D72: =VLOOKUP(B72,Lookups!A:B,2) -> 4638.475912 | E72: =VLOOKUP(B72,Lookups!A:C,3) -> 1715.34 | G72: =VLOOKUP(B72,Lookups!A:D,4) -> 5539.14343 | H72: =VLOOKUP(B72,Lookups!A:E,5) -> 2741.28 | J72: =VLOOKUP(A72,Trends!A70:Q162,IF(ExFlg=0,2,10),FALSE)+Sens -> 1.049 | K72: 48.2351454 | L72: =VLOOKUP(A72,Trends!A70:Q162,IF(ExFlg=0,4,12),FALSE)+Sens -> 1.051 | M72: 45.25711419 | O72: =VLOOKUP(A72,Trends!A70:Q162,IF(ExFlg=0,6,14),FALSE)+Sens -> 1.049 | P72: 45.64801708 | Q72: =VLOOKUP(A72,Trends!A70:Q162,IF(ExFlg=0,8,16),FALSE)+Sens -> 1.05 | R72: 48.3452194 | T72: 209924.034 | U72: =IF(ExFlg=0,E72*Trends!T72,E72*Trends!X72) -> 85784.98788 | V72: 124139.0462 | X72: 267791.1044 | Y72: =IF(ExFlg=0,H72*Trends!V72,H72*Trends!Z72) -> 145661.9621 | Z72: 122129.1423 | AB72: 122129.1423 | AD72: =IF(B72<71,VLOOKUP(B72,Lookups!A:F,6),"") ->  | AE72: =IF(B72<71,VLOOKUP(Active!B72,Lookups!A:G,7),"") ->  | AG72: =IF(B72<70,VLOOKUP(CE72,Lookups!$Q$3:$S$53,2),"") ->  | AH72: =IF(B72<70,VLOOKUP(CE72,Lookups!$Q$3:$S$53,3),"") ->  | AJ72: =IF(B72<70,VLOOKUP(B72,Lookups!A:M,12),"") ->  | AK72: =IF(B72<70,VLOOKUP(B72,Lookups!A:M,13),"") ->  | AM72: =IF(B72<70,VLOOKUP(B72,Lookups!A:H,8)*(1-VLOOKUP(B72,Lookups!$DY$3:$EA$103,2))^(A72-$A$3),"") ->  | AN72: =IF(B72<70,VLOOKUP(B72,Lookups!A:I,9)*(1-VLOOKUP(B72,Lookups!$DY$3:$EA$103,3))^(A72-$A$3),"") ->  | AT72: =IF(BA72>=$B$3,VLOOKUP(BA72,Lookups!A:H,8)*(1-VLOOKUP(BA72,Lookups!DY:EA,2))^(BA72-$B$3),"") -> 0.4 | AU72: =IF(BA72>=$B$3,VLOOKUP(BA72,Lookups!A:I,9)*(1-VLOOKUP(BA72,Lookups!DY:EA,3))^(BA72-$B$3),"") -> 0.398308 | AV72: 0.398308 | AW72: 0.001020004428 | AX72: 0.09506040102 | AY72: 0.806835 | BA72: 115 | BB72: Retire | BC72: =IF(55<$B$3,"",VLOOKUP(55,$B$3:$AR$93,31)) -> 0.02 | BD72: =IF(56<$B$3,"",VLOOKUP(56,$B$3:$AR$93,31)) -> 0.02 | BE72: =IF(57<$B$3,"",VLOOKUP(57,$B$3:$AR$93,31)) -> 0.02 | BF72: =IF(58<$B$3,"",VLOOKUP(58,$B$3:$AR$93,31)) -> 0.02 | BG72: =IF(59<$B$3,"",VLOOKUP(59,$B$3:$AR$93,31)) -> 0.04 | BH72: =IF(60<$B$3,"",VLOOKUP(60,$B$3:$AR$93,31)) -> 0.06 | BI72: =IF(61<$B$3,"",VLOOKUP(61,$B$3:$AR$93,31)) -> 0.13 | BJ72: =IF(62<$B$3,"",VLOOKUP(62,$B$3:$AR$93,31)) -> 0.2 | BK72: =IF(63<$B$3,"",VLOOKUP(63,$B$3:$AR$93,31)) -> 0.18 | BL72: =IF(64<$B$3,"",VLOOKUP(64,$B$3:$AR$93,31)) -> 0.56 | BM72: Aggregate Totals | BN72: =BC72 -> 0.02 | BO72: 0.02 | BP72: 0.02 | BQ72: 0.02 | BR72: 0.04 | BS72: 0.06 | BT72: 0.13 | BU72: 0.2 | BV72: 0.18 | BW72: 0.56 | BX72: =VLOOKUP(65,$B$3:$AR$93,31) -> 0.4 | BY72: =VLOOKUP(66,$B$3:$AR$93,31) -> 0.24 | BZ72: =VLOOKUP(67,$B$3:$AR$93,31) -> 0.24 | CA72: =VLOOKUP(68,$B$3:$AR$93,31) -> 0.24 | CB72: =VLOOKUP(69,$B$3:$AR$93,31) -> 0.24 | CC72: =VLOOKUP(70,$B$3:$AR$93,31) -> 1 | CD72: Aggregate Totals | CE72: 69.01
A73: 2085 | B73: 90 | D73: =VLOOKUP(B73,Lookups!A:B,2) -> 4638.475912 | E73: =VLOOKUP(B73,Lookups!A:C,3) -> 1715.34 | G73: =VLOOKUP(B73,Lookups!A:D,4) -> 5539.14343 | H73: =VLOOKUP(B73,Lookups!A:E,5) -> 2741.28 | J73: =VLOOKUP(A73,Trends!A71:Q163,IF(ExFlg=0,2,10),FALSE)+Sens -> 1.049 | K73: 50.59866753 | L73: =VLOOKUP(A73,Trends!A71:Q163,IF(ExFlg=0,4,12),FALSE)+Sens -> 1.051 | M73: 47.56522702 | O73: =VLOOKUP(A73,Trends!A71:Q163,IF(ExFlg=0,6,14),FALSE)+Sens -> 1.049 | P73: 47.88476992 | Q73: =VLOOKUP(A73,Trends!A71:Q163,IF(ExFlg=0,8,16),FALSE)+Sens -> 1.05 | R73: 50.76248037 | T73: 220630.1598 | U73: =IF(ExFlg=0,E73*Trends!T73,E73*Trends!X73) -> 90160.02226 | V73: 130470.1375 | X73: 281180.6596 | Y73: =IF(ExFlg=0,H73*Trends!V73,H73*Trends!Z73) -> 152945.0602 | Z73: 128235.5995 | AB73: 128235.5995 | AD73: =IF(B73<71,VLOOKUP(B73,Lookups!A:F,6),"") ->  | AE73: =IF(B73<71,VLOOKUP(Active!B73,Lookups!A:G,7),"") ->  | AG73: =IF(B73<70,VLOOKUP(CE73,Lookups!$Q$3:$S$53,2),"") ->  | AH73: =IF(B73<70,VLOOKUP(CE73,Lookups!$Q$3:$S$53,3),"") ->  | AJ73: =IF(B73<70,VLOOKUP(B73,Lookups!A:M,12),"") ->  | AK73: =IF(B73<70,VLOOKUP(B73,Lookups!A:M,13),"") ->  | AM73: =IF(B73<70,VLOOKUP(B73,Lookups!A:H,8)*(1-VLOOKUP(B73,Lookups!$DY$3:$EA$103,2))^(A73-$A$3),"") ->  | AN73: =IF(B73<70,VLOOKUP(B73,Lookups!A:I,9)*(1-VLOOKUP(B73,Lookups!$DY$3:$EA$103,3))^(A73-$A$3),"") ->  | AT73: =IF(BA73>=$B$3,VLOOKUP(BA73,Lookups!A:H,8)*(1-VLOOKUP(BA73,Lookups!DY:EA,2))^(BA73-$B$3),"") -> 0.4 | AU73: =IF(BA73>=$B$3,VLOOKUP(BA73,Lookups!A:I,9)*(1-VLOOKUP(BA73,Lookups!DY:EA,3))^(BA73-$B$3),"") -> 0.4 | AV73: 0.4 | AW73: 0.0006137285045 | AX73: 0.09140423175 | AY73: 0.80609 | BA73: 116 | BM73: =BM68*BM69 -> 0 | CD73: =CD68*CD69 -> 0 | CE73: 70.01
A74: 2086 | B74: 91 | D74: =VLOOKUP(B74,Lookups!A:B,2) -> 4638.475912 | E74: =VLOOKUP(B74,Lookups!A:C,3) -> 1715.34 | G74: =VLOOKUP(B74,Lookups!A:D,4) -> 5539.14343 | H74: =VLOOKUP(B74,Lookups!A:E,5) -> 2741.28 | J74: =VLOOKUP(A74,Trends!A72:Q164,IF(ExFlg=0,2,10),FALSE)+Sens -> 1.049 | K74: 53.07800224 | L74: =VLOOKUP(A74,Trends!A72:Q164,IF(ExFlg=0,4,12),FALSE)+Sens -> 1.051 | M74: 49.99105359 | O74: =VLOOKUP(A74,Trends!A72:Q164,IF(ExFlg=0,6,14),FALSE)+Sens -> 1.049 | P74: 50.23112365 | Q74: =VLOOKUP(A74,Trends!A72:Q164,IF(ExFlg=0,8,16),FALSE)+Sens -> 1.05 | R74: 53.30060439 | T74: 231882.2979 | U74: =IF(ExFlg=0,E74*Trends!T74,E74*Trends!X74) -> 94758.1834 | V74: 137124.1145 | X74: 295239.6926 | Y74: =IF(ExFlg=0,H74*Trends!V74,H74*Trends!Z74) -> 160592.3132 | Z74: 134647.3794 | AB74: 134647.3794 | AD74: =IF(B74<71,VLOOKUP(B74,Lookups!A:F,6),"") ->  | AE74: =IF(B74<71,VLOOKUP(Active!B74,Lookups!A:G,7),"") ->  | AG74: =IF(B74<70,VLOOKUP(CE74,Lookups!$Q$3:$S$53,2),"") ->  | AH74: =IF(B74<70,VLOOKUP(CE74,Lookups!$Q$3:$S$53,3),"") ->  | AJ74: =IF(B74<70,VLOOKUP(B74,Lookups!A:M,12),"") ->  | AK74: =IF(B74<70,VLOOKUP(B74,Lookups!A:M,13),"") ->  | AM74: =IF(B74<70,VLOOKUP(B74,Lookups!A:H,8)*(1-VLOOKUP(B74,Lookups!$DY$3:$EA$103,2))^(A74-$A$3),"") ->  | AN74: =IF(B74<70,VLOOKUP(B74,Lookups!A:I,9)*(1-VLOOKUP(B74,Lookups!$DY$3:$EA$103,3))^(A74-$A$3),"") ->  | AT74: =IF(BA74>=$B$3,VLOOKUP(BA74,Lookups!A:H,8)*(1-VLOOKUP(BA74,Lookups!DY:EA,2))^(BA74-$B$3),"") -> 0.4 | AU74: =IF(BA74>=$B$3,VLOOKUP(BA74,Lookups!A:I,9)*(1-VLOOKUP(BA74,Lookups!DY:EA,3))^(BA74-$B$3),"") -> 0.4 | AV74: 0.4 | AW74: 0.0003682371027 | AX74: 0.08788868438 | AY74: 0.80609 | BA74: 117 | BM74: =BM73*(1+PctMarried) -> 0 | BN74: with spouses | CD74: =CD73*(1+PctMarried) -> 0 | CE74: 71.01
A75: 2087 | B75: 92 | D75: =VLOOKUP(B75,Lookups!A:B,2) -> 4638.475912 | E75: =VLOOKUP(B75,Lookups!A:C,3) -> 1715.34 | G75: =VLOOKUP(B75,Lookups!A:D,4) -> 5539.14343 | H75: =VLOOKUP(B75,Lookups!A:E,5) -> 2741.28 | J75: =VLOOKUP(A75,Trends!A73:Q165,IF(ExFlg=0,2,10),FALSE)+Sens -> 1.049 | K75: 55.67882435 | L75: =VLOOKUP(A75,Trends!A73:Q165,IF(ExFlg=0,4,12),FALSE)+Sens -> 1.051 | M75: 52.54059733 | O75: =VLOOKUP(A75,Trends!A73:Q165,IF(ExFlg=0,6,14),FALSE)+Sens -> 1.049 | P75: 52.6924487 | Q75: =VLOOKUP(A75,Trends!A73:Q165,IF(ExFlg=0,8,16),FALSE)+Sens -> 1.05 | R75: 55.96563461 | T75: 243708.2951 | U75: =IF(ExFlg=0,E75*Trends!T75,E75*Trends!X75) -> 99590.85075 | V75: 144117.4444 | X75: 310001.6772 | Y75: =IF(ExFlg=0,H75*Trends!V75,H75*Trends!Z75) -> 168621.9288 | Z75: 141379.7484 | AB75: 141379.7484 | AD75: =IF(B75<71,VLOOKUP(B75,Lookups!A:F,6),"") ->  | AE75: =IF(B75<71,VLOOKUP(Active!B75,Lookups!A:G,7),"") ->  | AG75: =IF(B75<70,VLOOKUP(CE75,Lookups!$Q$3:$S$53,2),"") ->  | AH75: =IF(B75<70,VLOOKUP(CE75,Lookups!$Q$3:$S$53,3),"") ->  | AJ75: =IF(B75<70,VLOOKUP(B75,Lookups!A:M,12),"") ->  | AK75: =IF(B75<70,VLOOKUP(B75,Lookups!A:M,13),"") ->  | AM75: =IF(B75<70,VLOOKUP(B75,Lookups!A:H,8)*(1-VLOOKUP(B75,Lookups!$DY$3:$EA$103,2))^(A75-$A$3),"") ->  | AN75: =IF(B75<70,VLOOKUP(B75,Lookups!A:I,9)*(1-VLOOKUP(B75,Lookups!$DY$3:$EA$103,3))^(A75-$A$3),"") ->  | AT75: =IF(BA75>=$B$3,VLOOKUP(BA75,Lookups!A:H,8)*(1-VLOOKUP(BA75,Lookups!DY:EA,2))^(BA75-$B$3),"") -> 0.4 | AU75: =IF(BA75>=$B$3,VLOOKUP(BA75,Lookups!A:I,9)*(1-VLOOKUP(BA75,Lookups!DY:EA,3))^(BA75-$B$3),"") -> 0.4 | AV75: 0.4 | AW75: 0.0002209422616 | AX75: 0.08450835036 | AY75: 0.80609 | BA75: 118 | CE75: 72.01
A76: 2088 | B76: 93 | D76: =VLOOKUP(B76,Lookups!A:B,2) -> 4638.475912 | E76: =VLOOKUP(B76,Lookups!A:C,3) -> 1715.34 | G76: =VLOOKUP(B76,Lookups!A:D,4) -> 5539.14343 | H76: =VLOOKUP(B76,Lookups!A:E,5) -> 2741.28 | J76: =VLOOKUP(A76,Trends!A74:Q166,IF(ExFlg=0,2,10),FALSE)+Sens -> 1.049 | K76: 58.40708674 | L76: =VLOOKUP(A76,Trends!A74:Q166,IF(ExFlg=0,4,12),FALSE)+Sens -> 1.051 | M76: 55.22016779 | O76: =VLOOKUP(A76,Trends!A74:Q166,IF(ExFlg=0,6,14),FALSE)+Sens -> 1.049 | P76: 55.27437869 | Q76: =VLOOKUP(A76,Trends!A74:Q166,IF(ExFlg=0,8,16),FALSE)+Sens -> 1.05 | R76: 58.76391634 | T76: 256137.4182 | U76: =IF(ExFlg=0,E76*Trends!T76,E76*Trends!X76) -> 104669.9841 | V76: 151467.434 | X76: 325501.7611 | Y76: =IF(ExFlg=0,H76*Trends!V76,H76*Trends!Z76) -> 177053.0253 | Z76: 148448.7358 | AB76: 148448.7358 | AD76: =IF(B76<71,VLOOKUP(B76,Lookups!A:F,6),"") ->  | AE76: =IF(B76<71,VLOOKUP(Active!B76,Lookups!A:G,7),"") ->  | AG76: =IF(B76<70,VLOOKUP(CE76,Lookups!$Q$3:$S$53,2),"") ->  | AH76: =IF(B76<70,VLOOKUP(CE76,Lookups!$Q$3:$S$53,3),"") ->  | AJ76: =IF(B76<70,VLOOKUP(B76,Lookups!A:M,12),"") ->  | AK76: =IF(B76<70,VLOOKUP(B76,Lookups!A:M,13),"") ->  | AM76: =IF(B76<70,VLOOKUP(B76,Lookups!A:H,8)*(1-VLOOKUP(B76,Lookups!$DY$3:$EA$103,2))^(A76-$A$3),"") ->  | AN76: =IF(B76<70,VLOOKUP(B76,Lookups!A:I,9)*(1-VLOOKUP(B76,Lookups!$DY$3:$EA$103,3))^(A76-$A$3),"") ->  | AT76: =IF(BA76>=$B$3,VLOOKUP(BA76,Lookups!A:H,8)*(1-VLOOKUP(BA76,Lookups!DY:EA,2))^(BA76-$B$3),"") -> 0.4 | AU76: =IF(BA76>=$B$3,VLOOKUP(BA76,Lookups!A:I,9)*(1-VLOOKUP(BA76,Lookups!DY:EA,3))^(BA76-$B$3),"") -> 0.4 | AV76: 0.4 | AW76: 0.000132565357 | AX76: 0.08125802919 | AY76: 0.80609 | BA76: 119 | CE76: 73.01
A77: 2089 | B77: 94 | D77: =VLOOKUP(B77,Lookups!A:B,2) -> 4638.475912 | E77: =VLOOKUP(B77,Lookups!A:C,3) -> 1715.34 | G77: =VLOOKUP(B77,Lookups!A:D,4) -> 5539.14343 | H77: =VLOOKUP(B77,Lookups!A:E,5) -> 2741.28 | J77: =VLOOKUP(A77,Trends!A75:Q167,IF(ExFlg=0,2,10),FALSE)+Sens -> 1.049 | K77: 61.26903399 | L77: =VLOOKUP(A77,Trends!A75:Q167,IF(ExFlg=0,4,12),FALSE)+Sens -> 1.051 | M77: 58.03639635 | O77: =VLOOKUP(A77,Trends!A75:Q167,IF(ExFlg=0,6,14),FALSE)+Sens -> 1.049 | P77: 57.98282325 | Q77: =VLOOKUP(A77,Trends!A75:Q167,IF(ExFlg=0,8,16),FALSE)+Sens -> 1.05 | R77: 61.70211215 | T77: 269200.4265 | U77: =IF(ExFlg=0,E77*Trends!T77,E77*Trends!X77) -> 110008.1533 | V77: 159192.2732 | X77: 341776.8492 | Y77: =IF(ExFlg=0,H77*Trends!V77,H77*Trends!Z77) -> 185905.6765 | Z77: 155871.1726 | AB77: 155871.1726 | AD77: =IF(B77<71,VLOOKUP(B77,Lookups!A:F,6),"") ->  | AE77: =IF(B77<71,VLOOKUP(Active!B77,Lookups!A:G,7),"") ->  | AG77: =IF(B77<70,VLOOKUP(CE77,Lookups!$Q$3:$S$53,2),"") ->  | AH77: =IF(B77<70,VLOOKUP(CE77,Lookups!$Q$3:$S$53,3),"") ->  | AJ77: =IF(B77<70,VLOOKUP(B77,Lookups!A:M,12),"") ->  | AK77: =IF(B77<70,VLOOKUP(B77,Lookups!A:M,13),"") ->  | AM77: =IF(B77<70,VLOOKUP(B77,Lookups!A:H,8)*(1-VLOOKUP(B77,Lookups!$DY$3:$EA$103,2))^(A77-$A$3),"") ->  | AN77: =IF(B77<70,VLOOKUP(B77,Lookups!A:I,9)*(1-VLOOKUP(B77,Lookups!$DY$3:$EA$103,3))^(A77-$A$3),"") ->  | AT77: =IF(BA77>=$B$3,VLOOKUP(BA77,Lookups!A:H,8)*(1-VLOOKUP(BA77,Lookups!DY:EA,2))^(BA77-$B$3),"") -> 1 | AU77: =IF(BA77>=$B$3,VLOOKUP(BA77,Lookups!A:I,9)*(1-VLOOKUP(BA77,Lookups!DY:EA,3))^(BA77-$B$3),"") -> 1 | AV77: 1 | AW77: 7.953921419e-05 | AX77: 0.07813272038 | AY77: 0.541667 | BA77: 120 | BC77: =SUM(BC12:BC67) -> 65779.51639 | BD77: =SUM(BD12:BD67) -> 72743.27377 | BE77: 78453.34283 | BF77: 82000.10627 | BG77: 82867.73314 | BH77: 80396.7443 | BI77: 73872.43184 | BJ77: 62007.04239 | BK77: 43233.28345 | BL77: 16177.56684 | BN77: =SUM(BN12:BN67) -> 603616.6707 | BO77: =SUM(BO12:BO67) -> 629484.1047 | BP77: 656562.274 | BQ77: 684923.9669 | BR77: 714676.0197 | BS77: 745695.3839 | BT77: 778240.5348 | BU77: 812146.8458 | BV77: 847465.6486 | BW77: 884645.9133 | BX77: =SUM(BX12:BX67) -> 919990.3004 | BY77: 952267.8864 | BZ77: 983972.4423 | CA77: 1014846.21 | CB77: 1044492.255 | CC77: 1072515.692 | CE77: 74.01
A78: 2090 | B78: 95 | D78: =VLOOKUP(B78,Lookups!A:B,2) -> 4638.475912 | E78: =VLOOKUP(B78,Lookups!A:C,3) -> 1715.34 | G78: =VLOOKUP(B78,Lookups!A:D,4) -> 5539.14343 | H78: =VLOOKUP(B78,Lookups!A:E,5) -> 2741.28 | J78: =VLOOKUP(A78,Trends!A76:Q168,IF(ExFlg=0,2,10),FALSE)+Sens -> 1.049 | K78: 64.27121666 | L78: =VLOOKUP(A78,Trends!A76:Q168,IF(ExFlg=0,4,12),FALSE)+Sens -> 1.051 | M78: 60.99625256 | O78: =VLOOKUP(A78,Trends!A76:Q168,IF(ExFlg=0,6,14),FALSE)+Sens -> 1.049 | P78: 60.82398159 | Q78: =VLOOKUP(A78,Trends!A76:Q168,IF(ExFlg=0,8,16),FALSE)+Sens -> 1.05 | R78: 64.78721776 | T78: 282929.6482 | U78: =IF(ExFlg=0,E78*Trends!T78,E78*Trends!X78) -> 115618.5691 | V78: 167311.0791 | X78: 358865.6916 | Y78: =IF(ExFlg=0,H78*Trends!V78,H78*Trends!Z78) -> 195200.9604 | Z78: 163664.7312 | AB78: 163664.7312 | AD78: =IF(B78<71,VLOOKUP(B78,Lookups!A:F,6),"") ->  | AE78: =IF(B78<71,VLOOKUP(Active!B78,Lookups!A:G,7),"") ->  | AG78: =IF(B78<70,VLOOKUP(CE78,Lookups!$Q$3:$S$53,2),"") ->  | AH78: =IF(B78<70,VLOOKUP(CE78,Lookups!$Q$3:$S$53,3),"") ->  | AJ78: =IF(B78<70,VLOOKUP(B78,Lookups!A:M,12),"") ->  | AK78: =IF(B78<70,VLOOKUP(B78,Lookups!A:M,13),"") ->  | AM78: =IF(B78<70,VLOOKUP(B78,Lookups!A:H,8)*(1-VLOOKUP(B78,Lookups!$DY$3:$EA$103,2))^(A78-$A$3),"") ->  | AN78: =IF(B78<70,VLOOKUP(B78,Lookups!A:I,9)*(1-VLOOKUP(B78,Lookups!$DY$3:$EA$103,3))^(A78-$A$3),"") ->  | CE78: 75.01
A79: 2091 | B79: 96 | D79: =VLOOKUP(B79,Lookups!A:B,2) -> 4638.475912 | E79: =VLOOKUP(B79,Lookups!A:C,3) -> 1715.34 | G79: =VLOOKUP(B79,Lookups!A:D,4) -> 5539.14343 | H79: =VLOOKUP(B79,Lookups!A:E,5) -> 2741.28 | J79: =VLOOKUP(A79,Trends!A77:Q169,IF(ExFlg=0,2,10),FALSE)+Sens -> 1.049 | K79: 67.42050627 | L79: =VLOOKUP(A79,Trends!A77:Q169,IF(ExFlg=0,4,12),FALSE)+Sens -> 1.051 | M79: 64.10706144 | O79: =VLOOKUP(A79,Trends!A77:Q169,IF(ExFlg=0,6,14),FALSE)+Sens -> 1.049 | P79: 63.80435668 | Q79: =VLOOKUP(A79,Trends!A77:Q169,IF(ExFlg=0,8,16),FALSE)+Sens -> 1.05 | R79: 68.02657865 | T79: 297359.0603 | U79: =IF(ExFlg=0,E79*Trends!T79,E79*Trends!X79) -> 121515.1162 | V79: 175843.9441 | X79: 376808.9762 | Y79: =IF(ExFlg=0,H79*Trends!V79,H79*Trends!Z79) -> 204961.0084 | Z79: 171847.9678 | AB79: 171847.9678 | AD79: =IF(B79<71,VLOOKUP(B79,Lookups!A:F,6),"") ->  | AE79: =IF(B79<71,VLOOKUP(Active!B79,Lookups!A:G,7),"") ->  | AG79: =IF(B79<70,VLOOKUP(CE79,Lookups!$Q$3:$S$53,2),"") ->  | AH79: =IF(B79<70,VLOOKUP(CE79,Lookups!$Q$3:$S$53,3),"") ->  | AJ79: =IF(B79<70,VLOOKUP(B79,Lookups!A:M,12),"") ->  | AK79: =IF(B79<70,VLOOKUP(B79,Lookups!A:M,13),"") ->  | AM79: =IF(B79<70,VLOOKUP(B79,Lookups!A:H,8)*(1-VLOOKUP(B79,Lookups!$DY$3:$EA$103,2))^(A79-$A$3),"") ->  | AN79: =IF(B79<70,VLOOKUP(B79,Lookups!A:I,9)*(1-VLOOKUP(B79,Lookups!$DY$3:$EA$103,3))^(A79-$A$3),"") ->  | CE79: 76.01
A80: 2092 | B80: 97 | D80: =VLOOKUP(B80,Lookups!A:B,2) -> 4638.475912 | E80: =VLOOKUP(B80,Lookups!A:C,3) -> 1715.34 | G80: =VLOOKUP(B80,Lookups!A:D,4) -> 5539.14343 | H80: =VLOOKUP(B80,Lookups!A:E,5) -> 2741.28 | J80: =VLOOKUP(A80,Trends!A78:Q170,IF(ExFlg=0,2,10),FALSE)+Sens -> 1.049 | K80: 70.72411108 | L80: =VLOOKUP(A80,Trends!A78:Q170,IF(ExFlg=0,4,12),FALSE)+Sens -> 1.051 | M80: 67.37652158 | O80: =VLOOKUP(A80,Trends!A78:Q170,IF(ExFlg=0,6,14),FALSE)+Sens -> 1.049 | P80: 66.93077016 | Q80: =VLOOKUP(A80,Trends!A78:Q170,IF(ExFlg=0,8,16),FALSE)+Sens -> 1.05 | R80: 71.42790758 | T80: 312524.3724 | U80: =IF(ExFlg=0,E80*Trends!T80,E80*Trends!X80) -> 127712.3871 | V80: 184811.9853 | X80: 395649.425 | Y80: =IF(ExFlg=0,H80*Trends!V80,H80*Trends!Z80) -> 215209.0588 | Z80: 180440.3662 | AB80: 180440.3662 | AD80: =IF(B80<71,VLOOKUP(B80,Lookups!A:F,6),"") ->  | AE80: =IF(B80<71,VLOOKUP(Active!B80,Lookups!A:G,7),"") ->  | AG80: =IF(B80<70,VLOOKUP(CE80,Lookups!$Q$3:$S$53,2),"") ->  | AH80: =IF(B80<70,VLOOKUP(CE80,Lookups!$Q$3:$S$53,3),"") ->  | AJ80: =IF(B80<70,VLOOKUP(B80,Lookups!A:M,12),"") ->  | AK80: =IF(B80<70,VLOOKUP(B80,Lookups!A:M,13),"") ->  | AM80: =IF(B80<70,VLOOKUP(B80,Lookups!A:H,8)*(1-VLOOKUP(B80,Lookups!$DY$3:$EA$103,2))^(A80-$A$3),"") ->  | AN80: =IF(B80<70,VLOOKUP(B80,Lookups!A:I,9)*(1-VLOOKUP(B80,Lookups!$DY$3:$EA$103,3))^(A80-$A$3),"") ->  | CE80: 77.01
A81: 2093 | B81: 98 | D81: =VLOOKUP(B81,Lookups!A:B,2) -> 4638.475912 | E81: =VLOOKUP(B81,Lookups!A:C,3) -> 1715.34 | G81: =VLOOKUP(B81,Lookups!A:D,4) -> 5539.14343 | H81: =VLOOKUP(B81,Lookups!A:E,5) -> 2741.28 | J81: =VLOOKUP(A81,Trends!A79:Q171,IF(ExFlg=0,2,10),FALSE)+Sens -> 1.049 | K81: 74.18959252 | L81: =VLOOKUP(A81,Trends!A79:Q171,IF(ExFlg=0,4,12),FALSE)+Sens -> 1.05 | M81: 70.81272418 | O81: =VLOOKUP(A81,Trends!A79:Q171,IF(ExFlg=0,6,14),FALSE)+Sens -> 1.049 | P81: 70.2103779 | Q81: =VLOOKUP(A81,Trends!A79:Q171,IF(ExFlg=0,8,16),FALSE)+Sens -> 1.05 | R81: 74.99930296 | T81: 328463.1154 | U81: =IF(ExFlg=0,E81*Trends!T81,E81*Trends!X81) -> 134225.7188 | V81: 194237.3965 | X81: 415431.8963 | Y81: =IF(ExFlg=0,H81*Trends!V81,H81*Trends!Z81) -> 225969.5118 | Z81: 189462.3845 | AB81: 189462.3845 | AD81: =IF(B81<71,VLOOKUP(B81,Lookups!A:F,6),"") ->  | AE81: =IF(B81<71,VLOOKUP(Active!B81,Lookups!A:G,7),"") ->  | AG81: =IF(B81<70,VLOOKUP(CE81,Lookups!$Q$3:$S$53,2),"") ->  | AH81: =IF(B81<70,VLOOKUP(CE81,Lookups!$Q$3:$S$53,3),"") ->  | AJ81: =IF(B81<70,VLOOKUP(B81,Lookups!A:M,12),"") ->  | AK81: =IF(B81<70,VLOOKUP(B81,Lookups!A:M,13),"") ->  | AM81: =IF(B81<70,VLOOKUP(B81,Lookups!A:H,8)*(1-VLOOKUP(B81,Lookups!$DY$3:$EA$103,2))^(A81-$A$3),"") ->  | AN81: =IF(B81<70,VLOOKUP(B81,Lookups!A:I,9)*(1-VLOOKUP(B81,Lookups!$DY$3:$EA$103,3))^(A81-$A$3),"") ->  | CE81: 78.01
A82: 2094 | B82: 99 | D82: =VLOOKUP(B82,Lookups!A:B,2) -> 4638.475912 | E82: =VLOOKUP(B82,Lookups!A:C,3) -> 1715.34 | G82: =VLOOKUP(B82,Lookups!A:D,4) -> 5539.14343 | H82: =VLOOKUP(B82,Lookups!A:E,5) -> 2741.28 | J82: =VLOOKUP(A82,Trends!A80:Q172,IF(ExFlg=0,2,10),FALSE)+Sens -> 1.049 | K82: 77.82488256 | L82: =VLOOKUP(A82,Trends!A80:Q172,IF(ExFlg=0,4,12),FALSE)+Sens -> 1.05 | M82: 74.35336039 | O82: =VLOOKUP(A82,Trends!A80:Q172,IF(ExFlg=0,6,14),FALSE)+Sens -> 1.049 | P82: 73.65068642 | Q82: =VLOOKUP(A82,Trends!A80:Q172,IF(ExFlg=0,8,16),FALSE)+Sens -> 1.049 | R82: 78.74926811 | T82: 344886.2711 | U82: =IF(ExFlg=0,E82*Trends!T82,E82*Trends!X82) -> 140937.0048 | V82: 203949.2663 | X82: 436203.4911 | Y82: =IF(ExFlg=0,H82*Trends!V82,H82*Trends!Z82) -> 237267.9873 | Z82: 198935.5037 | AB82: 198935.5037 | AD82: =IF(B82<71,VLOOKUP(B82,Lookups!A:F,6),"") ->  | AE82: =IF(B82<71,VLOOKUP(Active!B82,Lookups!A:G,7),"") ->  | AG82: =IF(B82<70,VLOOKUP(CE82,Lookups!$Q$3:$S$53,2),"") ->  | AH82: =IF(B82<70,VLOOKUP(CE82,Lookups!$Q$3:$S$53,3),"") ->  | AJ82: =IF(B82<70,VLOOKUP(B82,Lookups!A:M,12),"") ->  | AK82: =IF(B82<70,VLOOKUP(B82,Lookups!A:M,13),"") ->  | AM82: =IF(B82<70,VLOOKUP(B82,Lookups!A:H,8)*(1-VLOOKUP(B82,Lookups!$DY$3:$EA$103,2))^(A82-$A$3),"") ->  | AN82: =IF(B82<70,VLOOKUP(B82,Lookups!A:I,9)*(1-VLOOKUP(B82,Lookups!$DY$3:$EA$103,3))^(A82-$A$3),"") ->  | CE82: 79.01
A83: 2095 | B83: 100 | D83: =VLOOKUP(B83,Lookups!A:B,2) -> 4638.475912 | E83: =VLOOKUP(B83,Lookups!A:C,3) -> 1715.34 | G83: =VLOOKUP(B83,Lookups!A:D,4) -> 5539.14343 | H83: =VLOOKUP(B83,Lookups!A:E,5) -> 2741.28 | J83: =VLOOKUP(A83,Trends!A81:Q173,IF(ExFlg=0,2,10),FALSE)+Sens -> 1.049 | K83: 81.6383018 | L83: =VLOOKUP(A83,Trends!A81:Q173,IF(ExFlg=0,4,12),FALSE)+Sens -> 1.05 | M83: 78.07102841 | O83: =VLOOKUP(A83,Trends!A81:Q173,IF(ExFlg=0,6,14),FALSE)+Sens -> 1.049 | P83: 77.25957005 | Q83: =VLOOKUP(A83,Trends!A81:Q173,IF(ExFlg=0,8,16),FALSE)+Sens -> 1.049 | R83: 82.60798224 | T83: 362130.5847 | U83: =IF(ExFlg=0,E83*Trends!T83,E83*Trends!X83) -> 147983.855 | V83: 214146.7297 | X83: 457577.4621 | Y83: =IF(ExFlg=0,H83*Trends!V83,H83*Trends!Z83) -> 248894.1187 | Z83: 208683.3434 | AB83: 208683.3434 | AD83: =IF(B83<71,VLOOKUP(B83,Lookups!A:F,6),"") ->  | AE83: =IF(B83<71,VLOOKUP(Active!B83,Lookups!A:G,7),"") ->  | AG83: =IF(B83<70,VLOOKUP(CE83,Lookups!$Q$3:$S$53,2),"") ->  | AH83: =IF(B83<70,VLOOKUP(CE83,Lookups!$Q$3:$S$53,3),"") ->  | AJ83: =IF(B83<70,VLOOKUP(B83,Lookups!A:M,12),"") ->  | AK83: =IF(B83<70,VLOOKUP(B83,Lookups!A:M,13),"") ->  | AM83: =IF(B83<70,VLOOKUP(B83,Lookups!A:H,8)*(1-VLOOKUP(B83,Lookups!$DY$3:$EA$103,2))^(A83-$A$3),"") ->  | AN83: =IF(B83<70,VLOOKUP(B83,Lookups!A:I,9)*(1-VLOOKUP(B83,Lookups!$DY$3:$EA$103,3))^(A83-$A$3),"") ->  | CE83: 80.01
A84: 2096 | B84: 101 | D84: =VLOOKUP(B84,Lookups!A:B,2) -> 4638.475912 | E84: =VLOOKUP(B84,Lookups!A:C,3) -> 1715.34 | G84: =VLOOKUP(B84,Lookups!A:D,4) -> 5539.14343 | H84: =VLOOKUP(B84,Lookups!A:E,5) -> 2741.28 | J84: =VLOOKUP(A84,Trends!A82:Q174,IF(ExFlg=0,2,10),FALSE)+Sens -> 1.049 | K84: 85.63857859 | L84: =VLOOKUP(A84,Trends!A82:Q174,IF(ExFlg=0,4,12),FALSE)+Sens -> 1.05 | M84: 81.97457983 | O84: =VLOOKUP(A84,Trends!A82:Q174,IF(ExFlg=0,6,14),FALSE)+Sens -> 1.049 | P84: 81.04528898 | Q84: =VLOOKUP(A84,Trends!A82:Q174,IF(ExFlg=0,8,16),FALSE)+Sens -> 1.049 | R84: 86.65577337 | T84: 380237.1139 | U84: =IF(ExFlg=0,E84*Trends!T84,E84*Trends!X84) -> 155383.0478 | V84: 224854.0661 | X84: 479998.7578 | Y84: =IF(ExFlg=0,H84*Trends!V84,H84*Trends!Z84) -> 261089.9305 | Z84: 218908.8272 | AB84: 218908.8272 | AD84: =IF(B84<71,VLOOKUP(B84,Lookups!A:F,6),"") ->  | AE84: =IF(B84<71,VLOOKUP(Active!B84,Lookups!A:G,7),"") ->  | AG84: =IF(B84<70,VLOOKUP(CE84,Lookups!$Q$3:$S$53,2),"") ->  | AH84: =IF(B84<70,VLOOKUP(CE84,Lookups!$Q$3:$S$53,3),"") ->  | AJ84: =IF(B84<70,VLOOKUP(B84,Lookups!A:M,12),"") ->  | AK84: =IF(B84<70,VLOOKUP(B84,Lookups!A:M,13),"") ->  | AM84: =IF(B84<70,VLOOKUP(B84,Lookups!A:H,8)*(1-VLOOKUP(B84,Lookups!$DY$3:$EA$103,2))^(A84-$A$3),"") ->  | AN84: =IF(B84<70,VLOOKUP(B84,Lookups!A:I,9)*(1-VLOOKUP(B84,Lookups!$DY$3:$EA$103,3))^(A84-$A$3),"") ->  | CE84: 81.01
A85: 2097 | B85: 102 | D85: =VLOOKUP(B85,Lookups!A:B,2) -> 4638.475912 | E85: =VLOOKUP(B85,Lookups!A:C,3) -> 1715.34 | G85: =VLOOKUP(B85,Lookups!A:D,4) -> 5539.14343 | H85: =VLOOKUP(B85,Lookups!A:E,5) -> 2741.28 | J85: =VLOOKUP(A85,Trends!A83:Q175,IF(ExFlg=0,2,10),FALSE)+Sens -> 1.049 | K85: 89.83486894 | L85: =VLOOKUP(A85,Trends!A83:Q175,IF(ExFlg=0,4,12),FALSE)+Sens -> 1.05 | M85: 86.07330882 | O85: =VLOOKUP(A85,Trends!A83:Q175,IF(ExFlg=0,6,14),FALSE)+Sens -> 1.049 | P85: 85.01650814 | Q85: =VLOOKUP(A85,Trends!A83:Q175,IF(ExFlg=0,8,16),FALSE)+Sens -> 1.049 | R85: 90.90190627 | T85: 399248.9696 | U85: =IF(ExFlg=0,E85*Trends!T85,E85*Trends!X85) -> 163152.2002 | V85: 236096.7695 | X85: 503518.6969 | Y85: =IF(ExFlg=0,H85*Trends!V85,H85*Trends!Z85) -> 273883.3371 | Z85: 229635.3598 | AB85: 229635.3598 | AD85: =IF(B85<71,VLOOKUP(B85,Lookups!A:F,6),"") ->  | AE85: =IF(B85<71,VLOOKUP(Active!B85,Lookups!A:G,7),"") ->  | AG85: =IF(B85<70,VLOOKUP(CE85,Lookups!$Q$3:$S$53,2),"") ->  | AH85: =IF(B85<70,VLOOKUP(CE85,Lookups!$Q$3:$S$53,3),"") ->  | AJ85: =IF(B85<70,VLOOKUP(B85,Lookups!A:M,12),"") ->  | AK85: =IF(B85<70,VLOOKUP(B85,Lookups!A:M,13),"") ->  | AM85: =IF(B85<70,VLOOKUP(B85,Lookups!A:H,8)*(1-VLOOKUP(B85,Lookups!$DY$3:$EA$103,2))^(A85-$A$3),"") ->  | AN85: =IF(B85<70,VLOOKUP(B85,Lookups!A:I,9)*(1-VLOOKUP(B85,Lookups!$DY$3:$EA$103,3))^(A85-$A$3),"") ->  | CE85: 82.01
A86: 2098 | B86: 103 | D86: =VLOOKUP(B86,Lookups!A:B,2) -> 4638.475912 | E86: =VLOOKUP(B86,Lookups!A:C,3) -> 1715.34 | G86: =VLOOKUP(B86,Lookups!A:D,4) -> 5539.14343 | H86: =VLOOKUP(B86,Lookups!A:E,5) -> 2741.28 | J86: =VLOOKUP(A86,Trends!A84:Q176,IF(ExFlg=0,2,10),FALSE)+Sens -> 1.049 | K86: 94.23677752 | L86: =VLOOKUP(A86,Trends!A84:Q176,IF(ExFlg=0,4,12),FALSE)+Sens -> 1.05 | M86: 90.37697426 | O86: =VLOOKUP(A86,Trends!A84:Q176,IF(ExFlg=0,6,14),FALSE)+Sens -> 1.049 | P86: 89.18231704 | Q86: =VLOOKUP(A86,Trends!A84:Q176,IF(ExFlg=0,8,16),FALSE)+Sens -> 1.049 | R86: 95.35609968 | T86: 419211.4181 | U86: =IF(ExFlg=0,E86*Trends!T86,E86*Trends!X86) -> 171309.8102 | V86: 247901.6079 | X86: 528191.113 | Y86: =IF(ExFlg=0,H86*Trends!V86,H86*Trends!Z86) -> 287303.6207 | Z86: 240887.4924 | AB86: 240887.4924 | AD86: =IF(B86<71,VLOOKUP(B86,Lookups!A:F,6),"") ->  | AE86: =IF(B86<71,VLOOKUP(Active!B86,Lookups!A:G,7),"") ->  | AG86: =IF(B86<70,VLOOKUP(CE86,Lookups!$Q$3:$S$53,2),"") ->  | AH86: =IF(B86<70,VLOOKUP(CE86,Lookups!$Q$3:$S$53,3),"") ->  | AJ86: =IF(B86<70,VLOOKUP(B86,Lookups!A:M,12),"") ->  | AK86: =IF(B86<70,VLOOKUP(B86,Lookups!A:M,13),"") ->  | AM86: =IF(B86<70,VLOOKUP(B86,Lookups!A:H,8)*(1-VLOOKUP(B86,Lookups!$DY$3:$EA$103,2))^(A86-$A$3),"") ->  | AN86: =IF(B86<70,VLOOKUP(B86,Lookups!A:I,9)*(1-VLOOKUP(B86,Lookups!$DY$3:$EA$103,3))^(A86-$A$3),"") ->  | CE86: 83.01
A87: 2099 | B87: 104 | D87: =VLOOKUP(B87,Lookups!A:B,2) -> 4638.475912 | E87: =VLOOKUP(B87,Lookups!A:C,3) -> 1715.34 | G87: =VLOOKUP(B87,Lookups!A:D,4) -> 5539.14343 | H87: =VLOOKUP(B87,Lookups!A:E,5) -> 2741.28 | J87: =VLOOKUP(A87,Trends!A85:Q177,IF(ExFlg=0,2,10),FALSE)+Sens -> 1.049 | K87: 98.85437962 | L87: =VLOOKUP(A87,Trends!A85:Q177,IF(ExFlg=0,4,12),FALSE)+Sens -> 1.05 | M87: 94.89582297 | O87: =VLOOKUP(A87,Trends!A85:Q177,IF(ExFlg=0,6,14),FALSE)+Sens -> 1.049 | P87: 93.55225058 | Q87: =VLOOKUP(A87,Trends!A85:Q177,IF(ExFlg=0,8,16),FALSE)+Sens -> 1.049 | R87: 100.0285486 | T87: 440171.989 | U87: =IF(ExFlg=0,E87*Trends!T87,E87*Trends!X87) -> 179875.3007 | V87: 260296.6883 | X87: 554072.4776 | Y87: =IF(ExFlg=0,H87*Trends!V87,H87*Trends!Z87) -> 301381.4981 | Z87: 252690.9795 | AB87: 252690.9795 | AD87: =IF(B87<71,VLOOKUP(B87,Lookups!A:F,6),"") ->  | AE87: =IF(B87<71,VLOOKUP(Active!B87,Lookups!A:G,7),"") ->  | AG87: =IF(B87<70,VLOOKUP(CE87,Lookups!$Q$3:$S$53,2),"") ->  | AH87: =IF(B87<70,VLOOKUP(CE87,Lookups!$Q$3:$S$53,3),"") ->  | AJ87: =IF(B87<70,VLOOKUP(B87,Lookups!A:M,12),"") ->  | AK87: =IF(B87<70,VLOOKUP(B87,Lookups!A:M,13),"") ->  | AM87: =IF(B87<70,VLOOKUP(B87,Lookups!A:H,8)*(1-VLOOKUP(B87,Lookups!$DY$3:$EA$103,2))^(A87-$A$3),"") ->  | AN87: =IF(B87<70,VLOOKUP(B87,Lookups!A:I,9)*(1-VLOOKUP(B87,Lookups!$DY$3:$EA$103,3))^(A87-$A$3),"") ->  | CE87: 84.01
A88: 2100 | B88: 105 | D88: =VLOOKUP(B88,Lookups!A:B,2) -> 4638.475912 | E88: =VLOOKUP(B88,Lookups!A:C,3) -> 1715.34 | G88: =VLOOKUP(B88,Lookups!A:D,4) -> 5539.14343 | H88: =VLOOKUP(B88,Lookups!A:E,5) -> 2741.28 | J88: =VLOOKUP(A88,Trends!A86:Q178,IF(ExFlg=0,2,10),FALSE)+Sens -> 1.049 | K88: 103.6982442 | L88: =VLOOKUP(A88,Trends!A86:Q178,IF(ExFlg=0,4,12),FALSE)+Sens -> 1.05 | M88: 99.64061412 | O88: =VLOOKUP(A88,Trends!A86:Q178,IF(ExFlg=0,6,14),FALSE)+Sens -> 1.049 | P88: 98.13631086 | Q88: =VLOOKUP(A88,Trends!A86:Q178,IF(ExFlg=0,8,16),FALSE)+Sens -> 1.049 | R88: 104.9299474 | T88: 462180.5885 | U88: =IF(ExFlg=0,E88*Trends!T88,E88*Trends!X88) -> 188869.0657 | V88: 273311.5227 | X88: 581222.029 | Y88: =IF(ExFlg=0,H88*Trends!V88,H88*Trends!Z88) -> 316149.1915 | Z88: 265072.8375 | AB88: 265072.8375 | AD88: =IF(B88<71,VLOOKUP(B88,Lookups!A:F,6),"") ->  | AE88: =IF(B88<71,VLOOKUP(Active!B88,Lookups!A:G,7),"") ->  | AG88: =IF(B88<70,VLOOKUP(CE88,Lookups!$Q$3:$S$53,2),"") ->  | AH88: =IF(B88<70,VLOOKUP(CE88,Lookups!$Q$3:$S$53,3),"") ->  | AJ88: =IF(B88<70,VLOOKUP(B88,Lookups!A:M,12),"") ->  | AK88: =IF(B88<70,VLOOKUP(B88,Lookups!A:M,13),"") ->  | AM88: =IF(B88<70,VLOOKUP(B88,Lookups!A:H,8)*(1-VLOOKUP(B88,Lookups!$DY$3:$EA$103,2))^(A88-$A$3),"") ->  | AN88: =IF(B88<70,VLOOKUP(B88,Lookups!A:I,9)*(1-VLOOKUP(B88,Lookups!$DY$3:$EA$103,3))^(A88-$A$3),"") ->  | CE88: 85.01
A89: 2101 | B89: 106 | D89: =VLOOKUP(B89,Lookups!A:B,2) -> 4638.475912 | E89: =VLOOKUP(B89,Lookups!A:C,3) -> 1715.34 | G89: =VLOOKUP(B89,Lookups!A:D,4) -> 5539.14343 | H89: =VLOOKUP(B89,Lookups!A:E,5) -> 2741.28 | J89: =VLOOKUP(A89,Trends!A87:Q179,IF(ExFlg=0,2,10),FALSE)+Sens -> 1.047062654 | K89: 108.7794582 | L89: =VLOOKUP(A89,Trends!A87:Q179,IF(ExFlg=0,4,12),FALSE)+Sens -> 1.048712996 | M89: 104.6226448 | O89: =VLOOKUP(A89,Trends!A87:Q179,IF(ExFlg=0,6,14),FALSE)+Sens -> 1.049 | P89: 102.9449901 | Q89: =VLOOKUP(A89,Trends!A87:Q179,IF(ExFlg=0,8,16),FALSE)+Sens -> 1.049 | R89: 110.0715149 | T89: 485289.6179 | U89: =IF(ExFlg=0,E89*Trends!T89,E89*Trends!X89) -> 198312.519 | V89: 286977.0989 | X89: 609701.9084 | Y89: =IF(ExFlg=0,H89*Trends!V89,H89*Trends!Z89) -> 331640.5019 | Z89: 278061.4066 | AB89: 278061.4066 | AD89: =IF(B89<71,VLOOKUP(B89,Lookups!A:F,6),"") ->  | AE89: =IF(B89<71,VLOOKUP(Active!B89,Lookups!A:G,7),"") ->  | AG89: =IF(B89<70,VLOOKUP(CE89,Lookups!$Q$3:$S$53,2),"") ->  | AH89: =IF(B89<70,VLOOKUP(CE89,Lookups!$Q$3:$S$53,3),"") ->  | AJ89: =IF(B89<70,VLOOKUP(B89,Lookups!A:M,12),"") ->  | AK89: =IF(B89<70,VLOOKUP(B89,Lookups!A:M,13),"") ->  | AM89: =IF(B89<70,VLOOKUP(B89,Lookups!A:H,8)*(1-VLOOKUP(B89,Lookups!$DY$3:$EA$103,2))^(A89-$A$3),"") ->  | AN89: =IF(B89<70,VLOOKUP(B89,Lookups!A:I,9)*(1-VLOOKUP(B89,Lookups!$DY$3:$EA$103,3))^(A89-$A$3),"") ->  | CE89: 86.01
A90: 2102 | B90: 107 | D90: =VLOOKUP(B90,Lookups!A:B,2) -> 4638.475912 | E90: =VLOOKUP(B90,Lookups!A:C,3) -> 1715.34 | G90: =VLOOKUP(B90,Lookups!A:D,4) -> 5539.14343 | H90: =VLOOKUP(B90,Lookups!A:E,5) -> 2741.28 | J90: =VLOOKUP(A90,Trends!A88:Q180,IF(ExFlg=0,2,10),FALSE)+Sens -> 1.046855861 | K90: 113.8989082 | L90: =VLOOKUP(A90,Trends!A88:Q180,IF(ExFlg=0,4,12),FALSE)+Sens -> 1.048555102 | M90: 109.7191273 | O90: =VLOOKUP(A90,Trends!A88:Q180,IF(ExFlg=0,6,14),FALSE)+Sens -> 1.049 | P90: 107.9892946 | Q90: =VLOOKUP(A90,Trends!A88:Q180,IF(ExFlg=0,8,16),FALSE)+Sens -> 1.049 | R90: 115.4650191 | T90: 508929.529 | U90: =IF(ExFlg=0,E90*Trends!T90,E90*Trends!X90) -> 207972.9159 | V90: 300956.6131 | X90: 639577.3019 | Y90: =IF(ExFlg=0,H90*Trends!V90,H90*Trends!Z90) -> 347890.8864 | Z90: 291686.4155 | AB90: 291686.4155 | AD90: =IF(B90<71,VLOOKUP(B90,Lookups!A:F,6),"") ->  | AE90: =IF(B90<71,VLOOKUP(Active!B90,Lookups!A:G,7),"") ->  | AG90: =IF(B90<70,VLOOKUP(CE90,Lookups!$Q$3:$S$53,2),"") ->  | AH90: =IF(B90<70,VLOOKUP(CE90,Lookups!$Q$3:$S$53,3),"") ->  | AJ90: =IF(B90<70,VLOOKUP(B90,Lookups!A:M,12),"") ->  | AK90: =IF(B90<70,VLOOKUP(B90,Lookups!A:M,13),"") ->  | AM90: =IF(B90<70,VLOOKUP(B90,Lookups!A:H,8)*(1-VLOOKUP(B90,Lookups!$DY$3:$EA$103,2))^(A90-$A$3),"") ->  | AN90: =IF(B90<70,VLOOKUP(B90,Lookups!A:I,9)*(1-VLOOKUP(B90,Lookups!$DY$3:$EA$103,3))^(A90-$A$3),"") ->  | CE90: 87.01
A91: 2103 | B91: 108 | D91: =VLOOKUP(B91,Lookups!A:B,2) -> 4638.475912 | E91: =VLOOKUP(B91,Lookups!A:C,3) -> 1715.34 | G91: =VLOOKUP(B91,Lookups!A:D,4) -> 5539.14343 | H91: =VLOOKUP(B91,Lookups!A:E,5) -> 2741.28 | J91: =VLOOKUP(A91,Trends!A89:Q181,IF(ExFlg=0,2,10),FALSE)+Sens -> 1.046649068 | K91: 119.2357396 | L91: =VLOOKUP(A91,Trends!A89:Q181,IF(ExFlg=0,4,12),FALSE)+Sens -> 1.048397207 | M91: 115.0465507 | O91: =VLOOKUP(A91,Trends!A89:Q181,IF(ExFlg=0,6,14),FALSE)+Sens -> 1.049 | P91: 113.28077 | Q91: =VLOOKUP(A91,Trends!A89:Q181,IF(ExFlg=0,8,16),FALSE)+Sens -> 1.049 | R91: 121.122805 | T91: 533640.6541 | U91: =IF(ExFlg=0,E91*Trends!T91,E91*Trends!X91) -> 218071.062 | V91: 315569.5921 | X91: 670916.5897 | Y91: =IF(ExFlg=0,H91*Trends!V91,H91*Trends!Z91) -> 364937.5399 | Z91: 305979.0498 | AB91: 305979.0498 | AD91: =IF(B91<71,VLOOKUP(B91,Lookups!A:F,6),"") ->  | AE91: =IF(B91<71,VLOOKUP(Active!B91,Lookups!A:G,7),"") ->  | AG91: =IF(B91<70,VLOOKUP(CE91,Lookups!$Q$3:$S$53,2),"") ->  | AH91: =IF(B91<70,VLOOKUP(CE91,Lookups!$Q$3:$S$53,3),"") ->  | AJ91: =IF(B91<70,VLOOKUP(B91,Lookups!A:M,12),"") ->  | AK91: =IF(B91<70,VLOOKUP(B91,Lookups!A:M,13),"") ->  | AM91: =IF(B91<70,VLOOKUP(B91,Lookups!A:H,8)*(1-VLOOKUP(B91,Lookups!$DY$3:$EA$103,2))^(A91-$A$3),"") ->  | AN91: =IF(B91<70,VLOOKUP(B91,Lookups!A:I,9)*(1-VLOOKUP(B91,Lookups!$DY$3:$EA$103,3))^(A91-$A$3),"") ->  | CE91: 88.01
A92: 2104 | B92: 109 | D92: =VLOOKUP(B92,Lookups!A:B,2) -> 4638.475912 | E92: =VLOOKUP(B92,Lookups!A:C,3) -> 1715.34 | G92: =VLOOKUP(B92,Lookups!A:D,4) -> 5539.14343 | H92: =VLOOKUP(B92,Lookups!A:E,5) -> 2741.28 | J92: =VLOOKUP(A92,Trends!A90:Q182,IF(ExFlg=0,2,10),FALSE)+Sens -> 1.046442276 | K92: 124.7979758 | L92: =VLOOKUP(A92,Trends!A90:Q182,IF(ExFlg=0,4,12),FALSE)+Sens -> 1.048239313 | M92: 120.6144824 | O92: =VLOOKUP(A92,Trends!A90:Q182,IF(ExFlg=0,6,14),FALSE)+Sens -> 1.049 | P92: 118.8315278 | Q92: =VLOOKUP(A92,Trends!A90:Q182,IF(ExFlg=0,8,16),FALSE)+Sens -> 1.049 | R92: 127.0578225 | T92: 559467.3715 | U92: =IF(ExFlg=0,E92*Trends!T92,E92*Trends!X92) -> 228625.0924 | V92: 330842.2791 | X92: 703791.5026 | Y92: =IF(ExFlg=0,H92*Trends!V92,H92*Trends!Z92) -> 382819.4793 | Z92: 320972.0233 | AB92: 320972.0233 | AD92: =IF(B92<71,VLOOKUP(B92,Lookups!A:F,6),"") ->  | AE92: =IF(B92<71,VLOOKUP(Active!B92,Lookups!A:G,7),"") ->  | AG92: =IF(B92<70,VLOOKUP(CE92,Lookups!$Q$3:$S$53,2),"") ->  | AH92: =IF(B92<70,VLOOKUP(CE92,Lookups!$Q$3:$S$53,3),"") ->  | AJ92: =IF(B92<70,VLOOKUP(B92,Lookups!A:M,12),"") ->  | AK92: =IF(B92<70,VLOOKUP(B92,Lookups!A:M,13),"") ->  | AM92: =IF(B92<70,VLOOKUP(B92,Lookups!A:H,8)*(1-VLOOKUP(B92,Lookups!$DY$3:$EA$103,2))^(A92-$A$3),"") ->  | AN92: =IF(B92<70,VLOOKUP(B92,Lookups!A:I,9)*(1-VLOOKUP(B92,Lookups!$DY$3:$EA$103,3))^(A92-$A$3),"") ->  | CE92: 89.01
A93: 2105 | B93: 110 | D93: =VLOOKUP(B93,Lookups!A:B,2) -> 4638.475912 | E93: =VLOOKUP(B93,Lookups!A:C,3) -> 1715.34 | G93: =VLOOKUP(B93,Lookups!A:D,4) -> 5539.14343 | H93: =VLOOKUP(B93,Lookups!A:E,5) -> 2741.28 | K93: 130.5938777 | M93: 126.4328422 | P93: 124.6542726 | R93: 133.2836558 | T93: 586455.6932 | U93: =IF(ExFlg=0,E93*Trends!T93,E93*Trends!X93) -> 239653.8098 | V93: 346801.8834 | X93: 738277.2862 | Y93: =IF(ExFlg=0,H93*Trends!V93,H93*Trends!Z93) -> 401577.6338 | Z93: 336699.6524 | AB93: 336699.6524 | AD93: =IF(B93<71,VLOOKUP(B93,Lookups!A:F,6),"") ->  | AE93: =IF(B93<71,VLOOKUP(Active!B93,Lookups!A:G,7),"") ->  | AG93: =IF(B93<70,VLOOKUP(CE93,Lookups!$Q$3:$S$53,2),"") ->  | AH93: =IF(B93<70,VLOOKUP(CE93,Lookups!$Q$3:$S$53,3),"") ->  | AJ93: =IF(B93<70,VLOOKUP(B93,Lookups!A:M,12),"") ->  | AK93: =IF(B93<70,VLOOKUP(B93,Lookups!A:M,13),"") ->  | AM93: =IF(B93<70,VLOOKUP(B93,Lookups!A:H,8)*(1-VLOOKUP(B93,Lookups!$DY$3:$EA$103,2))^(A93-$A$3),"") ->  | AN93: =IF(B93<70,VLOOKUP(B93,Lookups!A:I,9)*(1-VLOOKUP(B93,Lookups!$DY$3:$EA$103,3))^(A93-$A$3),"") ->  | CE93: 90.01

Sheet Inactive (hidden)
A1: Inactives | B1: 0 | D1: Insured | G1: UMP | J1: Implicit | K1: Insured | L1: Explicit | O1: Implicit | P1: UMP | Q1: Explicit | U1: Insured | Y1: UMP | AB1: Average | AF1: 0 | AK1: Implicit | AL1: Explicit
A2: Year | D2: Gross | E2: Prem | G2: Gross | H2: Prem | J2: Trend | K2: Rel Trend | L2: Trend | M2: Rel Trend | O2: Trend | P2: Rel Trend | Q2: Trend | R2: Rel Trend | T2: Gross | U2: Prem | V2: Net | X2: Gross | Y2: Prem | Z2: Net | AB2: Net | AD2: Mort - M | AE2: Mort - F | AF2: Mortality | AG2: Survive | AH2: Interest | AI2: Pay Timing | AK2: Subsidy | AL2: Subsidy
A3: =Active!A3 -> 2015 | B3: 20 | D3: =VLOOKUP(B3,Lookups!A:B,2) -> 2497.59371 | E3: =VLOOKUP(B3,Lookups!A:C,3) -> 7044.48 | G3: =VLOOKUP(B3,Lookups!A:D,4) -> 2039.208584 | H3: =VLOOKUP(B3,Lookups!A:E,5) -> 6841.56 | J3: =Active!J3 -> 1.071 | K3: 1 | L3: =Active!L3 -> 1.084 | M3: 1 | O3: =Active!O3 -> 1.045 | P3: 1 | Q3: =Active!Q3 -> 1.085 | R3: 1 | T3: =IF(B3<65,D3*K3,D3*M3) -> 2497.59371 | U3: =IF(ExFlg=0,E3*Trends!T3,E3*Trends!X3) -> 7044.48 | V3: =T3-U3 -> -4546.88629 | X3: =IF(B3<65,G3*P3,G3*R3) -> 2039.208584 | Y3: =IF(ExFlg=0,H3*Trends!V3,H3*Trends!Z3) -> 6841.56 | Z3: =X3-Y3 -> -4802.351416 | AB3: =(1-PctUMP)*V3+PctUMP*Z3 -> -4802.351416 | AD3: =IF($B3<121,VLOOKUP($B3,Lookups!A:H,8)*(1-VLOOKUP($B3,Lookups!$DY$3:$EA$103,2))^($A3-$A$3),"") -> 0.000316413765 | AE3: =IF($B3<121,VLOOKUP($B3,Lookups!A:I,9)*(1-VLOOKUP($B3,Lookups!$DY$3:$EA$103,3))^($A3-$A$3),"") -> 0.0001816272367 | AF3: =IF(B3<121,(PCTMALE*AD3+(1-PCTMALE)*AE3),"") -> 0.0001816272367 | AG3: 1 | AH3: 1 | AI3: =IF(AF3="","",ROUND((13/24)+(11/24)*(1/(1+IntRt))*(1-AF3),6)) -> 0.982292 | AK3: =IF(B3<65,AB3*AG3*AH3*AI3,"") -> -4717.311377 | AL3: =IF(AND(B3>=65,B3<111),AB3*AG3*AH3*AI3,"") -> 
A4: =1+A3 -> 2016 | B4: =1+B3 -> 21 | D4: =VLOOKUP(B4,Lookups!A:B,2) -> 2893.763315 | E4: =VLOOKUP(B4,Lookups!A:C,3) -> 7044.48 | G4: =VLOOKUP(B4,Lookups!A:D,4) -> 2362.668893 | H4: =VLOOKUP(B4,Lookups!A:E,5) -> 6841.56 | J4: =Active!J4 -> 1.063 | K4: =K3*J3 -> 1.071 | L4: =Active!L4 -> 1.088 | M4: =M3*L3 -> 1.084 | O4: =Active!O4 -> 1.037 | P4: =P3*O3 -> 1.045 | Q4: =Active!Q4 -> 1.085 | R4: =R3*Q3 -> 1.085 | T4: 3099.22051 | U4: =IF(ExFlg=0,E4*Trends!T4,E4*Trends!X4) -> 7833.46176 | V4: -4734.24125 | X4: 2468.988993 | Y4: =IF(ExFlg=0,H4*Trends!V4,H4*Trends!Z4) -> 7806.21996 | Z4: -5337.230967 | AB4: -5337.230967 | AD4: =IF($B4<121,VLOOKUP($B4,Lookups!A:H,8)*(1-VLOOKUP($B4,Lookups!$DY$3:$EA$103,2))^($A4-$A$3),"") -> 0.0003288074341 | AE4: =IF($B4<121,VLOOKUP($B4,Lookups!A:I,9)*(1-VLOOKUP($B4,Lookups!$DY$3:$EA$103,3))^($A4-$A$3),"") -> 0.00018203542 | AF4: 0.00018203542 | AG4: =IF(B4<121,AG3*(1-AF3),"") -> 0.9998183728 | AH4: =IF(B4<121,AH3/(1+IntRt),"") -> 0.9615384615 | AI4: 0.982292 | AK4: -5040.160635
A5: 2017 | B5: 22 | D5: =VLOOKUP(B5,Lookups!A:B,2) -> 3355.194159 | E5: =VLOOKUP(B5,Lookups!A:C,3) -> 7044.48 | G5: =VLOOKUP(B5,Lookups!A:D,4) -> 2739.412997 | H5: =VLOOKUP(B5,Lookups!A:E,5) -> 6841.56 | J5: =Active!J5 -> 1.065 | K5: =K4*J4 -> 1.138473 | L5: =Active!L5 -> 1.084 | M5: =M4*L4 -> 1.179392 | O5: =Active!O5 -> 1.046 | P5: =P4*O4 -> 1.083665 | Q5: =Active!Q5 -> 1.085 | R5: =R4*Q4 -> 1.177225 | T5: 3819.79796 | U5: =IF(ExFlg=0,E5*Trends!T5,E5*Trends!X5) -> 9180.817183 | V5: -5361.019222 | X5: 2968.605986 | Y5: =IF(ExFlg=0,H5*Trends!V5,H5*Trends!Z5) -> 8852.253435 | Z5: -5883.647449 | AB5: -5883.647449 | AD5: =IF($B5<121,VLOOKUP($B5,Lookups!A:H,8)*(1-VLOOKUP($B5,Lookups!$DY$3:$EA$103,2))^($A5-$A$3),"") -> 0.0003392234818 | AE5: =IF($B5<121,VLOOKUP($B5,Lookups!A:I,9)*(1-VLOOKUP($B5,Lookups!$DY$3:$EA$103,3))^($A5-$A$3),"") -> 0.0001824395196 | AF5: 0.0001824395196 | AG5: =IF(B5<121,AG4*(1-AF4),"") -> 0.9996363704 | AH5: 0.924556213 | AI5: 0.982291 | AK5: -5341.487015
A6: 2018 | B6: 23 | D6: =VLOOKUP(B6,Lookups!A:B,2) -> 3892.979692 | E6: =VLOOKUP(B6,Lookups!A:C,3) -> 7044.48 | G6: =VLOOKUP(B6,Lookups!A:D,4) -> 3178.498356 | H6: =VLOOKUP(B6,Lookups!A:E,5) -> 6841.56 | J6: =Active!J6 -> 1.055 | K6: 1.212473745 | L6: =Active!L6 -> 1.054 | M6: 1.278460928 | O6: =Active!O6 -> 1.055 | P6: 1.13351359 | Q6: =Active!Q6 -> 1.055 | R6: 1.277289125 | T6: 4720.135666 | U6: =IF(ExFlg=0,E6*Trends!T6,E6*Trends!X6) -> 9952.005826 | V6: -5231.87016 | X6: 3602.871083 | Y6: =IF(ExFlg=0,H6*Trends!V6,H6*Trends!Z6) -> 9604.694977 | Z6: -6001.823894 | AB6: -6001.823894 | AD6: =IF($B6<121,VLOOKUP($B6,Lookups!A:H,8)*(1-VLOOKUP($B6,Lookups!$DY$3:$EA$103,2))^($A6-$A$3),"") -> 0.0009942023889 | AE6: =IF($B6<121,VLOOKUP($B6,Lookups!A:I,9)*(1-VLOOKUP($B6,Lookups!$DY$3:$EA$103,3))^($A6-$A$3),"") -> 0.0003953629116 | AF6: 0.0003953629116 | AG6: 0.9994539972 | AH6: 0.8889963587 | AI6: 0.982198 | AK6: -5237.753853
A7: 2019 | B7: 24 | D7: =VLOOKUP(B7,Lookups!A:B,2) -> 4520.145861 | E7: =VLOOKUP(B7,Lookups!A:C,3) -> 7044.48 | G7: =VLOOKUP(B7,Lookups!A:D,4) -> 3690.560257 | H7: =VLOOKUP(B7,Lookups!A:E,5) -> 6841.56 | J7: =Active!J7 -> 1.055 | K7: 1.279159801 | L7: =Active!L7 -> 1.054 | M7: 1.347497818 | O7: =Active!O7 -> 1.055 | P7: 1.195856837 | Q7: =Active!Q7 -> 1.055 | R7: 1.347540027 | T7: 5781.98888 | U7: =IF(ExFlg=0,E7*Trends!T7,E7*Trends!X7) -> 10489.41414 | V7: -4707.42526 | X7: 4413.381717 | Y7: =IF(ExFlg=0,H7*Trends!V7,H7*Trends!Z7) -> 10132.9532 | Z7: -5719.571483 | AB7: -5719.571483 | AD7: =IF($B7<121,VLOOKUP($B7,Lookups!A:H,8)*(1-VLOOKUP($B7,Lookups!$DY$3:$EA$103,2))^($A7-$A$3),"") -> 0.001617769425 | AE7: =IF($B7<121,VLOOKUP($B7,Lookups!A:I,9)*(1-VLOOKUP($B7,Lookups!$DY$3:$EA$103,3))^($A7-$A$3),"") -> 0.0005995489103 | AF7: 0.0005995489103 | AG7: 0.9990588502 | AH7: 0.854804191 | AI7: 0.982108 | AK7: -4797.118592
A8: 2020 | B8: 25 | D8: =VLOOKUP(B8,Lookups!A:B,2) -> 5251.993951 | E8: =VLOOKUP(B8,Lookups!A:C,3) -> 7044.48 | G8: =VLOOKUP(B8,Lookups!A:D,4) -> 4288.091726 | H8: =VLOOKUP(B8,Lookups!A:E,5) -> 6841.56 | J8: =Active!J8 -> 1.057 | K8: 1.34951359 | L8: =Active!L8 -> 1.055 | M8: 1.4202627 | O8: =Active!O8 -> 1.056 | P8: 1.261628964 | Q8: =Active!Q8 -> 1.055 | R8: 1.421654728 | T8: 7087.637212 | U8: =IF(ExFlg=0,E8*Trends!T8,E8*Trends!X8) -> 11055.8425 | V8: -3968.205292 | X8: 5409.98072 | Y8: =IF(ExFlg=0,H8*Trends!V8,H8*Trends!Z8) -> 10690.26563 | Z8: -5280.284907 | AB8: -5280.284907 | AD8: =IF($B8<121,VLOOKUP($B8,Lookups!A:H,8)*(1-VLOOKUP($B8,Lookups!$DY$3:$EA$103,2))^($A8-$A$3),"") -> 0.002154731389 | AE8: =IF($B8<121,VLOOKUP($B8,Lookups!A:I,9)*(1-VLOOKUP($B8,Lookups!$DY$3:$EA$103,3))^($A8-$A$3),"") -> 0.0007773822781 | AF8: 0.0007773822781 | AG8: 0.9984598655 | AH8: 0.8219271068 | AI8: 0.982029 | AK8: -4255.450913
A9: 2021 | B9: 26 | D9: =VLOOKUP(B9,Lookups!A:B,2) -> 6106.505025 | E9: =VLOOKUP(B9,Lookups!A:C,3) -> 7044.48 | G9: =VLOOKUP(B9,Lookups!A:D,4) -> 4985.773748 | H9: =VLOOKUP(B9,Lookups!A:E,5) -> 6841.56 | J9: =Active!J9 -> 1.057 | K9: 1.426435865 | L9: =Active!L9 -> 1.056 | M9: 1.498377149 | O9: =Active!O9 -> 1.056 | P9: 1.332280185 | Q9: =Active!Q9 -> 1.056 | R9: 1.499845738 | T9: 8710.537775 | U9: =IF(ExFlg=0,E9*Trends!T9,E9*Trends!X9) -> 11663.91384 | V9: -2953.376067 | X9: 6642.447574 | Y9: =IF(ExFlg=0,H9*Trends!V9,H9*Trends!Z9) -> 11278.23024 | Z9: -4635.782662 | AB9: -4635.782662 | AD9: =IF($B9<121,VLOOKUP($B9,Lookups!A:H,8)*(1-VLOOKUP($B9,Lookups!$DY$3:$EA$103,2))^($A9-$A$3),"") -> 0.002648703456 | AE9: =IF($B9<121,VLOOKUP($B9,Lookups!A:I,9)*(1-VLOOKUP($B9,Lookups!$DY$3:$EA$103,3))^($A9-$A$3),"") -> 0.0009435076917 | AF9: 0.0009435076917 | AG9: 0.9976836805 | AH9: 0.7903145257 | AI9: 0.981956 | AK9: -3589.284864
A10: 2022 | B10: 27 | D10: =VLOOKUP(B10,Lookups!A:B,2) -> 6109.98884 | E10: =VLOOKUP(B10,Lookups!A:C,3) -> 7044.48 | G10: =VLOOKUP(B10,Lookups!A:D,4) -> 4988.618201 | H10: =VLOOKUP(B10,Lookups!A:E,5) -> 6841.56 | J10: =Active!J10 -> 1.058 | K10: 1.507742709 | L10: =Active!L10 -> 1.056 | M10: 1.582286269 | O10: =Active!O10 -> 1.057 | P10: 1.406887876 | Q10: =Active!Q10 -> 1.056 | R10: 1.5838371 | T10: 9212.291126 | U10: =IF(ExFlg=0,E10*Trends!T10,E10*Trends!X10) -> 12317.09302 | V10: -3104.801891 | X10: 7018.426464 | Y10: =IF(ExFlg=0,H10*Trends!V10,H10*Trends!Z10) -> 11909.81113 | Z10: -4891.384665 | AB10: -4891.384665 | AD10: =IF($B10<121,VLOOKUP($B10,Lookups!A:H,8)*(1-VLOOKUP($B10,Lookups!$DY$3:$EA$103,2))^($A10-$A$3),"") -> 0.003094253022 | AE10: =IF($B10<121,VLOOKUP($B10,Lookups!A:I,9)*(1-VLOOKUP($B10,Lookups!$DY$3:$EA$103,3))^($A10-$A$3),"") -> 0.001093826134 | AF10: 0.001093826134 | AG10: 0.9967423583 | AH10: 0.7599178132 | AI10: 0.98189 | AK10: -3637.845029
A11: 2023 | B11: 28 | D11: =VLOOKUP(B11,Lookups!A:B,2) -> 6119.86067 | E11: =VLOOKUP(B11,Lookups!A:C,3) -> 7044.48 | G11: =VLOOKUP(B11,Lookups!A:D,4) -> 4996.678272 | H11: =VLOOKUP(B11,Lookups!A:E,5) -> 6841.56 | J11: =Active!J11 -> 1.058 | K11: 1.595191786 | L11: =Active!L11 -> 1.056 | M11: 1.6708943 | O11: =Active!O11 -> 1.057 | P11: 1.487080485 | Q11: =Active!Q11 -> 1.057 | R11: 1.672531977 | T11: 9762.351473 | U11: =IF(ExFlg=0,E11*Trends!T11,E11*Trends!X11) -> 13006.85023 | V11: -3244.498753 | X11: 7430.462747 | Y11: =IF(ExFlg=0,H11*Trends!V11,H11*Trends!Z11) -> 12576.76055 | Z11: -5146.297805 | AB11: -5146.297805 | AD11: =IF($B11<121,VLOOKUP($B11,Lookups!A:H,8)*(1-VLOOKUP($B11,Lookups!$DY$3:$EA$103,2))^($A11-$A$3),"") -> 0.00379111115 | AE11: =IF($B11<121,VLOOKUP($B11,Lookups!A:I,9)*(1-VLOOKUP($B11,Lookups!$DY$3:$EA$103,3))^($A11-$A$3),"") -> 0.00132677174 | AF11: 0.00132677174 | AG11: 0.9956520955 | AH11: 0.730690205 | AI11: 0.981787 | AK11: -3675.81029
A12: 2024 | B12: 29 | D12: =VLOOKUP(B12,Lookups!A:B,2) -> 6136.273592 | E12: =VLOOKUP(B12,Lookups!A:C,3) -> 7044.48 | G12: =VLOOKUP(B12,Lookups!A:D,4) -> 5010.078944 | H12: =VLOOKUP(B12,Lookups!A:E,5) -> 6841.56 | J12: =Active!J12 -> 1.059 | K12: 1.68771291 | L12: =Active!L12 -> 1.057 | M12: 1.764464381 | O12: =Active!O12 -> 1.058 | P12: 1.571844072 | Q12: =Active!Q12 -> 1.057 | R12: 1.7678663 | T12: 10356.26816 | U12: =IF(ExFlg=0,E12*Trends!T12,E12*Trends!X12) -> 13735.23384 | V12: -3378.965681 | X12: 7875.062891 | Y12: =IF(ExFlg=0,H12*Trends!V12,H12*Trends!Z12) -> 13293.6359 | Z12: -5418.573013 | AB12: -5418.573013 | AD12: =IF($B12<121,VLOOKUP($B12,Lookups!A:H,8)*(1-VLOOKUP($B12,Lookups!$DY$3:$EA$103,2))^($A12-$A$3),"") -> 0.00433540764 | AE12: =IF($B12<121,VLOOKUP($B12,Lookups!A:I,9)*(1-VLOOKUP($B12,Lookups!$DY$3:$EA$103,3))^($A12-$A$3),"") -> 0.001510099196 | AF12: 0.001510099196 | AG12: 0.9943310924 | AH12: 0.7025867356 | AI12: 0.981706 | AK12: -3716.18513
A13: 2025 | B13: 30 | D13: =VLOOKUP(B13,Lookups!A:B,2) -> 6159.390862 | E13: =VLOOKUP(B13,Lookups!A:C,3) -> 7044.48 | G13: =VLOOKUP(B13,Lookups!A:D,4) -> 5028.953512 | H13: =VLOOKUP(B13,Lookups!A:E,5) -> 6841.56 | J13: =Active!J13 -> 1.059 | K13: 1.787287971 | L13: =Active!L13 -> 1.057 | M13: 1.865038851 | O13: =Active!O13 -> 1.058 | P13: 1.663011029 | Q13: =Active!Q13 -> 1.057 | R13: 1.868634679 | T13: 11008.6052 | U13: =IF(ExFlg=0,E13*Trends!T13,E13*Trends!X13) -> 14518.14217 | V13: -3509.53697 | X13: 8363.205152 | Y13: =IF(ExFlg=0,H13*Trends!V13,H13*Trends!Z13) -> 14051.37315 | Z13: -5688.167998 | AB13: -5688.167998 | AD13: =IF($B13<121,VLOOKUP($B13,Lookups!A:H,8)*(1-VLOOKUP($B13,Lookups!$DY$3:$EA$103,2))^($A13-$A$3),"") -> 0.004765440131 | AE13: =IF($B13<121,VLOOKUP($B13,Lookups!A:I,9)*(1-VLOOKUP($B13,Lookups!$DY$3:$EA$103,3))^($A13-$A$3),"") -> 0.00165467593 | AF13: 0.00165467593 | AG13: 0.9928295538 | AH13: 0.6755641688 | AI13: 0.981643 | AK13: -3745.133404
A14: 2026 | B14: 31 | D14: =VLOOKUP(B14,Lookups!A:B,2) -> 6189.386312 | E14: =VLOOKUP(B14,Lookups!A:C,3) -> 7044.48 | G14: =VLOOKUP(B14,Lookups!A:D,4) -> 5053.443903 | H14: =VLOOKUP(B14,Lookups!A:E,5) -> 6841.56 | J14: =Active!J14 -> 1.06 | K14: 1.892737962 | L14: =Active!L14 -> 1.057 | M14: 1.971346065 | O14: =Active!O14 -> 1.059 | P14: 1.759465668 | Q14: =Active!Q14 -> 1.057 | R14: 1.975146856 | T14: 11714.88643 | U14: =IF(ExFlg=0,E14*Trends!T14,E14*Trends!X14) -> 15345.67627 | V14: -3630.789839 | X14: 8891.361053 | Y14: =IF(ExFlg=0,H14*Trends!V14,H14*Trends!Z14) -> 14852.30142 | Z14: -5960.940366 | AB14: -5960.940366 | AD14: =IF($B14<121,VLOOKUP($B14,Lookups!A:H,8)*(1-VLOOKUP($B14,Lookups!$DY$3:$EA$103,2))^($A14-$A$3),"") -> 0.0050605463 | AE14: =IF($B14<121,VLOOKUP($B14,Lookups!A:I,9)*(1-VLOOKUP($B14,Lookups!$DY$3:$EA$103,3))^($A14-$A$3),"") -> 0.001754274288 | AF14: 0.001754274288 | AG14: 0.9911867427 | AH14: 0.6495809316 | AI14: 0.981599 | AK14: -3767.364462
A15: 2027 | B15: 32 | D15: =VLOOKUP(B15,Lookups!A:B,2) -> 6556.027073 | E15: =VLOOKUP(B15,Lookups!A:C,3) -> 7044.48 | G15: =VLOOKUP(B15,Lookups!A:D,4) -> 5352.794838 | H15: =VLOOKUP(B15,Lookups!A:E,5) -> 6841.56 | J15: =Active!J15 -> 1.06 | K15: 2.006302239 | L15: =Active!L15 -> 1.057 | M15: 2.083712791 | O15: =Active!O15 -> 1.061 | P15: 1.863274143 | Q15: =Active!Q15 -> 1.058 | R15: 2.087730227 | T15: 13153.3718 | U15: =IF(ExFlg=0,E15*Trends!T15,E15*Trends!X15) -> 16220.37982 | V15: -3067.008021 | X15: 9973.724212 | Y15: =IF(ExFlg=0,H15*Trends!V15,H15*Trends!Z15) -> 15698.8826 | Z15: -5725.158388 | AB15: -5725.158388 | AD15: =IF($B15<121,VLOOKUP($B15,Lookups!A:H,8)*(1-VLOOKUP($B15,Lookups!$DY$3:$EA$103,2))^($A15-$A$3),"") -> 0.005107471306 | AE15: =IF($B15<121,VLOOKUP($B15,Lookups!A:I,9)*(1-VLOOKUP($B15,Lookups!$DY$3:$EA$103,3))^($A15-$A$3),"") -> 0.001787067769 | AF15: 0.001787067769 | AG15: 0.9894479292 | AH15: 0.6245970496 | AI15: 0.981584 | AK15: -3473.024517
A16: 2028 | B16: 33 | D16: =VLOOKUP(B16,Lookups!A:B,2) -> 6945.349344 | E16: =VLOOKUP(B16,Lookups!A:C,3) -> 7044.48 | G16: =VLOOKUP(B16,Lookups!A:D,4) -> 5670.664531 | H16: =VLOOKUP(B16,Lookups!A:E,5) -> 6841.56 | J16: =Active!J16 -> 1.063 | K16: 2.126680374 | L16: =Active!L16 -> 1.057 | M16: 2.20248442 | O16: =Active!O16 -> 1.061 | P16: 1.976933865 | Q16: =Active!Q16 -> 1.058 | R16: 2.20881858 | T16: 14770.53814 | U16: =IF(ExFlg=0,E16*Trends!T16,E16*Trends!X16) -> 17144.94147 | V16: -2374.403329 | X16: 11210.52875 | Y16: =IF(ExFlg=0,H16*Trends!V16,H16*Trends!Z16) -> 16609.41779 | Z16: -5398.889041 | AB16: -5398.889041 | AD16: =IF($B16<121,VLOOKUP($B16,Lookups!A:H,8)*(1-VLOOKUP($B16,Lookups!$DY$3:$EA$103,2))^($A16-$A$3),"") -> 0.005274023645 | AE16: =IF($B16<121,VLOOKUP($B16,Lookups!A:I,9)*(1-VLOOKUP($B16,Lookups!$DY$3:$EA$103,3))^($A16-$A$3),"") -> 0.001856465046 | AF16: 0.001856465046 | AG16: 0.9876797187 | AH16: 0.6005740861 | AI16: 0.981554 | AK16: -3143.412126
A17: 2029 | B17: 34 | D17: =VLOOKUP(B17,Lookups!A:B,2) -> 7358.814848 | E17: =VLOOKUP(B17,Lookups!A:C,3) -> 7044.48 | G17: =VLOOKUP(B17,Lookups!A:D,4) -> 6008.246434 | H17: =VLOOKUP(B17,Lookups!A:E,5) -> 6841.56 | J17: =Active!J17 -> 1.063 | K17: 2.260661237 | L17: =Active!L17 -> 1.058 | M17: 2.328026032 | O17: =Active!O17 -> 1.061 | P17: 2.097526831 | Q17: =Active!Q17 -> 1.058 | R17: 2.336930057 | T17: 16635.78748 | U17: =IF(ExFlg=0,E17*Trends!T17,E17*Trends!X17) -> 18122.20313 | V17: -1486.415652 | X17: 12602.4581 | Y17: =IF(ExFlg=0,H17*Trends!V17,H17*Trends!Z17) -> 17572.76402 | Z17: -4970.30592 | AB17: -4970.30592 | AD17: =IF($B17<121,VLOOKUP($B17,Lookups!A:H,8)*(1-VLOOKUP($B17,Lookups!$DY$3:$EA$103,2))^($A17-$A$3),"") -> 0.005399586729 | AE17: =IF($B17<121,VLOOKUP($B17,Lookups!A:I,9)*(1-VLOOKUP($B17,Lookups!$DY$3:$EA$103,3))^($A17-$A$3),"") -> 0.001911655146 | AF17: 0.001911655146 | AG17: 0.9858461259 | AH17: 0.5774750828 | AI17: 0.981529 | AK17: -2777.337383
A18: 2030 | B18: 35 | D18: =VLOOKUP(B18,Lookups!A:B,2) -> 7797.98292 | E18: =VLOOKUP(B18,Lookups!A:C,3) -> 7044.48 | G18: =VLOOKUP(B18,Lookups!A:D,4) -> 6366.813695 | H18: =VLOOKUP(B18,Lookups!A:E,5) -> 6841.56 | J18: =Active!J18 -> 1.063 | K18: 2.403082895 | L18: =Active!L18 -> 1.058 | M18: 2.463051542 | O18: =Active!O18 -> 1.062 | P18: 2.225475968 | Q18: =Active!Q18 -> 1.058 | R18: 2.472472001 | T18: 18739.19937 | U18: =IF(ExFlg=0,E18*Trends!T18,E18*Trends!X18) -> 19173.29091 | V18: -434.0915423 | X18: 14169.19087 | Y18: =IF(ExFlg=0,H18*Trends!V18,H18*Trends!Z18) -> 18591.98434 | Z18: -4422.793466 | AB18: -4422.793466 | AD18: =IF($B18<121,VLOOKUP($B18,Lookups!A:H,8)*(1-VLOOKUP($B18,Lookups!$DY$3:$EA$103,2))^($A18-$A$3),"") -> 0.005509223087 | AE18: =IF($B18<121,VLOOKUP($B18,Lookups!A:I,9)*(1-VLOOKUP($B18,Lookups!$DY$3:$EA$103,3))^($A18-$A$3),"") -> 0.0019589461 | AF18: 0.0019589461 | AG18: 0.983961528 | AH18: 0.5552645027 | AI18: 0.981508 | AK18: -2371.747939
A19: 2031 | B19: 36 | D19: =VLOOKUP(B19,Lookups!A:B,2) -> 8264.517216 | E19: =VLOOKUP(B19,Lookups!A:C,3) -> 7044.48 | G19: =VLOOKUP(B19,Lookups!A:D,4) -> 6747.724641 | H19: =VLOOKUP(B19,Lookups!A:E,5) -> 6841.56 | J19: =Active!J19 -> 1.063 | K19: 2.554477118 | L19: =Active!L19 -> 1.058 | M19: 2.605908531 | O19: =Active!O19 -> 1.061 | P19: 2.363455478 | Q19: =Active!Q19 -> 1.058 | R19: 2.615875377 | T19: 21111.52012 | U19: =IF(ExFlg=0,E19*Trends!T19,E19*Trends!X19) -> 20285.34179 | V19: 826.1783306 | X19: 15947.94677 | Y19: =IF(ExFlg=0,H19*Trends!V19,H19*Trends!Z19) -> 19670.31943 | Z19: -3722.372661 | AB19: -3722.372661 | AD19: =IF($B19<121,VLOOKUP($B19,Lookups!A:H,8)*(1-VLOOKUP($B19,Lookups!$DY$3:$EA$103,2))^($A19-$A$3),"") -> 0.005615845356 | AE19: =IF($B19<121,VLOOKUP($B19,Lookups!A:I,9)*(1-VLOOKUP($B19,Lookups!$DY$3:$EA$103,3))^($A19-$A$3),"") -> 0.002004384495 | AF19: 0.002004384495 | AG19: 0.9820340004 | AH19: 0.5339081757 | AI19: 0.981488 | AK19: -1915.569615
A20: 2032 | B20: 37 | D20: =VLOOKUP(B20,Lookups!A:B,2) -> 8438.62811 | E20: =VLOOKUP(B20,Lookups!A:C,3) -> 7044.48 | G20: =VLOOKUP(B20,Lookups!A:D,4) -> 6889.880852 | H20: =VLOOKUP(B20,Lookups!A:E,5) -> 6841.56 | J20: =Active!J20 -> 1.063 | K20: 2.715409176 | L20: =Active!L20 -> 1.058 | M20: 2.757051226 | O20: =Active!O20 -> 1.062 | P20: 2.507626262 | Q20: =Active!Q20 -> 1.058 | R20: 2.767596149 | T20: 22914.3282 | U20: =IF(ExFlg=0,E20*Trends!T20,E20*Trends!X20) -> 21461.89161 | V20: 1452.436592 | X20: 17277.24617 | Y20: =IF(ExFlg=0,H20*Trends!V20,H20*Trends!Z20) -> 20811.19796 | Z20: -3533.951789 | AB20: -3533.951789 | AD20: =IF($B20<121,VLOOKUP($B20,Lookups!A:H,8)*(1-VLOOKUP($B20,Lookups!$DY$3:$EA$103,2))^($A20-$A$3),"") -> 0.005709022241 | AE20: =IF($B20<121,VLOOKUP($B20,Lookups!A:I,9)*(1-VLOOKUP($B20,Lookups!$DY$3:$EA$103,3))^($A20-$A$3),"") -> 0.002045314442 | AF20: 0.002045314442 | AG20: 0.9800656267 | AH20: 0.5133732459 | AI20: 0.98147 | AK20: -1745.122988
A21: 2033 | B21: 38 | D21: =VLOOKUP(B21,Lookups!A:B,2) -> 8617.075949 | E21: =VLOOKUP(B21,Lookups!A:C,3) -> 7044.48 | G21: =VLOOKUP(B21,Lookups!A:D,4) -> 7035.578046 | H21: =VLOOKUP(B21,Lookups!A:E,5) -> 6841.56 | J21: =Active!J21 -> 1.064 | K21: 2.886479954 | L21: =Active!L21 -> 1.058 | M21: 2.916960197 | O21: =Active!O21 -> 1.061 | P21: 2.66309909 | Q21: =Active!Q21 -> 1.058 | R21: 2.928116725 | T21: 24873.01699 | U21: =IF(ExFlg=0,E21*Trends!T21,E21*Trends!X21) -> 22706.68132 | V21: 2166.335667 | X21: 18736.44149 | Y21: =IF(ExFlg=0,H21*Trends!V21,H21*Trends!Z21) -> 22018.24744 | Z21: -3281.805943 | AB21: -3281.805943 | AD21: =IF($B21<121,VLOOKUP($B21,Lookups!A:H,8)*(1-VLOOKUP($B21,Lookups!$DY$3:$EA$103,2))^($A21-$A$3),"") -> 0.005671801747 | AE21: =IF($B21<121,VLOOKUP($B21,Lookups!A:I,9)*(1-VLOOKUP($B21,Lookups!$DY$3:$EA$103,3))^($A21-$A$3),"") -> 0.002046323011 | AF21: 0.002046323011 | AG21: 0.9780610843 | AH21: 0.493628121 | AI21: 0.98147 | AK21: -1555.090966
A22: 2034 | B22: 39 | D22: =VLOOKUP(B22,Lookups!A:B,2) -> 8799.981601 | E22: =VLOOKUP(B22,Lookups!A:C,3) -> 7044.48 | G22: =VLOOKUP(B22,Lookups!A:D,4) -> 7184.914907 | H22: =VLOOKUP(B22,Lookups!A:E,5) -> 6841.56 | J22: =Active!J22 -> 1.064 | K22: 3.071214671 | L22: =Active!L22 -> 1.058 | M22: 3.086143889 | O22: =Active!O22 -> 1.062 | P22: 2.825548135 | Q22: =Active!Q22 -> 1.058 | R22: 3.097947495 | T22: 27026.6326 | U22: =IF(ExFlg=0,E22*Trends!T22,E22*Trends!X22) -> 24023.66884 | V22: 3002.963759 | X22: 20301.32291 | Y22: =IF(ExFlg=0,H22*Trends!V22,H22*Trends!Z22) -> 23295.30579 | Z22: -2993.982873 | AB22: -2993.982873 | AD22: =IF($B22<121,VLOOKUP($B22,Lookups!A:H,8)*(1-VLOOKUP($B22,Lookups!$DY$3:$EA$103,2))^($A22-$A$3),"") -> 0.005646029965 | AE22: =IF($B22<121,VLOOKUP($B22,Lookups!A:I,9)*(1-VLOOKUP($B22,Lookups!$DY$3:$EA$103,3))^($A22-$A$3),"") -> 0.002054378158 | AF22: 0.002054378158 | AG22: 0.9760596554 | AH22: 0.474642424 | AI22: 0.981466 | AK22: -1361.342761
A23: 2035 | B23: 40 | D23: =VLOOKUP(B23,Lookups!A:B,2) -> 8987.469509 | E23: =VLOOKUP(B23,Lookups!A:C,3) -> 7044.48 | G23: =VLOOKUP(B23,Lookups!A:D,4) -> 7337.99304 | H23: =VLOOKUP(B23,Lookups!A:E,5) -> 6841.56 | J23: =Active!J23 -> 1.065 | K23: 3.26777241 | L23: =Active!L23 -> 1.058 | M23: 3.265140234 | O23: =Active!O23 -> 1.067 | P23: 3.000732119 | Q23: =Active!Q23 -> 1.059 | R23: 3.27762845 | T23: 29369.0049 | U23: =IF(ExFlg=0,E23*Trends!T23,E23*Trends!X23) -> 25417.04163 | V23: 3951.963264 | X23: 22019.35141 | Y23: =IF(ExFlg=0,H23*Trends!V23,H23*Trends!Z23) -> 24646.43352 | Z23: -2627.082118 | AB23: -2627.082118 | AD23: =IF($B23<121,VLOOKUP($B23,Lookups!A:H,8)*(1-VLOOKUP($B23,Lookups!$DY$3:$EA$103,2))^($A23-$A$3),"") -> 0.00561805626 | AE23: =IF($B23<121,VLOOKUP($B23,Lookups!A:I,9)*(1-VLOOKUP($B23,Lookups!$DY$3:$EA$103,3))^($A23-$A$3),"") -> 0.002066491953 | AF23: 0.002066491953 | AG23: 0.9740544598 | AH23: 0.4563869462 | AI23: 0.981461 | AK23: -1146.207243
A24: 2036 | B24: 41 | D24: =VLOOKUP(B24,Lookups!A:B,2) -> 9179.6678 | E24: =VLOOKUP(B24,Lookups!A:C,3) -> 7044.48 | G24: =VLOOKUP(B24,Lookups!A:D,4) -> 7494.917057 | H24: =VLOOKUP(B24,Lookups!A:E,5) -> 6841.56 | J24: =Active!J24 -> 1.065 | K24: 3.480177617 | L24: =Active!L24 -> 1.058 | M24: 3.454518368 | O24: =Active!O24 -> 1.069 | P24: 3.201781171 | Q24: =Active!Q24 -> 1.059 | R24: 3.471008529 | T24: 31946.87441 | U24: =IF(ExFlg=0,E24*Trends!T24,E24*Trends!X24) -> 26891.23005 | V24: 5055.644359 | X24: 23997.08431 | Y24: =IF(ExFlg=0,H24*Trends!V24,H24*Trends!Z24) -> 26100.5731 | Z24: -2103.488788 | AB24: -2103.488788 | AD24: =IF($B24<121,VLOOKUP($B24,Lookups!A:H,8)*(1-VLOOKUP($B24,Lookups!$DY$3:$EA$103,2))^($A24-$A$3),"") -> 0.005572523316 | AE24: =IF($B24<121,VLOOKUP($B24,Lookups!A:I,9)*(1-VLOOKUP($B24,Lookups!$DY$3:$EA$103,3))^($A24-$A$3),"") -> 0.002078360845 | AF24: 0.002078360845 | AG24: 0.9720415841 | AH24: 0.4388336021 | AI24: 0.981456 | AK24: -880.6346207
A25: 2037 | B25: 42 | D25: =VLOOKUP(B25,Lookups!A:B,2) -> 8953.572858 | E25: =VLOOKUP(B25,Lookups!A:C,3) -> 7044.48 | G25: =VLOOKUP(B25,Lookups!A:D,4) -> 7310.317469 | H25: =VLOOKUP(B25,Lookups!A:E,5) -> 6841.56 | J25: =Active!J25 -> 1.063 | K25: 3.706389162 | L25: =Active!L25 -> 1.057 | M25: 3.654880433 | O25: =Active!O25 -> 1.067 | P25: 3.422704072 | Q25: =Active!Q25 -> 1.057 | R25: 3.675798032 | T25: 33185.4254 | U25: =IF(ExFlg=0,E25*Trends!T25,E25*Trends!X25) -> 28450.92139 | V25: 4734.504008 | X25: 25021.05337 | Y25: =IF(ExFlg=0,H25*Trends!V25,H25*Trends!Z25) -> 27640.50691 | Z25: -2619.453546 | AB25: -2619.453546 | AD25: =IF($B25<121,VLOOKUP($B25,Lookups!A:H,8)*(1-VLOOKUP($B25,Lookups!$DY$3:$EA$103,2))^($A25-$A$3),"") -> 0.005511661845 | AE25: =IF($B25<121,VLOOKUP($B25,Lookups!A:I,9)*(1-VLOOKUP($B25,Lookups!$DY$3:$EA$103,3))^($A25-$A$3),"") -> 0.002091325115 | AF25: 0.002091325115 | AG25: 0.9700213309 | AH25: 0.4219553867 | AI25: 0.98145 | AK25: -1052.268816
A26: 2038 | B26: 43 | D26: =VLOOKUP(B26,Lookups!A:B,2) -> 8733.270611 | E26: =VLOOKUP(B26,Lookups!A:C,3) -> 7044.48 | G26: =VLOOKUP(B26,Lookups!A:D,4) -> 7130.44744 | H26: =VLOOKUP(B26,Lookups!A:E,5) -> 6841.56 | J26: =Active!J26 -> 1.062 | K26: 3.939891679 | L26: =Active!L26 -> 1.057 | M26: 3.863208618 | O26: =Active!O26 -> 1.066 | P26: 3.652025245 | Q26: =Active!Q26 -> 1.057 | R26: 3.88531852 | T26: 34408.14021 | U26: =IF(ExFlg=0,E26*Trends!T26,E26*Trends!X26) -> 30072.62391 | V26: 4335.516302 | X26: 26040.57406 | Y26: =IF(ExFlg=0,H26*Trends!V26,H26*Trends!Z26) -> 29216.01581 | Z26: -3175.441751 | AB26: -3175.441751 | AD26: =IF($B26<121,VLOOKUP($B26,Lookups!A:H,8)*(1-VLOOKUP($B26,Lookups!$DY$3:$EA$103,2))^($A26-$A$3),"") -> 0.006009654553 | AE26: =IF($B26<121,VLOOKUP($B26,Lookups!A:I,9)*(1-VLOOKUP($B26,Lookups!$DY$3:$EA$103,3))^($A26-$A$3),"") -> 0.002281897746 | AF26: 0.002281897746 | AG26: 0.967992701 | AH26: 0.4057263333 | AI26: 0.981366 | AK26: -1223.884506
A27: 2039 | B27: 44 | D27: =VLOOKUP(B27,Lookups!A:B,2) -> 8518.607211 | E27: =VLOOKUP(B27,Lookups!A:C,3) -> 7044.48 | G27: =VLOOKUP(B27,Lookups!A:D,4) -> 6955.181355 | H27: =VLOOKUP(B27,Lookups!A:E,5) -> 6841.56 | J27: =Active!J27 -> 1.061 | K27: 4.184164963 | L27: =Active!L27 -> 1.056 | M27: 4.083411509 | O27: =Active!O27 -> 1.065 | P27: 3.893058911 | Q27: =Active!Q27 -> 1.056 | R27: 4.106781675 | T27: 35643.25783 | U27: =IF(ExFlg=0,E27*Trends!T27,E27*Trends!X27) -> 31786.76347 | V27: 3856.494352 | X27: 27076.93075 | Y27: =IF(ExFlg=0,H27*Trends!V27,H27*Trends!Z27) -> 30881.32871 | Z27: -3804.397957 | AB27: -3804.397957 | AD27: =IF($B27<121,VLOOKUP($B27,Lookups!A:H,8)*(1-VLOOKUP($B27,Lookups!$DY$3:$EA$103,2))^($A27-$A$3),"") -> 0.006382671418 | AE27: =IF($B27<121,VLOOKUP($B27,Lookups!A:I,9)*(1-VLOOKUP($B27,Lookups!$DY$3:$EA$103,3))^($A27-$A$3),"") -> 0.002433875547 | AF27: 0.002433875547 | AG27: 0.9657838406 | AH27: 0.3901214743 | AI27: 0.981299 | AK27: -1406.588581
A28: 2040 | B28: 45 | D28: =VLOOKUP(B28,Lookups!A:B,2) -> 8309.433018 | E28: =VLOOKUP(B28,Lookups!A:C,3) -> 7044.48 | G28: =VLOOKUP(B28,Lookups!A:D,4) -> 6784.397041 | H28: =VLOOKUP(B28,Lookups!A:E,5) -> 6841.56 | J28: =Active!J28 -> 1.061 | K28: 4.439399026 | L28: =Active!L28 -> 1.056 | M28: 4.312082553 | O28: =Active!O28 -> 1.065 | P28: 4.14610774 | Q28: =Active!Q28 -> 1.06 | R28: 4.336761449 | T28: 36888.88884 | U28: =IF(ExFlg=0,E28*Trends!T28,E28*Trends!X28) -> 33566.82223 | V28: 3322.066617 | X28: 28128.84108 | Y28: =IF(ExFlg=0,H28*Trends!V28,H28*Trends!Z28) -> 32610.68312 | Z28: -4481.842035 | AB28: -4481.842035 | AD28: =IF($B28<121,VLOOKUP($B28,Lookups!A:H,8)*(1-VLOOKUP($B28,Lookups!$DY$3:$EA$103,2))^($A28-$A$3),"") -> 0.006666613828 | AE28: =IF($B28<121,VLOOKUP($B28,Lookups!A:I,9)*(1-VLOOKUP($B28,Lookups!$DY$3:$EA$103,3))^($A28-$A$3),"") -> 0.002558455776 | AF28: 0.002558455776 | AG28: 0.9634332429 | AH28: 0.3751168023 | AI28: 0.981244 | AK28: -1589.357899
A29: 2041 | B29: 46 | D29: =VLOOKUP(B29,Lookups!A:B,2) -> 8105.60249 | E29: =VLOOKUP(B29,Lookups!A:C,3) -> 7044.48 | G29: =VLOOKUP(B29,Lookups!A:D,4) -> 6617.975665 | H29: =VLOOKUP(B29,Lookups!A:E,5) -> 6841.56 | J29: =Active!J29 -> 1.063 | K29: 4.710202366 | L29: =Active!L29 -> 1.056 | M29: 4.553559176 | O29: =Active!O29 -> 1.064 | P29: 4.415604743 | Q29: =Active!Q29 -> 1.06 | R29: 4.596967136 | T29: 38179.02803 | U29: =IF(ExFlg=0,E29*Trends!T29,E29*Trends!X29) -> 35446.56427 | V29: 2732.463758 | X29: 29222.36474 | Y29: =IF(ExFlg=0,H29*Trends!V29,H29*Trends!Z29) -> 34567.3241 | Z29: -5344.959367 | AB29: -5344.959367 | AD29: =IF($B29<121,VLOOKUP($B29,Lookups!A:H,8)*(1-VLOOKUP($B29,Lookups!$DY$3:$EA$103,2))^($A29-$A$3),"") -> 0.007226228943 | AE29: =IF($B29<121,VLOOKUP($B29,Lookups!A:I,9)*(1-VLOOKUP($B29,Lookups!$DY$3:$EA$103,3))^($A29-$A$3),"") -> 0.002856149561 | AF29: 0.002856149561 | AG29: 0.9609683416 | AH29: 0.3606892329 | AI29: 0.981113 | AK29: -1817.630899
A30: 2042 | B30: 47 | D30: =VLOOKUP(B30,Lookups!A:B,2) -> 8050.457276 | E30: =VLOOKUP(B30,Lookups!A:C,3) -> 7044.48 | G30: =VLOOKUP(B30,Lookups!A:D,4) -> 6572.951296 | H30: =VLOOKUP(B30,Lookups!A:E,5) -> 6841.56 | J30: =Active!J30 -> 1.063 | K30: 5.006945116 | L30: =Active!L30 -> 1.055 | M30: 4.80855849 | O30: =Active!O30 -> 1.064 | P30: 4.698203447 | Q30: =Active!Q30 -> 1.06 | R30: 4.872785164 | T30: 40308.19773 | U30: =IF(ExFlg=0,E30*Trends!T30,E30*Trends!X30) -> 37431.57187 | V30: 2876.625863 | X30: 30881.06243 | Y30: =IF(ExFlg=0,H30*Trends!V30,H30*Trends!Z30) -> 36641.36355 | Z30: -5760.301117 | AB30: -5760.301117 | AD30: =IF($B30<121,VLOOKUP($B30,Lookups!A:H,8)*(1-VLOOKUP($B30,Lookups!$DY$3:$EA$103,2))^($A30-$A$3),"") -> 0.007770157996 | AE30: =IF($B30<121,VLOOKUP($B30,Lookups!A:I,9)*(1-VLOOKUP($B30,Lookups!$DY$3:$EA$103,3))^($A30-$A$3),"") -> 0.003166262895 | AF30: 0.003166262895 | AG30: 0.9582236723 | AH30: 0.3468165701 | AI30: 0.980976 | AK30: -1877.890666
A31: 2043 | B31: 48 | D31: =VLOOKUP(B31,Lookups!A:B,2) -> 7995.939371 | E31: =VLOOKUP(B31,Lookups!A:C,3) -> 7044.48 | G31: =VLOOKUP(B31,Lookups!A:D,4) -> 6528.439106 | H31: =VLOOKUP(B31,Lookups!A:E,5) -> 6841.56 | J31: =Active!J31 -> 1.063 | K31: 5.322382658 | L31: =Active!L31 -> 1.055 | M31: 5.073029207 | O31: =Active!O31 -> 1.063 | P31: 4.998888467 | Q31: =Active!Q31 -> 1.059 | R31: 5.165152274 | T31: 42557.44904 | U31: =IF(ExFlg=0,E31*Trends!T31,E31*Trends!X31) -> 39490.30832 | V31: 3067.140718 | X31: 32634.93896 | Y31: =IF(ExFlg=0,H31*Trends!V31,H31*Trends!Z31) -> 38839.84536 | Z31: -6204.906407 | AB31: -6204.906407 | AD31: =IF($B31<121,VLOOKUP($B31,Lookups!A:H,8)*(1-VLOOKUP($B31,Lookups!$DY$3:$EA$103,2))^($A31-$A$3),"") -> 0.008675784919 | AE31: =IF($B31<121,VLOOKUP($B31,Lookups!A:I,9)*(1-VLOOKUP($B31,Lookups!$DY$3:$EA$103,3))^($A31-$A$3),"") -> 0.00361469511 | AF31: 0.00361469511 | AG31: 0.9551896842 | AH31: 0.3334774713 | AI31: 0.980779 | AK31: -1938.485321
A32: 2044 | B32: 49 | D32: =VLOOKUP(B32,Lookups!A:B,2) -> 7942.041332 | E32: =VLOOKUP(B32,Lookups!A:C,3) -> 7044.48 | G32: =VLOOKUP(B32,Lookups!A:D,4) -> 6484.433017 | H32: =VLOOKUP(B32,Lookups!A:E,5) -> 6841.56 | J32: =Active!J32 -> 1.062 | K32: 5.657692765 | L32: =Active!L32 -> 1.055 | M32: 5.352045814 | O32: =Active!O32 -> 1.063 | P32: 5.313818441 | Q32: =Active!Q32 -> 1.059 | R32: 5.469896258 | T32: 44933.62979 | U32: =IF(ExFlg=0,E32*Trends!T32,E32*Trends!X32) -> 41662.27528 | V32: 3271.354503 | X32: 34457.09974 | Y32: =IF(ExFlg=0,H32*Trends!V32,H32*Trends!Z32) -> 41131.39624 | Z32: -6674.296496 | AB32: -6674.296496 | AD32: =IF($B32<121,VLOOKUP($B32,Lookups!A:H,8)*(1-VLOOKUP($B32,Lookups!$DY$3:$EA$103,2))^($A32-$A$3),"") -> 0.009508542463 | AE32: =IF($B32<121,VLOOKUP($B32,Lookups!A:I,9)*(1-VLOOKUP($B32,Lookups!$DY$3:$EA$103,3))^($A32-$A$3),"") -> 0.004063006663 | AF32: 0.004063006663 | AG32: 0.9517369647 | AH32: 0.3206514147 | AI32: 0.980581 | AK32: -1997.280525
A33: 2045 | B33: 50 | D33: =VLOOKUP(B33,Lookups!A:B,2) -> 7888.755802 | E33: =VLOOKUP(B33,Lookups!A:C,3) -> 7044.48 | G33: =VLOOKUP(B33,Lookups!A:D,4) -> 6440.927023 | H33: =VLOOKUP(B33,Lookups!A:E,5) -> 6841.56 | J33: =Active!J33 -> 1.062 | K33: 6.008469717 | L33: =Active!L33 -> 1.055 | M33: 5.646408333 | O33: =Active!O33 -> 1.062 | P33: 5.648589003 | Q33: =Active!Q33 -> 1.059 | R33: 5.792620137 | T33: 47399.35034 | U33: =IF(ExFlg=0,E33*Trends!T33,E33*Trends!X33) -> 43953.70042 | V33: 3445.649916 | X33: 36382.14955 | Y33: =IF(ExFlg=0,H33*Trends!V33,H33*Trends!Z33) -> 43558.14862 | Z33: -7175.99907 | AB33: -7175.99907 | AD33: =IF($B33<121,VLOOKUP($B33,Lookups!A:H,8)*(1-VLOOKUP($B33,Lookups!$DY$3:$EA$103,2))^($A33-$A$3),"") -> 0.01028060994 | AE33: =IF($B33<121,VLOOKUP($B33,Lookups!A:I,9)*(1-VLOOKUP($B33,Lookups!$DY$3:$EA$103,3))^($A33-$A$3),"") -> 0.004513767515 | AF33: 0.004513767515 | AG33: 0.9478700511 | AH33: 0.308318668 | AI33: 0.980383 | AK33: -2056.017317
A34: 2046 | B34: 51 | D34: =VLOOKUP(B34,Lookups!A:B,2) -> 7836.075512 | E34: =VLOOKUP(B34,Lookups!A:C,3) -> 7044.48 | G34: =VLOOKUP(B34,Lookups!A:D,4) -> 6397.915189 | H34: =VLOOKUP(B34,Lookups!A:E,5) -> 6841.56 | J34: =Active!J34 -> 1.062 | K34: 6.380994839 | L34: =Active!L34 -> 1.055 | M34: 5.956960792 | O34: =Active!O34 -> 1.062 | P34: 5.998801521 | Q34: =Active!Q34 -> 1.058 | R34: 6.134384726 | T34: 50001.9574 | U34: =IF(ExFlg=0,E34*Trends!T34,E34*Trends!X34) -> 46371.15395 | V34: 3630.803458 | X34: 38379.82337 | Y34: =IF(ExFlg=0,H34*Trends!V34,H34*Trends!Z34) -> 46128.07939 | Z34: -7748.256022 | AB34: -7748.256022 | AD34: =IF($B34<121,VLOOKUP($B34,Lookups!A:H,8)*(1-VLOOKUP($B34,Lookups!$DY$3:$EA$103,2))^($A34-$A$3),"") -> 0.01099497102 | AE34: =IF($B34<121,VLOOKUP($B34,Lookups!A:I,9)*(1-VLOOKUP($B34,Lookups!$DY$3:$EA$103,3))^($A34-$A$3),"") -> 0.004966412059 | AF34: 0.004966412059 | AG34: 0.9435915861 | AH34: 0.2964602577 | AI34: 0.980183 | AK34: -2124.524138
A35: 2047 | B35: 52 | D35: =VLOOKUP(B35,Lookups!A:B,2) -> 8009.417467 | E35: =VLOOKUP(B35,Lookups!A:C,3) -> 7044.48 | G35: =VLOOKUP(B35,Lookups!A:D,4) -> 6539.443585 | H35: =VLOOKUP(B35,Lookups!A:E,5) -> 6841.56 | J35: =Active!J35 -> 1.061 | K35: 6.776616519 | L35: =Active!L35 -> 1.055 | M35: 6.284593635 | O35: =Active!O35 -> 1.062 | P35: 6.370727215 | Q35: =Active!Q35 -> 1.058 | R35: 6.49017904 | T35: =IF(B35<65,D35*K35,D35*M35) -> 54276.75072 | U35: =IF(ExFlg=0,E35*Trends!T35,E35*Trends!X35) -> 48921.56741 | V35: =T35-U35 -> 5355.183306 | X35: =IF(B35<65,G35*P35,G35*R35) -> 41661.01122 | Y35: =IF(ExFlg=0,H35*Trends!V35,H35*Trends!Z35) -> 48803.50799 | Z35: =X35-Y35 -> -7142.496775 | AB35: =(1-PctUMP)*V35+PctUMP*Z35 -> -7142.496775 | AD35: =IF($B35<121,VLOOKUP($B35,Lookups!A:H,8)*(1-VLOOKUP($B35,Lookups!$DY$3:$EA$103,2))^($A35-$A$3),"") -> 0.01146616855 | AE35: =IF($B35<121,VLOOKUP($B35,Lookups!A:I,9)*(1-VLOOKUP($B35,Lookups!$DY$3:$EA$103,3))^($A35-$A$3),"") -> 0.005330631783 | AF35: =IF(B35<121,(PCTMALE*AD35+(1-PCTMALE)*AE35),"") -> 0.005330631783 | AG35: 0.9389053214 | AH35: 0.2850579401 | AI35: =IF(AF35="","",ROUND((13/24)+(11/24)*(1/(1+IntRt))*(1-AF35),6)) -> 0.980023 | AK35: =IF(B35<65,AB35*AG35*AH35*AI35,"") -> -1873.446365 | AL35: =IF(AND(B35>=65,B35<111),AB35*AG35*AH35*AI35,"") -> 
A36: =1+A35 -> 2048 | B36: =1+B35 -> 53 | D36: =VLOOKUP(B36,Lookups!A:B,2) -> 8187.164567 | E36: =VLOOKUP(B36,Lookups!A:C,3) -> 7044.48 | G36: =VLOOKUP(B36,Lookups!A:D,4) -> 6684.568646 | H36: =VLOOKUP(B36,Lookups!A:E,5) -> 6841.56 | J36: =Active!J36 -> 1.061 | K36: 7.189990127 | L36: =Active!L36 -> 1.055 | M36: 6.630246285 | O36: =Active!O36 -> 1.061 | P36: 6.765712302 | Q36: =Active!Q36 -> 1.058 | R36: 6.866609424 | T36: 58865.6324 | U36: =IF(ExFlg=0,E36*Trends!T36,E36*Trends!X36) -> 51612.25362 | V36: 7253.378781 | X36: 45225.86832 | Y36: =IF(ExFlg=0,H36*Trends!V36,H36*Trends!Z36) -> 51634.11145 | Z36: -6408.24313 | AB36: -6408.24313 | AD36: =IF($B36<121,VLOOKUP($B36,Lookups!A:H,8)*(1-VLOOKUP($B36,Lookups!$DY$3:$EA$103,2))^($A36-$A$3),"") -> 0.01360910347 | AE36: =IF($B36<121,VLOOKUP($B36,Lookups!A:I,9)*(1-VLOOKUP($B36,Lookups!$DY$3:$EA$103,3))^($A36-$A$3),"") -> 0.006405654259 | AF36: 0.006405654259 | AG36: 0.9339003629 | AH36: =IF(B36<121,AH35/(1+IntRt),"") -> 0.2740941731 | AI36: 0.979549 | AK36: -1606.81358
A37: 2049 | B37: 54 | D37: =VLOOKUP(B37,Lookups!A:B,2) -> 8369.440107 | E37: =VLOOKUP(B37,Lookups!A:C,3) -> 7044.48 | G37: =VLOOKUP(B37,Lookups!A:D,4) -> 6833.391041 | H37: =VLOOKUP(B37,Lookups!A:E,5) -> 6841.56 | J37: =Active!J37 -> 1.061 | K37: 7.628579525 | L37: =Active!L37 -> 1.055 | M37: 6.994909831 | O37: =Active!O37 -> 1.061 | P37: 7.178420753 | Q37: =Active!Q37 -> 1.058 | R37: 7.264872771 | T37: 63846.93943 | U37: =IF(ExFlg=0,E37*Trends!T37,E37*Trends!X37) -> 54450.92757 | V37: 9396.011861 | X37: 49052.95606 | Y37: =IF(ExFlg=0,H37*Trends!V37,H37*Trends!Z37) -> 54628.88992 | Z37: -5575.933861 | AB37: -5575.933861 | AD37: =IF($B37<121,VLOOKUP($B37,Lookups!A:H,8)*(1-VLOOKUP($B37,Lookups!$DY$3:$EA$103,2))^($A37-$A$3),"") -> 0.01533599886 | AE37: =IF($B37<121,VLOOKUP($B37,Lookups!A:I,9)*(1-VLOOKUP($B37,Lookups!$DY$3:$EA$103,3))^($A37-$A$3),"") -> 0.007005949705 | AF37: 0.007005949705 | AG37: 0.92791812 | AH37: 0.2635520896 | AI37: 0.979284 | AK37: -1335.372388
A38: 2050 | B38: 55 | D38: =VLOOKUP(B38,Lookups!A:B,2) -> 8556.371031 | E38: =VLOOKUP(B38,Lookups!A:C,3) -> 7044.48 | G38: =VLOOKUP(B38,Lookups!A:D,4) -> 6986.014414 | H38: =VLOOKUP(B38,Lookups!A:E,5) -> 6841.56 | J38: =Active!J38 -> 1.06 | K38: 8.093922876 | L38: =Active!L38 -> 1.055 | M38: 7.379629872 | O38: =Active!O38 -> 1.061 | P38: 7.616304419 | Q38: =Active!Q38 -> 1.062 | R38: 7.686235391 | T38: 69254.60722 | U38: =IF(ExFlg=0,E38*Trends!T38,E38*Trends!X38) -> 57445.72859 | V38: 11808.87864 | X38: 53207.61245 | Y38: =IF(ExFlg=0,H38*Trends!V38,H38*Trends!Z38) -> 57797.36553 | Z38: -4589.753083 | AB38: -4589.753083 | AD38: =IF($B38<121,VLOOKUP($B38,Lookups!A:H,8)*(1-VLOOKUP($B38,Lookups!$DY$3:$EA$103,2))^($A38-$A$3),"") -> 0.004896782456 | AE38: =IF($B38<121,VLOOKUP($B38,Lookups!A:I,9)*(1-VLOOKUP($B38,Lookups!$DY$3:$EA$103,3))^($A38-$A$3),"") -> 0.002736792288 | AF38: 0.002736792288 | AG38: 0.9214171724 | AH38: 0.2534154707 | AI38: 0.981166 | AK38: -1051.528962
A39: 2051 | B39: 56 | D39: =VLOOKUP(B39,Lookups!A:B,2) -> 8748.088042 | E39: =VLOOKUP(B39,Lookups!A:C,3) -> 7044.48 | G39: =VLOOKUP(B39,Lookups!A:D,4) -> 7142.545481 | H39: =VLOOKUP(B39,Lookups!A:E,5) -> 6841.56 | J39: =Active!J39 -> 1.06 | K39: 8.579558248 | L39: =Active!L39 -> 1.055 | M39: 7.785509515 | O39: =Active!O39 -> 1.06 | P39: 8.080898988 | Q39: =Active!Q39 -> 1.063 | R39: 8.162781985 | T39: 75054.73092 | U39: =IF(ExFlg=0,E39*Trends!T39,E39*Trends!X39) -> 60605.24366 | V39: 14449.48726 | X39: 57718.18855 | Y39: =IF(ExFlg=0,H39*Trends!V39,H39*Trends!Z39) -> 61380.8022 | Z39: -3662.613645 | AB39: -3662.613645 | AD39: =IF($B39<121,VLOOKUP($B39,Lookups!A:H,8)*(1-VLOOKUP($B39,Lookups!$DY$3:$EA$103,2))^($A39-$A$3),"") -> 0.005426323194 | AE39: =IF($B39<121,VLOOKUP($B39,Lookups!A:I,9)*(1-VLOOKUP($B39,Lookups!$DY$3:$EA$103,3))^($A39-$A$3),"") -> 0.002892041136 | AF39: 0.002892041136 | AG39: 0.9188954449 | AH39: 0.2436687219 | AI39: 0.981097 | AK39: -804.5794589
A40: 2052 | B40: 57 | D40: =VLOOKUP(B40,Lookups!A:B,2) -> 9123.468634 | E40: =VLOOKUP(B40,Lookups!A:C,3) -> 7044.48 | G40: =VLOOKUP(B40,Lookups!A:D,4) -> 7449.032225 | H40: =VLOOKUP(B40,Lookups!A:E,5) -> 6841.56 | J40: =Active!J40 -> 1.06 | K40: 9.094331743 | L40: =Active!L40 -> 1.057 | M40: 8.213712538 | O40: =Active!O40 -> 1.06 | P40: 8.565752928 | Q40: =Active!Q40 -> 1.063 | R40: 8.677037251 | T40: 82971.8504 | U40: =IF(ExFlg=0,E40*Trends!T40,E40*Trends!X40) -> 63938.53206 | V40: 19033.31834 | X40: 63806.56959 | Y40: =IF(ExFlg=0,H40*Trends!V40,H40*Trends!Z40) -> 65247.79274 | Z40: -1441.22315 | AB40: -1441.22315 | AD40: =IF($B40<121,VLOOKUP($B40,Lookups!A:H,8)*(1-VLOOKUP($B40,Lookups!$DY$3:$EA$103,2))^($A40-$A$3),"") -> 0.005749930517 | AE40: =IF($B40<121,VLOOKUP($B40,Lookups!A:I,9)*(1-VLOOKUP($B40,Lookups!$DY$3:$EA$103,3))^($A40-$A$3),"") -> 0.003064868554 | AF40: 0.003064868554 | AG40: 0.9162379615 | AH40: 0.2342968479 | AI40: 0.981021 | AK40: -303.5178666
A41: 2053 | B41: 58 | D41: =VLOOKUP(B41,Lookups!A:B,2) -> 9515.379195 | E41: =VLOOKUP(B41,Lookups!A:C,3) -> 7044.48 | G41: =VLOOKUP(B41,Lookups!A:D,4) -> 7769.015182 | H41: =VLOOKUP(B41,Lookups!A:E,5) -> 6841.56 | J41: =Active!J41 -> 1.06 | K41: 9.639991648 | L41: =Active!L41 -> 1.059 | M41: 8.681894153 | O41: =Active!O41 -> 1.06 | P41: 9.079698103 | Q41: =Active!Q41 -> 1.063 | R41: 9.223690597 | T41: 91728.17596 | U41: =IF(ExFlg=0,E41*Trends!T41,E41*Trends!X41) -> 67583.02839 | V41: 24145.14758 | X41: 70540.31241 | Y41: =IF(ExFlg=0,H41*Trends!V41,H41*Trends!Z41) -> 69358.40368 | Z41: 1181.908736 | AB41: 1181.908736 | AD41: =IF($B41<121,VLOOKUP($B41,Lookups!A:H,8)*(1-VLOOKUP($B41,Lookups!$DY$3:$EA$103,2))^($A41-$A$3),"") -> 0.006160527155 | AE41: =IF($B41<121,VLOOKUP($B41,Lookups!A:I,9)*(1-VLOOKUP($B41,Lookups!$DY$3:$EA$103,3))^($A41-$A$3),"") -> 0.003295331118 | AF41: 0.003295331118 | AG41: 0.9134298126 | AH41: 0.2252854307 | AI41: 0.98092 | AK41: 238.575488
A42: 2054 | B42: 59 | D42: =VLOOKUP(B42,Lookups!A:B,2) -> 9924.565395 | E42: =VLOOKUP(B42,Lookups!A:C,3) -> 7044.48 | G42: =VLOOKUP(B42,Lookups!A:D,4) -> 8103.103169 | H42: =VLOOKUP(B42,Lookups!A:E,5) -> 6841.56 | J42: =Active!J42 -> 1.06 | K42: 10.21839115 | L42: =Active!L42 -> 1.058 | M42: 9.194125908 | O42: =Active!O42 -> 1.06 | P42: 9.62447999 | Q42: =Active!Q42 -> 1.062 | R42: 9.804783105 | T42: 101413.0912 | U42: =IF(ExFlg=0,E42*Trends!T42,E42*Trends!X42) -> 71570.42706 | V42: 29842.6641 | X42: 77988.15431 | Y42: =IF(ExFlg=0,H42*Trends!V42,H42*Trends!Z42) -> 73727.98311 | Z42: 4260.171195 | AB42: 4260.171195 | AD42: =IF($B42<121,VLOOKUP($B42,Lookups!A:H,8)*(1-VLOOKUP($B42,Lookups!$DY$3:$EA$103,2))^($A42-$A$3),"") -> 0.005922959809 | AE42: =IF($B42<121,VLOOKUP($B42,Lookups!A:I,9)*(1-VLOOKUP($B42,Lookups!$DY$3:$EA$103,3))^($A42-$A$3),"") -> 0.003261818999 | AF42: 0.003261818999 | AG42: 0.9104197589 | AH42: 0.2166206064 | AI42: 0.980934 | AK42: 824.1538304
A43: 2055 | B43: 60 | D43: =VLOOKUP(B43,Lookups!A:B,2) -> 10351.80727 | E43: =VLOOKUP(B43,Lookups!A:C,3) -> 7044.48 | G43: =VLOOKUP(B43,Lookups!A:D,4) -> 8451.93306 | H43: =VLOOKUP(B43,Lookups!A:E,5) -> 6841.56 | J43: =Active!J43 -> 1.06 | K43: 10.83149462 | L43: =Active!L43 -> 1.058 | M43: 9.72738521 | O43: =Active!O43 -> 1.06 | P43: 10.20194879 | Q43: =Active!Q43 -> 1.062 | R43: 10.41267966 | T43: 112125.5447 | U43: =IF(ExFlg=0,E43*Trends!T43,E43*Trends!X43) -> 75721.51183 | V43: 36404.03284 | X43: 86226.18824 | Y43: =IF(ExFlg=0,H43*Trends!V43,H43*Trends!Z43) -> 78299.11806 | Z43: 7927.070178 | AB43: 7927.070178 | AD43: =IF($B43<121,VLOOKUP($B43,Lookups!A:H,8)*(1-VLOOKUP($B43,Lookups!$DY$3:$EA$103,2))^($A43-$A$3),"") -> 0.006334620695 | AE43: =IF($B43<121,VLOOKUP($B43,Lookups!A:I,9)*(1-VLOOKUP($B43,Lookups!$DY$3:$EA$103,3))^($A43-$A$3),"") -> 0.003491639802 | AF43: 0.003491639802 | AG43: 0.9074501345 | AH43: 0.2082890447 | AI43: 0.980833 | AK43: 1469.592644
A44: 2056 | B44: 61 | D44: =VLOOKUP(B44,Lookups!A:B,2) -> 10797.92082 | E44: =VLOOKUP(B44,Lookups!A:C,3) -> 7044.48 | G44: =VLOOKUP(B44,Lookups!A:D,4) -> 8816.171102 | H44: =VLOOKUP(B44,Lookups!A:E,5) -> 6841.56 | J44: =Active!J44 -> 1.059 | K44: 11.48138429 | L44: =Active!L44 -> 1.058 | M44: 10.29157355 | O44: =Active!O44 -> 1.059 | P44: 10.81406572 | Q44: =Active!Q44 -> 1.062 | R44: 11.0582658 | T44: 123975.0785 | U44: =IF(ExFlg=0,E44*Trends!T44,E44*Trends!X44) -> 80113.35952 | V44: 43861.71901 | X44: 95338.65366 | Y44: =IF(ExFlg=0,H44*Trends!V44,H44*Trends!Z44) -> 83153.66338 | Z44: 12184.99028 | AB44: 12184.99028 | AD44: =IF($B44<121,VLOOKUP($B44,Lookups!A:H,8)*(1-VLOOKUP($B44,Lookups!$DY$3:$EA$103,2))^($A44-$A$3),"") -> 0.006001714285 | AE44: =IF($B44<121,VLOOKUP($B44,Lookups!A:I,9)*(1-VLOOKUP($B44,Lookups!$DY$3:$EA$103,3))^($A44-$A$3),"") -> 0.00341895017 | AF44: 0.00341895017 | AG44: 0.9042816454 | AH44: 0.2002779276 | AI44: 0.980865 | AK44: 2164.56798
A45: 2057 | B45: 62 | D45: =VLOOKUP(B45,Lookups!A:B,2) -> 11373.87117 | E45: =VLOOKUP(B45,Lookups!A:C,3) -> 7044.48 | G45: =VLOOKUP(B45,Lookups!A:D,4) -> 9286.416916 | H45: =VLOOKUP(B45,Lookups!A:E,5) -> 6841.56 | J45: =Active!J45 -> 1.059 | K45: 12.15878597 | L45: =Active!L45 -> 1.058 | M45: 10.88848482 | O45: =Active!O45 -> 1.059 | P45: 11.45209559 | Q45: =Active!Q45 -> 1.061 | R45: 11.74387828 | T45: 138292.4652 | U45: =IF(ExFlg=0,E45*Trends!T45,E45*Trends!X45) -> 84759.93437 | V45: 53532.53084 | X45: 106348.9342 | Y45: =IF(ExFlg=0,H45*Trends!V45,H45*Trends!Z45) -> 88309.19051 | Z45: 18039.74373 | AB45: 18039.74373 | AD45: =IF($B45<121,VLOOKUP($B45,Lookups!A:H,8)*(1-VLOOKUP($B45,Lookups!$DY$3:$EA$103,2))^($A45-$A$3),"") -> 0.005607496217 | AE45: =IF($B45<121,VLOOKUP($B45,Lookups!A:I,9)*(1-VLOOKUP($B45,Lookups!$DY$3:$EA$103,3))^($A45-$A$3),"") -> 0.003342824525 | AF45: 0.003342824525 | AG45: 0.9011899516 | AH45: 0.1925749303 | AI45: 0.980899 | AK45: 3070.935859
A46: 2058 | B46: 63 | D46: =VLOOKUP(B46,Lookups!A:B,2) -> 11982.76529 | E46: =VLOOKUP(B46,Lookups!A:C,3) -> 7044.48 | G46: =VLOOKUP(B46,Lookups!A:D,4) -> 9783.560308 | H46: =VLOOKUP(B46,Lookups!A:E,5) -> 6841.56 | J46: =Active!J46 -> 1.059 | K46: 12.87615434 | L46: =Active!L46 -> 1.058 | M46: 11.52001694 | O46: =Active!O46 -> 1.059 | P46: 12.12776923 | Q46: =Active!Q46 -> 1.061 | R46: 12.46025485 | T46: 154291.9353 | U46: =IF(ExFlg=0,E46*Trends!T46,E46*Trends!X46) -> 89676.01056 | V46: 64615.92475 | X46: 118652.7617 | Y46: =IF(ExFlg=0,H46*Trends!V46,H46*Trends!Z46) -> 93696.05113 | Z46: 24956.71057 | AB46: 24956.71057 | AD46: =IF($B46<121,VLOOKUP($B46,Lookups!A:H,8)*(1-VLOOKUP($B46,Lookups!$DY$3:$EA$103,2))^($A46-$A$3),"") -> 0.005811902629 | AE46: =IF($B46<121,VLOOKUP($B46,Lookups!A:I,9)*(1-VLOOKUP($B46,Lookups!$DY$3:$EA$103,3))^($A46-$A$3),"") -> 0.003709550596 | AF46: 0.003709550596 | AG46: 0.8981774317 | AH46: 0.1851682023 | AI46: 0.980737 | AK46: 4070.693944
A47: 2059 | B47: 64 | D47: =VLOOKUP(B47,Lookups!A:B,2) -> 12626.59669 | E47: =VLOOKUP(B47,Lookups!A:C,3) -> 7044.48 | G47: =VLOOKUP(B47,Lookups!A:D,4) -> 10309.22892 | H47: =VLOOKUP(B47,Lookups!A:E,5) -> 6841.56 | J47: =Active!J47 -> 1.059 | K47: 13.63584744 | L47: =Active!L47 -> 1.058 | M47: 12.18817792 | O47: =Active!O47 -> 1.059 | P47: 12.84330762 | Q47: =Active!Q47 -> 1.061 | R47: 13.2203304 | T47: 172174.3462 | U47: =IF(ExFlg=0,E47*Trends!T47,E47*Trends!X47) -> 94877.21918 | V47: 77297.12701 | X47: 132404.5983 | Y47: =IF(ExFlg=0,H47*Trends!V47,H47*Trends!Z47) -> 99411.51025 | Z47: 32993.08803 | AB47: 32993.08803 | AD47: =IF($B47<121,VLOOKUP($B47,Lookups!A:H,8)*(1-VLOOKUP($B47,Lookups!$DY$3:$EA$103,2))^($A47-$A$3),"") -> 0.005477566615 | AE47: =IF($B47<121,VLOOKUP($B47,Lookups!A:I,9)*(1-VLOOKUP($B47,Lookups!$DY$3:$EA$103,3))^($A47-$A$3),"") -> 0.003874789247 | AF47: 0.003874789247 | AG47: 0.8948455971 | AH47: 0.1780463483 | AI47: 0.980664 | AK47: 5154.949024
A48: 2060 | B48: 65 | D48: =VLOOKUP(B48,Lookups!A:B,2) -> 2963.8875 | E48: =VLOOKUP(B48,Lookups!A:C,3) -> 1715.34 | G48: =VLOOKUP(B48,Lookups!A:D,4) -> 3539.395 | H48: =VLOOKUP(B48,Lookups!A:E,5) -> 2741.28 | J48: =Active!J48 -> 1.059 | K48: 14.44036244 | L48: =Active!L48 -> 1.058 | M48: 12.89509224 | O48: =Active!O48 -> 1.059 | P48: 13.60106277 | Q48: =Active!Q48 -> 1.061 | R48: 14.02677055 | T48: 38219.6027 | U48: =IF(ExFlg=0,E48*Trends!T48,E48*Trends!X48) -> 24442.68379 | V48: 13776.91891 | X48: 49646.28155 | Y48: =IF(ExFlg=0,H48*Trends!V48,H48*Trends!Z48) -> 42262.02601 | Z48: 7384.255538 | AB48: 7384.255538 | AD48: =IF($B48<121,VLOOKUP($B48,Lookups!A:H,8)*(1-VLOOKUP($B48,Lookups!$DY$3:$EA$103,2))^($A48-$A$3),"") -> 0.005466706715 | AE48: =IF($B48<121,VLOOKUP($B48,Lookups!A:I,9)*(1-VLOOKUP($B48,Lookups!$DY$3:$EA$103,3))^($A48-$A$3),"") -> 0.004177087338 | AF48: 0.004177087338 | AG48: 0.891378259 | AH48: 0.1711984118 | AI48: 0.980531 | AL48: 1104.917405
A49: 2061 | B49: 66 | D49: =VLOOKUP(B49,Lookups!A:B,2) -> 3068.840044 | E49: =VLOOKUP(B49,Lookups!A:C,3) -> 1715.34 | G49: =VLOOKUP(B49,Lookups!A:D,4) -> 3664.726497 | H49: =VLOOKUP(B49,Lookups!A:E,5) -> 2741.28 | J49: =Active!J49 -> 1.058 | K49: 15.29234383 | L49: =Active!L49 -> 1.057 | M49: 13.64300759 | O49: =Active!O49 -> 1.059 | P49: 14.40352547 | Q49: =Active!Q49 -> 1.06 | R49: 14.88240355 | T49: 41868.20801 | U49: =IF(ExFlg=0,E49*Trends!T49,E49*Trends!X49) -> 25860.35945 | V49: 16007.84856 | X49: 54539.93865 | Y49: =IF(ExFlg=0,H49*Trends!V49,H49*Trends!Z49) -> 44840.0096 | Z49: 9699.929049 | AB49: 9699.929049 | AD49: =IF($B49<121,VLOOKUP($B49,Lookups!A:H,8)*(1-VLOOKUP($B49,Lookups!$DY$3:$EA$103,2))^($A49-$A$3),"") -> 0.0057334161 | AE49: =IF($B49<121,VLOOKUP($B49,Lookups!A:I,9)*(1-VLOOKUP($B49,Lookups!$DY$3:$EA$103,3))^($A49-$A$3),"") -> 0.004647441233 | AF49: 0.004647441233 | AG49: 0.8876548941 | AH49: 0.1646138575 | AI49: 0.980324 | AL49: 1389.4686
A50: 2062 | B50: 67 | D50: =VLOOKUP(B50,Lookups!A:B,2) -> 3177.583076 | E50: =VLOOKUP(B50,Lookups!A:C,3) -> 1715.34 | G50: =VLOOKUP(B50,Lookups!A:D,4) -> 3794.584494 | H50: =VLOOKUP(B50,Lookups!A:E,5) -> 2741.28 | J50: =Active!J50 -> 1.057 | K50: 16.17929977 | L50: =Active!L50 -> 1.057 | M50: 14.42065902 | O50: =Active!O50 -> 1.057 | P50: 15.25333347 | Q50: =Active!Q50 -> 1.059 | R50: 15.77534777 | T50: 45822.84205 | U50: =IF(ExFlg=0,E50*Trends!T50,E50*Trends!X50) -> 27334.39994 | V50: 18488.44212 | X50: 59860.89002 | Y50: =IF(ExFlg=0,H50*Trends!V50,H50*Trends!Z50) -> 47530.41018 | Z50: 12330.47984 | AB50: 12330.47984 | AD50: =IF($B50<121,VLOOKUP($B50,Lookups!A:H,8)*(1-VLOOKUP($B50,Lookups!$DY$3:$EA$103,2))^($A50-$A$3),"") -> 0.006011772919 | AE50: =IF($B50<121,VLOOKUP($B50,Lookups!A:I,9)*(1-VLOOKUP($B50,Lookups!$DY$3:$EA$103,3))^($A50-$A$3),"") -> 0.005182070308 | AF50: 0.005182070308 | AG50: 0.8835295702 | AH50: 0.1582825553 | AI50: 0.980088 | AL50: 1690.048592
A51: 2063 | B51: 68 | D51: =VLOOKUP(B51,Lookups!A:B,2) -> 3290.256079 | E51: =VLOOKUP(B51,Lookups!A:C,3) -> 1715.34 | G51: =VLOOKUP(B51,Lookups!A:D,4) -> 3929.135554 | H51: =VLOOKUP(B51,Lookups!A:E,5) -> 2741.28 | J51: =Active!J51 -> 1.056 | K51: 17.10151986 | L51: =Active!L51 -> 1.057 | M51: 15.24263659 | O51: =Active!O51 -> 1.056 | P51: 16.12277348 | Q51: =Active!Q51 -> 1.058 | R51: 16.70609329 | T51: 50152.17769 | U51: =IF(ExFlg=0,E51*Trends!T51,E51*Trends!X51) -> 28892.46074 | V51: 21259.71695 | X51: 65640.5051 | Y51: =IF(ExFlg=0,H51*Trends!V51,H51*Trends!Z51) -> 50334.70438 | Z51: 15305.80072 | AB51: 15305.80072 | AD51: =IF($B51<121,VLOOKUP($B51,Lookups!A:H,8)*(1-VLOOKUP($B51,Lookups!$DY$3:$EA$103,2))^($A51-$A$3),"") -> 0.006203453097 | AE51: =IF($B51<121,VLOOKUP($B51,Lookups!A:I,9)*(1-VLOOKUP($B51,Lookups!$DY$3:$EA$103,3))^($A51-$A$3),"") -> 0.005684970504 | AF51: 0.005684970504 | AG51: 0.8789510578 | AH51: 0.1521947647 | AI51: 0.979866 | AL51: 2006.259702
A52: 2064 | B52: 69 | D52: =VLOOKUP(B52,Lookups!A:B,2) -> 3407.003756 | E52: =VLOOKUP(B52,Lookups!A:C,3) -> 1715.34 | G52: =VLOOKUP(B52,Lookups!A:D,4) -> 4068.552479 | H52: =VLOOKUP(B52,Lookups!A:E,5) -> 2741.28 | J52: =Active!J52 -> 1.055 | K52: 18.05920497 | L52: =Active!L52 -> 1.056 | M52: 16.11146687 | O52: =Active!O52 -> 1.055 | P52: 17.0256488 | Q52: =Active!Q52 -> 1.057 | R52: 17.6750467 | T52: 54891.82814 | U52: =IF(ExFlg=0,E52*Trends!T52,E52*Trends!X52) -> 30539.331 | V52: 24352.49714 | X52: 71911.85506 | Y52: =IF(ExFlg=0,H52*Trends!V52,H52*Trends!Z52) -> 53254.11723 | Z52: 18657.73783 | AB52: 18657.73783 | AD52: =IF($B52<121,VLOOKUP($B52,Lookups!A:H,8)*(1-VLOOKUP($B52,Lookups!$DY$3:$EA$103,2))^($A52-$A$3),"") -> 0.006793093725 | AE52: =IF($B52<121,VLOOKUP($B52,Lookups!A:I,9)*(1-VLOOKUP($B52,Lookups!$DY$3:$EA$103,3))^($A52-$A$3),"") -> 0.006208765542 | AF52: 0.006208765542 | AG52: 0.873954247 | AH52: 0.1463411199 | AI52: 0.979636 | AL52: 2337.646266
A53: 2065 | B53: 70 | D53: =VLOOKUP(B53,Lookups!A:B,2) -> 3527.976229 | E53: =VLOOKUP(B53,Lookups!A:C,3) -> 1715.34 | G53: =VLOOKUP(B53,Lookups!A:D,4) -> 4213.014542 | H53: =VLOOKUP(B53,Lookups!A:E,5) -> 2741.28 | J53: =Active!J53 -> 1.054 | K53: 19.05246124 | L53: =Active!L53 -> 1.057 | M53: 17.01370902 | O53: =Active!O53 -> 1.055 | P53: 17.96205948 | Q53: =Active!Q53 -> 1.056 | R53: 18.68252436 | T53: 60023.96097 | U53: =IF(ExFlg=0,E53*Trends!T53,E53*Trends!X53) -> 32249.53353 | V53: 27774.42744 | X53: 78709.74679 | Y53: =IF(ExFlg=0,H53*Trends!V53,H53*Trends!Z53) -> 56289.60191 | Z53: 22420.14488 | AB53: 22420.14488 | AD53: =IF($B53<121,VLOOKUP($B53,Lookups!A:H,8)*(1-VLOOKUP($B53,Lookups!$DY$3:$EA$103,2))^($A53-$A$3),"") -> 0.007414195586 | AE53: =IF($B53<121,VLOOKUP($B53,Lookups!A:I,9)*(1-VLOOKUP($B53,Lookups!$DY$3:$EA$103,3))^($A53-$A$3),"") -> 0.006779851907 | AF53: 0.006779851907 | AG53: 0.86852807 | AH53: 0.1407126153 | AI53: 0.979384 | AL53: 2683.541485
A54: 2066 | B54: 71 | D54: =VLOOKUP(B54,Lookups!A:B,2) -> 3653.329246 | E54: =VLOOKUP(B54,Lookups!A:C,3) -> 1715.34 | G54: =VLOOKUP(B54,Lookups!A:D,4) -> 4362.707731 | H54: =VLOOKUP(B54,Lookups!A:E,5) -> 2741.28 | J54: =Active!J54 -> 1.054 | K54: 20.08129415 | L54: =Active!L54 -> 1.057 | M54: 17.98349043 | O54: =Active!O54 -> 1.054 | P54: 18.94997275 | Q54: =Active!Q54 -> 1.055 | R54: 19.72874572 | T54: 65699.61153 | U54: =IF(ExFlg=0,E54*Trends!T54,E54*Trends!X54) -> 34087.75695 | V54: 31611.85458 | X54: 86070.75148 | Y54: =IF(ExFlg=0,H54*Trends!V54,H54*Trends!Z54) -> 59441.81962 | Z54: 26628.93186 | AB54: 26628.93186 | AD54: =IF($B54<121,VLOOKUP($B54,Lookups!A:H,8)*(1-VLOOKUP($B54,Lookups!$DY$3:$EA$103,2))^($A54-$A$3),"") -> 0.008189578466 | AE54: =IF($B54<121,VLOOKUP($B54,Lookups!A:I,9)*(1-VLOOKUP($B54,Lookups!$DY$3:$EA$103,3))^($A54-$A$3),"") -> 0.007546849344 | AF54: 0.007546849344 | AG54: 0.8626395783 | AH54: 0.1353005917 | AI54: 0.979046 | AL54: 3042.887663
A55: 2067 | B55: 72 | D55: =VLOOKUP(B55,Lookups!A:B,2) -> 3744.506065 | E55: =VLOOKUP(B55,Lookups!A:C,3) -> 1715.34 | G55: =VLOOKUP(B55,Lookups!A:D,4) -> 4471.588639 | H55: =VLOOKUP(B55,Lookups!A:E,5) -> 2741.28 | J55: =Active!J55 -> 1.053 | K55: 21.16568403 | L55: =Active!L55 -> 1.056 | M55: 19.00854939 | O55: =Active!O55 -> 1.053 | P55: 19.97327128 | Q55: =Active!Q55 -> 1.054 | R55: 20.81382674 | T55: 71177.62846 | U55: =IF(ExFlg=0,E55*Trends!T55,E55*Trends!X55) -> 36030.75909 | V55: 35146.86937 | X55: 93070.87117 | Y55: =IF(ExFlg=0,H55*Trends!V55,H55*Trends!Z55) -> 62711.1197 | Z55: 30359.75147 | AB55: 30359.75147 | AD55: =IF($B55<121,VLOOKUP($B55,Lookups!A:H,8)*(1-VLOOKUP($B55,Lookups!$DY$3:$EA$103,2))^($A55-$A$3),"") -> 0.008925500935 | AE55: =IF($B55<121,VLOOKUP($B55,Lookups!A:I,9)*(1-VLOOKUP($B55,Lookups!$DY$3:$EA$103,3))^($A55-$A$3),"") -> 0.008274421156 | AF55: 0.008274421156 | AG55: 0.8561293673 | AH55: 0.1300967228 | AI55: 0.978725 | AL55: 3309.517219
A56: 2068 | B56: 73 | D56: =VLOOKUP(B56,Lookups!A:B,2) -> 3837.959945 | E56: =VLOOKUP(B56,Lookups!A:C,3) -> 1715.34 | G56: =VLOOKUP(B56,Lookups!A:D,4) -> 4583.188751 | H56: =VLOOKUP(B56,Lookups!A:E,5) -> 2741.28 | J56: =Active!J56 -> 1.052 | K56: 22.28746528 | L56: =Active!L56 -> 1.055 | M56: 20.07302815 | O56: =Active!O56 -> 1.052 | P56: 21.03185466 | Q56: =Active!Q56 -> 1.053 | R56: 21.93777338 | T56: 77039.47802 | U56: =IF(ExFlg=0,E56*Trends!T56,E56*Trends!X56) -> 38048.4816 | V56: 38990.99642 | X56: 100544.9562 | Y56: =IF(ExFlg=0,H56*Trends!V56,H56*Trends!Z56) -> 66097.52016 | Z56: 34447.43602 | AB56: 34447.43602 | AD56: =IF($B56<121,VLOOKUP($B56,Lookups!A:H,8)*(1-VLOOKUP($B56,Lookups!$DY$3:$EA$103,2))^($A56-$A$3),"") -> 0.009761666347 | AE56: =IF($B56<121,VLOOKUP($B56,Lookups!A:I,9)*(1-VLOOKUP($B56,Lookups!$DY$3:$EA$103,3))^($A56-$A$3),"") -> 0.009093009432 | AF56: 0.009093009432 | AG56: 0.8490453924 | AH56: 0.1250930027 | AI56: 0.978364 | AL56: 3579.491148
A57: 2069 | B57: 74 | D57: =VLOOKUP(B57,Lookups!A:B,2) -> 3933.747791 | E57: =VLOOKUP(B57,Lookups!A:C,3) -> 1715.34 | G57: =VLOOKUP(B57,Lookups!A:D,4) -> 4697.576023 | H57: =VLOOKUP(B57,Lookups!A:E,5) -> 2741.28 | J57: =Active!J57 -> 1.051 | K57: 23.44641348 | L57: =Active!L57 -> 1.054 | M57: 21.1770447 | O57: =Active!O57 -> 1.051 | P57: 22.1255111 | Q57: =Active!Q57 -> 1.052 | R57: 23.10047537 | T57: 83305.15281 | U57: =IF(ExFlg=0,E57*Trends!T57,E57*Trends!X57) -> 40141.14809 | V57: 43164.00472 | X57: 108516.2392 | Y57: =IF(ExFlg=0,H57*Trends!V57,H57*Trends!Z57) -> 69600.68873 | Z57: 38915.55048 | AB57: 38915.55048 | AD57: =IF($B57<121,VLOOKUP($B57,Lookups!A:H,8)*(1-VLOOKUP($B57,Lookups!$DY$3:$EA$103,2))^($A57-$A$3),"") -> 0.01070995707 | AE57: =IF($B57<121,VLOOKUP($B57,Lookups!A:I,9)*(1-VLOOKUP($B57,Lookups!$DY$3:$EA$103,3))^($A57-$A$3),"") -> 0.009985968039 | AF57: 0.009985968039 | AG57: 0.8413250146 | AH57: 0.1202817333 | AI57: 0.977971 | AL57: 3851.346866
A58: 2070 | B58: 75 | D58: =VLOOKUP(B58,Lookups!A:B,2) -> 4031.927932 | E58: =VLOOKUP(B58,Lookups!A:C,3) -> 1715.34 | G58: =VLOOKUP(B58,Lookups!A:D,4) -> 4814.82011 | H58: =VLOOKUP(B58,Lookups!A:E,5) -> 2741.28 | J58: =Active!J58 -> 1.05 | K58: 24.64218057 | L58: =Active!L58 -> 1.053 | M58: 22.32060511 | O58: =Active!O58 -> 1.05 | P58: 23.25391217 | Q58: =Active!Q58 -> 1.052 | R58: 24.30170009 | T58: 89995.07122 | U58: =IF(ExFlg=0,E58*Trends!T58,E58*Trends!X58) -> 42308.77008 | V58: 47686.30114 | X58: 117008.3143 | Y58: =IF(ExFlg=0,H58*Trends!V58,H58*Trends!Z58) -> 73219.92455 | Z58: 43788.38974 | AB58: 43788.38974 | AD58: =IF($B58<121,VLOOKUP($B58,Lookups!A:H,8)*(1-VLOOKUP($B58,Lookups!$DY$3:$EA$103,2))^($A58-$A$3),"") -> 0.01176889893 | AE58: =IF($B58<121,VLOOKUP($B58,Lookups!A:I,9)*(1-VLOOKUP($B58,Lookups!$DY$3:$EA$103,3))^($A58-$A$3),"") -> 0.0109347889 | AF58: 0.0109347889 | AG58: 0.8329235699 | AH58: 0.1156555128 | AI58: 0.977553 | AL58: 4123.545377
A59: 2071 | B59: 76 | D59: =VLOOKUP(B59,Lookups!A:B,2) -> 4132.560157 | E59: =VLOOKUP(B59,Lookups!A:C,3) -> 1715.34 | G59: =VLOOKUP(B59,Lookups!A:D,4) -> 4934.992408 | H59: =VLOOKUP(B59,Lookups!A:E,5) -> 2741.28 | J59: =Active!J59 -> 1.05 | K59: 25.8742896 | L59: =Active!L59 -> 1.052 | M59: 23.50359718 | O59: =Active!O59 -> 1.05 | P59: 24.41660778 | Q59: =Active!Q59 -> 1.051 | R59: 25.56538849 | T59: 97130.02927 | U59: =IF(ExFlg=0,E59*Trends!T59,E59*Trends!X59) -> 44551.1349 | V59: 52578.89437 | X59: 126164.9981 | Y59: =IF(ExFlg=0,H59*Trends!V59,H59*Trends!Z59) -> 77027.36062 | Z59: 49137.6375 | AB59: 49137.6375 | AD59: =IF($B59<121,VLOOKUP($B59,Lookups!A:H,8)*(1-VLOOKUP($B59,Lookups!$DY$3:$EA$103,2))^($A59-$A$3),"") -> 0.01293762697 | AE59: =IF($B59<121,VLOOKUP($B59,Lookups!A:I,9)*(1-VLOOKUP($B59,Lookups!$DY$3:$EA$103,3))^($A59-$A$3),"") -> 0.01192729903 | AF59: 0.01192729903 | AG59: 0.8238157265 | AH59: 0.1112072239 | AI59: 0.977115 | AL59: 4398.686699
A60: 2072 | B60: 77 | D60: =VLOOKUP(B60,Lookups!A:B,2) -> 4199.687803 | E60: =VLOOKUP(B60,Lookups!A:C,3) -> 1715.34 | G60: =VLOOKUP(B60,Lookups!A:D,4) -> 5015.154443 | H60: =VLOOKUP(B60,Lookups!A:E,5) -> 2741.28 | J60: =Active!J60 -> 1.049 | K60: 27.16800408 | L60: =Active!L60 -> 1.052 | M60: 24.72578424 | O60: =Active!O60 -> 1.05 | P60: 25.63743816 | Q60: =Active!Q60 -> 1.051 | R60: 26.86922331 | T60: 103840.5745 | U60: =IF(ExFlg=0,E60*Trends!T60,E60*Trends!X60) -> 46867.79391 | V60: 56972.78057 | X60: 134753.3046 | Y60: =IF(ExFlg=0,H60*Trends!V60,H60*Trends!Z60) -> 80955.75602 | Z60: 53797.54863 | AB60: 53797.54863 | AD60: =IF($B60<121,VLOOKUP($B60,Lookups!A:H,8)*(1-VLOOKUP($B60,Lookups!$DY$3:$EA$103,2))^($A60-$A$3),"") -> 0.01420371332 | AE60: =IF($B60<121,VLOOKUP($B60,Lookups!A:I,9)*(1-VLOOKUP($B60,Lookups!$DY$3:$EA$103,3))^($A60-$A$3),"") -> 0.01298330082 | AF60: 0.01298330082 | AG60: 0.81398983 | AH60: 0.1069300229 | AI60: 0.97665 | AL60: 4573.198791
A61: 2073 | B61: 78 | D61: =VLOOKUP(B61,Lookups!A:B,2) -> 4267.90668 | E61: =VLOOKUP(B61,Lookups!A:C,3) -> 1715.34 | G61: =VLOOKUP(B61,Lookups!A:D,4) -> 5096.619597 | H61: =VLOOKUP(B61,Lookups!A:E,5) -> 2741.28 | J61: =Active!J61 -> 1.049 | K61: 28.49923627 | L61: =Active!L61 -> 1.052 | M61: 26.01152502 | O61: =Active!O61 -> 1.05 | P61: 26.91931007 | Q61: =Active!Q61 -> 1.051 | R61: 28.2395537 | T61: 111014.7614 | U61: =IF(ExFlg=0,E61*Trends!T61,E61*Trends!X61) -> 49304.9192 | V61: 61709.84219 | X61: 143926.2628 | Y61: =IF(ExFlg=0,H61*Trends!V61,H61*Trends!Z61) -> 85084.49957 | Z61: 58841.76321 | AB61: 58841.76321 | AD61: =IF($B61<121,VLOOKUP($B61,Lookups!A:H,8)*(1-VLOOKUP($B61,Lookups!$DY$3:$EA$103,2))^($A61-$A$3),"") -> 0.01556228002 | AE61: =IF($B61<121,VLOOKUP($B61,Lookups!A:I,9)*(1-VLOOKUP($B61,Lookups!$DY$3:$EA$103,3))^($A61-$A$3),"") -> 0.01412781531 | AF61: 0.01412781531 | AG61: 0.8034215552 | AH61: 0.1028173297 | AI61: 0.976146 | AL61: 4744.716378
A62: 2074 | B62: 79 | D62: =VLOOKUP(B62,Lookups!A:B,2) -> 4337.234541 | E62: =VLOOKUP(B62,Lookups!A:C,3) -> 1715.34 | G62: =VLOOKUP(B62,Lookups!A:D,4) -> 5179.40907 | H62: =VLOOKUP(B62,Lookups!A:E,5) -> 2741.28 | J62: =Active!J62 -> 1.049 | K62: 29.89569885 | L62: =Active!L62 -> 1.052 | M62: 27.36412432 | O62: =Active!O62 -> 1.05 | P62: 28.26527558 | Q62: =Active!Q62 -> 1.05 | R62: 29.67977093 | T62: 118684.6252 | U62: =IF(ExFlg=0,E62*Trends!T62,E62*Trends!X62) -> 51868.775 | V62: 66815.85019 | X62: 153723.6748 | Y62: =IF(ExFlg=0,H62*Trends!V62,H62*Trends!Z62) -> 89423.80905 | Z62: 64299.86572 | AB62: 64299.86572 | AD62: =IF($B62<121,VLOOKUP($B62,Lookups!A:H,8)*(1-VLOOKUP($B62,Lookups!$DY$3:$EA$103,2))^($A62-$A$3),"") -> 0.01703375753 | AE62: =IF($B62<121,VLOOKUP($B62,Lookups!A:I,9)*(1-VLOOKUP($B62,Lookups!$DY$3:$EA$103,3))^($A62-$A$3),"") -> 0.01538664694 | AF62: 0.01538664694 | AG62: 0.7920709638 | AH62: 0.09886281706 | AI62: 0.975591 | AL62: 4912.187386
A63: 2075 | B63: 80 | D63: =VLOOKUP(B63,Lookups!A:B,2) -> 4407.689428 | E63: =VLOOKUP(B63,Lookups!A:C,3) -> 1715.34 | G63: =VLOOKUP(B63,Lookups!A:D,4) -> 5263.544407 | H63: =VLOOKUP(B63,Lookups!A:E,5) -> 2741.28 | J63: =Active!J63 -> 1.049 | K63: 31.3605881 | L63: =Active!L63 -> 1.052 | M63: 28.78705878 | O63: =Active!O63 -> 1.049 | P63: 29.67853935 | Q63: =Active!Q63 -> 1.05 | R63: 31.16375948 | T63: 126884.4147 | U63: =IF(ExFlg=0,E63*Trends!T63,E63*Trends!X63) -> 54565.9513 | V63: 72318.46337 | X63: 164031.8319 | Y63: =IF(ExFlg=0,H63*Trends!V63,H63*Trends!Z63) -> 93894.9995 | Z63: 70136.8324 | AB63: 70136.8324 | AD63: =IF($B63<121,VLOOKUP($B63,Lookups!A:H,8)*(1-VLOOKUP($B63,Lookups!$DY$3:$EA$103,2))^($A63-$A$3),"") -> 0.0186465429 | AE63: =IF($B63<121,VLOOKUP($B63,Lookups!A:I,9)*(1-VLOOKUP($B63,Lookups!$DY$3:$EA$103,3))^($A63-$A$3),"") -> 0.01678346881 | AF63: 0.01678346881 | AG63: 0.7798836475 | AH63: 0.09506040102 | AI63: 0.974975 | AL63: 5069.546186
A64: 2076 | B64: 81 | D64: =VLOOKUP(B64,Lookups!A:B,2) -> 4479.289676 | E64: =VLOOKUP(B64,Lookups!A:C,3) -> 1715.34 | G64: =VLOOKUP(B64,Lookups!A:D,4) -> 5349.047503 | H64: =VLOOKUP(B64,Lookups!A:E,5) -> 2741.28 | J64: =Active!J64 -> 1.049 | K64: 32.89725691 | L64: =Active!L64 -> 1.052 | M64: 30.28398584 | O64: =Active!O64 -> 1.049 | P64: 31.13278778 | Q64: =Active!Q64 -> 1.05 | R64: 32.72194745 | T64: 135650.7451 | U64: =IF(ExFlg=0,E64*Trends!T64,E64*Trends!X64) -> 57403.38076 | V64: 78247.36435 | X64: 175031.2513 | Y64: =IF(ExFlg=0,H64*Trends!V64,H64*Trends!Z64) -> 98589.74948 | Z64: 76441.50185 | AB64: 76441.50185 | AD64: =IF($B64<121,VLOOKUP($B64,Lookups!A:H,8)*(1-VLOOKUP($B64,Lookups!$DY$3:$EA$103,2))^($A64-$A$3),"") -> 0.02040908493 | AE64: =IF($B64<121,VLOOKUP($B64,Lookups!A:I,9)*(1-VLOOKUP($B64,Lookups!$DY$3:$EA$103,3))^($A64-$A$3),"") -> 0.01832912495 | AF64: 0.01832912495 | AG64: 0.7667944947 | AH64: 0.09140423175 | AI64: 0.974294 | AL64: 5219.928184
A65: 2077 | B65: 82 | D65: =VLOOKUP(B65,Lookups!A:B,2) -> 4501.691505 | E65: =VLOOKUP(B65,Lookups!A:C,3) -> 1715.34 | G65: =VLOOKUP(B65,Lookups!A:D,4) -> 5375.799166 | H65: =VLOOKUP(B65,Lookups!A:E,5) -> 2741.28 | J65: =Active!J65 -> 1.049 | K65: 34.5092225 | L65: =Active!L65 -> 1.052 | M65: 31.8587531 | O65: =Active!O65 -> 1.049 | P65: 32.65829438 | Q65: =Active!Q65 -> 1.05 | R65: 34.35804483 | T65: 143418.2782 | U65: =IF(ExFlg=0,E65*Trends!T65,E65*Trends!X65) -> 60388.35656 | V65: 83029.92165 | X65: 184701.9487 | Y65: =IF(ExFlg=0,H65*Trends!V65,H65*Trends!Z65) -> 103519.237 | Z65: 81182.71177 | AB65: 81182.71177 | AD65: =IF($B65<121,VLOOKUP($B65,Lookups!A:H,8)*(1-VLOOKUP($B65,Lookups!$DY$3:$EA$103,2))^($A65-$A$3),"") -> 0.02249932458 | AE65: =IF($B65<121,VLOOKUP($B65,Lookups!A:I,9)*(1-VLOOKUP($B65,Lookups!$DY$3:$EA$103,3))^($A65-$A$3),"") -> 0.02004367858 | AF65: 0.02004367858 | AG65: 0.7527398226 | AH65: 0.08788868438 | AI65: 0.973538 | AL65: 5228.707142
A66: 2078 | B66: 83 | D66: =VLOOKUP(B66,Lookups!A:B,2) -> 4524.205415 | E66: =VLOOKUP(B66,Lookups!A:C,3) -> 1715.34 | G66: =VLOOKUP(B66,Lookups!A:D,4) -> 5402.684673 | H66: =VLOOKUP(B66,Lookups!A:E,5) -> 2741.28 | J66: =Active!J66 -> 1.049 | K66: 36.2001744 | L66: =Active!L66 -> 1.052 | M66: 33.51540827 | O66: =Active!O66 -> 1.049 | P66: 34.25855081 | Q66: =Active!Q66 -> 1.05 | R66: 36.07594707 | T66: 151630.5916 | U66: =IF(ExFlg=0,E66*Trends!T66,E66*Trends!X66) -> 63528.5511 | V66: 88102.04047 | X66: 194906.9663 | Y66: =IF(ExFlg=0,H66*Trends!V66,H66*Trends!Z66) -> 108695.1988 | Z66: 86211.76748 | AB66: 86211.76748 | AD66: =IF($B66<121,VLOOKUP($B66,Lookups!A:H,8)*(1-VLOOKUP($B66,Lookups!$DY$3:$EA$103,2))^($A66-$A$3),"") -> 0.02475975387 | AE66: =IF($B66<121,VLOOKUP($B66,Lookups!A:I,9)*(1-VLOOKUP($B66,Lookups!$DY$3:$EA$103,3))^($A66-$A$3),"") -> 0.0219535009 | AF66: 0.0219535009 | AG66: 0.7376521475 | AH66: 0.08450835036 | AI66: 0.972697 | AL66: 5227.515878
A67: 2079 | B67: 84 | D67: =VLOOKUP(B67,Lookups!A:B,2) -> 4546.831967 | E67: =VLOOKUP(B67,Lookups!A:C,3) -> 1715.34 | G67: =VLOOKUP(B67,Lookups!A:D,4) -> 5429.704693 | H67: =VLOOKUP(B67,Lookups!A:E,5) -> 2741.28 | J67: =Active!J67 -> 1.049 | K67: 37.97398295 | L67: =Active!L67 -> 1.052 | M67: 35.25820949 | O67: =Active!O67 -> 1.049 | P67: 35.9372198 | Q67: =Active!Q67 -> 1.05 | R67: 37.87974442 | T67: =IF(B67<65,D67*K67,D67*M67) -> 160313.154 | U67: =IF(ExFlg=0,E67*Trends!T67,E67*Trends!X67) -> 66832.03576 | V67: =T67-U67 -> 93481.11828 | X67: =IF(B67<65,G67*P67,G67*R67) -> 205675.8261 | Y67: =IF(ExFlg=0,H67*Trends!V67,H67*Trends!Z67) -> 114129.9587 | Z67: =X67-Y67 -> 91545.86733 | AB67: =(1-PctUMP)*V67+PctUMP*Z67 -> 91545.86733 | AD67: =IF($B67<121,VLOOKUP($B67,Lookups!A:H,8)*(1-VLOOKUP($B67,Lookups!$DY$3:$EA$103,2))^($A67-$A$3),"") -> 0.02718577968 | AE67: =IF($B67<121,VLOOKUP($B67,Lookups!A:I,9)*(1-VLOOKUP($B67,Lookups!$DY$3:$EA$103,3))^($A67-$A$3),"") -> 0.02408354036 | AF67: =IF(B67<121,(PCTMALE*AD67+(1-PCTMALE)*AE67),"") -> 0.02408354036 | AG67: 0.7214581004 | AH67: 0.08125802919 | AI67: =IF(AF67="","",ROUND((13/24)+(11/24)*(1/(1+IntRt))*(1-AF67),6)) -> 0.971758 | AK67: =IF(B67<65,AB67*AG67*AH67*AI67,"") ->  | AL67: =IF(AND(B67>=65,B67<111),AB67*AG67*AH67*AI67,"") -> 5215.239617
A68: =1+A67 -> 2080 | B68: =1+B67 -> 85 | D68: =VLOOKUP(B68,Lookups!A:B,2) -> 4569.571725 | E68: =VLOOKUP(B68,Lookups!A:C,3) -> 1715.34 | G68: =VLOOKUP(B68,Lookups!A:D,4) -> 5456.859901 | H68: =VLOOKUP(B68,Lookups!A:E,5) -> 2741.28 | J68: =Active!J68 -> 1.049 | K68: 39.83470811 | L68: =Active!L68 -> 1.051 | M68: 37.09163639 | O68: =Active!O68 -> 1.049 | P68: 37.69814357 | Q68: =Active!Q68 -> 1.05 | R68: 39.77373164 | T68: 169492.8929 | U68: =IF(ExFlg=0,E68*Trends!T68,E68*Trends!X68) -> 70307.30162 | V68: 99185.59125 | X68: 217039.6813 | Y68: =IF(ExFlg=0,H68*Trends!V68,H68*Trends!Z68) -> 119836.4567 | Z68: 97203.22464 | AB68: 97203.22464 | AD68: =IF($B68<121,VLOOKUP($B68,Lookups!A:H,8)*(1-VLOOKUP($B68,Lookups!$DY$3:$EA$103,2))^($A68-$A$3),"") -> 0.02978088413 | AE68: =IF($B68<121,VLOOKUP($B68,Lookups!A:I,9)*(1-VLOOKUP($B68,Lookups!$DY$3:$EA$103,3))^($A68-$A$3),"") -> 0.02646345774 | AF68: 0.02646345774 | AG68: 0.7040828351 | AH68: =IF(B68<121,AH67/(1+IntRt),"") -> 0.07813272038 | AI68: 0.970709 | AL68: 5190.705998
A69: 2081 | B69: 86 | D69: =VLOOKUP(B69,Lookups!A:B,2) -> 4592.425255 | E69: =VLOOKUP(B69,Lookups!A:C,3) -> 1715.34 | G69: =VLOOKUP(B69,Lookups!A:D,4) -> 5484.150972 | H69: =VLOOKUP(B69,Lookups!A:E,5) -> 2741.28 | J69: =Active!J69 -> 1.049 | K69: =K68*J68 -> 41.78660881 | L69: =Active!L69 -> 1.051 | M69: =M68*L68 -> 38.98330984 | O69: =Active!O69 -> 1.049 | P69: =P68*O68 -> 39.5453526 | Q69: =Active!Q69 -> 1.05 | R69: =R68*Q68 -> 41.76241822 | T69: 179027.9366 | U69: =IF(ExFlg=0,E69*Trends!T69,E69*Trends!X69) -> 73892.974 | V69: 105134.9626 | X69: 229031.4065 | Y69: =IF(ExFlg=0,H69*Trends!V69,H69*Trends!Z69) -> 125828.2795 | Z69: 103203.127 | AB69: 103203.127 | AD69: =IF($B69<121,VLOOKUP($B69,Lookups!A:H,8)*(1-VLOOKUP($B69,Lookups!$DY$3:$EA$103,2))^($A69-$A$3),"") -> 0.03256160878 | AE69: =IF($B69<121,VLOOKUP($B69,Lookups!A:I,9)*(1-VLOOKUP($B69,Lookups!$DY$3:$EA$103,3))^($A69-$A$3),"") -> 0.02912805617 | AF69: 0.02912805617 | AG69: =IF(B69<121,AG68*(1-AF68),"") -> 0.6854503688 | AH69: 0.07512761575 | AI69: 0.969535 | AL69: 5152.665724
A70: 2082 | B70: 87 | D70: =VLOOKUP(B70,Lookups!A:B,2) -> 4615.393126 | E70: =VLOOKUP(B70,Lookups!A:C,3) -> 1715.34 | G70: =VLOOKUP(B70,Lookups!A:D,4) -> 5511.578588 | H70: =VLOOKUP(B70,Lookups!A:E,5) -> 2741.28 | J70: =Active!J70 -> 1.049 | K70: 43.83415264 | L70: =Active!L70 -> 1.051 | M70: 40.97145865 | O70: =Active!O70 -> 1.049 | P70: 41.48307488 | Q70: =Active!Q70 -> 1.05 | R70: 43.85053914 | T70: 189099.3886 | U70: =IF(ExFlg=0,E70*Trends!T70,E70*Trends!X70) -> 77661.51568 | V70: 111437.8729 | X70: 241685.6926 | Y70: =IF(ExFlg=0,H70*Trends!V70,H70*Trends!Z70) -> 132119.6935 | Z70: 109565.9991 | AB70: 109565.9991 | AD70: =IF($B70<121,VLOOKUP($B70,Lookups!A:H,8)*(1-VLOOKUP($B70,Lookups!$DY$3:$EA$103,2))^($A70-$A$3),"") -> 0.03864513084 | AE70: =IF($B70<121,VLOOKUP($B70,Lookups!A:I,9)*(1-VLOOKUP($B70,Lookups!$DY$3:$EA$103,3))^($A70-$A$3),"") -> 0.03209685975 | AF70: 0.03209685975 | AG70: 0.6654845319 | AH70: 0.07223809207 | AI70: 0.968227 | AL70: 5099.847914
A71: 2083 | B71: 88 | D71: =VLOOKUP(B71,Lookups!A:B,2) -> 4638.475912 | E71: =VLOOKUP(B71,Lookups!A:C,3) -> 1715.34 | G71: =VLOOKUP(B71,Lookups!A:D,4) -> 5539.14343 | H71: =VLOOKUP(B71,Lookups!A:E,5) -> 2741.28 | J71: =Active!J71 -> 1.049 | K71: 45.98202612 | L71: =Active!L71 -> 1.051 | M71: 43.06100304 | O71: =Active!O71 -> 1.049 | P71: 43.51574555 | Q71: =Active!Q71 -> 1.05 | R71: 46.04306609 | T71: 199737.4253 | U71: =IF(ExFlg=0,E71*Trends!T71,E71*Trends!X71) -> 81622.25298 | V71: 118115.1724 | X71: 255039.1471 | Y71: =IF(ExFlg=0,H71*Trends!V71,H71*Trends!Z71) -> 138725.6782 | Z71: 116313.4689 | AB71: 116313.4689 | AD71: =IF($B71<121,VLOOKUP($B71,Lookups!A:H,8)*(1-VLOOKUP($B71,Lookups!$DY$3:$EA$103,2))^($A71-$A$3),"") -> 0.04591978774 | AE71: =IF($B71<121,VLOOKUP($B71,Lookups!A:I,9)*(1-VLOOKUP($B71,Lookups!$DY$3:$EA$103,3))^($A71-$A$3),"") -> 0.03536873432 | AF71: 0.03536873432 | AG71: 0.6441245683 | AH71: 0.06945970391 | AI71: 0.966785 | AL71: 5031.097152
A72: 2084 | B72: 89 | D72: =VLOOKUP(B72,Lookups!A:B,2) -> 4638.475912 | E72: =VLOOKUP(B72,Lookups!A:C,3) -> 1715.34 | G72: =VLOOKUP(B72,Lookups!A:D,4) -> 5539.14343 | H72: =VLOOKUP(B72,Lookups!A:E,5) -> 2741.28 | J72: =Active!J72 -> 1.049 | K72: 48.2351454 | L72: =Active!L72 -> 1.051 | M72: 45.25711419 | O72: =Active!O72 -> 1.049 | P72: 45.64801708 | Q72: =Active!Q72 -> 1.05 | R72: 48.3452194 | T72: 209924.034 | U72: =IF(ExFlg=0,E72*Trends!T72,E72*Trends!X72) -> 85784.98788 | V72: 124139.0462 | X72: 267791.1044 | Y72: =IF(ExFlg=0,H72*Trends!V72,H72*Trends!Z72) -> 145661.9621 | Z72: 122129.1423 | AB72: 122129.1423 | AD72: =IF($B72<121,VLOOKUP($B72,Lookups!A:H,8)*(1-VLOOKUP($B72,Lookups!$DY$3:$EA$103,2))^($A72-$A$3),"") -> 0.05462349428 | AE72: =IF($B72<121,VLOOKUP($B72,Lookups!A:I,9)*(1-VLOOKUP($B72,Lookups!$DY$3:$EA$103,3))^($A72-$A$3),"") -> 0.03892200549 | AF72: 0.03892200549 | AG72: 0.6213426975 | AH72: 0.06678817684 | AI72: 0.965219 | AL72: 4891.881818
A73: 2085 | B73: 90 | D73: =VLOOKUP(B73,Lookups!A:B,2) -> 4638.475912 | E73: =VLOOKUP(B73,Lookups!A:C,3) -> 1715.34 | G73: =VLOOKUP(B73,Lookups!A:D,4) -> 5539.14343 | H73: =VLOOKUP(B73,Lookups!A:E,5) -> 2741.28 | J73: =Active!J73 -> 1.049 | K73: 50.59866753 | L73: =Active!L73 -> 1.051 | M73: 47.56522702 | O73: =Active!O73 -> 1.049 | P73: 47.88476992 | Q73: =Active!Q73 -> 1.05 | R73: 50.76248037 | T73: 220630.1598 | U73: =IF(ExFlg=0,E73*Trends!T73,E73*Trends!X73) -> 90160.02226 | V73: 130470.1375 | X73: 281180.6596 | Y73: =IF(ExFlg=0,H73*Trends!V73,H73*Trends!Z73) -> 152945.0602 | Z73: 128235.5995 | AB73: 128235.5995 | AD73: =IF($B73<121,VLOOKUP($B73,Lookups!A:H,8)*(1-VLOOKUP($B73,Lookups!$DY$3:$EA$103,2))^($A73-$A$3),"") -> 0.06499654976 | AE73: =IF($B73<121,VLOOKUP($B73,Lookups!A:I,9)*(1-VLOOKUP($B73,Lookups!$DY$3:$EA$103,3))^($A73-$A$3),"") -> 0.04653646731 | AF73: 0.04653646731 | AG73: 0.5971587936 | AH73: 0.0642194008 | AI73: 0.961863 | AL73: 4730.182603
A74: 2086 | B74: 91 | D74: =VLOOKUP(B74,Lookups!A:B,2) -> 4638.475912 | E74: =VLOOKUP(B74,Lookups!A:C,3) -> 1715.34 | G74: =VLOOKUP(B74,Lookups!A:D,4) -> 5539.14343 | H74: =VLOOKUP(B74,Lookups!A:E,5) -> 2741.28 | J74: =Active!J74 -> 1.049 | K74: 53.07800224 | L74: =Active!L74 -> 1.051 | M74: 49.99105359 | O74: =Active!O74 -> 1.049 | P74: 50.23112365 | Q74: =Active!Q74 -> 1.05 | R74: 53.30060439 | T74: 231882.2979 | U74: =IF(ExFlg=0,E74*Trends!T74,E74*Trends!X74) -> 94758.1834 | V74: 137124.1145 | X74: 295239.6926 | Y74: =IF(ExFlg=0,H74*Trends!V74,H74*Trends!Z74) -> 160592.3132 | Z74: 134647.3794 | AB74: 134647.3794 | AD74: =IF($B74<121,VLOOKUP($B74,Lookups!A:H,8)*(1-VLOOKUP($B74,Lookups!$DY$3:$EA$103,2))^($A74-$A$3),"") -> 0.07727606702 | AE74: =IF($B74<121,VLOOKUP($B74,Lookups!A:I,9)*(1-VLOOKUP($B74,Lookups!$DY$3:$EA$103,3))^($A74-$A$3),"") -> 0.05548213304 | AF74: 0.05548213304 | AG74: 0.569369133 | AH74: 0.06174942385 | AI74: 0.957921 | AL74: 4534.761267
A75: 2087 | B75: 92 | D75: =VLOOKUP(B75,Lookups!A:B,2) -> 4638.475912 | E75: =VLOOKUP(B75,Lookups!A:C,3) -> 1715.34 | G75: =VLOOKUP(B75,Lookups!A:D,4) -> 5539.14343 | H75: =VLOOKUP(B75,Lookups!A:E,5) -> 2741.28 | J75: =Active!J75 -> 1.049 | K75: 55.67882435 | L75: =Active!L75 -> 1.051 | M75: 52.54059733 | O75: =Active!O75 -> 1.049 | P75: 52.6924487 | Q75: =Active!Q75 -> 1.05 | R75: 55.96563461 | T75: 243708.2951 | U75: =IF(ExFlg=0,E75*Trends!T75,E75*Trends!X75) -> 99590.85075 | V75: 144117.4444 | X75: 310001.6772 | Y75: =IF(ExFlg=0,H75*Trends!V75,H75*Trends!Z75) -> 168621.9288 | Z75: 141379.7484 | AB75: 141379.7484 | AD75: =IF($B75<121,VLOOKUP($B75,Lookups!A:H,8)*(1-VLOOKUP($B75,Lookups!$DY$3:$EA$103,2))^($A75-$A$3),"") -> 0.09097792678 | AE75: =IF($B75<121,VLOOKUP($B75,Lookups!A:I,9)*(1-VLOOKUP($B75,Lookups!$DY$3:$EA$103,3))^($A75-$A$3),"") -> 0.06585492306 | AF75: 0.06585492306 | AG75: 0.537779319 | AH75: 0.05937444601 | AI75: 0.953349 | AL75: 4303.707898
A76: 2088 | B76: 93 | D76: =VLOOKUP(B76,Lookups!A:B,2) -> 4638.475912 | E76: =VLOOKUP(B76,Lookups!A:C,3) -> 1715.34 | G76: =VLOOKUP(B76,Lookups!A:D,4) -> 5539.14343 | H76: =VLOOKUP(B76,Lookups!A:E,5) -> 2741.28 | J76: =Active!J76 -> 1.049 | K76: 58.40708674 | L76: =Active!L76 -> 1.051 | M76: 55.22016779 | O76: =Active!O76 -> 1.049 | P76: 55.27437869 | Q76: =Active!Q76 -> 1.05 | R76: 58.76391634 | T76: 256137.4182 | U76: =IF(ExFlg=0,E76*Trends!T76,E76*Trends!X76) -> 104669.9841 | V76: 151467.434 | X76: 325501.7611 | Y76: =IF(ExFlg=0,H76*Trends!V76,H76*Trends!Z76) -> 177053.0253 | Z76: 148448.7358 | AB76: 148448.7358 | AD76: =IF($B76<121,VLOOKUP($B76,Lookups!A:H,8)*(1-VLOOKUP($B76,Lookups!$DY$3:$EA$103,2))^($A76-$A$3),"") -> 0.10683059 | AE76: =IF($B76<121,VLOOKUP($B76,Lookups!A:I,9)*(1-VLOOKUP($B76,Lookups!$DY$3:$EA$103,3))^($A76-$A$3),"") -> 0.0777379282 | AF76: 0.0777379282 | AG76: 0.5023639033 | AH76: 0.05709081347 | AI76: 0.948112 | AL76: 4036.647295
A77: 2089 | B77: 94 | D77: =VLOOKUP(B77,Lookups!A:B,2) -> 4638.475912 | E77: =VLOOKUP(B77,Lookups!A:C,3) -> 1715.34 | G77: =VLOOKUP(B77,Lookups!A:D,4) -> 5539.14343 | H77: =VLOOKUP(B77,Lookups!A:E,5) -> 2741.28 | J77: =Active!J77 -> 1.049 | K77: 61.26903399 | L77: =Active!L77 -> 1.051 | M77: 58.03639635 | O77: =Active!O77 -> 1.049 | P77: 57.98282325 | Q77: =Active!Q77 -> 1.05 | R77: 61.70211215 | T77: 269200.4265 | U77: =IF(ExFlg=0,E77*Trends!T77,E77*Trends!X77) -> 110008.1533 | V77: 159192.2732 | X77: 341776.8492 | Y77: =IF(ExFlg=0,H77*Trends!V77,H77*Trends!Z77) -> 185905.6765 | Z77: 155871.1726 | AB77: 155871.1726 | AD77: =IF($B77<121,VLOOKUP($B77,Lookups!A:H,8)*(1-VLOOKUP($B77,Lookups!$DY$3:$EA$103,2))^($A77-$A$3),"") -> 0.1250464036 | AE77: =IF($B77<121,VLOOKUP($B77,Lookups!A:I,9)*(1-VLOOKUP($B77,Lookups!$DY$3:$EA$103,3))^($A77-$A$3),"") -> 0.09120881319 | AF77: 0.09120881319 | AG77: 0.4633111743 | AH77: 0.05489501295 | AI77: 0.942176 | AL77: 3735.110947
A78: 2090 | B78: 95 | D78: =VLOOKUP(B78,Lookups!A:B,2) -> 4638.475912 | E78: =VLOOKUP(B78,Lookups!A:C,3) -> 1715.34 | G78: =VLOOKUP(B78,Lookups!A:D,4) -> 5539.14343 | H78: =VLOOKUP(B78,Lookups!A:E,5) -> 2741.28 | J78: =Active!J78 -> 1.049 | K78: 64.27121666 | L78: =Active!L78 -> 1.051 | M78: 60.99625256 | O78: =Active!O78 -> 1.049 | P78: 60.82398159 | Q78: =Active!Q78 -> 1.05 | R78: 64.78721776 | T78: 282929.6482 | U78: =IF(ExFlg=0,E78*Trends!T78,E78*Trends!X78) -> 115618.5691 | V78: 167311.0791 | X78: 358865.6916 | Y78: =IF(ExFlg=0,H78*Trends!V78,H78*Trends!Z78) -> 195200.9604 | Z78: 163664.7312 | AB78: 163664.7312 | AD78: =IF($B78<121,VLOOKUP($B78,Lookups!A:H,8)*(1-VLOOKUP($B78,Lookups!$DY$3:$EA$103,2))^($A78-$A$3),"") -> 0.1458534826 | AE78: =IF($B78<121,VLOOKUP($B78,Lookups!A:I,9)*(1-VLOOKUP($B78,Lookups!$DY$3:$EA$103,3))^($A78-$A$3),"") -> 0.1063526734 | AF78: 0.1063526734 | AG78: 0.4210531119 | AH78: 0.0527836663 | AI78: 0.935502 | AL78: 3402.798683
A79: 2091 | B79: 96 | D79: =VLOOKUP(B79,Lookups!A:B,2) -> 4638.475912 | E79: =VLOOKUP(B79,Lookups!A:C,3) -> 1715.34 | G79: =VLOOKUP(B79,Lookups!A:D,4) -> 5539.14343 | H79: =VLOOKUP(B79,Lookups!A:E,5) -> 2741.28 | J79: =Active!J79 -> 1.049 | K79: 67.42050627 | L79: =Active!L79 -> 1.051 | M79: 64.10706144 | O79: =Active!O79 -> 1.049 | P79: 63.80435668 | Q79: =Active!Q79 -> 1.05 | R79: 68.02657865 | T79: 297359.0603 | U79: =IF(ExFlg=0,E79*Trends!T79,E79*Trends!X79) -> 121515.1162 | V79: 175843.9441 | X79: 376808.9762 | Y79: =IF(ExFlg=0,H79*Trends!V79,H79*Trends!Z79) -> 204961.0084 | Z79: 171847.9678 | AB79: 171847.9678 | AD79: =IF($B79<121,VLOOKUP($B79,Lookups!A:H,8)*(1-VLOOKUP($B79,Lookups!$DY$3:$EA$103,2))^($A79-$A$3),"") -> 0.1695155419 | AE79: =IF($B79<121,VLOOKUP($B79,Lookups!A:I,9)*(1-VLOOKUP($B79,Lookups!$DY$3:$EA$103,3))^($A79-$A$3),"") -> 0.1232650763 | AF79: 0.1232650763 | AG79: 0.3762729878 | AH79: 0.05075352529 | AI79: 0.928048 | AL79: 3045.678763
A80: 2092 | B80: 97 | D80: =VLOOKUP(B80,Lookups!A:B,2) -> 4638.475912 | E80: =VLOOKUP(B80,Lookups!A:C,3) -> 1715.34 | G80: =VLOOKUP(B80,Lookups!A:D,4) -> 5539.14343 | H80: =VLOOKUP(B80,Lookups!A:E,5) -> 2741.28 | J80: =Active!J80 -> 1.049 | K80: 70.72411108 | L80: =Active!L80 -> 1.051 | M80: 67.37652158 | O80: =Active!O80 -> 1.049 | P80: 66.93077016 | Q80: =Active!Q80 -> 1.05 | R80: 71.42790758 | T80: 312524.3724 | U80: =IF(ExFlg=0,E80*Trends!T80,E80*Trends!X80) -> 127712.3871 | V80: 184811.9853 | X80: 395649.425 | Y80: =IF(ExFlg=0,H80*Trends!V80,H80*Trends!Z80) -> 215209.0588 | Z80: 180440.3662 | AB80: 180440.3662 | AD80: =IF($B80<121,VLOOKUP($B80,Lookups!A:H,8)*(1-VLOOKUP($B80,Lookups!$DY$3:$EA$103,2))^($A80-$A$3),"") -> 0.1963505744 | AE80: =IF($B80<121,VLOOKUP($B80,Lookups!A:I,9)*(1-VLOOKUP($B80,Lookups!$DY$3:$EA$103,3))^($A80-$A$3),"") -> 0.1420414738 | AF80: 0.1420414738 | AG80: 0.3298916693 | AH80: 0.04880146662 | AI80: 0.919773 | AL80: 2671.890027
A81: 2093 | B81: 98 | D81: =VLOOKUP(B81,Lookups!A:B,2) -> 4638.475912 | E81: =VLOOKUP(B81,Lookups!A:C,3) -> 1715.34 | G81: =VLOOKUP(B81,Lookups!A:D,4) -> 5539.14343 | H81: =VLOOKUP(B81,Lookups!A:E,5) -> 2741.28 | J81: =Active!J81 -> 1.049 | K81: 74.18959252 | L81: =Active!L81 -> 1.05 | M81: 70.81272418 | O81: =Active!O81 -> 1.049 | P81: 70.2103779 | Q81: =Active!Q81 -> 1.05 | R81: 74.99930296 | T81: 328463.1154 | U81: =IF(ExFlg=0,E81*Trends!T81,E81*Trends!X81) -> 134225.7188 | V81: 194237.3965 | X81: 415431.8963 | Y81: =IF(ExFlg=0,H81*Trends!V81,H81*Trends!Z81) -> 225969.5118 | Z81: 189462.3845 | AB81: 189462.3845 | AD81: =IF($B81<121,VLOOKUP($B81,Lookups!A:H,8)*(1-VLOOKUP($B81,Lookups!$DY$3:$EA$103,2))^($A81-$A$3),"") -> 0.2065501065 | AE81: =IF($B81<121,VLOOKUP($B81,Lookups!A:I,9)*(1-VLOOKUP($B81,Lookups!$DY$3:$EA$103,3))^($A81-$A$3),"") -> 0.148265961 | AF81: 0.148265961 | AG81: 0.2830333703 | AH81: 0.04692448714 | AI81: 0.91703 | AL81: 2307.510682
A82: 2094 | B82: 99 | D82: =VLOOKUP(B82,Lookups!A:B,2) -> 4638.475912 | E82: =VLOOKUP(B82,Lookups!A:C,3) -> 1715.34 | G82: =VLOOKUP(B82,Lookups!A:D,4) -> 5539.14343 | H82: =VLOOKUP(B82,Lookups!A:E,5) -> 2741.28 | J82: =Active!J82 -> 1.049 | K82: 77.82488256 | L82: =Active!L82 -> 1.05 | M82: 74.35336039 | O82: =Active!O82 -> 1.049 | P82: 73.65068642 | Q82: =Active!Q82 -> 1.049 | R82: 78.74926811 | T82: 344886.2711 | U82: =IF(ExFlg=0,E82*Trends!T82,E82*Trends!X82) -> 140937.0048 | V82: 203949.2663 | X82: 436203.4911 | Y82: =IF(ExFlg=0,H82*Trends!V82,H82*Trends!Z82) -> 237267.9873 | Z82: 198935.5037 | AB82: 198935.5037 | AD82: =IF($B82<121,VLOOKUP($B82,Lookups!A:H,8)*(1-VLOOKUP($B82,Lookups!$DY$3:$EA$103,2))^($A82-$A$3),"") -> 0.2377186977 | AE82: =IF($B82<121,VLOOKUP($B82,Lookups!A:I,9)*(1-VLOOKUP($B82,Lookups!$DY$3:$EA$103,3))^($A82-$A$3),"") -> 0.1688457487 | AF82: 0.1688457487 | AG82: 0.2410691557 | AH82: 0.04511969917 | AI82: 0.907961 | AL82: 1964.659691
A83: 2095 | B83: 100 | D83: =VLOOKUP(B83,Lookups!A:B,2) -> 4638.475912 | E83: =VLOOKUP(B83,Lookups!A:C,3) -> 1715.34 | G83: =VLOOKUP(B83,Lookups!A:D,4) -> 5539.14343 | H83: =VLOOKUP(B83,Lookups!A:E,5) -> 2741.28 | J83: =Active!J83 -> 1.049 | K83: 81.6383018 | L83: =Active!L83 -> 1.05 | M83: 78.07102841 | O83: =Active!O83 -> 1.049 | P83: 77.25957005 | Q83: =Active!Q83 -> 1.049 | R83: 82.60798224 | T83: 362130.5847 | U83: =IF(ExFlg=0,E83*Trends!T83,E83*Trends!X83) -> 147983.855 | V83: 214146.7297 | X83: 457577.4621 | Y83: =IF(ExFlg=0,H83*Trends!V83,H83*Trends!Z83) -> 248894.1187 | Z83: 208683.3434 | AB83: 208683.3434 | AD83: =IF($B83<121,VLOOKUP($B83,Lookups!A:H,8)*(1-VLOOKUP($B83,Lookups!$DY$3:$EA$103,2))^($A83-$A$3),"") -> 0.2482140239 | AE83: =IF($B83<121,VLOOKUP($B83,Lookups!A:I,9)*(1-VLOOKUP($B83,Lookups!$DY$3:$EA$103,3))^($A83-$A$3),"") -> 0.1739318014 | AF83: 0.1739318014 | AG83: 0.2003656536 | AH83: 0.04338432613 | AI83: 0.905719 | AL83: 1642.999374
A84: 2096 | B84: 101 | D84: =VLOOKUP(B84,Lookups!A:B,2) -> 4638.475912 | E84: =VLOOKUP(B84,Lookups!A:C,3) -> 1715.34 | G84: =VLOOKUP(B84,Lookups!A:D,4) -> 5539.14343 | H84: =VLOOKUP(B84,Lookups!A:E,5) -> 2741.28 | J84: =Active!J84 -> 1.049 | K84: 85.63857859 | L84: =Active!L84 -> 1.05 | M84: 81.97457983 | O84: =Active!O84 -> 1.049 | P84: 81.04528898 | Q84: =Active!Q84 -> 1.049 | R84: 86.65577337 | T84: 380237.1139 | U84: =IF(ExFlg=0,E84*Trends!T84,E84*Trends!X84) -> 155383.0478 | V84: 224854.0661 | X84: 479998.7578 | Y84: =IF(ExFlg=0,H84*Trends!V84,H84*Trends!Z84) -> 261089.9305 | Z84: 218908.8272 | AB84: 218908.8272 | AD84: =IF($B84<121,VLOOKUP($B84,Lookups!A:H,8)*(1-VLOOKUP($B84,Lookups!$DY$3:$EA$103,2))^($A84-$A$3),"") -> 0.2843097678 | AE84: =IF($B84<121,VLOOKUP($B84,Lookups!A:I,9)*(1-VLOOKUP($B84,Lookups!$DY$3:$EA$103,3))^($A84-$A$3),"") -> 0.1959454708 | AF84: 0.1959454708 | AG84: 0.1655156945 | AH84: 0.0417156982 | AI84: 0.896018 | AL84: 1354.311936
A85: 2097 | B85: 102 | D85: =VLOOKUP(B85,Lookups!A:B,2) -> 4638.475912 | E85: =VLOOKUP(B85,Lookups!A:C,3) -> 1715.34 | G85: =VLOOKUP(B85,Lookups!A:D,4) -> 5539.14343 | H85: =VLOOKUP(B85,Lookups!A:E,5) -> 2741.28 | J85: =Active!J85 -> 1.049 | K85: 89.83486894 | L85: =Active!L85 -> 1.05 | M85: 86.07330882 | O85: =Active!O85 -> 1.049 | P85: 85.01650814 | Q85: =Active!Q85 -> 1.049 | R85: 90.90190627 | T85: 399248.9696 | U85: =IF(ExFlg=0,E85*Trends!T85,E85*Trends!X85) -> 163152.2002 | V85: 236096.7695 | X85: 503518.6969 | Y85: =IF(ExFlg=0,H85*Trends!V85,H85*Trends!Z85) -> 273883.3371 | Z85: 229635.3598 | AB85: 229635.3598 | AD85: =IF($B85<121,VLOOKUP($B85,Lookups!A:H,8)*(1-VLOOKUP($B85,Lookups!$DY$3:$EA$103,2))^($A85-$A$3),"") -> 0.2953294109 | AE85: =IF($B85<121,VLOOKUP($B85,Lookups!A:I,9)*(1-VLOOKUP($B85,Lookups!$DY$3:$EA$103,3))^($A85-$A$3),"") -> 0.201620289 | AF85: 0.201620289 | AG85: 0.1330836439 | AH85: 0.04011124827 | AI85: 0.893517 | AL85: 1095.298375
A86: 2098 | B86: 103 | D86: =VLOOKUP(B86,Lookups!A:B,2) -> 4638.475912 | E86: =VLOOKUP(B86,Lookups!A:C,3) -> 1715.34 | G86: =VLOOKUP(B86,Lookups!A:D,4) -> 5539.14343 | H86: =VLOOKUP(B86,Lookups!A:E,5) -> 2741.28 | J86: =Active!J86 -> 1.049 | K86: 94.23677752 | L86: =Active!L86 -> 1.05 | M86: 90.37697426 | O86: =Active!O86 -> 1.049 | P86: 89.18231704 | Q86: =Active!Q86 -> 1.049 | R86: 95.35609968 | T86: 419211.4181 | U86: =IF(ExFlg=0,E86*Trends!T86,E86*Trends!X86) -> 171309.8102 | V86: 247901.6079 | X86: 528191.113 | Y86: =IF(ExFlg=0,H86*Trends!V86,H86*Trends!Z86) -> 287303.6207 | Z86: 240887.4924 | AB86: 240887.4924 | AD86: =IF($B86<121,VLOOKUP($B86,Lookups!A:H,8)*(1-VLOOKUP($B86,Lookups!$DY$3:$EA$103,2))^($A86-$A$3),"") -> 0.3369712748 | AE86: =IF($B86<121,VLOOKUP($B86,Lookups!A:I,9)*(1-VLOOKUP($B86,Lookups!$DY$3:$EA$103,3))^($A86-$A$3),"") -> 0.2307290192 | AF86: 0.2307290192 | AG86: 0.1062512811 | AH86: 0.03856850795 | AI86: 0.880688 | AL86: 869.3673844
A87: 2099 | B87: 104 | D87: =VLOOKUP(B87,Lookups!A:B,2) -> 4638.475912 | E87: =VLOOKUP(B87,Lookups!A:C,3) -> 1715.34 | G87: =VLOOKUP(B87,Lookups!A:D,4) -> 5539.14343 | H87: =VLOOKUP(B87,Lookups!A:E,5) -> 2741.28 | J87: =Active!J87 -> 1.049 | K87: 98.85437962 | L87: =Active!L87 -> 1.05 | M87: 94.89582297 | O87: =Active!O87 -> 1.049 | P87: 93.55225058 | Q87: =Active!Q87 -> 1.049 | R87: 100.0285486 | T87: 440171.989 | U87: =IF(ExFlg=0,E87*Trends!T87,E87*Trends!X87) -> 179875.3007 | V87: 260296.6883 | X87: 554072.4776 | Y87: =IF(ExFlg=0,H87*Trends!V87,H87*Trends!Z87) -> 301381.4981 | Z87: 252690.9795 | AB87: 252690.9795 | AD87: =IF($B87<121,VLOOKUP($B87,Lookups!A:H,8)*(1-VLOOKUP($B87,Lookups!$DY$3:$EA$103,2))^($A87-$A$3),"") -> 0.3469185025 | AE87: =IF($B87<121,VLOOKUP($B87,Lookups!A:I,9)*(1-VLOOKUP($B87,Lookups!$DY$3:$EA$103,3))^($A87-$A$3),"") -> 0.2409554775 | AF87: 0.2409554775 | AG87: 0.08173602725 | AH87: 0.0370851038 | AI87: 0.876181 | AL87: 671.1144567
A88: 2100 | B88: 105 | D88: =VLOOKUP(B88,Lookups!A:B,2) -> 4638.475912 | E88: =VLOOKUP(B88,Lookups!A:C,3) -> 1715.34 | G88: =VLOOKUP(B88,Lookups!A:D,4) -> 5539.14343 | H88: =VLOOKUP(B88,Lookups!A:E,5) -> 2741.28 | J88: =Active!J88 -> 1.049 | K88: 103.6982442 | L88: =Active!L88 -> 1.05 | M88: 99.64061412 | O88: =Active!O88 -> 1.049 | P88: 98.13631086 | Q88: =Active!Q88 -> 1.049 | R88: 104.9299474 | T88: 462180.5885 | U88: =IF(ExFlg=0,E88*Trends!T88,E88*Trends!X88) -> 188869.0657 | V88: 273311.5227 | X88: 581222.029 | Y88: =IF(ExFlg=0,H88*Trends!V88,H88*Trends!Z88) -> 316149.1915 | Z88: 265072.8375 | AB88: 265072.8375 | AD88: =IF($B88<121,VLOOKUP($B88,Lookups!A:H,8)*(1-VLOOKUP($B88,Lookups!$DY$3:$EA$103,2))^($A88-$A$3),"") -> 0.392003 | AE88: =IF($B88<121,VLOOKUP($B88,Lookups!A:I,9)*(1-VLOOKUP($B88,Lookups!$DY$3:$EA$103,3))^($A88-$A$3),"") -> 0.279055 | AF88: 0.279055 | AG88: 0.06204128377 | AH88: 0.03565875365 | AI88: 0.859391 | AL88: 503.9680027
A89: 2101 | B89: 106 | D89: =VLOOKUP(B89,Lookups!A:B,2) -> 4638.475912 | E89: =VLOOKUP(B89,Lookups!A:C,3) -> 1715.34 | G89: =VLOOKUP(B89,Lookups!A:D,4) -> 5539.14343 | H89: =VLOOKUP(B89,Lookups!A:E,5) -> 2741.28 | J89: =Active!J89 -> 1.047062654 | K89: 108.7794582 | L89: =Active!L89 -> 1.048712996 | M89: 104.6226448 | O89: =Active!O89 -> 1.049 | P89: 102.9449901 | Q89: =Active!Q89 -> 1.049 | R89: 110.0715149 | T89: 485289.6179 | U89: =IF(ExFlg=0,E89*Trends!T89,E89*Trends!X89) -> 198312.519 | V89: 286977.0989 | X89: 609701.9084 | Y89: =IF(ExFlg=0,H89*Trends!V89,H89*Trends!Z89) -> 331640.5019 | Z89: 278061.4066 | AB89: 278061.4066 | AD89: =IF($B89<121,VLOOKUP($B89,Lookups!A:H,8)*(1-VLOOKUP($B89,Lookups!$DY$3:$EA$103,2))^($A89-$A$3),"") -> 0.397886 | AE89: =IF($B89<121,VLOOKUP($B89,Lookups!A:I,9)*(1-VLOOKUP($B89,Lookups!$DY$3:$EA$103,3))^($A89-$A$3),"") -> 0.293116 | AF89: 0.293116 | AG89: 0.04472835333 | AH89: 0.03428726313 | AI89: 0.853194 | AL89: 363.8348018
A90: 2102 | B90: 107 | D90: =VLOOKUP(B90,Lookups!A:B,2) -> 4638.475912 | E90: =VLOOKUP(B90,Lookups!A:C,3) -> 1715.34 | G90: =VLOOKUP(B90,Lookups!A:D,4) -> 5539.14343 | H90: =VLOOKUP(B90,Lookups!A:E,5) -> 2741.28 | J90: =Active!J90 -> 1.046855861 | K90: 113.8989082 | L90: =Active!L90 -> 1.048555102 | M90: 109.7191273 | O90: =Active!O90 -> 1.049 | P90: 107.9892946 | Q90: =Active!Q90 -> 1.049 | R90: 115.4650191 | T90: 508929.529 | U90: =IF(ExFlg=0,E90*Trends!T90,E90*Trends!X90) -> 207972.9159 | V90: 300956.6131 | X90: 639577.3019 | Y90: =IF(ExFlg=0,H90*Trends!V90,H90*Trends!Z90) -> 347890.8864 | Z90: 291686.4155 | AB90: 291686.4155 | AD90: =IF($B90<121,VLOOKUP($B90,Lookups!A:H,8)*(1-VLOOKUP($B90,Lookups!$DY$3:$EA$103,2))^($A90-$A$3),"") -> 0.4 | AE90: =IF($B90<121,VLOOKUP($B90,Lookups!A:I,9)*(1-VLOOKUP($B90,Lookups!$DY$3:$EA$103,3))^($A90-$A$3),"") -> 0.307811 | AF90: 0.307811 | AG90: 0.03161775732 | AH90: 0.03296852224 | AI90: 0.846718 | AL90: 257.4456384
A91: 2103 | B91: 108 | D91: =VLOOKUP(B91,Lookups!A:B,2) -> 4638.475912 | E91: =VLOOKUP(B91,Lookups!A:C,3) -> 1715.34 | G91: =VLOOKUP(B91,Lookups!A:D,4) -> 5539.14343 | H91: =VLOOKUP(B91,Lookups!A:E,5) -> 2741.28 | J91: =Active!J91 -> 1.046649068 | K91: 119.2357396 | L91: =Active!L91 -> 1.048397207 | M91: 115.0465507 | O91: =Active!O91 -> 1.049 | P91: 113.28077 | Q91: =Active!Q91 -> 1.049 | R91: 121.122805 | T91: 533640.6541 | U91: =IF(ExFlg=0,E91*Trends!T91,E91*Trends!X91) -> 218071.062 | V91: 315569.5921 | X91: 670916.5897 | Y91: =IF(ExFlg=0,H91*Trends!V91,H91*Trends!Z91) -> 364937.5399 | Z91: 305979.0498 | AB91: 305979.0498 | AD91: =IF($B91<121,VLOOKUP($B91,Lookups!A:H,8)*(1-VLOOKUP($B91,Lookups!$DY$3:$EA$103,2))^($A91-$A$3),"") -> 0.4 | AE91: =IF($B91<121,VLOOKUP($B91,Lookups!A:I,9)*(1-VLOOKUP($B91,Lookups!$DY$3:$EA$103,3))^($A91-$A$3),"") -> 0.322725 | AF91: 0.322725 | AG91: 0.02188546382 | AH91: 0.03170050215 | AI91: 0.840145 | AL91: 178.3478325
A92: 2104 | B92: 109 | D92: =VLOOKUP(B92,Lookups!A:B,2) -> 4638.475912 | E92: =VLOOKUP(B92,Lookups!A:C,3) -> 1715.34 | G92: =VLOOKUP(B92,Lookups!A:D,4) -> 5539.14343 | H92: =VLOOKUP(B92,Lookups!A:E,5) -> 2741.28 | J92: =Active!J92 -> 1.046442276 | K92: 124.7979758 | L92: =Active!L92 -> 1.048239313 | M92: 120.6144824 | O92: =Active!O92 -> 1.049 | P92: 118.8315278 | Q92: =Active!Q92 -> 1.049 | R92: 127.0578225 | T92: 559467.3715 | U92: =IF(ExFlg=0,E92*Trends!T92,E92*Trends!X92) -> 228625.0924 | V92: 330842.2791 | X92: 703791.5026 | Y92: =IF(ExFlg=0,H92*Trends!V92,H92*Trends!Z92) -> 382819.4793 | Z92: 320972.0233 | AB92: 320972.0233 | AD92: =IF($B92<121,VLOOKUP($B92,Lookups!A:H,8)*(1-VLOOKUP($B92,Lookups!$DY$3:$EA$103,2))^($A92-$A$3),"") -> 0.4 | AE92: =IF($B92<121,VLOOKUP($B92,Lookups!A:I,9)*(1-VLOOKUP($B92,Lookups!$DY$3:$EA$103,3))^($A92-$A$3),"") -> 0.337441 | AF92: 0.337441 | AG92: 0.01482247751 | AH92: 0.03048125207 | AI92: 0.83366 | AL92: 120.8953916
A93: 2105 | B93: 110 | D93: =VLOOKUP(B93,Lookups!A:B,2) -> 4638.475912 | E93: =VLOOKUP(B93,Lookups!A:C,3) -> 1715.34 | G93: =VLOOKUP(B93,Lookups!A:D,4) -> 5539.14343 | H93: =VLOOKUP(B93,Lookups!A:E,5) -> 2741.28 | K93: 130.5938777 | M93: 126.4328422 | P93: 124.6542726 | R93: 133.2836558 | T93: 586455.6932 | U93: =IF(ExFlg=0,E93*Trends!T93,E93*Trends!X93) -> 239653.8098 | V93: 346801.8834 | X93: 738277.2862 | Y93: =IF(ExFlg=0,H93*Trends!V93,H93*Trends!Z93) -> 401577.6338 | Z93: 336699.6524 | AB93: 336699.6524 | AD93: =IF($B93<121,VLOOKUP($B93,Lookups!A:H,8)*(1-VLOOKUP($B93,Lookups!$DY$3:$EA$103,2))^($A93-$A$3),"") -> 0.4 | AE93: =IF($B93<121,VLOOKUP($B93,Lookups!A:I,9)*(1-VLOOKUP($B93,Lookups!$DY$3:$EA$103,3))^($A93-$A$3),"") -> 0.351544 | AF93: 0.351544 | AG93: 0.009820765875 | AH93: 0.02930889622 | AI93: 0.827445 | AL93: 80.19118383
AK95: =SUM(AK3:AK93)*Part -> -51321.47426 | AL95: =SUM(AL3:AL93)*InactPart -> 140945.3174 | AM95: Sum
AK96: =B1 -> 0 | AL96: =B1 -> 0 | AM96: Count
AK97: =AK95*AK96 -> 0 | AL97: =AL95*AL96 -> 0 | AM97: Aggregate
AK98: =AK97*(1+PctMarried) -> 0 | AL98: =AL97*(1+PctMarried) -> 0 | AM98: w/ Spouses

Sheet Amort-Proj (hidden)
D1: 346360.3204 | E1: 30 | F1: Open | G1: LD | H1: =PV(IntRt,E1,-1,0,1) -> 17.98371463 | J1: 250000 | K1: =E1 -> 30 | L1: Open | M1: LD | N1: =H1 -> 17.98371463 | P1: Active | Q1: Number | R1: Emerging | S1: Inactive | T1: Number | U1: Total | W1: Emerging | X1: Inactive | Z1: Emerging | AA1: Inactive | AB1: Total | AD1: 1.05 | AE1: Closed | AF1: % of | AG1: Closed | AH1: % of | AI1: Closed | AJ1: % of | AK1: Open | AL1: % of | AM1: Open | AN1: % of | AO1: Open | AP1: % of
C2: Year | D2: Beg UAAL | E2: Amort | F2: Interest | G2: End UAAL | J2: Beg NOO | K2: Amort | L2: Interest | M2: End NOO | O2: Year | P2: Age | Q2: Active | R2: Inactive | S2: Age | T2: Inactive | U2: Inactive | W2: Net | X2: Net | Z2: Subsidy | AA2: Subsidy | AB2: Subsidy | AD2: Ann Bud | AE2: Cont's | AF2: Budget | AG2: High Med | AH2: Budget | AI2: Low Med | AJ2: Budget | AK2: Cont's | AL2: Budget | AM2: High Med | AN2: Budget | AO2: Low Med | AP2: Budget
A3: 1 | B3: =Active!A3 -> 2015 | C3: =IF(A3<=$E$1,B3,"") -> 2015 | D3: =IF(A3<=$E$1,D1,"") -> 346360.3204 | E3: =IF(A3<=$E$1,$D$3/$H$1,"") -> 19259.66506 | F3: =IF(A3<=$E$1,D3*IntRt,"") -> 13854.41282 | G3: =IF(A3<=$E$1,D3-E3+F3-E3*IntRt,"") -> 340184.6815 | H3: =E3+E3*IntRt -> 20030.05166 | J3: =IF(A3<=$K$1,J1,"") -> 250000 | K3: =IF(A3<=$K$1,$J$3/$N$1,"") -> 13901.46614 | L3: =IF(A3<=$K$1,J3*IntRt,"") -> 10000 | M3: =IF(A3<=$K$1,J3-K3+L3-K3*IntRt,"") -> 245542.4752 | N3: =K3+K3*IntRt -> 14457.52478 | O3: =C3 -> 2015 | P3: =IF(AND(Active!B3<111,Active!B3>0),Active!B3,"") -> 20 | Q3: =IF(Active!B1<>"",Active!B1,"") -> 0 | R3: 0 | S3: =IF(AND(Inactive!B3<111,Inactive!B3>0),Inactive!B3,"") -> 20 | T3: =Inactive!B1 -> 0 | U3: =R3+T3 -> 0 | W3: =IF(P3<>"",VLOOKUP(P3,Active!$B$3:$AB$93,27),0) -> -4802.351416 | X3: =IF(S3<>"",VLOOKUP(S3,Inactive!$B$3:$AB$93,27),0) -> -4802.351416 | Z3: =R3*W3 -> 0 | AA3: =T3*X3 -> 0 | AB3: =SUM(Z3:AA3) -> 0 | AD3: 1000000 | AE3: -93.51736112 | AF3: =AE3/AD3 -> -9.351736112e-05 | AG3: -95.26740338 | AH3: =AG3/AD3 -> -9.526740338e-05 | AI3: -91.79775497 | AJ3: =AI3/AD3 -> -9.179775497e-05 | AK3: -75.66650945 | AL3: =AK3/AD3 -> -7.566650945e-05 | AM3: -77.22200558 | AN3: =AM3/AD3 -> -7.722200558e-05 | AO3: -74.13951598 | AP3: =AO3/AD3 -> -7.413951598e-05
A4: =1+A3 -> 2 | B4: =1+B3 -> 2016 | C4: =IF(A4<=$E$1,B4,"") -> 2016 | D4: =IF(A4<=$E$1,G3,"") -> 340184.6815 | E4: =IF(A4<=$E$1,$D$3/$H$1,"") -> 19259.66506 | F4: 13607.38726 | G4: 333762.0171 | J4: =IF(A4<=$K$1,M3,"") -> 245542.4752 | K4: =IF(A4<=$K$1,$J$3/$N$1,"") -> 13901.46614 | L4: 9821.699009 | M4: 240906.6494 | O4: =1+O3 -> 2016 | P4: =IF(AND(Active!B4<111,Active!B4>0),Active!B4,"") -> 21 | Q4: =IF(Active!AQ4<>"",$Q$3*Active!AQ4,0) -> 0 | R4: =IF((P4<111),IF(P4<71,R3+$Q$3*Active!AQ3*Active!AF3+IF(P4<64,$Q$3*Active!AQ3*Active!AL3,0)-R3*VLOOKUP(P3,Lookups!A:O,15),R3-R3*VLOOKUP(P3,Lookups!A:O,15)),0) -> 0 | S4: =IF(AND(Inactive!B4<111,Inactive!B4>0),Inactive!B4,"") -> 21 | T4: =IF(Inactive!AG4<>"",T3*Inactive!AG4,0) -> 0 | U4: =R4+T4 -> 0 | W4: =IF(P4<>"",VLOOKUP(P4,Active!$B$3:$AB$93,27),0) -> -5337.230967 | X4: =IF(S4<>"",VLOOKUP(S4,Inactive!$B$3:$AB$93,27),0) -> -5337.230967 | Z4: =R4*W4 -> 0 | AA4: =T4*X4 -> 0 | AB4: =SUM(Z4:AA4) -> 0 | AD4: =AD3*$AD$1 -> 1050000 | AE4: -98.60916314 | AF4: =AE4/AD4 -> -9.39134887e-05 | AG4: -100.5856174 | AH4: =AG4/AD4 -> -9.579582607e-05 | AI4: -96.6702532 | AJ4: =AI4/AD4 -> -9.206690781e-05 | AK4: -77.0933651 | AL4: =AK4/AD4 -> -7.342225248e-05 | AM4: -78.81970852 | AN4: =AM4/AD4 -> -7.506638906e-05 | AO4: -75.40179 | AP4: =AO4/AD4 -> -7.181122857e-05
A5: =1+A4 -> 3 | B5: =1+B4 -> 2017 | C5: 2017 | D5: 333762.0171 | E5: 19259.66506 | F5: 13350.48069 | G5: 327082.4462 | J5: =IF(A5<=$K$1,M4,"") -> 240906.6494 | K5: 13901.46614 | L5: 9636.265978 | M5: 236085.3906 | O5: =1+O4 -> 2017 | P5: =IF(AND(Active!B5<111,Active!B5>0),Active!B5,"") -> 22 | Q5: =IF(Active!AQ5<>"",$Q$3*Active!AQ5,0) -> 0 | R5: =IF((P5<111),IF(P5<71,R4+$Q$3*Active!AQ4*Active!AF4+IF(P5<64,$Q$3*Active!AQ4*Active!AL4,0)-R4*VLOOKUP(P4,Lookups!A:O,15),R4-R4*VLOOKUP(P4,Lookups!A:O,15)),0) -> 0 | S5: =IF(AND(Inactive!B5<111,Inactive!B5>0),Inactive!B5,"") -> 22 | T5: =IF(Inactive!AG5<>"",T4*Inactive!AG5,0) -> 0 | U5: 0 | W5: =IF(P5<>"",VLOOKUP(P5,Active!$B$3:$AB$93,27),0) -> -5883.647449 | X5: =IF(S5<>"",VLOOKUP(S5,Inactive!$B$3:$AB$93,27),0) -> -5883.647449 | Z5: 0 | AA5: 0 | AB5: 0 | AD5: =AD4*$AD$1 -> 1102500 | AE5: -103.4690469 | AF5: -9.384947569e-05 | AG5: -105.6836261 | AH5: -9.58581643e-05 | AI5: -101.3002074 | AJ5: -9.188227431e-05 | AK5: -77.82297901 | AL5: -7.058773607e-05 | AM5: -79.71973244 | AN5: -7.230814734e-05 | AO5: -75.9680464 | AP5: -6.89052575e-05
A6: 4 | B6: 2018 | C6: 2018 | D6: 327082.4462 | E6: 19259.66506 | F6: 13083.29785 | G6: 320135.6923 | J6: 236085.3906 | K6: 13901.46614 | L6: 9443.415625 | M6: 231071.2815 | O6: 2018 | P6: =IF(AND(Active!B6<111,Active!B6>0),Active!B6,"") -> 23 | Q6: =IF(Active!AQ6<>"",$Q$3*Active!AQ6,0) -> 0 | R6: =IF((P6<111),IF(P6<71,R5+$Q$3*Active!AQ5*Active!AF5+IF(P6<64,$Q$3*Active!AQ5*Active!AL5,0)-R5*VLOOKUP(P5,Lookups!A:O,15),R5-R5*VLOOKUP(P5,Lookups!A:O,15)),0) -> 0 | S6: =IF(AND(Inactive!B6<111,Inactive!B6>0),Inactive!B6,"") -> 23 | T6: =IF(Inactive!AG6<>"",T5*Inactive!AG6,0) -> 0 | U6: 0 | W6: =IF(P6<>"",VLOOKUP(P6,Active!$B$3:$AB$93,27),0) -> -6001.823894 | X6: =IF(S6<>"",VLOOKUP(S6,Inactive!$B$3:$AB$93,27),0) -> -6001.823894 | Z6: 0 | AA6: 0 | AB6: 0 | AD6: 1157625 | AE6: -113.2267177 | AF6: -9.780949595e-05 | AG6: -115.9137345 | AH6: -0.0001001306421 | AI6: -110.6017803 | AJ6: -9.554197632e-05 | AK6: -79.30051126 | AL6: -6.850276321e-05 | AM6: -81.53136388 | AN6: -7.042985758e-05 | AO6: -77.12539517 | AP6: -6.662381615e-05
A7: 5 | B7: 2019 | C7: 2019 | D7: 320135.6923 | E7: 19259.66506 | F7: 12805.42769 | G7: 312911.0684 | J7: 231071.2815 | K7: 13901.46614 | L7: 9242.851259 | M7: 225856.608 | O7: 2019 | P7: =IF(AND(Active!B7<111,Active!B7>0),Active!B7,"") -> 24 | Q7: =IF(Active!AQ7<>"",$Q$3*Active!AQ7,0) -> 0 | R7: =IF((P7<111),IF(P7<71,R6+$Q$3*Active!AQ6*Active!AF6+IF(P7<64,$Q$3*Active!AQ6*Active!AL6,0)-R6*VLOOKUP(P6,Lookups!A:O,15),R6-R6*VLOOKUP(P6,Lookups!A:O,15)),0) -> 0 | S7: =IF(AND(Inactive!B7<111,Inactive!B7>0),Inactive!B7,"") -> 24 | T7: =IF(Inactive!AG7<>"",T6*Inactive!AG7,0) -> 0 | U7: 0 | W7: =IF(P7<>"",VLOOKUP(P7,Active!$B$3:$AB$93,27),0) -> -5719.571483 | X7: =IF(S7<>"",VLOOKUP(S7,Inactive!$B$3:$AB$93,27),0) -> -5719.571483 | Z7: 0 | AA7: 0 | AB7: 0 | AD7: 1215506.25 | AE7: -124.5938885 | AF7: -0.0001025037004 | AG7: -127.8758629 | AH7: -0.0001052037889 | AI7: -121.3967027 | AJ7: -9.987336774e-05 | AK7: -79.76100954 | AL7: -6.561957994e-05 | AM7: -82.38931881 | AN7: -6.778189648e-05 | AO7: -77.20729311 | AP7: -6.351863112e-05
A8: 6 | B8: 2020 | C8: 2020 | D8: 312911.0684 | E8: 19259.66506 | F8: 12516.44273 | G8: 305397.4594 | J8: 225856.608 | K8: 13901.46614 | L8: 9034.264318 | M8: 220433.3475 | O8: 2020 | P8: =IF(AND(Active!B8<111,Active!B8>0),Active!B8,"") -> 25 | Q8: =IF(Active!AQ8<>"",$Q$3*Active!AQ8,0) -> 0 | R8: =IF((P8<111),IF(P8<71,R7+$Q$3*Active!AQ7*Active!AF7+IF(P8<64,$Q$3*Active!AQ7*Active!AL7,0)-R7*VLOOKUP(P7,Lookups!A:O,15),R7-R7*VLOOKUP(P7,Lookups!A:O,15)),0) -> 0 | S8: =IF(AND(Inactive!B8<111,Inactive!B8>0),Inactive!B8,"") -> 25 | T8: =IF(Inactive!AG8<>"",T7*Inactive!AG8,0) -> 0 | U8: 0 | W8: =IF(P8<>"",VLOOKUP(P8,Active!$B$3:$AB$93,27),0) -> -5280.284907 | X8: =IF(S8<>"",VLOOKUP(S8,Inactive!$B$3:$AB$93,27),0) -> -5280.284907 | Z8: 0 | AA8: 0 | AB8: 0 | AD8: 1276281.562 | AE8: -151.9882184 | AF8: -0.0001190867461 | AG8: -157.217039 | AH8: -0.0001231836639 | AI8: -146.9513376 | AJ8: -0.0001151402182 | AK8: -77.25165108 | AL8: -6.052869002e-05 | AM8: -81.14211948 | AN8: -6.357697382e-05 | AO8: -73.52485686 | AP8: -5.760864924e-05
A9: 7 | B9: 2021 | C9: 2021 | D9: 305397.4594 | E9: 19259.66506 | F9: 12215.89838 | G9: 297583.3062 | J9: 220433.3475 | K9: 13901.46614 | L9: 8817.3339 | M9: 214793.1566 | O9: 2021 | P9: =IF(AND(Active!B9<111,Active!B9>0),Active!B9,"") -> 26 | Q9: =IF(Active!AQ9<>"",$Q$3*Active!AQ9,0) -> 0 | R9: =IF((P9<111),IF(P9<71,R8+$Q$3*Active!AQ8*Active!AF8+IF(P9<64,$Q$3*Active!AQ8*Active!AL8,0)-R8*VLOOKUP(P8,Lookups!A:O,15),R8-R8*VLOOKUP(P8,Lookups!A:O,15)),0) -> 0 | S9: =IF(AND(Inactive!B9<111,Inactive!B9>0),Inactive!B9,"") -> 26 | T9: =IF(Inactive!AG9<>"",T8*Inactive!AG9,0) -> 0 | U9: 0 | W9: =IF(P9<>"",VLOOKUP(P9,Active!$B$3:$AB$93,27),0) -> -4635.782662 | X9: =IF(S9<>"",VLOOKUP(S9,Inactive!$B$3:$AB$93,27),0) -> -4635.782662 | Z9: 0 | AA9: 0 | AB9: 0 | AD9: 1340095.641 | AE9: -174.198442 | AF9: -0.0001299895595 | AG9: -181.006812 | AH9: -0.00013507007 | AI9: -167.6728227 | AJ9: -0.0001251200419 | AK9: -78.424068 | AL9: -5.852124701e-05 | AM9: -83.41495867 | AN9: -6.224552647e-05 | AO9: -73.67457974 | AP9: -5.497710574e-05
A10: 8 | B10: 2022 | C10: 2022 | D10: 297583.3062 | E10: 19259.66506 | F10: 11903.33225 | G10: 289456.5867 | J10: 214793.1566 | K10: 13901.46614 | L10: 8591.726264 | M10: 208927.3581 | O10: 2022 | P10: =IF(AND(Active!B10<111,Active!B10>0),Active!B10,"") -> 27 | Q10: =IF(Active!AQ10<>"",$Q$3*Active!AQ10,0) -> 0 | R10: =IF((P10<111),IF(P10<71,R9+$Q$3*Active!AQ9*Active!AF9+IF(P10<64,$Q$3*Active!AQ9*Active!AL9,0)-R9*VLOOKUP(P9,Lookups!A:O,15),R9-R9*VLOOKUP(P9,Lookups!A:O,15)),0) -> 0 | S10: =IF(AND(Inactive!B10<111,Inactive!B10>0),Inactive!B10,"") -> 27 | T10: =IF(Inactive!AG10<>"",T9*Inactive!AG10,0) -> 0 | U10: 0 | W10: =IF(P10<>"",VLOOKUP(P10,Active!$B$3:$AB$93,27),0) -> -4891.384665 | X10: =IF(S10<>"",VLOOKUP(S10,Inactive!$B$3:$AB$93,27),0) -> -4891.384665 | Z10: 0 | AA10: 0 | AB10: 0 | AD10: 1407100.423 | AE10: -201.6874758 | AF10: -0.0001433355236 | AG10: -210.6230156 | AH10: -0.0001496858449 | AI10: -193.1678472 | AJ10: -0.0001372807826 | AK10: -80.05237132 | AL10: -5.689172573e-05 | AM10: -86.55335768 | AN10: -6.151185537e-05 | AO10: -73.90796667 | AP10: -5.252501206e-05
A11: 9 | B11: 2023 | C11: 2023 | D11: 289456.5867 | E11: 19259.66506 | F11: 11578.26347 | G11: 281004.7985 | J11: 208927.3581 | K11: 13901.46614 | L11: 8357.094323 | M11: 202826.9276 | O11: 2023 | P11: =IF(AND(Active!B11<111,Active!B11>0),Active!B11,"") -> 28 | Q11: =IF(Active!AQ11<>"",$Q$3*Active!AQ11,0) -> 0 | R11: =IF((P11<111),IF(P11<71,R10+$Q$3*Active!AQ10*Active!AF10+IF(P11<64,$Q$3*Active!AQ10*Active!AL10,0)-R10*VLOOKUP(P10,Lookups!A:O,15),R10-R10*VLOOKUP(P10,Lookups!A:O,15)),0) -> 0 | S11: =IF(AND(Inactive!B11<111,Inactive!B11>0),Inactive!B11,"") -> 28 | T11: =IF(Inactive!AG11<>"",T10*Inactive!AG11,0) -> 0 | U11: 0 | W11: =IF(P11<>"",VLOOKUP(P11,Active!$B$3:$AB$93,27),0) -> -5146.297805 | X11: =IF(S11<>"",VLOOKUP(S11,Inactive!$B$3:$AB$93,27),0) -> -5146.297805 | Z11: 0 | AA11: 0 | AB11: 0 | AD11: 1477455.444 | AE11: -236.082136 | AF11: -0.0001597896823 | AG11: -247.8632849 | AH11: -0.0001677636276 | AI11: -224.9083928 | AJ11: -0.0001522268531 | AK11: -82.07189272 | AL11: -5.554948751e-05 | AM11: -90.62774434 | AN11: -6.134042466e-05 | AO11: -74.03977872 | AP11: -5.011303659e-05
A12: 10 | B12: 2024 | C12: 2024 | D12: 281004.7985 | E12: 19259.66506 | F12: 11240.19194 | G12: 272214.9388 | J12: 202826.9276 | K12: 13901.46614 | L12: 8113.077105 | M12: 196482.4799 | O12: 2024 | P12: =IF(AND(Active!B12<111,Active!B12>0),Active!B12,"") -> 29 | Q12: =IF(Active!AQ12<>"",$Q$3*Active!AQ12,0) -> 0 | R12: =IF((P12<111),IF(P12<71,R11+$Q$3*Active!AQ11*Active!AF11+IF(P12<64,$Q$3*Active!AQ11*Active!AL11,0)-R11*VLOOKUP(P11,Lookups!A:O,15),R11-R11*VLOOKUP(P11,Lookups!A:O,15)),0) -> 0 | S12: =IF(AND(Inactive!B12<111,Inactive!B12>0),Inactive!B12,"") -> 29 | T12: =IF(Inactive!AG12<>"",T11*Inactive!AG12,0) -> 0 | U12: 0 | W12: =IF(P12<>"",VLOOKUP(P12,Active!$B$3:$AB$93,27),0) -> -5418.573013 | X12: =IF(S12<>"",VLOOKUP(S12,Inactive!$B$3:$AB$93,27),0) -> -5418.573013 | Z12: 0 | AA12: 0 | AB12: 0 | AD12: 1551328.216 | AE12: -279.2128234 | AF12: -0.0001799830755 | AG12: -294.7638545 | AH12: -0.0001900074088 | AI12: -264.539303 | AJ12: -0.0001705243934 | AK12: -82.58716322 | AL12: -5.323642178e-05 | AM12: -93.89332863 | AN12: -6.052447681e-05 | AO12: -72.04228779 | AP12: -4.643910106e-05
